Workbook

Sheet Sheet3 (hidden)
A1: Locality | B1: Fiscal Year | C1: Accomack | D1: Albemarle | E1: Alexandria | F1: Alleghany | G1: Amelia | H1: Amherst | I1: Appomattox | J1: Arlington | K1: Augusta | L1: Bath | M1: Bedford County_Bedford City | N1: Bland | O1: Botetourt | P1: Bristol | Q1: Brunswick | R1: Buchanan | S1: Buckingham | T1: Buena Vista | U1: Campbell | V1: Caroline | W1: Carroll | X1: Charles City | Y1: Charlotte | Z1: Charlottesville | AA1: Chesapeake | AB1: Chesterfield | AC1: Clarke | AD1: Colonial Heights | AE1: Covington | AF1: Craig | AG1: Culpeper | AH1: Cumberland | AI1: Danville | AJ1: Dickenson | AK1: Dinwiddie | AL1: Essex | AM1: Fairfax_Falls Church | AN1: Fauquier | AO1: Floyd | AP1: Fluvanna | AQ1: Franklin City | AR1: Franklin County | AS1: Frederick | AT1: Fredericksburg | AU1: Galax | AV1: Giles | AW1: Gloucester | AX1: Goochland | AY1: Grayson | AZ1: Greene | BA1: Greensville_Emporia | BB1: Halifax | BC1: Hampton | BD1: Hanover | BE1: Harrisonburg | BF1: Henrico | BG1: Henry | BH1: Highland | BI1: Hopewell | BJ1: Isle of Wight | BK1: James City | BL1: King & Queen | BM1: King George | BN1: King William | BO1: Lancaster | BP1: Lee | BQ1: Lexington | BR1: Loudoun | BS1: Louisa | BT1: Lunenburg | BU1: Lynchburg | BV1: Madison | BW1: Manassas City | BX1: Manassas Park | BY1: Martinsville | BZ1: Mathews | CA1: Mecklenburg | CB1: Middlesex | CC1: Montgomery | CD1: Nelson | CE1: New Kent | CF1: Newport News | CG1: Norfolk | CH1: Northampton | CI1: Northumberland | CJ1: Norton | CK1: Nottoway | CL1: Orange | CM1: Page | CN1: Patrick | CO1: Petersburg | CP1: Pittsylvania | CQ1: Poquoson | CR1: Portsmouth | CS1: Powhatan | CT1: Prince Edward | CU1: Prince George | CV1: Prince William | CW1: Pulaski | CX1: Radford | CY1: Rappahannock | CZ1: Richmond City | DA1: Richmond County | DB1: Roanoke City | DC1: Roanoke County | DD1: Rockbridge | DE1: Rockingham | DF1: Russell | DG1: Salem | DH1: Scott | DI1: Shenandoah | DJ1: Smyth | DK1: Southampton | DL1: Spotsylvania | DM1: Stafford | DN1: Staunton | DO1: Suffolk | DP1: Surry | DQ1: Sussex | DR1: Tazewell | DS1: Virginia Beach | DT1: Warren | DU1: Washington | DV1: Waynesboro | DW1: Westmoreland | DX1: Williamsburg | DY1: Winchester | DZ1: Wise | EA1: Wythe | EB1: York | EC1: Statewide
A2: Percent of Youth with a Decrease in CANS Child School Domain1 | B2: 2015 | C2: 0.5 | D2: 0.4666666667 | E2: 0.5 | F2: 0.5 | G2: 0.6 | H2: 0.6956521739 | I2: 0.44 | J2: 0.5396825397 | K2: 0.4857142857 | L2: 0 | M2: 0.6111111111 | O2: 0.8181818182 | P2: 0.5789473684 | Q2: 0.6666666667 | R2: 0.4705882353 | S2: 0.8571428571 | T2: 0.5 | U2: 0.5151515152 | V2: 0.6666666667 | W2: 0.4888888889 | X2: 1 | Y2: 0.2857142857 | Z2: 0.488372093 | AA2: 0.5909090909 | AB2: 0.5495495495 | AC2: 0.3333333333 | AD2: 0.6666666667 | AE2: 0 | AF2: 0.2857142857 | AG2: 0.3636363636 | AH2: 0.8 | AI2: 0.5319148936 | AJ2: 0.4571428571 | AK2: 0.6666666667 | AL2: 0.5 | AM2: 0.474537037 | AN2: 0.4642857143 | AO2: 0.5 | AP2: 0.5555555556 | AQ2: 0.5 | AR2: 0.4181818182 | AS2: 0.5 | AT2: 0.6470588235 | AU2: 0.3571428571 | AV2: 0.6 | AW2: 0.3333333333 | AX2: 0.2857142857 | AY2: 0.4583333333 | AZ2: 0.7 | BA2: 0.6666666667 | BB2: 0.4117647059 | BC2: 0.4047619048 | BD2: 0.6 | BE2: 0.5 | BF2: 0.4375 | BG2: 0.4705882353 | BI2: 0.6 | BJ2: 1 | BK2: 0.5 | BL2: 0.8333333333 | BM2: 0.6842105263 | BN2: 0.5 | BO2: 0 | BP2: 0.7391304348 | BQ2: 0 | BR2: 0.4459459459 | BS2: 0.6086956522 | BU2: 0.4057971014 | BV2: 0.5135135135 | BW2: 0.5714285714 | BX2: 0 | BZ2: 0.5 | CA2: 0.7368421053 | CB2: 0.5 | CC2: 0.48 | CE2: 0.6 | CF2: 0.4197530864 | CG2: 0.625 | CH2: 0.25 | CI2: 0.3333333333 | CJ2: 0.6 | CL2: 0.5428571429 | CM2: 0.84 | CN2: 0.6666666667 | CO2: 0.6818181818 | CP2: 0.4561403509 | CQ2: 1 | CR2: 0.3076923077 | CS2: 0.5151515152 | CT2: 0.5 | CU2: 0.3636363636 | CV2: 0.5769230769 | CW2: 0.44 | CX2: 0.8571428571 | CY2: 0.2857142857 | CZ2: 0.5102040816 | DA2: 0.3333333333 | DB2: 0.5833333333 | DC2: 0.5333333333 | DD2: 0.5882352941 | DE2: 0.3703703704 | DF2: 0.6222222222 | DG2: 0.4666666667 | DH2: 0.2857142857 | DI2: 0.6034482759 | DJ2: 0.7777777778 | DK2: 1 | DL2: 0.6164383562 | DM2: 0.775 | DN2: 0.5357142857 | DO2: 0.5 | DP2: 0.1 | DQ2: 0.25 | DR2: 0.64 | DS2: 0.4954954955 | DT2: 0.65 | DU2: 0.75 | DV2: 0.5 | DW2: 0.5 | DX2: 0.6666666667 | DY2: 0.3333333333 | DZ2: 0.5 | EA2: 0.5 | EB2: 0.6 | EC2: 0.5184128631
B3: 2016 | C3: 0.75 | D3: 0.4942528736 | E3: 0.3823529412 | F3: 0.6 | G3: 0.4 | H3: 0.3870967742 | I3: 0.5714285714 | J3: 0.5166666667 | K3: 0.4857142857 | M3: 0.6037735849 | N3: 0.8 | O3: 0.6315789474 | P3: 0.75 | Q3: 0.625 | R3: 0.3 | S3: 0.2727272727 | T3: 0.6923076923 | U3: 0.6071428571 | V3: 0.6666666667 | W3: 0.6046511628 | X3: 0 | Y3: 0.25 | Z3: 0.5925925926 | AA3: 0.5957446809 | AB3: 0.5631067961 | AC3: 0.8333333333 | AD3: 1 | AE3: 0.625 | AF3: 0 | AG3: 0.6 | AH3: 0.6363636364 | AI3: 0.5306122449 | AJ3: 0.4722222222 | AK3: 0.4666666667 | AL3: 0.5 | AM3: 0.4219066937 | AN3: 0.4482758621 | AO3: 0.5555555556 | AP3: 0.4482758621 | AR3: 0.5490196078 | AS3: 0.59375 | AT3: 0.4705882353 | AU3: 0.4285714286 | AV3: 0.6333333333 | AW3: 0.4 | AX3: 0.7142857143 | AY3: 0.2142857143 | AZ3: 0.4375 | BA3: 0 | BB3: 0.7272727273 | BC3: 0.5573770492 | BD3: 0.6744186047 | BE3: 0.4814814815 | BF3: 0.4406779661 | BG3: 0.4230769231 | BI3: 0.75 | BJ3: 0.375 | BK3: 0.65 | BM3: 0.4705882353 | BN3: 0.5 | BP3: 0.4137931034 | BQ3: 1 | BR3: 0.5245901639 | BS3: 0.4347826087 | BU3: 0.4179104478 | BV3: 0.5652173913 | BW3: 0.5 | BX3: 0 | BY3: 1 | CA3: 0.6666666667 | CB3: 0.5 | CC3: 0.5333333333 | CE3: 0.5 | CF3: 0.4090909091 | CG3: 0.654676259 | CH3: 0.2857142857 | CI3: 0.6666666667 | CL3: 0.3846153846 | CM3: 0.7142857143 | CN3: 0.2727272727 | CO3: 0.6666666667 | CP3: 0.4528301887 | CQ3: 1 | CR3: 0.4545454545 | CS3: 0.5714285714 | CT3: 0.2857142857 | CU3: 0.7777777778 | CV3: 0.4846153846 | CW3: 0.4019607843 | CX3: 0.75 | CY3: 0.25 | CZ3: 0.5251798561 | DA3: 0.3333333333 | DB3: 0.6017699115 | DC3: 0.5192307692 | DD3: 0.4761904762 | DE3: 0.4838709677 | DF3: 0.5102040816 | DG3: 0.2105263158 | DH3: 0.2352941176 | DI3: 0.4358974359 | DJ3: 0.1818181818 | DK3: 0.6666666667 | DL3: 0.4142857143 | DM3: 0.5606060606 | DN3: 0.5238095238 | DO3: 0.5 | DP3: 0 | DQ3: 1 | DR3: 0.45 | DS3: 0.4942528736 | DT3: 0.5 | DU3: 0.5 | DV3: 0.4545454545 | DW3: 0.5 | DX3: 1 | DY3: 0.4375 | DZ3: 0.3125 | EA3: 0.6666666667 | EB3: 0.2 | EC3: 0.4985922703
B4: 2017
A5: Percent of Youth with a Decrease in CANS Child Behavior/Emotional Needs Domain1 | B5: 2015 | C5: 0.6666666667 | D5: 0.3466666667 | E5: 0.3793103448 | F5: 0.5 | G5: 0.8 | H5: 0.5652173913 | I5: 0.44 | J5: 0.5238095238 | K5: 0.4285714286 | L5: 0 | M5: 0.3888888889 | O5: 0.6363636364 | P5: 0.4210526316 | Q5: 0.6666666667 | R5: 0.4117647059 | S5: 0.5714285714 | T5: 0.8 | U5: 0.5454545455 | V5: 0.3333333333 | W5: 0.4222222222 | X5: 0 | Y5: 0.3571428571 | Z5: 0.4186046512 | AA5: 0.6590909091 | AB5: 0.4504504505 | AC5: 0.3333333333 | AD5: 0.5 | AE5: 0 | AF5: 0.5714285714 | AG5: 0.5454545455 | AH5: 0.7 | AI5: 0.4255319149 | AJ5: 0.5142857143 | AK5: 0.4761904762 | AL5: 1 | AM5: 0.4976851852 | AN5: 0.5 | AO5: 0.5 | AP5: 0.6666666667 | AQ5: 1 | AR5: 0.3636363636 | AS5: 0.4642857143 | AT5: 0.7058823529 | AU5: 0.2857142857 | AV5: 0.4 | AW5: 0.6111111111 | AX5: 0.3571428571 | AY5: 0.5833333333 | AZ5: 0.55 | BA5: 0.3333333333 | BB5: 0.5294117647 | BC5: 0.5 | BD5: 0.6 | BE5: 0.35 | BF5: 0.475 | BG5: 0.3725490196 | BI5: 0.4 | BJ5: 1 | BK5: 0.875 | BL5: 0.5 | BM5: 0.4736842105 | BN5: 0.625 | BO5: 0 | BP5: 0.5217391304 | BQ5: 1 | BR5: 0.472972973 | BS5: 0.5217391304 | BU5: 0.4492753623 | BV5: 0.4594594595 | BW5: 0.7857142857 | BX5: 0 | BZ5: 1 | CA5: 0.8947368421 | CB5: 0.5 | CC5: 0.28 | CE5: 0.7 | CF5: 0.4320987654 | CG5: 0.4270833333 | CH5: 0 | CI5: 0.5 | CJ5: 1 | CL5: 0.7428571429 | CM5: 0.76 | CN5: 0.6666666667 | CO5: 0.6818181818 | CP5: 0.4912280702 | CQ5: 1 | CR5: 0.4230769231 | CS5: 0.6060606061 | CT5: 0 | CU5: 0.2727272727 | CV5: 0.4711538462 | CW5: 0.5866666667 | CX5: 0.5714285714 | CY5: 0.2857142857 | CZ5: 0.4489795918 | DA5: 1 | DB5: 0.4880952381 | DC5: 0.5666666667 | DD5: 0.4117647059 | DE5: 0.3703703704 | DF5: 0.5333333333 | DG5: 0.4666666667 | DH5: 0.1428571429 | DI5: 0.5 | DJ5: 0.7777777778 | DK5: 1 | DL5: 0.602739726 | DM5: 0.65 | DN5: 0.3214285714 | DO5: 0.5 | DP5: 0.3 | DQ5: 0.5 | DR5: 0.48 | DS5: 0.4594594595 | DT5: 0.4 | DU5: 0.5 | DV5: 0.4666666667 | DW5: 0.5 | DX5: 0.3333333333 | DY5: 0.3888888889 | DZ5: 0.4166666667 | EA5: 0.5 | EB5: 0.5 | EC5: 0.4909232365
B6: 2016 | C6: 0.625 | D6: 0.5287356322 | E6: 0.4117647059 | F6: 0.4 | G6: 0 | H6: 0.5161290323 | I6: 0.4571428571 | J6: 0.45 | K6: 0.7142857143 | M6: 0.5471698113 | N6: 0.4 | O6: 0.5789473684 | P6: 0.25 | Q6: 0.75 | R6: 0.25 | S6: 0.2727272727 | T6: 0.6923076923 | U6: 0.7142857143 | V6: 0.25 | W6: 0.4651162791 | X6: 0 | Y6: 0.6875 | Z6: 0.3148148148 | AA6: 0.5744680851 | AB6: 0.4757281553 | AC6: 0.8333333333 | AD6: 0.5555555556 | AE6: 0.5 | AF6: 0 | AG6: 0.8 | AH6: 0.6363636364 | AI6: 0.4081632653 | AJ6: 0.3888888889 | AK6: 0.2 | AL6: 1 | AM6: 0.5050709939 | AN6: 0.4827586207 | AO6: 0.5555555556 | AP6: 0.6206896552 | AR6: 0.568627451 | AS6: 0.5 | AT6: 0.5294117647 | AU6: 0.2857142857 | AV6: 0.5 | AW6: 0.35 | AX6: 0.5714285714 | AY6: 0.2857142857 | AZ6: 0.5625 | BA6: 0 | BB6: 0.3636363636 | BC6: 0.5573770492 | BD6: 0.5813953488 | BE6: 0.3333333333 | BF6: 0.5254237288 | BG6: 0.3846153846 | BI6: 0.375 | BJ6: 0.375 | BK6: 0.7 | BM6: 0.2352941176 | BN6: 0.75 | BP6: 0.3448275862 | BQ6: 1 | BR6: 0.4426229508 | BS6: 0.3043478261 | BU6: 0.3731343284 | BV6: 0.4782608696 | BW6: 0.2222222222 | BX6: 1 | BY6: 0.6666666667 | CA6: 0.7333333333 | CB6: 0.25 | CC6: 0.5333333333 | CE6: 0.8 | CF6: 0.4318181818 | CG6: 0.5395683453 | CH6: 0.1428571429 | CI6: 0.3333333333 | CL6: 0.4615384615 | CM6: 0.380952381 | CN6: 0.3636363636 | CO6: 0.6666666667 | CP6: 0.3773584906 | CQ6: 1 | CR6: 0.4545454545 | CS6: 0.5714285714 | CT6: 0.3571428571 | CU6: 0.5555555556 | CV6: 0.5 | CW6: 0.5196078431 | CX6: 0.75 | CY6: 0.75 | CZ6: 0.4100719424 | DA6: 0.6666666667 | DB6: 0.4955752212 | DC6: 0.4423076923 | DD6: 0.4761904762 | DE6: 0.5483870968 | DF6: 0.4285714286 | DG6: 0.3684210526 | DH6: 0.2941176471 | DI6: 0.6153846154 | DJ6: 0.2727272727 | DK6: 0.6666666667 | DL6: 0.4428571429 | DM6: 0.5606060606 | DN6: 0.4761904762 | DO6: 0.6111111111 | DP6: 0.6666666667 | DQ6: 1 | DR6: 0.35 | DS6: 0.4137931034 | DT6: 0.4444444444 | DU6: 0.7777777778 | DV6: 0.3636363636 | DW6: 1 | DX6: 1 | DY6: 0.5625 | DZ6: 0.375 | EA6: 0.4761904762 | EB6: 0.6 | EC6: 0.4845149731
B7: 2017
A8: Percent of Youth Receiving ICC Against Those in Residential2 (Target = 75%) | B8: 2015 | C8: 0 | D8: 0.5 | E8: 0.5833333333 | F8: 0 | H8: 1 | I8: 0.4285714286 | J8: 0 | K8: 1 | O8: 1 | P8: 0.1489361702 | R8: 0 | U8: 0 | V8: 0 | W8: 1 | Y8: 0 | Z8: 0.2285714286 | AA8: 0.2222222222 | AB8: 0.1290322581 | AF8: 0.3333333333 | AG8: 0 | AI8: 0 | AJ8: 0 | AK8: 0.25 | AM8: 0.8612440191 | AN8: 0.2142857143 | AP8: 0 | AQ8: 1 | AR8: 0.5555555556 | AS8: 0 | AT8: 0.375 | AX8: 0 | BB8: 0 | BC8: 1 | BD8: 0.04545454545 | BE8: 0.4761904762 | BF8: 0.9473684211 | BG8: 0 | BI8: 0 | BK8: 0.2857142857 | BM8: 0 | BN8: 1 | BO8: 0 | BP8: 0 | BR8: 0.7222222222 | BS8: 1 | BT8: 0 | BU8: 0.1587301587 | BV8: 0 | CA8: 0 | CF8: 0.75 | CG8: 0.3432835821 | CK8: 0 | CL8: 0.09090909091 | CM8: 0 | CO8: 0.07692307692 | CP8: 0.125 | CQ8: 0.5 | CR8: 1 | CS8: 0 | CT8: 0.3333333333 | CV8: 0.01075268817 | CW8: 0 | CX8: 0 | CY8: 0 | CZ8: 0.2602739726 | DA8: 0.5 | DB8: 0.2340425532 | DC8: 0.5238095238 | DD8: 0 | DE8: 0.4594594595 | DF8: 0 | DG8: 1 | DI8: 0 | DJ8: 0.8333333333 | DL8: 0.347826087 | DM8: 0 | DN8: 1 | DO8: 0.2222222222 | DQ8: 1 | DR8: 0 | DS8: 0.128 | DT8: 0 | DU8: 0.6086956522 | DV8: 0.8571428571 | DW8: 0.6666666667 | DY8: 0 | DZ8: 0 | EA8: 0 | EB8: 0.2 | EC8: 0.3192267503
B9: 2016 | C9: 0 | D9: 0.6875 | E9: 0.8571428571 | H9: 0.1 | I9: 0 | J9: 0.04651162791 | K9: 1 | M9: 0 | O9: 0.3333333333 | P9: 0.1578947368 | R9: 0 | U9: 0 | W9: 1 | Y9: 0.1 | Z9: 0.2903225806 | AA9: 0.3043478261 | AB9: 0.1627906977 | AF9: 1 | AG9: 0 | AI9: 0 | AJ9: 0 | AK9: 0.1428571429 | AM9: 0.9292035398 | AN9: 0.07142857143 | AP9: 0.04347826087 | AR9: 1 | AS9: 0 | AT9: 0.1666666667 | AV9: 0 | AX9: 0.09090909091 | AZ9: 0 | BB9: 0 | BC9: 1 | BD9: 0.2142857143 | BE9: 0.2962962963 | BF9: 0.7666666667 | BJ9: 0.3333333333 | BL9: 1 | BM9: 0 | BN9: 1 | BO9: 0 | BR9: 0.25 | BS9: 0.5 | BU9: 0 | BV9: 0.03846153846 | CA9: 0 | CB9: 1 | CF9: 0.25 | CG9: 0.3230769231 | CI9: 0.3333333333 | CL9: 0 | CO9: 0.1212121212 | CP9: 0.5833333333 | CR9: 0.5714285714 | CT9: 0.3333333333 | CV9: 0.02857142857 | CW9: 0 | CX9: 0 | CY9: 0 | CZ9: 0.198630137 | DA9: 1 | DB9: 0 | DC9: 0.75 | DD9: 0 | DE9: 0.4137931034 | DF9: 0 | DG9: 0.8 | DH9: 0 | DI9: 0 | DJ9: 1 | DK9: 0.3333333333 | DL9: 0 | DM9: 0 | DN9: 0.875 | DO9: 0.3333333333 | DS9: 0.05357142857 | DU9: 0.7142857143 | DV9: 1 | DW9: 1 | DY9: 0.06666666667 | DZ9: 0 | EA9: 0 | EB9: 0 | EC9: 0.3104557641
B10: 2017
A11: Percent of Youth Receiving CBS Out of All CSA Youth (Target = 50%) | B11: 2015 | C11: 0.09090909091 | D11: 0.4894894895 | E11: 0.489539749 | F11: 0.7333333333 | G11: 0.4285714286 | H11: 0.3670886076 | I11: 0.5375 | J11: 0.3886462882 | K11: 0.5025125628 | L11: 0.6666666667 | M11: 0.3867924528 | N11: 0.06666666667 | O11: 0.7272727273 | P11: 0.0977443609 | Q11: 0.4210526316 | R11: 0.2716049383 | S11: 0.7101449275 | T11: 0.6976744186 | U11: 0.6467065868 | V11: 0.4745762712 | W11: 0.6639344262 | X11: 0.625 | Y11: 0.5842696629 | Z11: 0.5663430421 | AA11: 0.5611510791 | AB11: 0.5129032258 | AC11: 0.4333333333 | AD11: 0.625 | AE11: 0.7272727273 | AF11: 0.71875 | AG11: 0.6778242678 | AH11: 0.7142857143 | AI11: 0.5541401274 | AJ11: 0.4895104895 | AK11: 0.5208333333 | AL11: 0.3333333333 | AM11: 0.6736214605 | AN11: 0.5277777778 | AO11: 0.6 | AP11: 0.8034188034 | AQ11: 0.2857142857 | AR11: 0.6274509804 | AS11: 0.4198473282 | AT11: 0.5303030303 | AU11: 0.9411764706 | AV11: 0.2933333333 | AW11: 0.2549019608 | AX11: 0.325 | AY11: 0.6440677966 | AZ11: 0.525 | BA11: 0.4827586207 | BB11: 0.6354166667 | BC11: 0.8403846154 | BD11: 0.5819672131 | BE11: 0.4046242775 | BF11: 0.6347150259 | BG11: 0.4765625 | BH11: 0 | BI11: 0.7441860465 | BJ11: 0.08333333333 | BK11: 0.5192307692 | BL11: 0.5 | BM11: 0.6896551724 | BN11: 0.625 | BO11: 0.2941176471 | BP11: 0.09677419355 | BQ11: 0.9285714286 | BR11: 0.5131578947 | BS11: 0.5479452055 | BT11: 0.7352941176 | BU11: 0.3717105263 | BV11: 0.4909090909 | BW11: 0.4285714286 | BX11: 0.8 | BY11: 0.4444444444 | BZ11: 0.5384615385 | CA11: 0.4698795181 | CB11: 0.625 | CC11: 0.2708333333 | CD11: 0.6551724138 | CE11: 0.7037037037 | CF11: 0.4664310954 | CG11: 0.197080292 | CH11: 0.2727272727 | CI11: 0.7 | CJ11: 0.3333333333 | CK11: 0.08333333333 | CL11: 0.6395348837 | CM11: 0.5769230769 | CN11: 0 | CO11: 0.3986928105 | CP11: 0.7265625 | CQ11: 0.5384615385 | CR11: 0.06944444444 | CS11: 0.5079365079 | CT11: 0.5625 | CU11: 0.6170212766 | CV11: 0.6633986928 | CW11: 0.5240963855 | CX11: 0.1818181818 | CY11: 0.3409090909 | CZ11: 0.2106227106 | DA11: 0.5 | DB11: 0.3350649351 | DC11: 0.4509803922 | DD11: 0.7432432432 | DE11: 0.3483146067 | DF11: 0.2307692308 | DG11: 0.406779661 | DH11: 0.1886792453 | DI11: 0.7614678899 | DJ11: 0.6590909091 | DK11: 0.4117647059 | DL11: 0.456928839 | DM11: 0.6319444444 | DN11: 0.4461538462 | DO11: 0.243902439 | DP11: 0.7272727273 | DQ11: 0.68 | DR11: 0.27 | DS11: 0.3314917127 | DT11: 0.5185185185 | DU11: 0.2748091603 | DV11: 0.4827586207 | DW11: 0.7073170732 | DX11: 0.25 | DY11: 0.5535714286 | DZ11: 0.2582417582 | EA11: 0.5052631579 | EB11: 0.5625 | EC11: 0.5039400346
B12: 2016 | C12: 0.25 | D12: 0.6060606061 | E12: 0.5043859649 | F12: 0.8070175439 | G12: 0.4545454545 | H12: 0.5211267606 | I12: 0.5454545455 | J12: 0.3611111111 | K12: 0.5490196078 | L12: 0.6666666667 | M12: 0.5 | N12: 0.06666666667 | O12: 0.7804878049 | P12: 0.09333333333 | Q12: 0.5238095238 | R12: 0.08641975309 | S12: 0.737704918 | T12: 0.8333333333 | U12: 0.6538461538 | V12: 0.4909090909 | W12: 0.5338983051 | X12: 0.8888888889 | Y12: 0.5405405405 | Z12: 0.5454545455 | AA12: 0.4429530201 | AB12: 0.5275362319 | AC12: 0.5 | AD12: 0.6333333333 | AE12: 0.8181818182 | AF12: 0.6206896552 | AG12: 0.6592920354 | AH12: 0.6285714286 | AI12: 0.5197368421 | AJ12: 0.5801526718 | AK12: 0.6 | AL12: 0.6129032258 | AM12: 0.6784996651 | AN12: 0.6096491228 | AO12: 0.6 | AP12: 0.7280701754 | AQ12: 0 | AR12: 0.6666666667 | AS12: 0.4468085106 | AT12: 0.5373134328 | AU12: 0.7843137255 | AV12: 0.3571428571 | AW12: 0.2037037037 | AX12: 0.2888888889 | AY12: 0.6326530612 | AZ12: 0.511627907 | BA12: 0.4545454545 | BB12: 0.6095238095 | BC12: 0.8203592814 | BD12: 0.6218487395 | BE12: 0.40625 | BF12: 0.6223958333 | BG12: 0.2372881356 | BH12: 0 | BI12: 0.7698412698 | BJ12: 0 | BK12: 0.6470588235 | BL12: 0.5 | BM12: 0.5490196078 | BN12: 0.6315789474 | BO12: 0.4 | BP12: 0.2209302326 | BQ12: 0.8461538462 | BR12: 0.5873786408 | BS12: 0.4888888889 | BT12: 0.847826087 | BU12: 0.4054878049 | BV12: 0.4434782609 | BW12: 0.4255319149 | BX12: 0.7368421053 | BY12: 0.5 | BZ12: 0.2857142857 | CA12: 0.4545454545 | CB12: 0.6923076923 | CC12: 0.488372093 | CD12: 0.4827586207 | CE12: 0.6428571429 | CF12: 0.5075757576 | CG12: 0.25 | CH12: 0.3571428571 | CI12: 0.5925925926 | CJ12: 0.1428571429 | CK12: 0.1052631579 | CL12: 0.4608695652 | CM12: 0.4565217391 | CN12: 0 | CO12: 0.4642857143 | CP12: 0.7172413793 | CQ12: 0.4 | CR12: 0.09090909091 | CS12: 0.5161290323 | CT12: 0.5090909091 | CU12: 0.7 | CV12: 0.4820627803 | CW12: 0.5482233503 | CX12: 0.2093023256 | CY12: 0.3125 | CZ12: 0.2114754098 | DA12: 0.6666666667 | DB12: 0.2670157068 | DC12: 0.5092592593 | DD12: 0.6707317073 | DE12: 0.3655913978 | DF12: 0.1393442623 | DG12: 0.46875 | DH12: 0.1428571429 | DI12: 0.7862068966 | DJ12: 0.5775862069 | DK12: 0.3888888889 | DL12: 0.5252525253 | DM12: 0.6242424242 | DN12: 0.5462184874 | DO12: 0.275 | DP12: 0.8571428571 | DQ12: 0.7727272727 | DR12: 0.2745098039 | DS12: 0.126146789 | DT12: 0.4833333333 | DU12: 0.1923076923 | DV12: 0.5405405405 | DW12: 0.8571428571 | DX12: 0.3333333333 | DY12: 0.5923566879 | DZ12: 0.303030303 | EA12: 0.5565217391 | EB12: 0.6 | EC12: 0.5048650042
B13: 2017
A14: Percent of Foster Care Children in Family-based Placements (Target = 85%) | B14: 2015 | C14: 0.7142857143 | D14: 0.869047619 | E14: 0.8865979381 | F14: 0.3333333333 | H14: 0.875 | I14: 0.8947368421 | J14: 0.7777777778 | K14: 0.5 | L14: 0.8 | M14: 0.8103448276 | N14: 0.9166666667 | O14: 1 | P14: 0.7666666667 | Q14: 0.6666666667 | R14: 0.7910447761 | S14: 0.8 | T14: 0.5789473684 | U14: 0.8333333333 | V14: 0.7368421053 | W14: 0.8846153846 | Y14: 0.9259259259 | Z14: 0.7816091954 | AA14: 0.8358208955 | AB14: 0.8064516129 | AC14: 0.8888888889 | AD14: 0.8064516129 | AE14: 0.3333333333 | AF14: 0.8888888889 | AG14: 0.6896551724 | AH14: 0.8333333333 | AI14: 0.6444444444 | AJ14: 0.8985507246 | AK14: 0.8214285714 | AL14: 0.6666666667 | AM14: 0.8684210526 | AN14: 0.8 | AO14: 0.875 | AP14: 0.8333333333 | AQ14: 1 | AR14: 0.8571428571 | AS14: 0.8 | AT14: 0.875 | AU14: 1 | AV14: 0.8857142857 | AW14: 0.8333333333 | AX14: 0.6 | AY14: 0.9444444444 | AZ14: 0.7272727273 | BA14: 1 | BB14: 0.6428571429 | BC14: 0.9636363636 | BD14: 0.8148148148 | BE14: 0.8116883117 | BF14: 0.7522123894 | BG14: 0.825 | BI14: 0.8095238095 | BJ14: 1 | BK14: 1 | BL14: 0.8 | BM14: 0.75 | BN14: 0.6 | BO14: 0.625 | BP14: 0.8518518519 | BQ14: 0.5789473684 | BR14: 0.76 | BS14: 0.7222222222 | BT14: 0.5714285714 | BU14: 0.8523489933 | BV14: 0.6756756757 | BW14: 0.8 | BX14: 1 | BY14: 0.825 | BZ14: 1 | CA14: 0.5909090909 | CB14: 1 | CC14: 0.9523809524 | CD14: 0.7142857143 | CE14: 0.75 | CF14: 0.8846153846 | CG14: 0.8893442623 | CH14: 0.6666666667 | CI14: 1 | CJ14: 1 | CK14: 1 | CL14: 0.5652173913 | CM14: 0.5555555556 | CN14: 1 | CO14: 0.6842105263 | CP14: 0.9285714286 | CQ14: 0.5 | CR14: 0.9206349206 | CS14: 0.625 | CT14: 1 | CU14: 0.6923076923 | CV14: 0.6705882353 | CW14: 0.6363636364 | CX14: 0.6470588235 | CY14: 0.84 | CZ14: 0.7272727273 | DA14: 0.4 | DB14: 0.8870967742 | DC14: 0.8490566038 | DD14: 0.5789473684 | DE14: 0.8116883117 | DF14: 0.8656716418 | DG14: 0.8490566038 | DH14: 0.9230769231 | DI14: 0.6111111111 | DJ14: 0.8571428571 | DK14: 0.625 | DL14: 0.7792207792 | DM14: 0.9655172414 | DN14: 0.8846153846 | DO14: 0.7142857143 | DQ14: 1 | DR14: 0.9387755102 | DS14: 0.8136363636 | DT14: 0.7222222222 | DU14: 0.8461538462 | DV14: 0.8846153846 | DW14: 0.3333333333 | DX14: 0.8888888889 | DY14: 1 | DZ14: 0.9252336449 | EA14: 0.9032258065 | EB14: 0.5 | EC14: 0.8213783404
B15: 2016 | C15: 0.8333333333 | D15: 0.9 | E15: 0.8651685393 | F15: 0.7 | G15: 1 | H15: 0.76 | I15: 0.75 | J15: 0.8777777778 | L15: 1 | M15: 0.8363636364 | N15: 0.9230769231 | O15: 0.6666666667 | P15: 0.6666666667 | Q15: 0.6666666667 | R15: 0.7808219178 | S15: 0.6363636364 | T15: 0.75 | U15: 0.7105263158 | V15: 0.7894736842 | W15: 0.8048780488 | Y15: 0.6875 | Z15: 0.9270833333 | AA15: 0.8870967742 | AB15: 0.7575757576 | AC15: 0.9090909091 | AD15: 0.7575757576 | AE15: 0.7 | AF15: 1 | AG15: 0.5454545455 | AH15: 0.5 | AI15: 0.7307692308 | AJ15: 0.8723404255 | AK15: 0.9 | AL15: 0.5 | AM15: 0.9244444444 | AN15: 0.7884615385 | AO15: 0.875 | AP15: 0.7272727273 | AQ15: 1 | AR15: 0.8852459016 | AS15: 0.7333333333 | AT15: 0.8947368421 | AU15: 0.8 | AV15: 0.8139534884 | AW15: 0.8846153846 | AX15: 0.6666666667 | AY15: 0.9 | AZ15: 0.6923076923 | BA15: 1 | BB15: 0.6875 | BC15: 0.96 | BD15: 0.7777777778 | BE15: 0.7961783439 | BF15: 0.6960784314 | BG15: 0.8235294118 | BH15: 1 | BI15: 0.85 | BJ15: 0.6 | BK15: 1 | BL15: 0.6666666667 | BM15: 0.9375 | BN15: 0.75 | BO15: 0.5 | BP15: 0.9166666667 | BQ15: 0.75 | BR15: 0.7619047619 | BS15: 0.7631578947 | BT15: 0.5 | BU15: 0.8484848485 | BV15: 0.641509434 | BW15: 0.9090909091 | BX15: 1 | BY15: 0.8235294118 | BZ15: 1 | CA15: 0.652173913 | CB15: 1 | CC15: 0.9705882353 | CD15: 0.9 | CE15: 1 | CF15: 0.8611111111 | CG15: 0.9154228856 | CH15: 0.6666666667 | CI15: 0.875 | CJ15: 0.8333333333 | CL15: 0.6666666667 | CM15: 0.7272727273 | CN15: 0.7647058824 | CO15: 0.6444444444 | CP15: 0.6875 | CQ15: 0.25 | CR15: 0.9338842975 | CS15: 0.8181818182 | CT15: 1 | CU15: 0.8235294118 | CV15: 0.7830188679 | CW15: 0.7358490566 | CX15: 0.7272727273 | CY15: 0.6666666667 | CZ15: 0.6748466258 | DA15: 0.3333333333 | DB15: 0.8549019608 | DC15: 0.829787234 | DD15: 0.75 | DE15: 0.7961783439 | DF15: 0.724137931 | DG15: 0.829787234 | DH15: 0.9166666667 | DI15: 0.7 | DJ15: 0.9333333333 | DK15: 0.5 | DL15: 0.8804347826 | DM15: 0.88 | DN15: 0.875 | DO15: 0.5833333333 | DQ15: 1 | DR15: 0.8888888889 | DS15: 0.8050847458 | DT15: 0.8571428571 | DU15: 0.8409090909 | DV15: 0.875 | DW15: 0.6666666667 | DX15: 1 | DY15: 0.9 | DZ15: 0.9541284404 | EA15: 0.8974358974 | EB15: 0.25 | EC15: 0.8195706827
B16: 2017
A17: Percent of Children Who Exit from Foster Care to a Permanent Living Arrangement (Target = 86%) | B17: 2015 | C17: 0.3333333333 | D17: 0.66 | E17: 0.724137931 | F17: 0.8333333333 | G17: 1 | H17: 0.7777777778 | I17: 0.5 | J17: 0.7222222222 | K17: 0.8888888889 | M17: 0.9310344828 | N17: 1 | O17: 0.8571428571 | P17: 0.7368421053 | Q17: 1 | R17: 0.8333333333 | S17: 1 | T17: 0.8 | U17: 0.75 | V17: 0.7142857143 | W17: 0.6875 | Y17: 0.6666666667 | Z17: 0.6551724138 | AA17: 0.4761904762 | AB17: 0.8181818182 | AC17: 0.5 | AD17: 0.8181818182 | AE17: 0.8333333333 | AF17: 1 | AG17: 0.8947368421 | AH17: 1 | AI17: 0.5909090909 | AJ17: 0.9642857143 | AK17: 0.875 | AL17: 0.6 | AM17: 0.7699115044 | AN17: 0.8510638298 | AO17: 0.8333333333 | AP17: 0.8333333333 | AR17: 0.8055555556 | AS17: 0.8611111111 | AT17: 0.9130434783 | AU17: 0.6666666667 | AV17: 0.9166666667 | AW17: 0.8421052632 | AX17: 0.6666666667 | AY17: 0.5714285714 | AZ17: 0.5 | BA17: 0.5 | BB17: 0.75 | BC17: 0.7575757576 | BD17: 0.5 | BE17: 0.7926829268 | BF17: 0.6875 | BG17: 0.9069767442 | BI17: 0.7692307692 | BJ17: 1 | BK17: 1 | BM17: 0.5 | BO17: 0.8571428571 | BP17: 0.8181818182 | BQ17: 0.8 | BR17: 0.8 | BS17: 0.5714285714 | BT17: 0.9230769231 | BU17: 0.7457627119 | BV17: 0.75 | BW17: 0.8571428571 | BY17: 0.9069767442 | BZ17: 1 | CA17: 0.8 | CB17: 0.5 | CC17: 0.8571428571 | CD17: 1 | CE17: 1 | CF17: 0.693877551 | CG17: 0.8453608247 | CI17: 1 | CJ17: 0.875 | CK17: 0.5 | CL17: 0.25 | CM17: 0.8571428571 | CN17: 1 | CO17: 0.8684210526 | CP17: 0.25 | CQ17: 0.6 | CR17: 0.7906976744 | CS17: 0.5 | CU17: 1 | CV17: 0.5609756098 | CW17: 0.7857142857 | CX17: 0.8571428571 | CY17: 0.8461538462 | CZ17: 0.7752808989 | DA17: 1 | DB17: 0.7314814815 | DC17: 0.8076923077 | DD17: 0.8 | DE17: 0.7926829268 | DF17: 0.8333333333 | DG17: 0.8076923077 | DH17: 0.8095238095 | DI17: 1 | DJ17: 0.8461538462 | DL17: 0.6909090909 | DM17: 0.8518518519 | DN17: 0.7948717949 | DO17: 0.2 | DQ17: 1 | DR17: 0.7741935484 | DS17: 0.6705882353 | DT17: 0.75 | DU17: 0.7333333333 | DV17: 0.7948717949 | DW17: 0.9 | DX17: 1 | DY17: 0.8333333333 | DZ17: 0.8181818182 | EA17: 0.7222222222 | EB17: 0.6 | EC17: 0.775711575
B18: 2016 | C18: 0.8 | D18: 0.7450980392 | E18: 0.7297297297 | F18: 0.5 | H18: 0.9090909091 | I18: 0.75 | J18: 0.7636363636 | K18: 1 | L18: 1 | M18: 0.8285714286 | N18: 0.8 | P18: 0.6 | R18: 0.7941176471 | T18: 0.8 | U18: 0.7222222222 | V18: 1 | W18: 0.8 | Y18: 0.7142857143 | Z18: 0.6666666667 | AA18: 0.8333333333 | AB18: 0.8 | AC18: 1 | AD18: 0.8 | AE18: 0.5 | AF18: 0.25 | AG18: 0.8620689655 | AH18: 1 | AI18: 0.5806451613 | AJ18: 0.9433962264 | AK18: 0.8333333333 | AL18: 0.2 | AM18: 0.7047619048 | AN18: 0.8611111111 | AO18: 0.8 | AP18: 0.8 | AQ18: 1 | AR18: 0.7272727273 | AS18: 1 | AT18: 0.9473684211 | AU18: 1 | AV18: 0.8518518519 | AW18: 0.75 | AX18: 0.8181818182 | AY18: 0.8333333333 | AZ18: 0.7777777778 | BA18: 0.6666666667 | BB18: 0.5555555556 | BC18: 0.6153846154 | BD18: 0.8571428571 | BE18: 0.7205882353 | BF18: 0.8076923077 | BG18: 0.88 | BI18: 0.75 | BJ18: 1 | BK18: 1 | BM18: 0.5 | BN18: 1 | BO18: 0.5 | BP18: 0.8076923077 | BQ18: 0.8 | BR18: 0.8095238095 | BS18: 0.5 | BT18: 1 | BU18: 0.8070175439 | BV18: 0.75 | BW18: 1 | BY18: 0.88 | BZ18: 1 | CA18: 1 | CB18: 0.8571428571 | CC18: 0.8636363636 | CD18: 0.75 | CF18: 0.6739130435 | CG18: 0.8870967742 | CI18: 0.25 | CJ18: 1 | CK18: 0.75 | CL18: 0.8275862069 | CM18: 1 | CN18: 1 | CO18: 0.8484848485 | CP18: 0.8571428571 | CR18: 0.7073170732 | CS18: 0.8 | CT18: 0.8333333333 | CU18: 0.8 | CV18: 0.6904761905 | CW18: 0.625 | CX18: 0.7272727273 | CY18: 0.8 | CZ18: 0.75 | DA18: 1 | DB18: 0.6704545455 | DC18: 0.8421052632 | DD18: 0.8 | DE18: 0.7205882353 | DF18: 0.7878787879 | DG18: 0.8421052632 | DH18: 0.7142857143 | DI18: 1 | DJ18: 0.7857142857 | DK18: 1 | DL18: 0.7179487179 | DM18: 0.8695652174 | DN18: 0.7049180328 | DO18: 0.8333333333 | DQ18: 1 | DR18: 0.6842105263 | DS18: 0.6632653061 | DT18: 0.8 | DU18: 0.8125 | DV18: 0.7049180328 | DW18: 1 | DX18: 0.8888888889 | DY18: 0.9230769231 | DZ18: 0.8032786885 | EA18: 0.7826086957 | EC18: 0.7733895706
B19: 2017
A20: Composite Performance Measure3 | B20: 2015 | C20: 2 | D20: 2.333333333 | E20: 2.5 | F20: 2.5 | G20: 3.25 | H20: 3.166666667 | I20: 2.5 | J20: 2 | K20: 2.5 | L20: 2.25 | M20: 2.6 | N20: 3 | O20: 3.833333333 | P20: 1.833333333 | Q20: 3 | R20: 1.5 | S20: 3.8 | T20: 2.8 | U20: 2.666666667 | V20: 2 | W20: 2.833333333 | X20: 3 | Y20: 2.166666667 | Z20: 2 | AA20: 3 | AB20: 2.5 | AC20: 1.8 | AD20: 3.4 | AE20: 2.2 | AF20: 3.333333333 | AG20: 2.666666667 | AH20: 3.8 | AI20: 2.166666667 | AJ20: 2.5 | AK20: 2.833333333 | AL20: 2.2 | AM20: 3.166666667 | AN20: 2.333333333 | AO20: 3.2 | AP20: 3 | AQ20: 3 | AR20: 2.666666667 | AS20: 2.166666667 | AT20: 3.833333333 | AU20: 2.4 | AV20: 2.8 | AW20: 2.4 | AX20: 1.333333333 | AY20: 3 | AZ20: 3 | BA20: 2.6 | BB20: 2.166666667 | BC20: 3 | BD20: 3 | BE20: 2.166666667 | BF20: 2.5 | BG20: 2 | BH20: 1 | BI20: 2.5 | BJ20: 3.4 | BK20: 3.166666667 | BL20: 3 | BM20: 2.5 | BN20: 3.2 | BO20: 1.5 | BP20: 2.666666667 | BQ20: 2.6 | BR20: 2.333333333 | BS20: 3.166666667 | BT20: 2.75 | BU20: 1.833333333 | BV20: 1.833333333 | BW20: 3 | BX20: 2.5 | BY20: 2.666666667 | BZ20: 3.4 | CA20: 2.5 | CB20: 3 | CC20: 2.2 | CD20: 3.333333333 | CE20: 3.6 | CF20: 2.333333333 | CG20: 2.666666667 | CH20: 1.25 | CI20: 3.2 | CJ20: 3.4 | CK20: 2 | CL20: 2.666666667 | CM20: 3 | CN20: 3.4 | CO20: 2.666666667 | CP20: 2.5 | CQ20: 3.166666667 | CR20: 2.166666667 | CS20: 2.333333333 | CT20: 2.8 | CU20: 2.4 | CV20: 2.5 | CW20: 2.166666667 | CX20: 2.5 | CY20: 1.666666667 | CZ20: 1.666666667 | DA20: 2.833333333 | DB20: 2.333333333 | DC20: 2.833333333 | DD20: 2.333333333 | DE20: 2 | DF20: 2.666666667 | DG20: 2.166666667 | DH20: 1.8 | DI20: 3 | DJ20: 3.833333333 | DK20: 2.75 | DL20: 2.666666667 | DM20: 3.333333333 | DN20: 2.5 | DO20: 1.833333333 | DP20: 2 | DQ20: 3.333333333 | DR20: 2.333333333 | DS20: 1.833333333 | DT20: 2.166666667 | DU20: 2.833333333 | DV20: 2.666666667 | DW20: 3.166666667 | DX20: 2.8 | DY20: 2.333333333 | DZ20: 2 | EA20: 2.5 | EB20: 2.666666667 | EC20: 2.598333333
B21: 2016 | C21: 2.5 | D21: 3.166666667 | E21: 2.333333333 | F21: 2.6 | G21: 1.75 | H21: 2.333333333 | I21: 2.333333333 | J21: 2.166666667 | K21: 3.6 | L21: 4 | M21: 2.833333333 | N21: 2.4 | O21: 3.4 | P21: 1.833333333 | Q21: 3.25 | R21: 1.333333333 | S21: 2 | T21: 3.2 | U21: 2.833333333 | V21: 2.6 | W21: 3 | X21: 2 | Y21: 2.166666667 | Z21: 2.666666667 | AA21: 3 | AB21: 2.333333333 | AC21: 3.6 | AD21: 3.2 | AE21: 3 | AF21: 2.666666667 | AG21: 3.166666667 | AH21: 3.6 | AI21: 2 | AJ21: 2.666666667 | AK21: 2.5 | AL21: 3 | AM21: 3 | AN21: 2.333333333 | AO21: 3.6 | AP21: 2.333333333 | AQ21: 3 | AR21: 3.666666667 | AS21: 2.5 | AT21: 2.833333333 | AU21: 2.6 | AV21: 2.5 | AW21: 1.8 | AX21: 2.5 | AY21: 2.6 | AZ21: 2.166666667 | BA21: 1.8 | BB21: 2.333333333 | BC21: 3.666666667 | BD21: 3 | BE21: 1.666666667 | BF21: 2.666666667 | BG21: 2 | BH21: 2.5 | BI21: 3 | BJ21: 2 | BK21: 4 | BL21: 2.666666667 | BM21: 2.333333333 | BN21: 3.5 | BO21: 1.5 | BP21: 1.8 | BQ21: 3.2 | BR21: 2.333333333 | BS21: 2 | BT21: 3.333333333 | BU21: 1.5 | BV21: 2 | BW21: 2.6 | BX21: 3.25 | BY21: 3.4 | BZ21: 3 | CA21: 2.666666667 | CB21: 3.166666667 | CC21: 3.4 | CD21: 2.666666667 | CE21: 3.75 | CF21: 2 | CG21: 3.333333333 | CH21: 1.25 | CI21: 3 | CJ21: 2.666666667 | CK21: 1.5 | CL21: 1.666666667 | CM21: 2.4 | CN21: 1.8 | CO21: 2.666666667 | CP21: 2.5 | CQ21: 2.75 | CR21: 2.5 | CS21: 3.2 | CT21: 2.5 | CU21: 3.4 | CV21: 2 | CW21: 2 | CX21: 2.333333333 | CY21: 1.833333333 | CZ21: 1.666666667 | DA21: 3.166666667 | DB21: 2.5 | DC21: 3 | DD21: 2.166666667 | DE21: 2.5 | DF21: 1.666666667 | DG21: 2.333333333 | DH21: 1.666666667 | DI21: 2.666666667 | DJ21: 2.666666667 | DK21: 3 | DL21: 2.166666667 | DM21: 3.5 | DN21: 3 | DO21: 2.666666667 | DP21: 3 | DQ21: 4 | DR21: 1.8 | DS21: 1.666666667 | DT21: 2.6 | DU21: 3 | DV21: 2.666666667 | DW21: 3.5 | DX21: 3.4 | DY21: 3 | DZ21: 1.666666667 | EA21: 2.833333333 | EB21: 2.4 | EC21: 2.617179487
B22: 2017

Sheet All_Original (hidden)
B1: CSA Performance Measures - FY2015-2017
A2: Fips | B2: Locality | C2: Percent of Youth with a Decrease in CANS Child School Domain1 | E2: Percent of Youth with a Decrease in CANS Child Behavior/Emotional Needs Domain1 | G2: Percent of Youth Receiving ICC Against Those in Residential2 (Target = 75%) | I2: Percent of Youth Receiving CBS Out of All CSA Youth (Target = 50%) | K2: Percent of Foster Care Children in Family-based Placements (Target = 85%) | M2: Percent of Children Who Exit from Foster Care to a Permanent Living Arrangement (Target = 86%) | O2: Composite Performance Measure3 | Q2: SCH15 | R2: SCH16 | S2: CANS15 | T2: CANS16 | U2: ICC15 | V2: ICC16 | W2: CBS15 | X2: CBS16 | Y2: Fam15 | Z2: Fam16 | AA2: Per15 | AB2: Per16 | AC2: Com15 | AD2: Com16 | AE2: CANS15 | AH2: ICC Rank15 | AK2: CBS15 | AN2: Family15 | AQ2: Permanency15 | AT2: Composite15 | AW2: CANS16 | AZ2: ICC Rank16 | BC2: CBS16 | BF2: Family16 | BI2: Permanency16 | BL2: Composite16
A3: 1 | B3: Accomack | C3: 0.5 | D3: 0.75 | E3: 0.6666666667 | F3: 0.625 | G3: 0 | H3: 0 | I3: 0.09090909091 | J3: 0.25 | K3: 0.7142857143 | L3: 0.8333333333 | M3: 0.3333333333 | N3: 0.8 | O3: 2 | P3: 2.5 | Q3: 59t | R3: 7t | S3: 19t | T3: 1t | U3: 53t | V3: 54t | W3: 124 | X3: 110t | Y3: 92t | Z3: 56t | AA3: 116 | AB3: 57t | AC3: 104t | AD3: 86t | AE3: 0.19 | AF3: =IF(E3<>"",MAX(E3,AE3),"") -> 0.6666666667 | AG3: 19t | AH3: 0.53 | AI3: =IF(G3<>"",MAX(G3,AH3),"") -> 0.53 | AJ3: 53t | AK3: 1.24 | AL3: =IF(I3<>"",MAX(I3,AK3),"") -> 1.24 | AM3: 124 | AN3: 0.92 | AO3: =IF(K3<>"",MAX(K3,AN3),"") -> 0.92 | AP3: 92t | AQ3: 1.16 | AR3: =IF(M3<>"",MAX(M3,AQ3),"") -> 1.16 | AS3: 116 | AT3: 1.06 | AU3: =IF(O3<>"",MAX(O3,AT3),"") -> 2 | AV3: 106t | AW3: 0.01 | AX3: =IF(F3<>"",MAX(F3,AW3),"") -> 0.625 | AY3: 1t | AZ3: 0.54 | BA3: =IF(H3<>"",MAX(H3,AZ3),"") -> 0.54 | BB3: 54t | BC3: 1.1 | BD3: =IF(J3<>"",MAX(J3,BC3),"") -> 1.1 | BE3: 110t | BF3: 53 | BG3: =IF(L3<>"",MAX(L3,BF3),"") -> 53 | BH3: 53 | BI3: 0.57 | BJ3: =IF(N3<>"",MAX(N3,BI3),"") -> 0.8 | BK3: 57t | BL3: 1.06 | BM3: =IF(P3<>"",MAX(P3,BL3),"") -> 2.5 | BN3: 106t
A4: 3 | B4: Albemarle | C4: 0.4666666667 | D4: 0.4942528736 | E4: 0.3466666667 | F4: 0.5287356322 | G4: 0.5 | H4: 0.6875 | I4: 0.4894894895 | J4: 0.6060606061 | K4: 0.869047619 | L4: 0.9 | M4: 0.66 | N4: 0.7450980392 | O4: 2.333333333 | P4: 3.166666667 | Q4: 99t | R4: 77 | S4: 110 | T4: 42t | U4: 24t | V4: 20 | W4: 74 | X4: 41 | Y4: 45 | Z4: 29t | AA4: 97 | AB4: 84 | AC4: 83t | AD4: 21t | AE4: 1.1 | AF4: 1.1 | AG4: 110 | AH4: 0.24 | AI4: 0.5 | AJ4: 24t | AK4: 0.74 | AL4: 0.74 | AM4: 74 | AN4: 0.45 | AO4: 0.869047619 | AP4: 45 | AQ4: 0.97 | AR4: 0.97 | AS4: 97 | AT4: 0.65 | AU4: 2.333333333 | AV4: 65t | AW4: 0.42 | AX4: 0.5287356322 | AY4: 42t | AZ4: 0.2 | BA4: 0.6875 | BB4: 20 | BC4: 0.41 | BD4: 0.6060606061 | BE4: 41 | BF4: 1 | BG4: 1 | BH4: 1 | BI4: 0.84 | BJ4: 0.84 | BK4: 84 | BL4: 0.08 | BM4: 3.166666667 | BN4: 8t | CC4: 0.45 | CE4: 0.45
A5: 510 | B5: Alexandria | C5: 0.5 | D5: 0.3823529412 | E5: 0.3793103448 | F5: 0.4117647059 | G5: 0.5833333333 | H5: 0.8571428571 | I5: 0.489539749 | J5: 0.5043859649 | K5: 0.8865979381 | L5: 0.8651685393 | M5: 0.724137931 | N5: 0.7297297297 | O5: 2.5 | P5: 2.333333333 | Q5: 91 | R5: 58 | S5: 96 | T5: 101 | U5: 21 | V5: 15 | W5: 72 | X5: 71 | Y5: 36 | Z5: 48 | AA5: 85 | AB5: 85 | AC5: 83t | AD5: 56t | AE5: 0.96 | AF5: 0.96 | AG5: 96 | AH5: 0.21 | AI5: 0.5833333333 | AJ5: 21 | AK5: 0.72 | AL5: 0.72 | AM5: 72 | AN5: 0.36 | AO5: 0.8865979381 | AP5: 36 | AQ5: 0.85 | AR5: 0.85 | AS5: 85 | AT5: 0.65 | AU5: 2.5 | AV5: 65t | AW5: 1.01 | AX5: 1.01 | AY5: 101 | AZ5: 0.15 | BA5: 0.8571428571 | BB5: 15 | BC5: 0.71 | BD5: 0.71 | BE5: 71 | BF5: 34 | BG5: 34 | BH5: 34 | BI5: 0.85 | BJ5: 0.85 | BK5: 85 | BL5: 0.66 | BM5: 2.333333333 | BN5: 66t | CC5: 0.36 | CE5: 0.36
A6: 5 | B6: Alleghany | C6: 0.5 | D6: 0.6 | E6: 0.5 | F6: 0.4 | G6: 0 | I6: 0.7333333333 | J6: 0.8070175439 | K6: 0.3333333333 | L6: 0.7 | M6: 0.8333333333 | N6: 0.5 | O6: 2.5 | P6: 2.6 | Q6: 18t | R6: 53t | S6: 19t | T6: 94t | U6: 53t | W6: 10 | X6: 9 | Y6: 124t | Z6: 94t | AA6: 45t | AB6: 110t | AC6: 29t | AD6: 81t | AE6: 0.19 | AF6: 0.5 | AG6: 19t | AH6: 0.53 | AI6: 0.53 | AJ6: 53t | AK6: 0.1 | AL6: 0.7333333333 | AM6: 10 | AN6: 1.24 | AO6: 1.24 | AP6: 124t | AQ6: 0.45 | AR6: 0.8333333333 | AS6: 45t | AT6: 0.43 | AU6: 2.5 | AV6: 43t | AW6: 0.94 | AX6: 0.94 | AY6: 94t | AZ6: 0 | BC6: 0.09 | BD6: 0.8070175439 | BE6: 9 | BF6: 68 | BG6: 68 | BH6: 68 | BI6: 1.1 | BJ6: 1.1 | BK6: 110t | BL6: 0.91 | BM6: 2.6 | BN6: 91t | CC6: 1.24 | CE6: 1.24
A7: 7 | B7: Amelia | C7: 0.6 | D7: 0.4 | E7: 0.8 | F7: 0 | I7: 0.4285714286 | J7: 0.4545454545 | L7: 1 | M7: 1 | O7: 3.25 | P7: 1.75 | Q7: 32t | R7: 17 | S7: 9 | T7: 105t | W7: 86t | X7: 86t | Z7: 1t | AA7: 1t | AC7: 19 | AD7: 104t | AE7: 0.09 | AF7: 0.8 | AG7: 9 | AK7: 0.86 | AL7: 0.86 | AM7: 86t | AN7: 0 | AQ7: 0.01 | AR7: 1 | AS7: 1t | AT7: 0.26 | AU7: 3.25 | AV7: 26t | AW7: 1.05 | AX7: 1.05 | AY7: 105t | AZ7: 0 | BC7: 0.86 | BD7: 0.86 | BE7: 86t | BF7: 2 | BG7: 2 | BH7: 2 | BI7: 0 | BL7: 1.29 | BM7: 1.75 | BN7: 129t | CC7: 0 | CE7: 0
A8: 9 | B8: Amherst | C8: 0.6956521739 | D8: 0.3870967742 | E8: 0.5652173913 | F8: 0.5161290323 | G8: 1 | H8: 0.1 | I8: 0.3670886076 | J8: 0.5211267606 | K8: 0.875 | L8: 0.76 | M8: 0.7777777778 | N8: 0.9090909091 | O8: 3.166666667 | P8: 2.333333333 | Q8: 16t | R8: 52 | S8: 38 | T8: 42t | U8: 1t | V8: 44t | W8: 97 | X8: 64 | Y8: 42t | Z8: 78 | AA8: 71 | AB8: 27 | AC8: 24t | AD8: 21t | AE8: 0.38 | AF8: 0.5652173913 | AG8: 38 | AH8: 0.01 | AI8: 1 | AJ8: 1t | AK8: 0.97 | AL8: 0.97 | AM8: 97 | AN8: 0.42 | AO8: 0.875 | AP8: 42t | AQ8: 0.71 | AR8: 0.7777777778 | AS8: 71 | AT8: 0.26 | AU8: 3.166666667 | AV8: 26t | AW8: 0.42 | AX8: 0.5161290323 | AY8: 42t | AZ8: 0.44 | BA8: 0.44 | BB8: 44t | BC8: 0.64 | BD8: 0.64 | BE8: 64 | BF8: 69 | BG8: 69 | BH8: 69 | BI8: 0.27 | BJ8: 0.9090909091 | BK8: 27 | BL8: 0.22 | BM8: 2.333333333 | BN8: 22t | CC8: 0.42 | CE8: 0.42
A9: 11 | B9: Appomattox | C9: 0.44 | D9: 0.5714285714 | E9: 0.44 | F9: 0.4571428571 | G9: 0.4285714286 | H9: 0 | I9: 0.5375 | J9: 0.5454545455 | K9: 0.8947368421 | L9: 0.75 | M9: 0.5 | N9: 0.75 | O9: 2.5 | P9: 2.333333333 | Q9: 99t | R9: 50t | S9: 92 | T9: 73t | U9: 29 | V9: 54t | W9: 56 | X9: 55t | Y9: 30 | Z9: 81t | AA9: 106t | AB9: 77t | AC9: 71t | AD9: 69t | AE9: 0.92 | AF9: 0.92 | AG9: 92 | AH9: 0.29 | AI9: 0.4285714286 | AJ9: 29 | AK9: 0.56 | AL9: 0.56 | AM9: 56 | AN9: 0.3 | AO9: 0.8947368421 | AP9: 30 | AQ9: 1.06 | AR9: 1.06 | AS9: 106t | AT9: 0.43 | AU9: 2.5 | AV9: 43t | AW9: 0.73 | AX9: 0.73 | AY9: 73t | AZ9: 0.54 | BA9: 0.54 | BB9: 54t | BC9: 0.55 | BD9: 0.55 | BE9: 55t | BF9: 70 | BG9: 70 | BH9: 70 | BI9: 0.77 | BJ9: 0.77 | BK9: 77t | BL9: 0.77 | BM9: 2.333333333 | BN9: 77t | CC9: 0.3 | CE9: 0.3
A10: 13 | B10: Arlington | C10: 0.5396825397 | D10: 0.5166666667 | E10: 0.5238095238 | F10: 0.45 | G10: 0 | H10: 0.04651162791 | I10: 0.3886462882 | J10: 0.3611111111 | K10: 0.7777777778 | L10: 0.8777777778 | M10: 0.7222222222 | N10: 0.7636363636 | O10: 2 | P10: 2.166666667 | Q10: 57 | R10: 65t | S10: 37 | T10: 89 | U10: 53t | V10: 50 | W10: 94 | X10: 99 | Y10: 81 | Z10: 42 | AA10: 86t | AB10: 76 | AC10: 98t | AD10: 125t | AE10: 0.37 | AF10: 0.5238095238 | AG10: 37 | AH10: 0.53 | AI10: 0.53 | AJ10: 53t | AK10: 0.94 | AL10: 0.94 | AM10: 94 | AN10: 0.81 | AO10: 0.81 | AP10: 81 | AQ10: 0.86 | AR10: 0.86 | AS10: 86t | AT10: 1.06 | AU10: 2 | AV10: 106t | AW10: 0.89 | AX10: 0.89 | AY10: 89 | AZ10: 0.5 | BA10: 0.5 | BB10: 50 | BC10: 0.99 | BD10: 0.99 | BE10: 99 | BF10: 3 | BG10: 3 | BH10: 3 | BI10: 0.76 | BJ10: 0.7636363636 | BK10: 76 | BL10: 1.24 | BM10: 2.166666667 | BN10: 124t | CC10: 0.81 | CE10: 0.81
A11: 15 | B11: Augusta | C11: 0.4857142857 | D11: 0.4857142857 | E11: 0.4285714286 | F11: 0.7142857143 | G11: 1 | H11: 1 | I11: 0.5025125628 | J11: 0.5490196078 | K11: 0.5 | M11: 0.8888888889 | N11: 1 | O11: 2.5 | P11: 3.6 | Q11: 90 | R11: 22 | S11: 90 | T11: 21 | U11: 1t | V11: 1t | W11: 68 | X11: 51t | Y11: 120t | AA11: 28 | AB11: 1t | AC11: 83t | AD11: 3t | AE11: 0.9 | AF11: 0.9 | AG11: 90 | AH11: 0.01 | AI11: 1 | AJ11: 1t | AK11: 0.68 | AL11: 0.68 | AM11: 68 | AN11: 1.2 | AO11: 1.2 | AP11: 120t | AQ11: 0.28 | AR11: 0.8888888889 | AS11: 28 | AT11: 0.65 | AU11: 2.5 | AV11: 65t | AW11: 0.21 | AX11: 0.7142857143 | AY11: 21 | AZ11: 0.01 | BA11: 1 | BB11: 1t | BC11: 0.51 | BD11: 0.5490196078 | BE11: 51t | BI11: 0.01 | BJ11: 1 | BK11: 1t | BL11: 0.08 | BM11: 3.6 | BN11: 8t | CC11: 1.2 | CE11: 1.2
A12: 17 | B12: Bath | C12: 0 | E12: 0 | I12: 0.6666666667 | J12: 0.6666666667 | K12: 0.8 | L12: 1 | N12: 1 | O12: 2.25 | P12: 4 | Q12: 119t | S12: 117t | W12: 26 | X12: 23t | Y12: 72t | Z12: 1t | AB12: 1t | AC12: 96 | AD12: 3t | AE12: 1.17 | AF12: 1.17 | AG12: 117t | AK12: 0.26 | AL12: 0.6666666667 | AM12: 26 | AN12: 0.72 | AO12: 0.8 | AP12: 72t | AS12: 0 | AT12: 0.62 | AU12: 2.25 | AV12: 62t | AW12: 0 | AZ12: 0 | BC12: 0.23 | BD12: 0.6666666667 | BE12: 23t | BF12: 4 | BG12: 4 | BH12: 4 | BI12: 0.01 | BJ12: 1 | BK12: 1t | BL12: 0.07 | BM12: 4 | BN12: 7 | CC12: 0.72 | CE12: 0.72
A13: 19 | B13: Bedford County_Bedford City | C13: 0.6111111111 | D13: 0.6037735849 | E13: 0.3888888889 | F13: 0.5471698113 | H13: 0 | I13: 0.3867924528 | J13: 0.5 | K13: 0.8103448276 | L13: 0.8363636364 | M13: 0.9310344828 | N13: 0.8285714286 | O13: 2.6 | P13: 2.833333333 | Q13: 48 | R13: 53t | S13: 105t | T13: 75t | V13: 54t | W13: 95 | X13: 72t | Y13: 68 | Z13: 55 | AA13: 20 | AB13: 48 | AC13: 68t | AD13: 86t | AE13: 1.05 | AF13: 1.05 | AG13: 105t | AK13: 0.95 | AL13: 0.95 | AM13: 95 | AN13: 0.68 | AO13: 0.8103448276 | AP13: 68 | AQ13: 0.2 | AR13: 0.9310344828 | AS13: 20 | AT13: 0.95 | AU13: 2.6 | AV13: 95t | AW13: 0.75 | AX13: 0.75 | AY13: 75t | AZ13: 0.54 | BA13: 0.54 | BB13: 54t | BC13: 0.72 | BD13: 0.72 | BE13: 72t | BF13: 54 | BG13: 54 | BH13: 54 | BI13: 0.48 | BJ13: 0.8285714286 | BK13: 48 | BL13: 0.95 | BM13: 2.833333333 | BN13: 95t | CC13: 0.68 | CE13: 0.68
A14: 21 | B14: Bland | D14: 0.8 | F14: 0.4 | I14: 0.06666666667 | J14: 0.06666666667 | K14: 0.9166666667 | L14: 0.9230769231 | M14: 1 | N14: 0.8 | O14: 3 | P14: 2.4 | W14: 128 | X14: 126 | Y14: 27 | Z14: 23 | AA14: 1t | AB14: 57t | AC14: 29t | AD14: 86t | AK14: 1.28 | AL14: 1.28 | AM14: 128 | AN14: 0.27 | AO14: 0.9166666667 | AP14: 27 | AQ14: 0.01 | AR14: 1 | AS14: 1t | AT14: 0.26 | AU14: 3 | AV14: 26t | AW14: 0 | AX14: 0.4 | AZ14: 0 | BC14: 1.26 | BD14: 1.26 | BE14: 126 | BF14: 5 | BG14: 5 | BH14: 5 | BI14: 0.57 | BJ14: 0.8 | BK14: 57t | BL14: 0.86 | BM14: 2.4 | BN14: 86t | CC14: 0.27 | CE14: 0.27
A15: 23 | B15: Botetourt | C15: 0.8181818182 | D15: 0.6315789474 | E15: 0.6363636364 | F15: 0.5789473684 | G15: 1 | H15: 0.3333333333 | I15: 0.7272727273 | J15: 0.7804878049 | K15: 1 | L15: 0.6666666667 | M15: 0.8571428571 | O15: 3.833333333 | P15: 3.4 | Q15: 10 | R15: 31t | S15: 16 | T15: 60t | U15: 1t | V15: 25t | W15: 11t | X15: 12 | Y15: 1t | Z15: 103t | AA15: 33t | AC15: 1t | AD15: 7t | AE15: 0.16 | AF15: 0.6363636364 | AG15: 16 | AH15: 0.01 | AI15: 1 | AJ15: 1t | AK15: 0.11 | AL15: 0.7272727273 | AM15: 11t | AN15: 0.01 | AO15: 1 | AP15: 1t | AQ15: 0.33 | AR15: 0.8571428571 | AS15: 33t | AT15: 0.01 | AU15: 3.833333333 | AV15: 1t | AW15: 0.6 | AX15: 0.6 | AY15: 60t | AZ15: 0.25 | BA15: 0.3333333333 | BB15: 25t | BC15: 0.12 | BD15: 0.7804878049 | BE15: 12 | BF15: 71t | BG15: 0.6666666667 | BH15: 71t | BI15: 0 | BL15: 0.12 | BM15: 3.4 | BN15: 12t | CC15: 0.01 | CE15: 0.01
A16: 520 | B16: Bristol | C16: 0.5789473684 | D16: 0.75 | E16: 0.4210526316 | F16: 0.25 | G16: 0.1489361702 | H16: 0.1578947368 | I16: 0.0977443609 | J16: 0.09333333333 | K16: 0.7666666667 | L16: 0.6666666667 | M16: 0.7368421053 | N16: 0.6 | O16: 1.833333333 | P16: 1.833333333 | Q16: 46 | R16: 1t | S16: 97t | T16: 113t | U16: 45 | V16: 41 | W16: 122 | X16: 123 | Y16: 82 | Z16: 103t | AA16: 82 | AB16: 107 | AC16: 114t | AD16: 117t | AE16: 0.97 | AF16: 0.97 | AG16: 97t | AH16: 0.45 | AI16: 0.45 | AJ16: 45 | AK16: 1.22 | AL16: 1.22 | AM16: 122 | AN16: 0.82 | AO16: 0.82 | AP16: 82 | AQ16: 0.82 | AR16: 0.82 | AS16: 82 | AT16: 1.25 | AU16: 1.833333333 | AV16: 125t | AW16: 1.13 | AX16: 1.13 | AY16: 113t | AZ16: 0.41 | BA16: 0.41 | BB16: 41 | BC16: 1.23 | BD16: 1.23 | BE16: 123 | BF16: 115 | BG16: 115 | BH16: 115 | BI16: 1.07 | BJ16: 1.07 | BK16: 107 | BL16: 1.24 | BM16: 1.833333333 | BN16: 124t | CC16: 0.82 | CE16: 0.82
A17: 25 | B17: Brunswick | C17: 0.6666666667 | D17: 0.625 | E17: 0.6666666667 | F17: 0.75 | I17: 0.4210526316 | J17: 0.5238095238 | K17: 0.6666666667 | L17: 0.6666666667 | M17: 1 | O17: 3 | P17: 3.25 | Q17: 1t | R17: 108t | S17: 19t | T17: 80t | W17: 88 | X17: 63 | Y17: 100t | Z17: 103t | AA17: 1t | AC17: 29t | AD17: 122 | AE17: 0.19 | AF17: 0.6666666667 | AG17: 19t | AK17: 0.88 | AL17: 0.88 | AM17: 88 | AN17: 1 | AO17: 1 | AP17: 100t | AQ17: 0.01 | AR17: 1 | AS17: 1t | AT17: 0.55 | AU17: 3 | AV17: 55t | AW17: 0.8 | AX17: 0.8 | AY17: 80t | AZ17: 0 | BC17: 0.63 | BD17: 0.63 | BE17: 63 | BF17: 71t | BG17: 0.6666666667 | BH17: 71t | BI17: 0 | BL17: 1.06 | BM17: 3.25 | BN17: 106t | CC17: 1 | CE17: 1
A18: 27 | B18: Buchanan | C18: 0.4705882353 | D18: 0.3 | E18: 0.4117647059 | F18: 0.25 | G18: 0 | H18: 0 | I18: 0.2716049383 | J18: 0.08641975309 | K18: 0.7910447761 | L18: 0.7808219178 | M18: 0.8333333333 | N18: 0.7941176471 | O18: 1.5 | P18: 1.333333333 | Q18: 104 | R18: 90 | S18: 71t | T18: 91 | U18: 53t | V18: 54t | W18: 110 | X18: 125 | Y18: 78 | Z18: 73 | AA18: 45t | AB18: 71 | AC18: 121t | AD18: 128 | AE18: 0.71 | AF18: 0.71 | AG18: 71t | AH18: 0.53 | AI18: 0.53 | AJ18: 53t | AK18: 1.1 | AL18: 1.1 | AM18: 110 | AN18: 0.78 | AO18: 0.7910447761 | AP18: 78 | AQ18: 0.45 | AR18: 0.8333333333 | AS18: 45t | AT18: 1.17 | AU18: 1.5 | AV18: 117t | AW18: 0.91 | AX18: 0.91 | AY18: 91 | AZ18: 0.54 | BA18: 0.54 | BB18: 54t | BC18: 1.25 | BD18: 1.25 | BE18: 125 | BF18: 73 | BG18: 73 | BH18: 73 | BI18: 0.71 | BJ18: 0.7941176471 | BK18: 71 | BL18: 1.24 | BM18: 1.333333333 | BN18: 124t | CC18: 0.78 | CE18: 0.78
A19: 29 | B19: Buckingham | C19: 0.8571428571 | D19: 0.2727272727 | E19: 0.5714285714 | F19: 0.2727272727 | I19: 0.7101449275 | J19: 0.737704918 | K19: 0.8 | L19: 0.6363636364 | M19: 1 | O19: 3.8 | P19: 2 | Q19: 18t | R19: 70t | S19: 47t | T19: 103 | W19: 17 | X19: 15 | Y19: 72t | Z19: 115 | AA19: 1t | AC19: 4t | AD19: 69t | AE19: 0.47 | AF19: 0.5714285714 | AG19: 47t | AK19: 0.17 | AL19: 0.7101449275 | AM19: 17 | AN19: 0.72 | AO19: 0.8 | AP19: 72t | AQ19: 0.01 | AR19: 1 | AS19: 1t | AT19: 0.09 | AU19: 3.8 | AV19: 9t | AW19: 1.03 | AX19: 1.03 | AY19: 103 | AZ19: 0 | BC19: 0.15 | BD19: 0.737704918 | BE19: 15 | BF19: 74 | BG19: 74 | BH19: 74 | BI19: 0 | BL19: 0.64 | BM19: 2 | BN19: 64t | CC19: 0.72 | CE19: 0.72
A20: 530 | B20: Buena Vista | C20: 0.5 | D20: 0.6923076923 | E20: 0.8 | F20: 0.6923076923 | I20: 0.6976744186 | J20: 0.8333333333 | K20: 0.5789473684 | L20: 0.75 | M20: 0.8 | N20: 0.8 | O20: 2.8 | P20: 3.2 | Q20: 59t | R20: 48t | S20: 18 | T20: 25 | W20: 21 | X20: 6 | Y20: 114t | Z20: 81t | AA20: 60t | AB20: 57t | AC20: 48t | AD20: 28t | AE20: 0.18 | AF20: 0.8 | AG20: 18 | AK20: 0.21 | AL20: 0.6976744186 | AM20: 21 | AN20: 1.14 | AO20: 1.14 | AP20: 114t | AQ20: 0.6 | AR20: 0.8 | AS20: 60t | AT20: 0.26 | AU20: 2.8 | AV20: 26t | AW20: 0.25 | AX20: 0.6923076923 | AY20: 25 | AZ20: 0 | BC20: 0.06 | BD20: 0.8333333333 | BE20: 6 | BF20: 116 | BG20: 116 | BH20: 116 | BI20: 0.57 | BJ20: 0.8 | BK20: 57t | BL20: 0.3 | BM20: 3.2 | BN20: 30t | CC20: 1.14 | CE20: 1.14
A21: 31 | B21: Campbell | C21: 0.5151515152 | D21: 0.6071428571 | E21: 0.5454545455 | F21: 0.7142857143 | G21: 0 | H21: 0 | I21: 0.6467065868 | J21: 0.6538461538 | K21: 0.8333333333 | L21: 0.7105263158 | M21: 0.75 | N21: 0.7222222222 | O21: 2.666666667 | P21: 2.833333333 | Q21: 43 | R21: 31t | S21: 28 | T21: 16t | U21: 53t | V21: 54t | W21: 31 | X21: 27 | Y21: 57t | Z21: 93 | AA21: 77t | AB21: 88 | AC21: 29t | AD21: 28t | AE21: 0.28 | AF21: 0.5454545455 | AG21: 28 | AH21: 0.53 | AI21: 0.53 | AJ21: 53t | AK21: 0.31 | AL21: 0.6467065868 | AM21: 31 | AN21: 0.57 | AO21: 0.8333333333 | AP21: 57t | AQ21: 0.77 | AR21: 0.77 | AS21: 77t | AT21: 0.43 | AU21: 2.666666667 | AV21: 43t | AW21: 0.16 | AX21: 0.7142857143 | AY21: 16t | AZ21: 0.54 | BA21: 0.54 | BB21: 54t | BC21: 0.27 | BD21: 0.6538461538 | BE21: 27 | BF21: 75 | BG21: 75 | BH21: 75 | BI21: 0.88 | BJ21: 0.88 | BK21: 88 | BL21: 0.5 | BM21: 2.833333333 | BN21: 50t | CC21: 0.57 | CE21: 0.57
A22: 33 | B22: Caroline | C22: 0.6666666667 | D22: 0.6666666667 | E22: 0.3333333333 | F22: 0.25 | G22: 0 | I22: 0.4745762712 | J22: 0.4909090909 | K22: 0.7368421053 | L22: 0.7894736842 | M22: 0.7142857143 | N22: 1 | O22: 2 | P22: 2.6 | Q22: 84 | R22: 31t | S22: 117t | T22: 105t | U22: 53t | W22: 78 | X22: 76 | Y22: 87 | Z22: 70 | AA22: 88 | AB22: 1t | AC22: 126t | AD22: 64t | AE22: 1.17 | AF22: 1.17 | AG22: 117t | AH22: 0.53 | AI22: 0.53 | AJ22: 53t | AK22: 0.78 | AL22: 0.78 | AM22: 78 | AN22: 0.87 | AO22: 0.87 | AP22: 87 | AQ22: 0.88 | AR22: 0.88 | AS22: 88 | AT22: 1.22 | AU22: 2 | AV22: 122t | AW22: 1.05 | AX22: 1.05 | AY22: 105t | AZ22: 0 | BC22: 0.76 | BD22: 0.76 | BE22: 76 | BF22: 76 | BG22: 76 | BH22: 76 | BI22: 0.01 | BJ22: 1 | BK22: 1t | BL22: 0.91 | BM22: 2.6 | BN22: 91t | CC22: 0.87 | CE22: 0.87
A23: 35 | B23: Carroll | C23: 0.4888888889 | D23: 0.6046511628 | E23: 0.4222222222 | F23: 0.4651162791 | G23: 1 | H23: 1 | I23: 0.6639344262 | J23: 0.5338983051 | K23: 0.8846153846 | L23: 0.8048780488 | M23: 0.6875 | N23: 0.8 | O23: 2.833333333 | P23: 3 | Q23: 94 | R23: 29 | S23: 93 | T23: 58 | U23: 1t | V23: 1t | W23: 27 | X23: 60 | Y23: 38t | Z23: 66 | AA23: 91t | AB23: 57t | AC23: 55t | AD23: 15t | AE23: 0.93 | AF23: 0.93 | AG23: 93 | AH23: 0.01 | AI23: 1 | AJ23: 1t | AK23: 0.27 | AL23: 0.6639344262 | AM23: 27 | AN23: 0.38 | AO23: 0.8846153846 | AP23: 38t | AQ23: 0.91 | AR23: 0.91 | AS23: 91t | AT23: 0.26 | AU23: 2.833333333 | AV23: 26t | AW23: 0.58 | AX23: 0.58 | AY23: 58 | AZ23: 0.01 | BA23: 1 | BB23: 1t | BC23: 0.6 | BD23: 0.6 | BE23: 60 | BF23: 55 | BG23: 55 | BH23: 55 | BI23: 0.57 | BJ23: 0.8 | BK23: 57t | BL23: 0.22 | BM23: 3 | BN23: 22t | CC23: 0.38 | CE23: 0.38
A24: 36 | B24: Charles City | C24: 1 | D24: 0 | E24: 0 | F24: 0 | I24: 0.625 | J24: 0.8888888889 | O24: 3 | P24: 2 | Q24: 1t | R24: 108t | S24: 117t | T24: 113t | W24: 38t | X24: 1 | AC24: 29t | AD24: 104t | AE24: 1.17 | AF24: 1.17 | AG24: 117t | AK24: 0.38 | AL24: 0.625 | AM24: 38t | AN24: 0 | AS24: 0 | AT24: 0.76 | AU24: 3 | AV24: 76t | AW24: 1.13 | AX24: 1.13 | AY24: 113t | AZ24: 0 | BC24: 0.01 | BD24: 0.8888888889 | BE24: 1 | BI24: 0 | BL24: 0.73 | BM24: 2 | BN24: 73t | CC24: 0 | CE24: 0
A25: 37 | B25: Charlotte | C25: 0.2857142857 | D25: 0.25 | E25: 0.3571428571 | F25: 0.6875 | G25: 0 | H25: 0.1 | I25: 0.5842696629 | J25: 0.5405405405 | K25: 0.9259259259 | L25: 0.6875 | M25: 0.6666666667 | N25: 0.7142857143 | O25: 2.166666667 | P25: 2.166666667 | Q25: 106 | R25: 74t | S25: 101 | T25: 18t | U25: 53t | V25: 44t | W25: 44 | X25: 57t | Y25: 23 | Z25: 99t | AA25: 94t | AB25: 92t | AC25: 98t | AD25: 69t | AE25: 1.01 | AF25: 1.01 | AG25: 101 | AH25: 0.53 | AI25: 0.53 | AJ25: 53t | AK25: 0.44 | AL25: 0.5842696629 | AM25: 44 | AN25: 0.23 | AO25: 0.9259259259 | AP25: 23 | AQ25: 0.94 | AR25: 0.94 | AS25: 94t | AT25: 0.79 | AU25: 2.166666667 | AV25: 79t | AW25: 0.18 | AX25: 0.6875 | AY25: 18t | AZ25: 0.44 | BA25: 0.44 | BB25: 44t | BC25: 0.57 | BD25: 0.57 | BE25: 57t | BF25: 77 | BG25: 77 | BH25: 77 | BI25: 0.92 | BJ25: 0.92 | BK25: 92t | BL25: 0.5 | BM25: 2.166666667 | BN25: 50t | CC25: 0.23 | CE25: 0.23
A26: 540 | B26: Charlottesville | C26: 0.488372093 | D26: 0.5925925926 | E26: 0.4186046512 | F26: 0.3148148148 | G26: 0.2285714286 | H26: 0.2903225806 | I26: 0.5663430421 | J26: 0.5454545455 | K26: 0.7816091954 | L26: 0.9270833333 | M26: 0.6551724138 | N26: 0.6666666667 | O26: 2 | P26: 2.666666667 | Q26: 83 | R26: 96 | S26: 103t | T26: 98 | U26: 39 | V26: 34 | W26: 47 | X26: 55t | Y26: 79 | Z26: 21 | AA26: 98 | AB26: 102t | AC26: 114t | AD26: 117t | AE26: 1.03 | AF26: 1.03 | AG26: 103t | AH26: 0.39 | AI26: 0.39 | AJ26: 39 | AK26: 0.47 | AL26: 0.5663430421 | AM26: 47 | AN26: 0.79 | AO26: 0.79 | AP26: 79 | AQ26: 0.98 | AR26: 0.98 | AS26: 98 | AT26: 1.06 | AU26: 2 | AV26: 106t | AW26: 0.98 | AX26: 0.98 | AY26: 98 | AZ26: 0.34 | BA26: 0.34 | BB26: 34 | BC26: 0.55 | BD26: 0.55 | BE26: 55t | BF26: 35 | BG26: 35 | BH26: 35 | BI26: 1.02 | BJ26: 1.02 | BK26: 102t | BL26: 1.06 | BM26: 2.666666667 | BN26: 106t | CC26: 0.79 | CE26: 0.79
A27: 550 | B27: Chesapeake | C27: 0.5909090909 | D27: 0.5957446809 | E27: 0.6590909091 | F27: 0.5744680851 | G27: 0.2222222222 | H27: 0.3043478261 | I27: 0.5611510791 | J27: 0.4429530201 | K27: 0.8358208955 | L27: 0.8870967742 | M27: 0.4761904762 | N27: 0.8333333333 | O27: 3 | P27: 3 | Q27: 26 | R27: 102 | S27: 35 | T27: 49 | U27: 40t | V27: 32 | W27: 50 | X27: 91 | Y27: 56 | Z27: 37 | AA27: 115 | AB27: 43t | AC27: 29t | AD27: 100t | AE27: 0.35 | AF27: 0.6590909091 | AG27: 35 | AH27: 0.4 | AI27: 0.4 | AJ27: 40t | AK27: 0.5 | AL27: 0.5611510791 | AM27: 50 | AN27: 0.56 | AO27: 0.8358208955 | AP27: 56 | AQ27: 1.15 | AR27: 1.15 | AS27: 115 | AT27: 0.43 | AU27: 3 | AV27: 43t | AW27: 0.49 | AX27: 0.5744680851 | AY27: 49 | AZ27: 0.32 | BA27: 0.32 | BB27: 32 | BC27: 0.91 | BD27: 0.91 | BE27: 91 | BF27: 36 | BG27: 36 | BH27: 36 | BI27: 0.43 | BJ27: 0.8333333333 | BK27: 43t | BL27: 0.77 | BM27: 3 | BN27: 77t | CC27: 0.56 | CE27: 0.56
A28: 41 | B28: Chesterfield | C28: 0.5495495495 | D28: 0.5631067961 | E28: 0.4504504505 | F28: 0.4757281553 | G28: 0.1290322581 | H28: 0.1627906977 | I28: 0.5129032258 | J28: 0.5275362319 | K28: 0.8064516129 | L28: 0.7575757576 | M28: 0.8181818182 | N28: 0.8 | O28: 2.5 | P28: 2.333333333 | Q28: 53 | R28: 30 | S28: 74 | T28: 72 | U28: 46 | V28: 40 | W28: 65 | X28: 61 | Y28: 70t | Z28: 79t | AA28: 52t | AB28: 57t | AC28: 71t | AD28: 69t | AE28: 0.74 | AF28: 0.74 | AG28: 74 | AH28: 0.46 | AI28: 0.46 | AJ28: 46 | AK28: 0.65 | AL28: 0.65 | AM28: 65 | AN28: 0.7 | AO28: 0.8064516129 | AP28: 70t | AQ28: 0.52 | AR28: 0.8181818182 | AS28: 52t | AT28: 0.79 | AU28: 2.5 | AV28: 79t | AW28: 0.72 | AX28: 0.72 | AY28: 72 | AZ28: 0.4 | BA28: 0.4 | BB28: 40 | BC28: 0.61 | BD28: 0.61 | BE28: 61 | BF28: 78 | BG28: 78 | BH28: 78 | BI28: 0.57 | BJ28: 0.8 | BK28: 57t | BL28: 0.95 | BM28: 2.333333333 | BN28: 95t | CC28: 0.7 | CE28: 0.7
A29: 43 | B29: Clarke | C29: 0.3333333333 | D29: 0.8333333333 | E29: 0.3333333333 | F29: 0.8333333333 | I29: 0.4333333333 | J29: 0.5 | K29: 0.8888888889 | L29: 0.9090909091 | M29: 0.5 | N29: 1 | O29: 1.8 | P29: 3.6 | Q29: 108 | R29: 10t | S29: 105t | T29: 9 | W29: 85 | X29: 72t | Y29: 32t | Z29: 27t | AA29: 106t | AB29: 1t | AC29: 118t | AD29: 7t | AE29: 1.05 | AF29: 1.05 | AG29: 105t | AK29: 0.85 | AL29: 0.85 | AM29: 85 | AN29: 0.32 | AO29: 0.8888888889 | AP29: 32t | AQ29: 1.06 | AR29: 1.06 | AS29: 106t | AT29: 1.06 | AU29: 1.8 | AV29: 106t | AW29: 0.09 | AX29: 0.8333333333 | AY29: 9 | AZ29: 0 | BC29: 0.72 | BD29: 0.72 | BE29: 72t | BF29: 6 | BG29: 6 | BH29: 6 | BI29: 0.01 | BJ29: 1 | BK29: 1t | BL29: 0.12 | BM29: 3.6 | BN29: 12t | CC29: 0.32 | CE29: 0.32
A30: 570 | B30: Colonial Heights | C30: 0.6666666667 | D30: 1 | E30: 0.5 | F30: 0.5555555556 | I30: 0.625 | J30: 0.6333333333 | K30: 0.8064516129 | L30: 0.7575757576 | M30: 0.8181818182 | N30: 0.8 | O30: 3.4 | P30: 3.2 | Q30: 18t | R30: 7t | S30: 19t | T30: 105t | W30: 38t | X30: 30 | Y30: 70t | Z30: 79t | AA30: 52t | AB30: 57t | AC30: 4t | AD30: 52t | AE30: 0.19 | AF30: 0.5 | AG30: 19t | AK30: 0.38 | AL30: 0.625 | AM30: 38t | AN30: 0.7 | AO30: 0.8064516129 | AP30: 70t | AQ30: 0.52 | AR30: 0.8181818182 | AS30: 52t | AT30: 0.09 | AU30: 3.4 | AV30: 9t | AW30: 1.05 | AX30: 1.05 | AY30: 105t | AZ30: 0 | BC30: 0.3 | BD30: 0.6333333333 | BE30: 30 | BF30: 117 | BG30: 117 | BH30: 117 | BI30: 0.57 | BJ30: 0.8 | BK30: 57t | BL30: 0.73 | BM30: 3.2 | BN30: 73t | CC30: 0.7 | CE30: 0.7
A31: 580 | B31: Covington | C31: 0 | D31: 0.625 | E31: 0 | F31: 0.5 | I31: 0.7272727273 | J31: 0.8181818182 | K31: 0.3333333333 | L31: 0.7 | M31: 0.8333333333 | N31: 0.5 | O31: 2.2 | P31: 3 | R31: 1t | T31: 1t | W31: 11t | X31: 8 | Y31: 124t | Z31: 94t | AA31: 45t | AB31: 110t | AC31: 29t | AD31: 18t | AF31: 0 | AK31: 0.11 | AL31: 0.7272727273 | AM31: 11t | AN31: 1.24 | AO31: 1.24 | AP31: 124t | AQ31: 0.45 | AR31: 0.8333333333 | AS31: 45t | AT31: 0.26 | AU31: 2.2 | AV31: 26t | AW31: 0.01 | AX31: 0.5 | AY31: 1t | AZ31: 0 | BC31: 0.08 | BD31: 0.8181818182 | BE31: 8 | BF31: 118 | BG31: 118 | BH31: 118 | BI31: 1.1 | BJ31: 1.1 | BK31: 110t | BL31: 0.3 | BM31: 3 | BN31: 30t | CC31: 1.24 | CE31: 1.24
A32: 45 | B32: Craig | C32: 0.2857142857 | D32: 0 | E32: 0.5714285714 | F32: 0 | G32: 0.3333333333 | H32: 1 | I32: 0.71875 | J32: 0.6206896552 | K32: 0.8888888889 | L32: 1 | M32: 1 | N32: 0.25 | O32: 3.333333333 | P32: 2.666666667 | Q32: 117 | R32: 13t | S32: 32 | T32: 80t | U32: 33t | V32: 1t | W32: 15 | X32: 37 | Y32: 32t | Z32: 1t | AA32: 1t | AB32: 115t | AC32: 14t | AD32: 21t | AE32: 0.32 | AF32: 0.5714285714 | AG32: 32 | AH32: 0.33 | AI32: 0.3333333333 | AJ32: 33t | AK32: 0.15 | AL32: 0.71875 | AM32: 15 | AN32: 0.32 | AO32: 0.8888888889 | AP32: 32t | AQ32: 0.01 | AR32: 1 | AS32: 1t | AT32: 0.01 | AU32: 3.333333333 | AV32: 1t | AW32: 0.8 | AX32: 0.8 | AY32: 80t | AZ32: 0.01 | BA32: 1 | BB32: 1t | BC32: 0.37 | BD32: 0.6206896552 | BE32: 37 | BF32: 7 | BG32: 7 | BH32: 7 | BI32: 1.15 | BJ32: 1.15 | BK32: 115t | BL32: 0.3 | BM32: 2.666666667 | BN32: 30t | CC32: 0.32 | CE32: 0.32
A33: 47 | B33: Culpeper | C33: 0.3636363636 | D33: 0.6 | E33: 0.5454545455 | F33: 0.8 | G33: 0 | H33: 0 | I33: 0.6778242678 | J33: 0.6592920354 | K33: 0.6896551724 | L33: 0.5454545455 | M33: 0.8947368421 | N33: 0.8620689655 | O33: 2.666666667 | P33: 3.166666667 | Q33: 109t | R33: 15 | S33: 34 | T33: 10 | U33: 53t | V33: 54t | W33: 24 | X33: 26 | Y33: 96 | Z33: 118 | AA33: 27 | AB33: 34 | AC33: 55t | AD33: 21t | AE33: 0.34 | AF33: 0.5454545455 | AG33: 34 | AH33: 0.53 | AI33: 0.53 | AJ33: 53t | AK33: 0.24 | AL33: 0.6778242678 | AM33: 24 | AN33: 0.96 | AO33: 0.96 | AP33: 96 | AQ33: 0.27 | AR33: 0.8947368421 | AS33: 27 | AT33: 0.26 | AU33: 2.666666667 | AV33: 26t | AW33: 0.1 | AX33: 0.8 | AY33: 10 | AZ33: 0.54 | BA33: 0.54 | BB33: 54t | BC33: 0.26 | BD33: 0.6592920354 | BE33: 26 | BF33: 79 | BG33: 79 | BH33: 79 | BI33: 0.34 | BJ33: 0.8620689655 | BK33: 34 | BL33: 0.3 | BM33: 3.166666667 | BN33: 30t | CC33: 0.96 | CE33: 0.96
A34: 49 | B34: Cumberland | C34: 0.8 | D34: 0.6363636364 | E34: 0.7 | F34: 0.6363636364 | I34: 0.7142857143 | J34: 0.6285714286 | K34: 0.8333333333 | L34: 0.5 | M34: 1 | N34: 1 | O34: 3.8 | P34: 3.6 | Q34: 32t | R34: 103t | S34: 47t | T34: 104 | W34: 16 | X34: 33 | Y34: 57t | Z34: 119t | AA34: 1t | AB34: 1t | AC34: 4t | AD34: 64t | AE34: 0.47 | AF34: 0.7 | AG34: 47t | AK34: 0.16 | AL34: 0.7142857143 | AM34: 16 | AN34: 0.57 | AO34: 0.8333333333 | AP34: 57t | AQ34: 0.01 | AR34: 1 | AS34: 1t | AT34: 0.09 | AU34: 3.8 | AV34: 9t | AW34: 1.04 | AX34: 1.04 | AY34: 104 | AZ34: 0 | BC34: 0.33 | BD34: 0.6285714286 | BE34: 33 | BF34: 80t | BG34: 0.5 | BH34: 80t | BI34: 0.01 | BJ34: 1 | BK34: 1t | BL34: 0.3 | BM34: 3.6 | BN34: 30t | CC34: 0.57 | CE34: 0.57
A35: 590 | B35: Danville | C35: 0.5319148936 | D35: 0.5306122449 | E35: 0.4255319149 | F35: 0.4081632653 | G35: 0 | H35: 0 | I35: 0.5541401274 | J35: 0.5197368421 | K35: 0.6444444444 | L35: 0.7307692308 | M35: 0.5909090909 | N35: 0.5806451613 | O35: 2.166666667 | P35: 2 | Q35: 52 | R35: 28 | S35: 62 | T35: 59 | U35: 53t | V35: 54t | W35: 51 | X35: 65 | Y35: 104 | Z35: 88 | AA35: 102 | AB35: 108 | AC35: 71t | AD35: 69t | AE35: 0.62 | AF35: =IF(E35<>"",MAX(E35,AE35),"") -> 0.62 | AG35: 62 | AH35: 0.53 | AI35: =IF(G35<>"",MAX(G35,AH35),"") -> 0.53 | AJ35: 53t | AK35: 0.51 | AL35: =IF(I35<>"",MAX(I35,AK35),"") -> 0.5541401274 | AM35: 51 | AN35: 1.04 | AO35: =IF(K35<>"",MAX(K35,AN35),"") -> 1.04 | AP35: 104 | AQ35: 1.02 | AR35: =IF(M35<>"",MAX(M35,AQ35),"") -> 1.02 | AS35: 102 | AT35: 0.79 | AU35: =IF(O35<>"",MAX(O35,AT35),"") -> 2.166666667 | AV35: 79t | AW35: 0.59 | AX35: =IF(F35<>"",MAX(F35,AW35),"") -> 0.59 | AY35: 59 | AZ35: 0.54 | BA35: =IF(H35<>"",MAX(H35,AZ35),"") -> 0.54 | BB35: 54t | BC35: 0.65 | BD35: =IF(J35<>"",MAX(J35,BC35),"") -> 0.65 | BE35: 65 | BF35: 119 | BG35: =IF(L35<>"",MAX(L35,BF35),"") -> 119 | BH35: 119 | BI35: 1.08 | BJ35: =IF(N35<>"",MAX(N35,BI35),"") -> 1.08 | BK35: 108 | BL35: 0.95 | BM35: =IF(P35<>"",MAX(P35,BL35),"") -> 2 | BN35: 95t | CC35: 1.04 | CE35: 1.04
A36: 51 | B36: Dickenson | C36: 0.4571428571 | D36: 0.4722222222 | E36: 0.5142857143 | F36: 0.3888888889 | G36: 0 | H36: 0 | I36: 0.4895104895 | J36: 0.5801526718 | K36: 0.8985507246 | L36: 0.8723404255 | M36: 0.9642857143 | N36: 0.9433962264 | O36: 2.5 | P36: 2.666666667 | Q36: 107 | R36: 67t | S36: 70 | T36: 71 | U36: 53t | V36: 54t | W36: 73 | X36: 48 | Y36: 29 | Z36: 47 | AA36: 19 | AB36: 25 | AC36: 83t | AD36: 45t | AE36: 0.7 | AF36: 0.7 | AG36: 70 | AH36: 0.53 | AI36: 0.53 | AJ36: 53t | AK36: 0.73 | AL36: 0.73 | AM36: 73 | AN36: 0.29 | AO36: 0.8985507246 | AP36: 29 | AQ36: 0.19 | AR36: 0.9642857143 | AS36: 19 | AT36: 0.65 | AU36: 2.5 | AV36: 65t | AW36: 0.71 | AX36: 0.71 | AY36: 71 | AZ36: 0.54 | BA36: 0.54 | BB36: 54t | BC36: 0.48 | BD36: 0.5801526718 | BE36: 48 | BF36: 8 | BG36: 8 | BH36: 8 | BI36: 0.25 | BJ36: 0.9433962264 | BK36: 25 | BL36: 0.3 | BM36: 2.666666667 | BN36: 30t | CC36: 0.29 | CE36: 0.29
A37: 53 | B37: Dinwiddie | C37: 0.6666666667 | D37: 0.4666666667 | E37: 0.4761904762 | F37: 0.2 | G37: 0.25 | H37: 0.1428571429 | I37: 0.5208333333 | J37: 0.6 | K37: 0.8214285714 | L37: 0.9 | M37: 0.875 | N37: 0.8333333333 | O37: 2.833333333 | P37: 2.5 | Q37: 44 | R37: 48t | S37: 64 | T37: 50 | U37: 37 | V37: 42 | W37: 61 | X37: 42t | Y37: 63 | Z37: 29t | AA37: 29t | AB37: 43t | AC37: 29t | AD37: 45t | AE37: 0.64 | AF37: 0.64 | AG37: 64 | AH37: 0.37 | AI37: 0.37 | AJ37: 37 | AK37: 0.61 | AL37: 0.61 | AM37: 61 | AN37: 0.63 | AO37: 0.8214285714 | AP37: 63 | AQ37: 0.29 | AR37: 0.875 | AS37: 29t | AT37: 0.43 | AU37: 2.833333333 | AV37: 43t | AW37: 0.5 | AX37: 0.5 | AY37: 50 | AZ37: 0.42 | BA37: 0.42 | BB37: 42 | BC37: 0.42 | BD37: 0.6 | BE37: 42t | BF37: 9 | BG37: 9 | BH37: 9 | BI37: 0.43 | BJ37: 0.8333333333 | BK37: 43t | BL37: 0.5 | BM37: 2.5 | BN37: 50t | CC37: 0.63 | CE37: 0.63
A38: 57 | B38: Essex | C38: 0.5 | D38: 0.5 | E38: 1 | F38: 1 | I38: 0.3333333333 | J38: 0.6129032258 | K38: 0.6666666667 | L38: 0.5 | M38: 0.6 | N38: 0.2 | O38: 2.2 | P38: 3 | Q38: 119t | R38: 31t | S38: 47t | T38: 30t | W38: 101t | X38: 38 | Y38: 100t | Z38: 119t | AA38: 99t | AB38: 117 | AC38: 118t | AD38: 18t | AE38: 0.47 | AF38: 1 | AG38: 47t | AK38: 1.01 | AL38: 1.01 | AM38: 101t | AN38: 1 | AO38: 1 | AP38: 100t | AQ38: 0.99 | AR38: 0.99 | AS38: 99t | AT38: 1.06 | AU38: 2.2 | AV38: 106t | AW38: 0.3 | AX38: 1 | AY38: 30t | AZ38: 0 | BC38: 0.38 | BD38: 0.6129032258 | BE38: 38 | BF38: 80t | BG38: 0.5 | BH38: 80t | BI38: 1.17 | BJ38: 1.17 | BK38: 117 | BL38: 0.3 | BM38: 3 | BN38: 30t | CC38: 1 | CE38: 1
A39: 1300 | B39: Fairfax_Falls Church | C39: 0.474537037 | D39: 0.4219066937 | E39: 0.4976851852 | F39: 0.5050709939 | G39: 0.8612440191 | H39: 0.9292035398 | I39: 0.6736214605 | J39: 0.6784996651 | K39: 0.8684210526 | L39: 0.9244444444 | M39: 0.7699115044 | N39: 0.7047619048 | O39: 3.166666667 | P39: 3 | Q39: 75 | R39: 92 | S39: 46 | T39: 67 | U39: 14 | V39: 13 | W39: 25 | X39: 21 | Y39: 46 | Z39: 22 | AA39: 74 | AB39: 97 | AC39: 24t | AD39: 45t | AE39: 0.46 | AF39: 0.4976851852 | AG39: 46 | AH39: 0.14 | AI39: 0.8612440191 | AJ39: 14 | AK39: 0.25 | AL39: 0.6736214605 | AM39: 25 | AN39: 0.46 | AO39: 0.8684210526 | AP39: 46 | AQ39: 0.74 | AR39: 0.7699115044 | AS39: 74 | AT39: 0.14 | AU39: 3.166666667 | AV39: 14t | AW39: 0.67 | AX39: 0.67 | AY39: 67 | AZ39: 0.13 | BA39: 0.9292035398 | BB39: 13 | BC39: 0.21 | BD39: 0.6784996651 | BE39: 21 | BF39: 52 | BG39: 52 | BH39: 52 | BI39: 0.97 | BJ39: 0.97 | BK39: 97 | BL39: 0.22 | BM39: 3 | BN39: 22t | CC39: 0.46 | CE39: 0.46
A40: 61 | B40: Fauquier | C40: 0.4642857143 | D40: 0.4482758621 | E40: 0.5 | F40: 0.4827586207 | G40: 0.2142857143 | H40: 0.07142857143 | I40: 0.5277777778 | J40: 0.6096491228 | K40: 0.8 | L40: 0.7884615385 | M40: 0.8510638298 | N40: 0.8611111111 | O40: 2.333333333 | P40: 2.333333333 | Q40: 85 | R40: 46t | S40: 66t | T40: 46t | U40: 42 | V40: 47 | W40: 58 | X40: 39 | Y40: 72t | Z40: 71 | AA40: 40 | AB40: 35 | AC40: 83t | AD40: 28t | AE40: 0.66 | AF40: 0.66 | AG40: 66t | AH40: 0.42 | AI40: 0.42 | AJ40: 42 | AK40: 0.58 | AL40: 0.58 | AM40: 58 | AN40: 0.72 | AO40: 0.8 | AP40: 72t | AQ40: 0.4 | AR40: 0.8510638298 | AS40: 40 | AT40: 0.65 | AU40: 2.333333333 | AV40: 65t | AW40: 0.46 | AX40: 0.4827586207 | AY40: 46t | AZ40: 0.47 | BA40: 0.47 | BB40: 47 | BC40: 0.39 | BD40: 0.6096491228 | BE40: 39 | BF40: 82 | BG40: 82 | BH40: 82 | BI40: 0.35 | BJ40: 0.8611111111 | BK40: 35 | BL40: 0.3 | BM40: 2.333333333 | BN40: 30t | CC40: 0.72 | CE40: 0.72
A41: 63 | B41: Floyd | C41: 0.5 | D41: 0.5555555556 | E41: 0.5 | F41: 0.5555555556 | I41: 0.6 | J41: 0.6 | K41: 0.875 | L41: 0.875 | M41: 0.8333333333 | N41: 0.8 | O41: 3.2 | P41: 3.6 | Q41: 119t | R41: 83t | S41: 1t | T41: 80t | W41: 43 | X41: 42t | Y41: 42t | Z41: 43t | AA41: 45t | AB41: 57t | AC41: 20t | AD41: 81t | AE41: 0.01 | AF41: 0.5 | AG41: 1t | AK41: 0.43 | AL41: 0.6 | AM41: 43 | AN41: 0.42 | AO41: 0.875 | AP41: 42t | AQ41: 0.45 | AR41: 0.8333333333 | AS41: 45t | AT41: 0.06 | AU41: 3.2 | AV41: 6t | AW41: 0.8 | AX41: 0.8 | AY41: 80t | AZ41: 0 | BC41: 0.42 | BD41: 0.6 | BE41: 42t | BF41: 10 | BG41: 10 | BH41: 10 | BI41: 0.57 | BJ41: 0.8 | BK41: 57t | BL41: 0.6 | BM41: 3.6 | BN41: 60t | CC41: 0.42 | CE41: 0.42
A42: 65 | B42: Fluvanna | C42: 0.5555555556 | D42: 0.4482758621 | E42: 0.6666666667 | F42: 0.6206896552 | G42: 0 | H42: 0.04347826087 | I42: 0.8034188034 | J42: 0.7280701754 | K42: 0.8333333333 | L42: 0.7272727273 | M42: 0.8333333333 | N42: 0.8 | O42: 3 | P42: 2.333333333 | Q42: 58 | R42: 78t | S42: 39t | T42: 16t | U42: 53t | V42: 51 | W42: 4 | X42: 17 | Y42: 57t | Z42: 89t | AA42: 45t | AB42: 57t | AC42: 29t | AD42: 69t | AE42: 0.39 | AF42: 0.6666666667 | AG42: 39t | AH42: 0.53 | AI42: 0.53 | AJ42: 53t | AK42: 0.04 | AL42: 0.8034188034 | AM42: 4 | AN42: 0.57 | AO42: 0.8333333333 | AP42: 57t | AQ42: 0.45 | AR42: 0.8333333333 | AS42: 45t | AT42: 0.26 | AU42: 3 | AV42: 26t | AW42: 0.16 | AX42: 0.6206896552 | AY42: 16t | AZ42: 0.51 | BA42: 0.51 | BB42: 51 | BC42: 0.17 | BD42: 0.7280701754 | BE42: 17 | BF42: 83 | BG42: 83 | BH42: 83 | BI42: 0.57 | BJ42: 0.8 | BK42: 57t | BL42: 0.5 | BM42: 2.333333333 | BN42: 50t | CC42: 0.57 | CE42: 0.57
A43: 620 | B43: Franklin City | C43: 0.5 | E43: 1 | G43: 1 | I43: 0.2857142857 | J43: 0 | K43: 1 | L43: 1 | N43: 1 | O43: 3 | P43: 3 | Q43: 59t | S43: 1t | U43: 1t | W43: 107 | X43: 127t | Y43: 1t | Z43: 1t | AB43: 1t | AC43: 29t | AD43: 28t | AE43: 0.01 | AF43: 1 | AG43: 1t | AH43: 0.01 | AI43: 1 | AJ43: 1t | AK43: 1.07 | AL43: 1.07 | AM43: 107 | AN43: 0.01 | AO43: 1 | AP43: 1t | AS43: 0 | AT43: 0.18 | AU43: 3 | AV43: 18t | AW43: 0 | AZ43: 0 | BC43: 1.27 | BD43: 1.27 | BE43: 127t | BF43: 37 | BG43: 37 | BH43: 37 | BI43: 0.01 | BJ43: 1 | BK43: 1t | BL43: 0.3 | BM43: 3 | BN43: 30t | CC43: 0.01 | CE43: 0.01
A44: 67 | B44: Franklin County | C44: 0.4181818182 | D44: 0.5490196078 | E44: 0.3636363636 | F44: 0.568627451 | G44: 0.5555555556 | H44: 1 | I44: 0.6274509804 | J44: 0.6666666667 | K44: 0.8571428571 | L44: 0.8852459016 | M44: 0.8055555556 | N44: 0.7272727273 | O44: 2.666666667 | P44: 3.666666667 | Q44: 105 | R44: 81 | S44: 95 | T44: 92 | U44: 22 | V44: 1t | W44: 37 | X44: 23t | Y44: 48t | Z44: 38 | AA44: 59 | AB44: 86t | AC44: 55t | AD44: 56t | AE44: 0.95 | AF44: 0.95 | AG44: 95 | AH44: 0.22 | AI44: 0.5555555556 | AJ44: 22 | AK44: 0.37 | AL44: 0.6274509804 | AM44: 37 | AN44: 0.48 | AO44: 0.8571428571 | AP44: 48t | AQ44: 0.59 | AR44: 0.8055555556 | AS44: 59 | AT44: 0.26 | AU44: 2.666666667 | AV44: 26t | AW44: 0.92 | AX44: 0.92 | AY44: 92 | AZ44: 0.01 | BA44: 1 | BB44: 1t | BC44: 0.23 | BD44: 0.6666666667 | BE44: 23t | BF44: 11 | BG44: 11 | BH44: 11 | BI44: 0.86 | BJ44: 0.86 | BK44: 86t | BL44: 0.3 | BM44: 3.666666667 | BN44: 30t | CC44: 0.48 | CE44: 0.48
A45: 69 | B45: Frederick | C45: 0.5 | D45: 0.59375 | E45: 0.4642857143 | F45: 0.5 | G45: 0 | H45: 0 | I45: 0.4198473282 | J45: 0.4468085106 | K45: 0.8 | L45: 0.7333333333 | M45: 0.8611111111 | N45: 1 | O45: 2.166666667 | P45: 2.5 | Q45: 79 | R45: 18 | S45: 78t | T45: 66 | U45: 53t | V45: 54t | W45: 89 | X45: 89 | Y45: 72t | Z45: 87 | AA45: 32 | AB45: 1t | AC45: 98t | AD45: 69t | AE45: 0.78 | AF45: 0.78 | AG45: 78t | AH45: 0.53 | AI45: 0.53 | AJ45: 53t | AK45: 0.89 | AL45: 0.89 | AM45: 89 | AN45: 0.72 | AO45: 0.8 | AP45: 72t | AQ45: 0.32 | AR45: 0.8611111111 | AS45: 32 | AT45: 0.97 | AU45: 2.166666667 | AV45: 97t | AW45: 0.66 | AX45: 0.66 | AY45: 66 | AZ45: 0.54 | BA45: 0.54 | BB45: 54t | BC45: 0.89 | BD45: 0.89 | BE45: 89 | BF45: 84 | BG45: 84 | BH45: 84 | BI45: 0.01 | BJ45: 1 | BK45: 1t | BL45: 0.95 | BM45: 2.5 | BN45: 95t | CC45: 0.72 | CE45: 0.72
A46: 630 | B46: Fredericksburg | C46: 0.6470588235 | D46: 0.4705882353 | E46: 0.7058823529 | F46: 0.5294117647 | G46: 0.375 | H46: 0.1666666667 | I46: 0.5303030303 | J46: 0.5373134328 | K46: 0.875 | L46: 0.8947368421 | M46: 0.9130434783 | N46: 0.9473684211 | O46: 3.833333333 | P46: 2.833333333 | Q46: 39 | R46: 74t | S46: 10 | T46: 18t | U46: 30 | V46: 39 | W46: 57 | X46: 59 | Y46: 42t | Z46: 35 | AA46: 23 | AB46: 24 | AC46: 1t | AD46: 45t | AE46: 0.1 | AF46: 0.7058823529 | AG46: 10 | AH46: 0.3 | AI46: 0.375 | AJ46: 30 | AK46: 0.57 | AL46: 0.57 | AM46: 57 | AN46: 0.42 | AO46: 0.875 | AP46: 42t | AQ46: 0.23 | AR46: 0.9130434783 | AS46: 23 | AT46: 0.01 | AU46: 3.833333333 | AV46: 1t | AW46: 0.18 | AX46: 0.5294117647 | AY46: 18t | AZ46: 0.39 | BA46: 0.39 | BB46: 39 | BC46: 0.59 | BD46: 0.59 | BE46: 59 | BF46: 38 | BG46: 38 | BH46: 38 | BI46: 0.24 | BJ46: 0.9473684211 | BK46: 24 | BL46: 0.22 | BM46: 2.833333333 | BN46: 22t | CC46: 0.42 | CE46: 0.42
A47: 640 | B47: Galax | C47: 0.3571428571 | D47: 0.4285714286 | E47: 0.2857142857 | F47: 0.2857142857 | I47: 0.9411764706 | J47: 0.7843137255 | K47: 1 | L47: 0.8 | M47: 0.6666666667 | N47: 1 | O47: 2.4 | P47: 2.6 | Q47: 88 | R47: 70t | S47: 78t | T47: 30t | W47: 1 | X47: 11 | Y47: 1t | Z47: 67 | AA47: 94t | AB47: 1t | AC47: 68t | AD47: 7t | AE47: 0.78 | AF47: 0.78 | AG47: 78t | AK47: 0.01 | AL47: 0.9411764706 | AM47: 1 | AN47: 0.01 | AO47: 1 | AP47: 1t | AQ47: 0.94 | AR47: 0.94 | AS47: 94t | AT47: 0.26 | AU47: 2.4 | AV47: 26t | AW47: 0.3 | AX47: 0.3 | AY47: 30t | AZ47: 0 | BC47: 0.11 | BD47: 0.7843137255 | BE47: 11 | BF47: 62 | BG47: 62 | BH47: 62 | BI47: 0.01 | BJ47: 1 | BK47: 1t | BL47: 0.01 | BM47: 2.6 | BN47: 1t | CC47: 0.01 | CE47: 0.01
A48: 71 | B48: Giles | C48: 0.6 | D48: 0.6333333333 | E48: 0.4 | F48: 0.5 | H48: 0 | I48: 0.2933333333 | J48: 0.3571428571 | K48: 0.8857142857 | L48: 0.8139534884 | M48: 0.9166666667 | N48: 0.8518518519 | O48: 2.8 | P48: 2.5 | Q48: 14t | R48: 12 | S48: 66t | T48: 51 | V48: 54t | W48: 106 | X48: 100t | Y48: 37 | Z48: 64 | AA48: 22 | AB48: 39 | AC48: 20t | AD48: 56t | AE48: 0.66 | AF48: 0.66 | AG48: 66t | AK48: 1.06 | AL48: 1.06 | AM48: 106 | AN48: 0.37 | AO48: 0.8857142857 | AP48: 37 | AQ48: 0.22 | AR48: 0.9166666667 | AS48: 22 | AT48: 0.26 | AU48: 2.8 | AV48: 26t | AW48: 0.51 | AX48: 0.51 | AY48: 51 | AZ48: 0.54 | BA48: 0.54 | BB48: 54t | BC48: 1 | BD48: 1 | BE48: 100t | BF48: 56 | BG48: 56 | BH48: 56 | BI48: 0.39 | BJ48: 0.8518518519 | BK48: 39 | BL48: 0.77 | BM48: 2.5 | BN48: 77t | CC48: 0.37 | CE48: 0.37
A49: 73 | B49: Gloucester | C49: 0.3333333333 | D49: 0.4 | E49: 0.6111111111 | F49: 0.35 | I49: 0.2549019608 | J49: 0.2037037037 | K49: 0.8333333333 | L49: 0.8846153846 | M49: 0.8421052632 | N49: 0.75 | O49: 2.4 | P49: 1.8 | Q49: 109t | R49: 97t | S49: 26t | T49: 99t | W49: 114 | X49: 116 | Y49: 57t | Z49: 39 | AA49: 44 | AB49: 77t | AC49: 80t | AD49: 124 | AE49: 0.26 | AF49: 0.6111111111 | AG49: 26t | AK49: 1.14 | AL49: 1.14 | AM49: 114 | AN49: 0.57 | AO49: 0.8333333333 | AP49: 57t | AQ49: 0.44 | AR49: 0.8421052632 | AS49: 44 | AT49: 0.55 | AU49: 2.4 | AV49: 55t | AW49: 0.99 | AX49: 0.99 | AY49: 99t | AZ49: 0 | BC49: 1.16 | BD49: 1.16 | BE49: 116 | BF49: 12 | BG49: 12 | BH49: 12 | BI49: 0.77 | BJ49: 0.77 | BK49: 77t | BL49: 1.2 | BM49: 1.8 | BN49: 120 | CC49: 0.57 | CE49: 0.57
A50: 75 | B50: Goochland | C50: 0.2857142857 | D50: 0.7142857143 | E50: 0.3571428571 | F50: 0.5714285714 | G50: 0 | H50: 0.09090909091 | I50: 0.325 | J50: 0.2888888889 | K50: 0.6 | L50: 0.6666666667 | M50: 0.6666666667 | N50: 0.8181818182 | O50: 1.333333333 | P50: 2.5 | Q50: 111 | R50: 7t | S50: 109 | T50: 105t | U50: 53t | V50: 46 | W50: 104 | X50: 105 | Y50: 111t | Z50: 103t | AA50: 94t | AB50: 50 | AC50: 128 | AD50: 104t | AE50: 1.09 | AF50: 1.09 | AG50: 109 | AH50: 0.53 | AI50: 0.53 | AJ50: 53t | AK50: 1.04 | AL50: 1.04 | AM50: 104 | AN50: 1.11 | AO50: 1.11 | AP50: 111t | AQ50: 0.94 | AR50: 0.94 | AS50: 94t | AT50: 1.25 | AU50: 1.333333333 | AV50: 125t | AW50: 1.05 | AX50: 1.05 | AY50: 105t | AZ50: 0.46 | BA50: 0.46 | BB50: 46 | BC50: 1.05 | BD50: 1.05 | BE50: 105 | BF50: 85 | BG50: 85 | BH50: 85 | BI50: 0.5 | BJ50: 0.8181818182 | BK50: 50 | BL50: 1.21 | BM50: 2.5 | BN50: 121t | CC50: 1.11 | CE50: 1.11
A51: 77 | B51: Grayson | C51: 0.4583333333 | D51: 0.2142857143 | E51: 0.5833333333 | F51: 0.2857142857 | I51: 0.6440677966 | J51: 0.6326530612 | K51: 0.9444444444 | L51: 0.9 | M51: 0.5714285714 | N51: 0.8333333333 | O51: 3 | P51: 2.6 | Q51: 86 | R51: 97t | S51: 42 | T51: 99t | W51: 32 | X51: 31 | Y51: 20 | Z51: 29t | AA51: 103t | AB51: 43t | AC51: 29t | AD51: 64t | AE51: 0.42 | AF51: 0.5833333333 | AG51: 42 | AK51: 0.32 | AL51: 0.6440677966 | AM51: 32 | AN51: 0.2 | AO51: 0.9444444444 | AP51: 20 | AQ51: 1.03 | AR51: 1.03 | AS51: 103t | AT51: 0.09 | AU51: 3 | AV51: 9t | AW51: 0.99 | AX51: 0.99 | AY51: 99t | AZ51: 0 | BC51: 0.31 | BD51: 0.6326530612 | BE51: 31 | BF51: 13 | BG51: 13 | BH51: 13 | BI51: 0.43 | BJ51: 0.8333333333 | BK51: 43t | BL51: 0.3 | BM51: 2.6 | BN51: 30t | CC51: 0.2 | CE51: 0.2
A52: 79 | B52: Greene | C52: 0.7 | D52: 0.4375 | E52: 0.55 | F52: 0.5625 | H52: 0 | I52: 0.525 | J52: 0.511627907 | K52: 0.7272727273 | L52: 0.6923076923 | M52: 0.5 | N52: 0.7777777778 | O52: 3 | P52: 2.166666667 | Q52: 32t | R52: 83t | S52: 47t | T52: 60t | V52: 54t | W52: 59 | X52: 67 | Y52: 88t | Z52: 98 | AA52: 106t | AB52: 75 | AC52: 48t | AD52: 104t | AE52: 0.47 | AF52: 0.55 | AG52: 47t | AK52: 0.59 | AL52: 0.59 | AM52: 59 | AN52: 0.88 | AO52: 0.88 | AP52: 88t | AQ52: 1.06 | AR52: 1.06 | AS52: 106t | AT52: 0.76 | AU52: 3 | AV52: 76t | AW52: 0.6 | AX52: 0.6 | AY52: 60t | AZ52: 0.54 | BA52: 0.54 | BB52: 54t | BC52: 0.67 | BD52: 0.67 | BE52: 67 | BF52: 86 | BG52: 86 | BH52: 86 | BI52: 0.75 | BJ52: 0.7777777778 | BK52: 75 | BL52: 0.95 | BM52: 2.166666667 | BN52: 95t | CC52: 0.88 | CE52: 0.88
A53: 1200 | B53: Greensville_Emporia | C53: 0.6666666667 | D53: 0 | E53: 0.3333333333 | F53: 0 | I53: 0.4827586207 | J53: 0.4545454545 | K53: 1 | L53: 1 | M53: 0.5 | N53: 0.6666666667 | O53: 2.6 | P53: 1.8 | Q53: 59t | S53: 47t | W53: 75t | X53: 86t | Y53: 1t | Z53: 1t | AA53: 106t | AB53: 102t | AC53: 68t | AD53: 86t | AE53: 0.47 | AF53: 0.47 | AG53: 47t | AK53: 0.75 | AL53: 0.75 | AM53: 75t | AN53: 0.01 | AO53: 1 | AP53: 1t | AQ53: 1.06 | AR53: 1.06 | AS53: 106t | AT53: 0.55 | AU53: 2.6 | AV53: 55t | AW53: 0 | AX53: 0 | AZ53: 0 | BC53: 0.86 | BD53: 0.86 | BE53: 86t | BF53: 51 | BG53: 51 | BH53: 51 | BI53: 1.02 | BJ53: 1.02 | BK53: 102t | BL53: 0.86 | BM53: 1.8 | BN53: 86t | CC53: 0.01 | CE53: 0.01
A54: 83 | B54: Halifax | C54: 0.4117647059 | D54: 0.7272727273 | E54: 0.5294117647 | F54: 0.3636363636 | G54: 0 | H54: 0 | I54: 0.6354166667 | J54: 0.6095238095 | K54: 0.6428571429 | L54: 0.6875 | M54: 0.75 | N54: 0.5555555556 | O54: 2.166666667 | P54: 2.333333333 | Q54: 76t | R54: 83t | S54: 29 | T54: 11t | U54: 53t | V54: 54t | W54: 34 | X54: 40 | Y54: 105 | Z54: 99t | AA54: 77t | AB54: 109 | AC54: 71t | AD54: 86t | AE54: 0.29 | AF54: 0.5294117647 | AG54: 29 | AH54: 0.53 | AI54: 0.53 | AJ54: 53t | AK54: 0.34 | AL54: 0.6354166667 | AM54: 34 | AN54: 1.05 | AO54: 1.05 | AP54: 105 | AQ54: 0.77 | AR54: 0.77 | AS54: 77t | AT54: 0.65 | AU54: 2.166666667 | AV54: 65t | AW54: 0.11 | AX54: 0.3636363636 | AY54: 11t | AZ54: 0.54 | BA54: 0.54 | BB54: 54t | BC54: 0.4 | BD54: 0.6095238095 | BE54: 40 | BF54: 87 | BG54: 87 | BH54: 87 | BI54: 1.09 | BJ54: 1.09 | BK54: 109 | BL54: 0.66 | BM54: 2.333333333 | BN54: 66t | CC54: 1.05 | CE54: 1.05
A55: 650 | B55: Hampton | C55: 0.4047619048 | D55: 0.5573770492 | E55: 0.5 | F55: 0.5573770492 | G55: 1 | H55: 1 | I55: 0.8403846154 | J55: 0.8203592814 | K55: 0.9636363636 | L55: 0.96 | M55: 0.7575757576 | N55: 0.6153846154 | O55: 3 | P55: 3.666666667 | Q55: 71 | R55: 16 | S55: 39t | T55: 63 | U55: 1t | V55: 1t | W55: 3 | X55: 7 | Y55: 18 | Z55: 16 | AA55: 76 | AB55: 106 | AC55: 14t | AD55: 11 | AE55: 0.39 | AF55: 0.5 | AG55: 39t | AH55: 0.01 | AI55: 1 | AJ55: 1t | AK55: 0.03 | AL55: 0.8403846154 | AM55: 3 | AN55: 0.18 | AO55: 0.9636363636 | AP55: 18 | AQ55: 0.76 | AR55: 0.76 | AS55: 76 | AT55: 0.08 | AU55: 3 | AV55: 8 | AW55: 0.63 | AX55: 0.63 | AY55: 63 | AZ55: 0.01 | BA55: 1 | BB55: 1t | BC55: 0.07 | BD55: 0.8203592814 | BE55: 7 | BF55: 39 | BG55: 39 | BH55: 39 | BI55: 1.06 | BJ55: 1.06 | BK55: 106 | BL55: 0.14 | BM55: 3.666666667 | BN55: 14t | CC55: 0.18 | CE55: 0.18
A56: 85 | B56: Hanover | C56: 0.6 | D56: 0.6744186047 | E56: 0.6 | F56: 0.5813953488 | G56: 0.04545454545 | H56: 0.2142857143 | I56: 0.5819672131 | J56: 0.6218487395 | K56: 0.8148148148 | L56: 0.7777777778 | M56: 0.5 | N56: 0.8571428571 | O56: 3 | P56: 3 | Q56: 41 | R56: 31t | S56: 25 | T56: 30t | U56: 51 | V56: 37 | W56: 45 | X56: 36 | Y56: 64 | Z56: 74 | AA56: 106t | AB56: 36t | AC56: 29t | AD56: 21t | AE56: 0.25 | AF56: 0.6 | AG56: 25 | AH56: 0.51 | AI56: 0.51 | AJ56: 51 | AK56: 0.45 | AL56: 0.5819672131 | AM56: 45 | AN56: 0.64 | AO56: 0.8148148148 | AP56: 64 | AQ56: 1.06 | AR56: 1.06 | AS56: 106t | AT56: 0.43 | AU56: 3 | AV56: 43t | AW56: 0.3 | AX56: 0.5813953488 | AY56: 30t | AZ56: 0.37 | BA56: 0.37 | BB56: 37 | BC56: 0.36 | BD56: 0.6218487395 | BE56: 36 | BF56: 88 | BG56: 88 | BH56: 88 | BI56: 0.36 | BJ56: 0.8571428571 | BK56: 36t | BL56: 0.3 | BM56: 3 | BN56: 30t | CC56: 0.64 | CE56: 0.64
A57: 660 | B57: Harrisonburg | C57: 0.5 | D57: 0.4814814815 | E57: 0.35 | F57: 0.3333333333 | G57: 0.4761904762 | H57: 0.2962962963 | I57: 0.4046242775 | J57: 0.40625 | K57: 0.8116883117 | L57: 0.7961783439 | M57: 0.7926829268 | N57: 0.7205882353 | O57: 2.166666667 | P57: 1.666666667 | Q57: 96t | R57: 50t | S57: 103t | T57: 90 | U57: 27 | V57: 33 | W57: 92 | X57: 93 | Y57: 66t | Z57: 68t | AA57: 67t | AB57: 89t | AC57: 104t | AD57: 104t | AE57: 1.03 | AF57: 1.03 | AG57: 103t | AH57: 0.27 | AI57: 0.4761904762 | AJ57: 27 | AK57: 0.92 | AL57: 0.92 | AM57: 92 | AN57: 0.66 | AO57: 0.8116883117 | AP57: 66t | AQ57: 0.67 | AR57: 0.7926829268 | AS57: 67t | AT57: 0.97 | AU57: 2.166666667 | AV57: 97t | AW57: 0.9 | AX57: 0.9 | AY57: 90 | AZ57: 0.33 | BA57: 0.33 | BB57: 33 | BC57: 0.93 | BD57: 0.93 | BE57: 93 | BF57: 120 | BG57: 120 | BH57: 120 | BI57: 0.89 | BJ57: 0.89 | BK57: 89t | BL57: 1.18 | BM57: 1.666666667 | BN57: 118t | CC57: 0.66 | CE57: 0.66
A58: 87 | B58: Henrico | C58: 0.4375 | D58: 0.4406779661 | E58: 0.475 | F58: 0.5254237288 | G58: 0.9473684211 | H58: 0.7666666667 | I58: 0.6347150259 | J58: 0.6223958333 | K58: 0.7522123894 | L58: 0.6960784314 | M58: 0.6875 | N58: 0.8076923077 | O58: 2.5 | P58: 2.666666667 | Q58: 92t | R58: 67t | S58: 76 | T58: 28 | U58: 13 | V58: 17 | W58: 35 | X58: 35 | Y58: 84 | Z58: 97 | AA58: 91t | AB58: 53t | AC58: 71t | AD58: 28t | AE58: 0.76 | AF58: 0.76 | AG58: 76 | AH58: 0.13 | AI58: 0.9473684211 | AJ58: 13 | AK58: 0.35 | AL58: 0.6347150259 | AM58: 35 | AN58: 0.84 | AO58: 0.84 | AP58: 84 | AQ58: 0.91 | AR58: 0.91 | AS58: 91t | AT58: 0.43 | AU58: 2.5 | AV58: 43t | AW58: 0.28 | AX58: 0.5254237288 | AY58: 28 | AZ58: 0.17 | BA58: 0.7666666667 | BB58: 17 | BC58: 0.35 | BD58: 0.6223958333 | BE58: 35 | BF58: 89 | BG58: 89 | BH58: 89 | BI58: 0.53 | BJ58: 0.8076923077 | BK58: 53t | BL58: 0.22 | BM58: 2.666666667 | BN58: 22t | CC58: 0.84 | CE58: 0.84
A59: 89 | B59: Henry | C59: 0.4705882353 | D59: 0.4230769231 | E59: 0.3725490196 | F59: 0.3846153846 | G59: 0 | I59: 0.4765625 | J59: 0.2372881356 | K59: 0.825 | L59: 0.8235294118 | M59: 0.9069767442 | N59: 0.88 | O59: 2 | P59: 2 | Q59: 87 | R59: 80 | S59: 99 | T59: 78 | U59: 53t | W59: 77 | X59: 112 | Y59: 61t | Z59: 60t | AA59: 24t | AB59: 30t | AC59: 104t | AD59: 104t | AE59: 0.99 | AF59: 0.99 | AG59: 99 | AH59: 0.53 | AI59: 0.53 | AJ59: 53t | AK59: 0.77 | AL59: 0.77 | AM59: 77 | AN59: 0.61 | AO59: 0.825 | AP59: 61t | AQ59: 0.24 | AR59: 0.9069767442 | AS59: 24t | AT59: 0.97 | AU59: 2 | AV59: 97t | AW59: 0.78 | AX59: 0.78 | AY59: 78 | AZ59: 0 | BC59: 1.12 | BD59: 1.12 | BE59: 112 | BF59: 57 | BG59: 57 | BH59: 57 | BI59: 0.3 | BJ59: 0.88 | BK59: 30t | BL59: 0.91 | BM59: 2 | BN59: 91t | CC59: 0.61 | CE59: 0.61
A60: 91 | B60: Highland | I60: 0 | J60: 0 | L60: 1 | O60: 1 | P60: 2.5 | W60: 129t | X60: 127t | Z60: 1t | AC60: 130 | AD60: 130 | AK60: 1.29 | AL60: 1.29 | AM60: 129t | AN60: 0 | AS60: 0 | AT60: 1.3 | AU60: 1.3 | AV60: 130 | AW60: 0 | AZ60: 0 | BC60: 1.27 | BD60: 1.27 | BE60: 127t | BF60: 14t | BG60: 1 | BH60: 14t | BI60: 0 | BL60: 1.29 | BM60: 2.5 | BN60: 129t | CC60: 0 | CE60: 0
A61: 670 | B61: Hopewell | C61: 0.6 | D61: 0.75 | E61: 0.4 | F61: 0.375 | G61: 0 | I61: 0.7441860465 | J61: 0.7698412698 | K61: 0.8095238095 | L61: 0.85 | M61: 0.7692307692 | N61: 0.75 | O61: 2.5 | P61: 3 | Q61: 29 | R61: 31t | S61: 77 | T61: 30t | U61: 53t | W61: 7 | X61: 14 | Y61: 69 | Z61: 52 | AA61: 75 | AB61: 77t | AC61: 55t | AD61: 12t | AE61: 0.77 | AF61: 0.77 | AG61: 77 | AH61: 0.53 | AI61: 0.53 | AJ61: 53t | AK61: 0.07 | AL61: 0.7441860465 | AM61: 7 | AN61: 0.69 | AO61: 0.8095238095 | AP61: 69 | AQ61: 0.75 | AR61: 0.7692307692 | AS61: 75 | AT61: 0.79 | AU61: 2.5 | AV61: 79t | AW61: 0.3 | AX61: 0.375 | AY61: 30t | AZ61: 0 | BC61: 0.14 | BD61: 0.7698412698 | BE61: 14 | BF61: 40 | BG61: 40 | BH61: 40 | BI61: 0.77 | BJ61: 0.77 | BK61: 77t | BL61: 0.18 | BM61: 3 | BN61: 18t | CC61: 0.69 | CE61: 0.69
A62: 93 | B62: Isle of Wight | C62: 1 | D62: 0.375 | E62: 1 | F62: 0.375 | H62: 0.3333333333 | I62: 0.08333333333 | J62: 0 | K62: 1 | L62: 0.6 | M62: 1 | N62: 1 | O62: 3.4 | P62: 2 | Q62: 8 | R62: 94 | S62: 1t | T62: 94t | V62: 25t | W62: 125t | X62: 127t | Y62: 1t | Z62: 116 | AA62: 1t | AB62: 1t | AC62: 9t | AD62: 86t | AE62: 0.01 | AF62: 1 | AG62: 1t | AK62: 1.25 | AL62: 1.25 | AM62: 125t | AN62: 0.01 | AO62: 1 | AP62: 1t | AQ62: 0.01 | AR62: 1 | AS62: 1t | AT62: 0.18 | AU62: 3.4 | AV62: 18t | AW62: 0.94 | AX62: 0.94 | AY62: 94t | AZ62: 0.25 | BA62: 0.3333333333 | BB62: 25t | BC62: 1.27 | BD62: 1.27 | BE62: 127t | BF62: 90 | BG62: 90 | BH62: 90 | BI62: 0.01 | BJ62: 1 | BK62: 1t | BL62: 0.66 | BM62: 2 | BN62: 66t | CC62: 0.01 | CE62: 0.01
A63: 95 | B63: James City | C63: 0.5 | D63: 0.65 | E63: 0.875 | F63: 0.7 | G63: 0.2857142857 | I63: 0.5192307692 | J63: 0.6470588235 | K63: 1 | L63: 1 | M63: 1 | N63: 1 | O63: 3.166666667 | P63: 4 | Q63: 101t | R63: 69 | S63: 11 | T63: 27 | U63: 35 | W63: 62 | X63: 28 | Y63: 1t | Z63: 1t | AA63: 1t | AB63: 1t | AC63: 29t | AD63: 7t | AE63: 0.11 | AF63: 0.875 | AG63: 11 | AH63: 0.35 | AI63: 0.35 | AJ63: 35 | AK63: 0.62 | AL63: 0.62 | AM63: 62 | AN63: 0.01 | AO63: 1 | AP63: 1t | AQ63: 0.01 | AR63: 1 | AS63: 1t | AT63: 0.14 | AU63: 3.166666667 | AV63: 14t | AW63: 0.27 | AX63: 0.7 | AY63: 27 | AZ63: 0 | BC63: 0.28 | BD63: 0.6470588235 | BE63: 28 | BF63: 14t | BG63: 1 | BH63: 14t | BI63: 0.01 | BJ63: 1 | BK63: 1t | BL63: 0.01 | BM63: 4 | BN63: 1t | CC63: 0.01 | CE63: 0.01
A64: 97 | B64: King & Queen | C64: 0.8333333333 | E64: 0.5 | H64: 1 | I64: 0.5 | J64: 0.5 | K64: 0.8 | L64: 0.6666666667 | O64: 3 | P64: 2.666666667 | Q64: 9 | S64: 47t | V64: 1t | W64: 69t | X64: 72t | Y64: 72t | Z64: 103t | AC64: 29t | AD64: 28t | AE64: 0.47 | AF64: 0.5 | AG64: 47t | AK64: 0.69 | AL64: 0.69 | AM64: 69t | AN64: 0.72 | AO64: 0.8 | AP64: 72t | AS64: 0 | AT64: 0.62 | AU64: 3 | AV64: 62t | AW64: 0 | AZ64: 0.01 | BA64: 1 | BB64: 1t | BC64: 0.72 | BD64: 0.72 | BE64: 72t | BF64: 91 | BG64: 91 | BH64: 91 | BI64: 0 | BL64: 0.3 | BM64: 2.666666667 | BN64: 30t | CC64: 0.72 | CE64: 0.72
A65: 99 | B65: King George | C65: 0.6842105263 | D65: 0.4705882353 | E65: 0.4736842105 | F65: 0.2352941176 | G65: 0 | H65: 0 | I65: 0.6896551724 | J65: 0.5490196078 | K65: 0.75 | L65: 0.9375 | M65: 0.5 | N65: 0.5 | O65: 2.5 | P65: 2.333333333 | Q65: 14t | R65: 103t | S65: 66t | T65: 113t | U65: 53t | V65: 54t | W65: 22 | X65: 51t | Y65: 85t | Z65: 18 | AA65: 106t | AB65: 110t | AC65: 55t | AD65: 117t | AE65: 0.66 | AF65: 0.66 | AG65: 66t | AH65: 0.53 | AI65: 0.53 | AJ65: 53t | AK65: 0.22 | AL65: 0.6896551724 | AM65: 22 | AN65: 0.85 | AO65: 0.85 | AP65: 85t | AQ65: 1.06 | AR65: 1.06 | AS65: 106t | AT65: 0.79 | AU65: 2.5 | AV65: 79t | AW65: 1.13 | AX65: 1.13 | AY65: 113t | AZ65: 0.54 | BA65: 0.54 | BB65: 54t | BC65: 0.51 | BD65: 0.5490196078 | BE65: 51t | BF65: 16 | BG65: 16 | BH65: 16 | BI65: 1.1 | BJ65: 1.1 | BK65: 110t | BL65: 1.06 | BM65: 2.333333333 | BN65: 106t | CC65: 0.85 | CE65: 0.85
A66: 101 | B66: King William | C66: 0.5 | D66: 0.5 | E66: 0.625 | F66: 0.75 | G66: 1 | H66: 1 | I66: 0.625 | J66: 0.6315789474 | K66: 0.6 | L66: 0.75 | N66: 1 | O66: 3.2 | P66: 3.5 | Q66: 101t | R66: 1t | S66: 97t | T66: 30t | U66: 1t | V66: 1t | W66: 38t | X66: 32 | Y66: 111t | Z66: 81t | AB66: 1t | AC66: 80t | AD66: 3t | AE66: 0.97 | AF66: 0.97 | AG66: 97t | AH66: 0.01 | AI66: 1 | AJ66: 1t | AK66: 0.38 | AL66: 0.625 | AM66: 38t | AN66: 1.11 | AO66: 1.11 | AP66: 111t | AS66: 0 | AT66: 0.55 | AU66: 3.2 | AV66: 55t | AW66: 0.3 | AX66: 0.75 | AY66: 30t | AZ66: 0.01 | BA66: 1 | BB66: 1t | BC66: 0.32 | BD66: 0.6315789474 | BE66: 32 | BF66: 92 | BG66: 92 | BH66: 92 | BI66: 0.01 | BJ66: 1 | BK66: 1t | BL66: 0.08 | BM66: 3.5 | BN66: 8t | CC66: 1.11 | CE66: 1.11
A67: 103 | B67: Lancaster | C67: 0 | E67: 0 | G67: 0 | H67: 0 | I67: 0.2941176471 | J67: 0.4 | K67: 0.625 | L67: 0.5 | M67: 0.8571428571 | N67: 0.5 | O67: 1.5 | P67: 1.5 | U67: 53t | V67: 54t | W67: 105 | X67: 95t | Y67: 107t | Z67: 119t | AA67: 33t | AB67: 110t | AC67: 120 | AD67: 125t | AF67: =IF(E67<>"",MAX(E67,AE67),"") -> 0 | AH67: 0.53 | AI67: =IF(G67<>"",MAX(G67,AH67),"") -> 0.53 | AJ67: 53t | AK67: 1.05 | AL67: =IF(I67<>"",MAX(I67,AK67),"") -> 1.05 | AM67: 105 | AN67: 1.07 | AO67: =IF(K67<>"",MAX(K67,AN67),"") -> 1.07 | AP67: 107t | AQ67: 0.33 | AR67: =IF(M67<>"",MAX(M67,AQ67),"") -> 0.8571428571 | AS67: 33t | AT67: 1.21 | AU67: =IF(O67<>"",MAX(O67,AT67),"") -> 1.5 | AV67: 121 | AW67: 0 | AX67: =IF(F67<>"",MAX(F67,AW67),"") ->  | AZ67: 0.54 | BA67: =IF(H67<>"",MAX(H67,AZ67),"") -> 0.54 | BB67: 54t | BC67: 0.95 | BD67: =IF(J67<>"",MAX(J67,BC67),"") -> 0.95 | BE67: 95t | BF67: 93 | BG67: =IF(L67<>"",MAX(L67,BF67),"") -> 93 | BH67: 93 | BI67: 1.1 | BJ67: =IF(N67<>"",MAX(N67,BI67),"") -> 1.1 | BK67: 110t | BL67: 1.23 | BM67: =IF(P67<>"",MAX(P67,BL67),"") -> 1.5 | BN67: 123 | CC67: 1.07 | CE67: 1.07
A68: 105 | B68: Lee | C68: 0.7391304348 | D68: 0.4137931034 | E68: 0.5217391304 | F68: 0.3448275862 | G68: 0 | I68: 0.09677419355 | J68: 0.2209302326 | K68: 0.8518518519 | L68: 0.9166666667 | M68: 0.8181818182 | N68: 0.8076923077 | O68: 2.666666667 | P68: 1.8 | Q68: 13 | R68: 27 | S68: 91 | T68: 52t | U68: 53t | W68: 123 | X68: 113 | Y68: 51 | Z68: 24t | AA68: 52t | AB68: 53t | AC68: 83t | AD68: 52t | AE68: 0.91 | AF68: 0.91 | AG68: 91 | AH68: 0.53 | AI68: 0.53 | AJ68: 53t | AK68: 1.23 | AL68: 1.23 | AM68: 123 | AN68: 0.51 | AO68: 0.8518518519 | AP68: 51 | AQ68: 0.52 | AR68: 0.8181818182 | AS68: 52t | AT68: 1.06 | AU68: 2.666666667 | AV68: 106t | AW68: 0.52 | AX68: 0.52 | AY68: 52t | AZ68: 0 | BC68: 1.13 | BD68: 1.13 | BE68: 113 | BF68: 17 | BG68: 17 | BH68: 17 | BI68: 0.53 | BJ68: 0.8076923077 | BK68: 53t | BL68: 0.73 | BM68: 1.8 | BN68: 73t | CC68: 0.51 | CE68: 0.51
A69: 678 | B69: Lexington | C69: 0 | D69: 1 | E69: 1 | F69: 1 | I69: 0.9285714286 | J69: 0.8461538462 | K69: 0.5789473684 | L69: 0.75 | M69: 0.8 | N69: 0.8 | O69: 2.6 | P69: 3.2 | Q69: 1t | S69: 1t | W69: 2 | X69: 5 | Y69: 114t | Z69: 81t | AA69: 60t | AB69: 57t | AC69: 20t | AD69: 56t | AE69: 0.01 | AF69: 1 | AG69: 1t | AK69: 0.02 | AL69: 0.9285714286 | AM69: 2 | AN69: 1.14 | AO69: 1.14 | AP69: 114t | AQ69: 0.6 | AR69: 0.8 | AS69: 60t | AT69: 0.26 | AU69: 2.6 | AV69: 26t | AW69: 0 | AX69: 1 | AZ69: 0 | BC69: 0.05 | BD69: 0.8461538462 | BE69: 5 | BF69: 121 | BG69: 121 | BH69: 121 | BI69: 0.57 | BJ69: 0.8 | BK69: 57t | BL69: 0.64 | BM69: 3.2 | BN69: 64t | CC69: 1.14 | CE69: 1.14
A70: 107 | B70: Loudoun | C70: 0.4459459459 | D70: 0.5245901639 | E70: 0.472972973 | F70: 0.4426229508 | G70: 0.7222222222 | H70: 0.25 | I70: 0.5131578947 | J70: 0.5873786408 | K70: 0.76 | L70: 0.7619047619 | M70: 0.8 | N70: 0.8095238095 | O70: 2.333333333 | P70: 2.333333333 | Q70: 92t | R70: 43 | S70: 45 | T70: 44 | U70: 18 | V70: 35t | W70: 64 | X70: 47 | Y70: 83 | Z70: 77 | AA70: 60t | AB70: 52 | AC70: 71t | AD70: 45t | AE70: 0.45 | AF70: 0.472972973 | AG70: 45 | AH70: 0.18 | AI70: 0.7222222222 | AJ70: 18 | AK70: 0.64 | AL70: 0.64 | AM70: 64 | AN70: 0.83 | AO70: 0.83 | AP70: 83 | AQ70: 0.6 | AR70: 0.8 | AS70: 60t | AT70: 0.43 | AU70: 2.333333333 | AV70: 43t | AW70: 0.44 | AX70: 0.4426229508 | AY70: 44 | AZ70: 0.35 | BA70: 0.35 | BB70: 35t | BC70: 0.47 | BD70: 0.5873786408 | BE70: 47 | BF70: 94 | BG70: 94 | BH70: 94 | BI70: 0.52 | BJ70: 0.8095238095 | BK70: 52 | BL70: 0.66 | BM70: 2.333333333 | BN70: 66t | CC70: 0.83 | CE70: 0.83
A71: 109 | B71: Louisa | C71: 0.6086956522 | D71: 0.4347826087 | E71: 0.5217391304 | F71: 0.3043478261 | G71: 1 | H71: 0.5 | I71: 0.5479452055 | J71: 0.4888888889 | K71: 0.7222222222 | L71: 0.7631578947 | M71: 0.5714285714 | N71: 0.5 | O71: 3.166666667 | P71: 2 | Q71: 36t | R71: 19 | S71: 83t | T71: 65 | U71: 1t | V71: 23 | W71: 53 | X71: 77 | Y71: 90t | Z71: 76 | AA71: 103t | AB71: 110t | AC71: 45t | AD71: 56t | AE71: 0.83 | AF71: 0.83 | AG71: 83t | AH71: 0.01 | AI71: 1 | AJ71: 1t | AK71: 0.53 | AL71: 0.5479452055 | AM71: 53 | AN71: 0.9 | AO71: 0.9 | AP71: 90t | AQ71: 1.03 | AR71: 1.03 | AS71: 103t | AT71: 0.65 | AU71: 3.166666667 | AV71: 65t | AW71: 0.65 | AX71: 0.65 | AY71: 65 | AZ71: 0.23 | BA71: 0.5 | BB71: 23 | BC71: 0.77 | BD71: 0.77 | BE71: 77 | BF71: 95 | BG71: 95 | BH71: 95 | BI71: 1.1 | BJ71: 1.1 | BK71: 110t | BL71: 0.77 | BM71: 2 | BN71: 77t | CC71: 0.9 | CE71: 0.9
A72: 111 | B72: Lunenburg | G72: 0 | I72: 0.7352941176 | J72: 0.847826087 | K72: 0.5714285714 | L72: 0.5 | M72: 0.9230769231 | N72: 1 | O72: 2.75 | P72: 3.333333333 | U72: 53t | W72: 9 | X72: 4 | Y72: 117 | Z72: 119t | AA72: 21 | AB72: 1t | AC72: 53t | AD72: 15t | AH72: 0.53 | AI72: 0.53 | AJ72: 53t | AK72: 0.09 | AL72: 0.7352941176 | AM72: 9 | AN72: 1.17 | AO72: 1.17 | AP72: 117 | AQ72: 0.21 | AR72: 0.9230769231 | AS72: 21 | AT72: 0.55 | AU72: 2.75 | AV72: 55t | AW72: 0 | AZ72: 0 | BC72: 0.04 | BD72: 0.847826087 | BE72: 4 | BF72: 96 | BG72: 96 | BH72: 96 | BI72: 0.01 | BJ72: 1 | BK72: 1t | BL72: 0.17 | BM72: 3.333333333 | BN72: 17 | CC72: 1.17 | CE72: 1.17
A73: 680 | B73: Lynchburg | C73: 0.4057971014 | D73: 0.4179104478 | E73: 0.4492753623 | F73: 0.3731343284 | G73: 0.1587301587 | H73: 0 | I73: 0.3717105263 | J73: 0.4054878049 | K73: 0.8523489933 | L73: 0.8484848485 | M73: 0.7457627119 | N73: 0.8070175439 | O73: 1.833333333 | P73: 1.5 | Q73: 80 | R73: 93 | S73: 81 | T73: 88 | U73: 44 | V73: 54t | W73: 96 | X73: 94 | Y73: 50 | Z73: 53 | AA73: 81 | AB73: 55 | AC73: 121t | AD73: 123 | AE73: 0.81 | AF73: 0.81 | AG73: 81 | AH73: 0.44 | AI73: 0.44 | AJ73: 44 | AK73: 0.96 | AL73: 0.96 | AM73: 96 | AN73: 0.5 | AO73: 0.8523489933 | AP73: 50 | AQ73: 0.81 | AR73: 0.81 | AS73: 81 | AT73: 1.17 | AU73: 1.833333333 | AV73: 117t | AW73: 0.88 | AX73: 0.88 | AY73: 88 | AZ73: 0.54 | BA73: 0.54 | BB73: 54t | BC73: 0.94 | BD73: 0.94 | BE73: 94 | BF73: 63 | BG73: 63 | BH73: 63 | BI73: 0.55 | BJ73: 0.8070175439 | BK73: 55 | BL73: 1.18 | BM73: 1.5 | BN73: 118t | CC73: 0.5 | CE73: 0.5
A74: 113 | B74: Madison | C74: 0.5135135135 | D74: 0.5652173913 | E74: 0.4594594595 | F74: 0.4782608696 | G74: 0 | H74: 0.03846153846 | I74: 0.4909090909 | J74: 0.4434782609 | K74: 0.6756756757 | L74: 0.641509434 | M74: 0.75 | N74: 0.75 | O74: 1.833333333 | P74: 2 | Q74: 95 | R74: 24t | S74: 102 | T74: 45 | U74: 53t | V74: 52 | W74: 71 | X74: 90 | Y74: 98 | Z74: 114 | AA74: 77t | AB74: 77t | AC74: 126t | AD74: 86t | AE74: 1.02 | AF74: 1.02 | AG74: 102 | AH74: 0.53 | AI74: 0.53 | AJ74: 53t | AK74: 0.71 | AL74: 0.71 | AM74: 71 | AN74: 0.98 | AO74: 0.98 | AP74: 98 | AQ74: 0.77 | AR74: 0.77 | AS74: 77t | AT74: 1.22 | AU74: 1.833333333 | AV74: 122t | AW74: 0.45 | AX74: 0.4782608696 | AY74: 45 | AZ74: 0.52 | BA74: 0.52 | BB74: 52 | BC74: 0.9 | BD74: 0.9 | BE74: 90 | BF74: 97 | BG74: 97 | BH74: 97 | BI74: 0.77 | BJ74: 0.77 | BK74: 77t | BL74: 1.06 | BM74: 2 | BN74: 106t | CC74: 0.98 | CE74: 0.98
A75: 683 | B75: Manassas City | C75: 0.5714285714 | D75: 0.5 | E75: 0.7857142857 | F75: 0.2222222222 | I75: 0.4285714286 | J75: 0.4255319149 | K75: 0.8 | L75: 0.9090909091 | M75: 0.8571428571 | N75: 1 | O75: 3 | P75: 2.6 | Q75: 50t | R75: 24t | S75: 12 | T75: 109 | W75: 86t | X75: 92 | Y75: 72t | Z75: 27t | AA75: 33t | AB75: 1t | AC75: 48t | AD75: 64t | AE75: 0.12 | AF75: 0.7857142857 | AG75: 12 | AK75: 0.86 | AL75: 0.86 | AM75: 86t | AN75: 0.72 | AO75: 0.8 | AP75: 72t | AQ75: 0.33 | AR75: 0.8571428571 | AS75: 33t | AT75: 0.55 | AU75: 3 | AV75: 55t | AW75: 1.09 | AX75: 1.09 | AY75: 109 | AZ75: 0 | BC75: 0.92 | BD75: 0.92 | BE75: 92 | BF75: 41 | BG75: 41 | BH75: 41 | BI75: 0.01 | BJ75: 1 | BK75: 1t | BL75: 0.91 | BM75: 2.6 | BN75: 91t | CC75: 0.72 | CE75: 0.72
A76: 685 | B76: Manassas Park | C76: 0 | D76: 0 | E76: 0 | F76: 1 | I76: 0.8 | J76: 0.7368421053 | K76: 1 | L76: 1 | O76: 2.5 | P76: 3.25 | Q76: 119t | R76: 108t | S76: 117t | T76: 1t | W76: 5 | X76: 16 | Y76: 1t | Z76: 1t | AC76: 71t | AD76: 17 | AE76: 1.17 | AF76: 1.17 | AG76: 117t | AK76: 0.05 | AL76: 0.8 | AM76: 5 | AN76: 0.01 | AO76: 1 | AP76: 1t | AS76: 0 | AT76: 0.26 | AU76: 2.5 | AV76: 26t | AW76: 0.01 | AX76: 1 | AY76: 1t | AZ76: 0 | BC76: 0.16 | BD76: 0.7368421053 | BE76: 16 | BF76: 42 | BG76: 42 | BH76: 42 | BI76: 0 | BL76: 0.01 | BM76: 3.25 | BN76: 1t | CC76: 0.01 | CE76: 0.01
A77: 690 | B77: Martinsville | D77: 1 | F77: 0.6666666667 | I77: 0.4444444444 | J77: 0.5 | K77: 0.825 | L77: 0.8235294118 | M77: 0.9069767442 | N77: 0.88 | O77: 2.666666667 | P77: 3.4 | R77: 31t | T77: 30t | W77: 84 | X77: 72t | Y77: 61t | Z77: 60t | AA77: 24t | AB77: 30t | AC77: 55t | AD77: 12t | AK77: 0.84 | AL77: 0.84 | AM77: 84 | AN77: 0.61 | AO77: 0.825 | AP77: 61t | AQ77: 0.24 | AR77: 0.9069767442 | AS77: 24t | AT77: 0.62 | AU77: 2.666666667 | AV77: 62t | AW77: 0.3 | AX77: 0.6666666667 | AY77: 30t | AZ77: 0 | BC77: 0.72 | BD77: 0.72 | BE77: 72t | BF77: 64 | BG77: 64 | BH77: 64 | BI77: 0.3 | BJ77: 0.88 | BK77: 30t | BL77: 0.18 | BM77: 3.4 | BN77: 18t | CC77: 0.61 | CE77: 0.61
A78: 115 | B78: Mathews | C78: 0.5 | E78: 1 | I78: 0.5384615385 | J78: 0.2857142857 | K78: 1 | L78: 1 | M78: 1 | N78: 1 | O78: 3.4 | P78: 3 | Q78: 59t | S78: 1t | W78: 54t | X78: 106 | Y78: 1t | Z78: 1t | AA78: 1t | AB78: 1t | AC78: 9t | AD78: 28t | AE78: 0.01 | AF78: 1 | AG78: 1t | AK78: 0.54 | AL78: 0.54 | AM78: 54t | AN78: 0.01 | AO78: 1 | AP78: 1t | AQ78: 0.01 | AR78: 1 | AS78: 1t | AT78: 0.06 | AU78: 3.4 | AV78: 6t | AW78: 0 | AZ78: 0 | BC78: 1.06 | BD78: 1.06 | BE78: 106 | BF78: 18t | BG78: 1 | BH78: 18t | BI78: 0.01 | BJ78: 1 | BK78: 1t | BL78: 0.3 | BM78: 3 | BN78: 30t | CC78: 0.01 | CE78: 0.01
A79: 117 | B79: Mecklenburg | C79: 0.7368421053 | D79: 0.6666666667 | E79: 0.8947368421 | F79: 0.7333333333 | G79: 0 | H79: 0 | I79: 0.4698795181 | J79: 0.4545454545 | K79: 0.5909090909 | L79: 0.652173913 | M79: 0.8 | N79: 1 | O79: 2.5 | P79: 2.666666667 | Q79: 82 | R79: 53t | S79: 8 | T79: 55t | U79: 53t | V79: 54t | W79: 79 | X79: 86t | Y79: 113 | Z79: 112 | AA79: 60t | AB79: 1t | AC79: 104t | AD79: 86t | AE79: 0.08 | AF79: 0.8947368421 | AG79: 8 | AH79: 0.53 | AI79: 0.53 | AJ79: 53t | AK79: 0.79 | AL79: 0.79 | AM79: 79 | AN79: 1.13 | AO79: 1.13 | AP79: 113 | AQ79: 0.6 | AR79: 0.8 | AS79: 60t | AT79: 0.97 | AU79: 2.5 | AV79: 97t | AW79: 0.55 | AX79: 0.7333333333 | AY79: 55t | AZ79: 0.54 | BA79: 0.54 | BB79: 54t | BC79: 0.86 | BD79: 0.86 | BE79: 86t | BF79: 98 | BG79: 98 | BH79: 98 | BI79: 0.01 | BJ79: 1 | BK79: 1t | BL79: 0.95 | BM79: 2.666666667 | BN79: 95t | CC79: 1.13 | CE79: 1.13
A80: 119 | B80: Middlesex | C80: 0.5 | D80: 0.5 | E80: 0.5 | F80: 0.25 | H80: 1 | I80: 0.625 | J80: 0.6923076923 | K80: 1 | L80: 1 | M80: 0.5 | N80: 0.8571428571 | O80: 3 | P80: 3.166666667 | Q80: 12 | R80: 31t | S80: 47t | T80: 30t | V80: 1t | W80: 38t | X80: 20 | Y80: 1t | Z80: 1t | AA80: 106t | AB80: 36t | AC80: 9t | AD80: 2 | AE80: 0.47 | AF80: 0.5 | AG80: 47t | AK80: 0.38 | AL80: 0.625 | AM80: 38t | AN80: 0.01 | AO80: 1 | AP80: 1t | AQ80: 1.06 | AR80: 1.06 | AS80: 106t | AT80: 0.18 | AU80: 3 | AV80: 18t | AW80: 0.3 | AX80: 0.3 | AY80: 30t | AZ80: 0.01 | BA80: 1 | BB80: 1t | BC80: 0.2 | BD80: 0.6923076923 | BE80: 20 | BF80: 18t | BG80: 1 | BH80: 18t | BI80: 0.36 | BJ80: 0.8571428571 | BK80: 36t | BL80: 0.06 | BM80: 3.166666667 | BN80: 6 | CC80: 0.01 | CE80: 0.01
A81: 121 | B81: Montgomery | C81: 0.48 | D81: 0.5333333333 | E81: 0.28 | F81: 0.5333333333 | I81: 0.2708333333 | J81: 0.488372093 | K81: 0.9523809524 | L81: 0.9705882353 | M81: 0.8571428571 | N81: 0.8636363636 | O81: 2.2 | P81: 3.4 | Q81: 74 | R81: 21 | S81: 112t | T81: 60t | W81: 111 | X81: 78 | Y81: 19 | Z81: 15 | AA81: 33t | AB81: 33 | AC81: 97 | AD81: 12t | AE81: 1.12 | AF81: 1.12 | AG81: 112t | AK81: 1.11 | AL81: 1.11 | AM81: 111 | AN81: 0.19 | AO81: 0.9523809524 | AP81: 19 | AQ81: 0.33 | AR81: 0.8571428571 | AS81: 33t | AT81: 0.95 | AU81: 2.2 | AV81: 95t | AW81: 0.6 | AX81: 0.6 | AY81: 60t | AZ81: 0 | BC81: 0.78 | BD81: 0.78 | BE81: 78 | BF81: 20 | BG81: 20 | BH81: 20 | BI81: 0.33 | BJ81: 0.8636363636 | BK81: 33 | BL81: 0.18 | BM81: 3.4 | BN81: 18t | CC81: 0.19 | CE81: 0.19
A82: 125 | B82: Nelson | I82: 0.6551724138 | J82: 0.4827586207 | K82: 0.7142857143 | L82: 0.9 | M82: 1 | N82: 0.75 | O82: 3.333333333 | P82: 2.666666667 | W82: 30 | X82: 80 | Y82: 92t | Z82: 29t | AA82: 1t | AB82: 77t | AC82: 14t | AD82: 104t | AK82: 0.3 | AL82: 0.6551724138 | AM82: 30 | AN82: 0.92 | AO82: 0.92 | AP82: 92t | AQ82: 0.01 | AR82: 1 | AS82: 1t | AT82: 0.17 | AU82: 3.333333333 | AV82: 17 | AW82: 0 | AZ82: 0 | BC82: 0.8 | BD82: 0.8 | BE82: 80 | BF82: 21 | BG82: 21 | BH82: 21 | BI82: 0.77 | BJ82: 0.77 | BK82: 77t | BL82: 1.06 | BM82: 2.666666667 | BN82: 106t | CC82: 0.92 | CE82: 0.92
A83: 127 | B83: New Kent | C83: 0.6 | D83: 0.5 | E83: 0.7 | F83: 0.8 | I83: 0.7037037037 | J83: 0.6428571429 | K83: 0.75 | L83: 1 | M83: 1 | O83: 3.6 | P83: 3.75 | Q83: 18t | R83: 108t | S83: 36 | T83: 110t | W83: 19 | X83: 29 | Y83: 85t | Z83: 1t | AA83: 1t | AC83: 4t | AD83: 104t | AE83: 0.36 | AF83: 0.7 | AG83: 36 | AK83: 0.19 | AL83: 0.7037037037 | AM83: 19 | AN83: 0.85 | AO83: 0.85 | AP83: 85t | AQ83: 0.01 | AR83: 1 | AS83: 1t | AT83: 0.09 | AU83: 3.6 | AV83: 9t | AW83: 1.1 | AX83: 1.1 | AY83: 110t | AZ83: 0 | BC83: 0.29 | BD83: 0.6428571429 | BE83: 29 | BF83: 22 | BG83: 22 | BH83: 22 | BI83: 0 | BL83: 0.86 | BM83: 3.75 | BN83: 86t | CC83: 0.85 | CE83: 0.85
A84: 700 | B84: Newport News | C84: 0.4197530864 | D84: 0.4090909091 | E84: 0.4320987654 | F84: 0.4318181818 | G84: 0.75 | H84: 0.25 | I84: 0.4664310954 | J84: 0.5075757576 | K84: 0.8846153846 | L84: 0.8611111111 | M84: 0.693877551 | N84: 0.6739130435 | O84: 2.333333333 | P84: 2 | Q84: 89 | R84: 82 | S84: 82 | T84: 97 | U84: 17 | V84: 35t | W84: 80 | X84: 70 | Y84: 38t | Z84: 49 | AA84: 89 | AB84: 100 | AC84: 83t | AD84: 104t | AE84: 0.82 | AF84: 0.82 | AG84: 82 | AH84: 0.17 | AI84: 0.75 | AJ84: 17 | AK84: 0.8 | AL84: 0.8 | AM84: 80 | AN84: 0.38 | AO84: 0.8846153846 | AP84: 38t | AQ84: 0.89 | AR84: 0.89 | AS84: 89 | AT84: 0.65 | AU84: 2.333333333 | AV84: 65t | AW84: 0.97 | AX84: 0.97 | AY84: 97 | AZ84: 0.35 | BA84: 0.35 | BB84: 35t | BC84: 0.7 | BD84: 0.7 | BE84: 70 | BF84: 43 | BG84: 43 | BH84: 43 | BI84: 1 | BJ84: 1 | BK84: 100 | BL84: 0.95 | BM84: 2 | BN84: 95t | CC84: 0.38 | CE84: 0.38
A85: 710 | B85: Norfolk | C85: 0.625 | D85: 0.654676259 | E85: 0.4270833333 | F85: 0.5395683453 | G85: 0.3432835821 | H85: 0.3230769231 | I85: 0.197080292 | J85: 0.25 | K85: 0.8893442623 | L85: 0.9154228856 | M85: 0.8453608247 | N85: 0.8870967742 | O85: 2.666666667 | P85: 3.333333333 | Q85: 40 | R85: 20 | S85: 100 | T85: 64 | U85: 32 | V85: 31 | W85: 119 | X85: 110t | Y85: 31 | Z85: 26 | AA85: 43 | AB85: 29 | AC85: 55t | AD85: 28t | AE85: 1 | AF85: 1 | AG85: 100 | AH85: 0.32 | AI85: 0.3432835821 | AJ85: 32 | AK85: 1.19 | AL85: 1.19 | AM85: 119 | AN85: 0.31 | AO85: 0.8893442623 | AP85: 31 | AQ85: 0.43 | AR85: 0.8453608247 | AS85: 43 | AT85: 0.79 | AU85: 2.666666667 | AV85: 79t | AW85: 0.64 | AX85: 0.64 | AY85: 64 | AZ85: 0.31 | BA85: 0.3230769231 | BB85: 31 | BC85: 1.1 | BD85: 1.1 | BE85: 110t | BF85: 44 | BG85: 44 | BH85: 44 | BI85: 0.29 | BJ85: 0.8870967742 | BK85: 29 | BL85: 0.5 | BM85: 3.333333333 | BN85: 50t | CC85: 0.31 | CE85: 0.31
A86: 131 | B86: Northampton | C86: 0.25 | D86: 0.2857142857 | E86: 0 | F86: 0.1428571429 | I86: 0.2727272727 | J86: 0.3571428571 | K86: 0.6666666667 | L86: 0.6666666667 | O86: 1.25 | P86: 1.25 | Q86: 115 | R86: 108t | S86: 117t | T86: 113t | W86: 109 | X86: 100t | Y86: 100t | Z86: 103t | AC86: 129 | AD86: 129 | AE86: 1.17 | AF86: 1.17 | AG86: 117t | AK86: 1.09 | AL86: 1.09 | AM86: 109 | AN86: 1 | AO86: 1 | AP86: 100t | AS86: 0 | AT86: 1.29 | AU86: 1.29 | AV86: 129 | AW86: 1.13 | AX86: 1.13 | AY86: 113t | AZ86: 0 | BC86: 1 | BD86: 1 | BE86: 100t | BF86: 99t | BG86: 0.6666666667 | BH86: 99t | BI86: 0 | BL86: 1.28 | BM86: 1.28 | BN86: 128 | CC86: 1 | CE86: 1
A87: 133 | B87: Northumberland | C87: 0.3333333333 | D87: 0.6666666667 | E87: 0.5 | F87: 0.3333333333 | H87: 0.3333333333 | I87: 0.7 | J87: 0.5925925926 | K87: 1 | L87: 0.875 | M87: 1 | N87: 0.25 | O87: 3.2 | P87: 3 | Q87: 116 | R87: 83t | S87: 86t | T87: 80t | V87: 25t | W87: 20 | X87: 45 | Y87: 1t | Z87: 43t | AA87: 1t | AB87: 115t | AC87: 48t | AD87: 69t | AE87: 0.86 | AF87: 0.86 | AG87: 86t | AK87: 0.2 | AL87: 0.7 | AM87: 20 | AN87: 0.01 | AO87: 1 | AP87: 1t | AQ87: 0.01 | AR87: 1 | AS87: 1t | AT87: 0.18 | AU87: 3.2 | AV87: 18t | AW87: 0.8 | AX87: 0.8 | AY87: 80t | AZ87: 0.25 | BA87: 0.3333333333 | BB87: 25t | BC87: 0.45 | BD87: 0.5925925926 | BE87: 45 | BF87: 23 | BG87: 23 | BH87: 23 | BI87: 1.15 | BJ87: 1.15 | BK87: 115t | BL87: 0.5 | BM87: 3 | BN87: 50t | CC87: 0.01 | CE87: 0.01
A88: 720 | B88: Norton | C88: 0.6 | E88: 1 | I88: 0.3333333333 | J88: 0.1428571429 | K88: 1 | L88: 0.8333333333 | M88: 0.875 | N88: 1 | O88: 3.4 | P88: 2.666666667 | Q88: 32t | S88: 1t | W88: 101t | X88: 118t | Y88: 1t | Z88: 56t | AA88: 29t | AB88: 1t | AC88: 9t | AD88: 28t | AE88: 0.01 | AF88: 1 | AG88: 1t | AK88: 1.01 | AL88: 1.01 | AM88: 101t | AN88: 0.01 | AO88: 1 | AP88: 1t | AQ88: 0.29 | AR88: 0.875 | AS88: 29t | AT88: 0.18 | AU88: 3.4 | AV88: 18t | AW88: 0 | AZ88: 0 | BC88: 1.18 | BD88: 1.18 | BE88: 118t | BF88: 65 | BG88: 65 | BH88: 65 | BI88: 0.01 | BJ88: 1 | BK88: 1t | BL88: 0.3 | BM88: 2.666666667 | BN88: 30t | CC88: 0.01 | CE88: 0.01
A89: 135 | B89: Nottoway | G89: 0 | I89: 0.08333333333 | J89: 0.1052631579 | K89: 1 | M89: 0.5 | N89: 0.75 | O89: 2 | P89: 1.5 | U89: 53t | W89: 125t | X89: 122 | Y89: 1t | AA89: 106t | AB89: 77t | AC89: 104t | AD89: 86t | AH89: 0.53 | AI89: 0.53 | AJ89: 53t | AK89: 1.25 | AL89: 1.25 | AM89: 125t | AN89: 0.01 | AO89: 1 | AP89: 1t | AQ89: 1.06 | AR89: 1.06 | AS89: 106t | AT89: 1.06 | AU89: 2 | AV89: 106t | AW89: 0 | AZ89: 0 | BC89: 1.22 | BD89: 1.22 | BE89: 122 | BI89: 0.77 | BJ89: 0.77 | BK89: 77t | BL89: 0.86 | BM89: 1.5 | BN89: 86t | CC89: 0.01 | CE89: 0.01
A90: 137 | B90: Orange | C90: 0.5428571429 | D90: 0.3846153846 | E90: 0.7428571429 | F90: 0.4615384615 | G90: 0.09090909091 | H90: 0 | I90: 0.6395348837 | J90: 0.4608695652 | K90: 0.5652173913 | L90: 0.6666666667 | M90: 0.25 | N90: 0.8275862069 | O90: 2.666666667 | P90: 1.666666667 | Q90: 54 | R90: 62t | S90: 13 | T90: 55t | U90: 49 | V90: 54t | W90: 33 | X90: 84 | Y90: 118 | Z90: 103t | AA90: 117t | AB90: 49 | AC90: 55t | AD90: 104t | AE90: 0.13 | AF90: 0.7428571429 | AG90: 13 | AH90: 0.49 | AI90: 0.49 | AJ90: 49 | AK90: 0.33 | AL90: 0.6395348837 | AM90: 33 | AN90: 1.18 | AO90: 1.18 | AP90: 118 | AQ90: 1.17 | AR90: 1.17 | AS90: 117t | AT90: 0.65 | AU90: 2.666666667 | AV90: 65t | AW90: 0.55 | AX90: 0.55 | AY90: 55t | AZ90: 0.54 | BA90: 0.54 | BB90: 54t | BC90: 0.84 | BD90: 0.84 | BE90: 84 | BF90: 99t | BG90: 0.6666666667 | BH90: 99t | BI90: 0.49 | BJ90: 0.8275862069 | BK90: 49 | BL90: 1.06 | BM90: 1.666666667 | BN90: 106t | CC90: 1.18 | CE90: 1.18
A91: 139 | B91: Page | C91: 0.84 | D91: 0.7142857143 | E91: 0.76 | F91: 0.380952381 | G91: 0 | I91: 0.5769230769 | J91: 0.4565217391 | K91: 0.5555555556 | L91: 0.7272727273 | M91: 0.8571428571 | N91: 1 | O91: 3 | P91: 2.4 | Q91: 7 | R91: 23 | S91: 14 | T91: 26 | U91: 53t | W91: 46 | X91: 85 | Y91: 119 | Z91: 89t | AA91: 33t | AB91: 1t | AC91: 29t | AD91: 28t | AE91: 0.14 | AF91: 0.76 | AG91: 14 | AH91: 0.53 | AI91: 0.53 | AJ91: 53t | AK91: 0.46 | AL91: 0.5769230769 | AM91: 46 | AN91: 1.19 | AO91: 1.19 | AP91: 119 | AQ91: 0.33 | AR91: 0.8571428571 | AS91: 33t | AT91: 0.43 | AU91: 3 | AV91: 43t | AW91: 0.26 | AX91: 0.380952381 | AY91: 26 | AZ91: 0 | BC91: 0.85 | BD91: 0.85 | BE91: 85 | BF91: 101 | BG91: 101 | BH91: 101 | BI91: 0.01 | BJ91: 1 | BK91: 1t | BL91: 0.6 | BM91: 2.4 | BN91: 60t | CC91: 1.19 | CE91: 1.19
A92: 141 | B92: Patrick | C92: 0.6666666667 | D92: 0.2727272727 | E92: 0.6666666667 | F92: 0.3636363636 | I92: 0 | J92: 0 | K92: 1 | L92: 0.7647058824 | M92: 1 | N92: 1 | O92: 3.4 | P92: 1.8 | Q92: 27 | R92: 107 | S92: 26t | T92: 55t | W92: 129t | X92: 127t | Y92: 1t | Z92: 75 | AA92: 1t | AB92: 1t | AC92: 9t | AD92: 64t | AE92: 0.26 | AF92: 0.6666666667 | AG92: 26t | AK92: 1.29 | AL92: 1.29 | AM92: 129t | AN92: 0.01 | AO92: 1 | AP92: 1t | AQ92: 0.01 | AR92: 1 | AS92: 1t | AT92: 0.18 | AU92: 3.4 | AV92: 18t | AW92: 0.55 | AX92: 0.55 | AY92: 55t | AZ92: 0 | BC92: 1.27 | BD92: 1.27 | BE92: 127t | BF92: 102 | BG92: 102 | BH92: 102 | BI92: 0.01 | BJ92: 1 | BK92: 1t | BL92: 0.3 | BM92: 1.8 | BN92: 30t | CC92: 0.01 | CE92: 0.01
A93: 730 | B93: Petersburg | C93: 0.6818181818 | D93: 0.6666666667 | E93: 0.6818181818 | F93: 0.6666666667 | G93: 0.07692307692 | H93: 0.1212121212 | I93: 0.3986928105 | J93: 0.4642857143 | K93: 0.6842105263 | L93: 0.6444444444 | M93: 0.8684210526 | N93: 0.8484848485 | O93: 2.666666667 | P93: 2.666666667 | Q93: 30 | R93: 31t | S93: 19t | T93: 30t | U93: 50 | V93: 43 | W93: 93 | X93: 83 | Y93: 97 | Z93: 113 | AA93: 31 | AB93: 40 | AC93: 55t | AD93: 56t | AE93: 0.19 | AF93: 0.6818181818 | AG93: 19t | AH93: 0.5 | AI93: 0.5 | AJ93: 50 | AK93: 0.93 | AL93: 0.93 | AM93: 93 | AN93: 0.97 | AO93: 0.97 | AP93: 97 | AQ93: 0.31 | AR93: 0.8684210526 | AS93: 31 | AT93: 0.79 | AU93: 2.666666667 | AV93: 79t | AW93: 0.3 | AX93: 0.6666666667 | AY93: 30t | AZ93: 0.43 | BA93: 0.43 | BB93: 43 | BC93: 0.83 | BD93: 0.83 | BE93: 83 | BF93: 122 | BG93: 122 | BH93: 122 | BI93: 0.4 | BJ93: 0.8484848485 | BK93: 40 | BL93: 0.77 | BM93: 2.666666667 | BN93: 77t | CC93: 0.97 | CE93: 0.97
A94: 143 | B94: Pittsylvania | C94: 0.4561403509 | D94: 0.4528301887 | E94: 0.4912280702 | F94: 0.3773584906 | G94: 0.125 | H94: 0.5833333333 | I94: 0.7265625 | J94: 0.7172413793 | K94: 0.9285714286 | L94: 0.6875 | M94: 0.25 | N94: 0.8571428571 | O94: 2.5 | P94: 2.5 | Q94: 70 | R94: 73 | S94: 61 | T94: 75t | U94: 48 | V94: 21 | W94: 14 | X94: 18 | Y94: 22 | Z94: 99t | AA94: 117t | AB94: 36t | AC94: 55t | AD94: 21t | AE94: 0.61 | AF94: 0.61 | AG94: 61 | AH94: 0.48 | AI94: 0.48 | AJ94: 48 | AK94: 0.14 | AL94: 0.7265625 | AM94: 14 | AN94: 0.22 | AO94: 0.9285714286 | AP94: 22 | AQ94: 1.17 | AR94: 1.17 | AS94: 117t | AT94: 0.43 | AU94: 2.5 | AV94: 43t | AW94: 0.75 | AX94: 0.75 | AY94: 75t | AZ94: 0.21 | BA94: 0.5833333333 | BB94: 21 | BC94: 0.18 | BD94: 0.7172413793 | BE94: 18 | BF94: 103 | BG94: 103 | BH94: 103 | BI94: 0.36 | BJ94: 0.8571428571 | BK94: 36t | BL94: 0.14 | BM94: 2.5 | BN94: 14t | CC94: 0.22 | CE94: 0.22
A95: 735 | B95: Poquoson | C95: 1 | D95: 1 | E95: 1 | F95: 1 | G95: 0.5 | I95: 0.5384615385 | J95: 0.4 | K95: 0.5 | L95: 0.25 | M95: 0.6 | O95: 3.166666667 | P95: 2.75 | Q95: 1t | R95: 1t | S95: 1t | T95: 1t | U95: 24t | W95: 54t | X95: 95t | Y95: 120t | Z95: 125t | AA95: 99t | AC95: 24t | AD95: 55 | AE95: 0.01 | AF95: 1 | AG95: 1t | AH95: 0.24 | AI95: 0.5 | AJ95: 24t | AK95: 0.54 | AL95: 0.54 | AM95: 54t | AN95: 1.2 | AO95: 1.2 | AP95: 120t | AQ95: 0.99 | AR95: 0.99 | AS95: 99t | AT95: 0.26 | AU95: 3.166666667 | AV95: 26t | AW95: 0.01 | AX95: 1 | AY95: 1t | AZ95: 0 | BC95: 0.95 | BD95: 0.95 | BE95: 95t | BF95: 123 | BG95: 123 | BH95: 123 | BI95: 0 | BL95: 0.86 | BM95: 2.75 | BN95: 86t | CC95: 1.2 | CE95: 1.2
A96: 740 | B96: Portsmouth | C96: 0.3076923077 | D96: 0.4545454545 | E96: 0.4230769231 | F96: 0.4545454545 | G96: 1 | H96: 0.5714285714 | I96: 0.06944444444 | J96: 0.09090909091 | K96: 0.9206349206 | L96: 0.9338842975 | M96: 0.7906976744 | N96: 0.7073170732 | O96: 2.166666667 | P96: 2.5 | Q96: 113 | R96: 60 | S96: 85 | T96: 102 | U96: 1t | V96: 22 | W96: 127 | X96: 124 | Y96: 26 | Z96: 19 | AA96: 69 | AB96: 94 | AC96: 98t | AD96: 86t | AE96: 0.85 | AF96: 0.85 | AG96: 85 | AH96: 0.01 | AI96: 1 | AJ96: 1t | AK96: 1.27 | AL96: 1.27 | AM96: 127 | AN96: 0.26 | AO96: 0.9206349206 | AP96: 26 | AQ96: 0.69 | AR96: 0.7906976744 | AS96: 69 | AT96: 0.79 | AU96: 2.166666667 | AV96: 79t | AW96: 1.02 | AX96: 1.02 | AY96: 102 | AZ96: 0.22 | BA96: 0.5714285714 | BB96: 22 | BC96: 1.24 | BD96: 1.24 | BE96: 124 | BF96: 45 | BG96: 45 | BH96: 45 | BI96: 0.94 | BJ96: 0.94 | BK96: 94 | BL96: 0.77 | BM96: 2.5 | BN96: 77t | CC96: 0.26 | CE96: 0.26
A97: 145 | B97: Powhatan | C97: 0.5151515152 | D97: 0.5714285714 | E97: 0.6060606061 | F97: 0.5714285714 | G97: 0 | I97: 0.5079365079 | J97: 0.5161290323 | K97: 0.625 | L97: 0.8181818182 | M97: 0.5 | N97: 0.8 | O97: 2.333333333 | P97: 3.2 | Q97: 73 | R97: 78t | S97: 43 | T97: 24 | U97: 53t | W97: 66 | X97: 66 | Y97: 107t | Z97: 63 | AA97: 106t | AB97: 57t | AC97: 83t | AD97: 81t | AE97: 0.43 | AF97: 0.6060606061 | AG97: 43 | AH97: 0.53 | AI97: 0.53 | AJ97: 53t | AK97: 0.66 | AL97: 0.66 | AM97: 66 | AN97: 1.07 | AO97: 1.07 | AP97: 107t | AQ97: 1.06 | AR97: 1.06 | AS97: 106t | AT97: 0.79 | AU97: 2.333333333 | AV97: 79t | AW97: 0.24 | AX97: 0.5714285714 | AY97: 24 | AZ97: 0 | BC97: 0.66 | BD97: 0.66 | BE97: 66 | BF97: 58 | BG97: 58 | BH97: 58 | BI97: 0.57 | BJ97: 0.8 | BK97: 57t | BL97: 0.6 | BM97: 3.2 | BN97: 60t | CC97: 1.07 | CE97: 1.07
A98: 147 | B98: Prince Edward | C98: 0.5 | D98: 0.2857142857 | E98: 0 | F98: 0.3571428571 | G98: 0.3333333333 | H98: 0.3333333333 | I98: 0.5625 | J98: 0.5090909091 | K98: 1 | L98: 1 | N98: 0.8333333333 | O98: 2.8 | P98: 2.5 | Q98: 18t | R98: 83t | S98: 117t | T98: 80t | U98: 33t | V98: 25t | W98: 48t | X98: 69 | Y98: 1t | Z98: 1t | AB98: 43t | AC98: 20t | AD98: 69t | AE98: 1.17 | AF98: 1.17 | AG98: 117t | AH98: 0.33 | AI98: 0.3333333333 | AJ98: 33t | AK98: 0.48 | AL98: 0.5625 | AM98: 48t | AN98: 0.01 | AO98: 1 | AP98: 1t | AS98: 0 | AT98: 0.26 | AU98: 2.8 | AV98: 26t | AW98: 0.8 | AX98: 0.8 | AY98: 80t | AZ98: 0.25 | BA98: 0.3333333333 | BB98: 25t | BC98: 0.69 | BD98: 0.69 | BE98: 69 | BF98: 24 | BG98: 24 | BH98: 24 | BI98: 0.43 | BJ98: 0.8333333333 | BK98: 43t | BL98: 0.5 | BM98: 2.5 | BN98: 50t | CC98: 0.01 | CE98: 0.01
A99: 149 | B99: Prince George | C99: 0.3636363636 | D99: 0.7777777778 | E99: 0.2727272727 | F99: 0.5555555556 | I99: 0.6170212766 | J99: 0.7 | K99: 0.6923076923 | L99: 0.8235294118 | M99: 1 | N99: 0.8 | O99: 2.4 | P99: 3.4 | Q99: 112 | R99: 1t | S99: 112t | T99: 30t | W99: 42 | X99: 19 | Y99: 95 | Z99: 60t | AA99: 1t | AB99: 57t | AC99: 80t | AD99: 18t | AE99: 1.12 | AF99: =IF(E99<>"",MAX(E99,AE99),"") -> 1.12 | AG99: 112t | AI99: =IF(G99<>"",MAX(G99,AH99),"") ->  | AK99: 0.42 | AL99: =IF(I99<>"",MAX(I99,AK99),"") -> 0.6170212766 | AM99: 42 | AN99: 0.95 | AO99: =IF(K99<>"",MAX(K99,AN99),"") -> 0.95 | AP99: 95 | AQ99: 0.01 | AR99: =IF(M99<>"",MAX(M99,AQ99),"") -> 1 | AS99: 1t | AT99: 0.55 | AU99: =IF(O99<>"",MAX(O99,AT99),"") -> 2.4 | AV99: 55t | AW99: 0.3 | AX99: =IF(F99<>"",MAX(F99,AW99),"") -> 0.5555555556 | AY99: 30t | AZ99: 0 | BA99: =IF(H99<>"",MAX(H99,AZ99),"") ->  | BC99: 0.19 | BD99: =IF(J99<>"",MAX(J99,BC99),"") -> 0.7 | BE99: 19 | BF99: 59 | BG99: =IF(L99<>"",MAX(L99,BF99),"") -> 59 | BH99: 59 | BI99: 0.57 | BJ99: =IF(N99<>"",MAX(N99,BI99),"") -> 0.8 | BK99: 57t | BL99: 0.3 | BM99: =IF(P99<>"",MAX(P99,BL99),"") -> 3.4 | BN99: 30t | CC99: 0.95 | CE99: 0.95
A100: 153 | B100: Prince William | C100: 0.5769230769 | D100: 0.4846153846 | E100: 0.4711538462 | F100: 0.5 | G100: 0.01075268817 | H100: 0.02857142857 | I100: 0.6633986928 | J100: 0.4820627803 | K100: 0.6705882353 | L100: 0.7830188679 | M100: 0.5609756098 | N100: 0.6904761905 | O100: 2.5 | P100: 2 | Q100: 45 | R100: 44 | S100: 63 | T100: 30t | U100: 52 | V100: 53 | W100: 28 | X100: 81 | Y100: 99 | Z100: 72 | AA100: 105 | AB100: 98 | AC100: 55t | AD100: 69t | AE100: 0.63 | AF100: 0.63 | AG100: 63 | AH100: 0.52 | AI100: 0.52 | AJ100: 52 | AK100: 0.28 | AL100: 0.6633986928 | AM100: 28 | AN100: 0.99 | AO100: 0.99 | AP100: 99 | AQ100: 1.05 | AR100: 1.05 | AS100: 105 | AT100: 0.79 | AU100: 2.5 | AV100: 79t | AW100: 0.3 | AX100: 0.5 | AY100: 30t | AZ100: 0.53 | BA100: 0.53 | BB100: 53 | BC100: 0.81 | BD100: 0.81 | BE100: 81 | BF100: 104 | BG100: 104 | BH100: 104 | BI100: 0.98 | BJ100: 0.98 | BK100: 98 | BL100: 0.95 | BM100: 2 | BN100: 95t | CC100: 0.99 | CE100: 0.99
A101: 155 | B101: Pulaski | C101: 0.44 | D101: 0.4019607843 | E101: 0.5866666667 | F101: 0.5196078431 | G101: 0 | H101: 0 | I101: 0.5240963855 | J101: 0.5482233503 | K101: 0.6363636364 | L101: 0.7358490566 | M101: 0.7857142857 | N101: 0.625 | O101: 2.166666667 | P101: 2 | Q101: 81 | R101: 99 | S101: 47t | T101: 29 | U101: 53t | V101: 54t | W101: 60 | X101: 53 | Y101: 106 | Z101: 86 | AA101: 70 | AB101: 105 | AC101: 104t | AD101: 100t | AE101: 0.47 | AF101: 0.5866666667 | AG101: 47t | AH101: 0.53 | AI101: 0.53 | AJ101: 53t | AK101: 0.6 | AL101: 0.6 | AM101: 60 | AN101: 1.06 | AO101: 1.06 | AP101: 106 | AQ101: 0.7 | AR101: 0.7857142857 | AS101: 70 | AT101: 0.97 | AU101: 2.166666667 | AV101: 97t | AW101: 0.29 | AX101: 0.5196078431 | AY101: 29 | AZ101: 0.54 | BA101: 0.54 | BB101: 54t | BC101: 0.53 | BD101: 0.5482233503 | BE101: 53 | BF101: 105 | BG101: 105 | BH101: 105 | BI101: 1.05 | BJ101: 1.05 | BK101: 105 | BL101: 0.77 | BM101: 2 | BN101: 77t | CC101: 1.06 | CE101: 1.06
A102: 750 | B102: Radford | C102: 0.8571428571 | D102: 0.75 | E102: 0.5714285714 | F102: 0.75 | G102: 0 | H102: 0 | I102: 0.1818181818 | J102: 0.2093023256 | K102: 0.6470588235 | L102: 0.7272727273 | M102: 0.8571428571 | N102: 0.7272727273 | O102: 2.5 | P102: 2.333333333 | Q102: 18t | R102: 6 | S102: 47t | T102: 20 | U102: 53t | V102: 54t | W102: 121 | X102: 115 | Y102: 103 | Z102: 89t | AA102: 33t | AB102: 86t | AC102: 83t | AD102: 86t | AE102: 0.47 | AF102: 0.5714285714 | AG102: 47t | AH102: 0.53 | AI102: 0.53 | AJ102: 53t | AK102: 1.21 | AL102: 1.21 | AM102: 121 | AN102: 1.03 | AO102: 1.03 | AP102: 103 | AQ102: 0.33 | AR102: 0.8571428571 | AS102: 33t | AT102: 1.06 | AU102: 2.5 | AV102: 106t | AW102: 0.2 | AX102: 0.75 | AY102: 20 | AZ102: 0.54 | BA102: 0.54 | BB102: 54t | BC102: 1.15 | BD102: 1.15 | BE102: 115 | BF102: 124 | BG102: 124 | BH102: 124 | BI102: 0.86 | BJ102: 0.86 | BK102: 86t | BL102: 1.06 | BM102: 2.333333333 | BN102: 106t | CC102: 1.03 | CE102: 1.03
A103: 157 | B103: Rappahannock | C103: 0.2857142857 | D103: 0.25 | E103: 0.2857142857 | F103: 0.75 | G103: 0 | H103: 0 | I103: 0.3409090909 | J103: 0.3125 | K103: 0.84 | L103: 0.6666666667 | M103: 0.8461538462 | N103: 0.8 | O103: 1.666666667 | P103: 1.833333333 | Q103: 96t | R103: 83t | S103: 112t | T103: 1t | U103: 53t | V103: 54t | W103: 99 | X103: 103 | Y103: 55 | Z103: 103t | AA103: 41t | AB103: 57t | AC103: 121t | AD103: 104t | AE103: 1.12 | AF103: 1.12 | AG103: 112t | AH103: 0.53 | AI103: 0.53 | AJ103: 53t | AK103: 0.99 | AL103: 0.99 | AM103: 99 | AN103: 0.55 | AO103: 0.84 | AP103: 55 | AQ103: 0.41 | AR103: 0.8461538462 | AS103: 41t | AT103: 1.17 | AU103: 1.666666667 | AV103: 117t | AW103: 0.01 | AX103: 0.75 | AY103: 1t | AZ103: 0.54 | BA103: 0.54 | BB103: 54t | BC103: 1.03 | BD103: 1.03 | BE103: 103 | BF103: 106 | BG103: 106 | BH103: 106 | BI103: 0.57 | BJ103: 0.8 | BK103: 57t | BL103: 0.95 | BM103: 1.833333333 | BN103: 95t | CC103: 0.55 | CE103: 0.55
A104: 760 | B104: Richmond City | C104: 0.5102040816 | D104: 0.5251798561 | E104: 0.4489795918 | F104: 0.4100719424 | G104: 0.2602739726 | H104: 0.198630137 | I104: 0.2106227106 | J104: 0.2114754098 | K104: 0.7272727273 | L104: 0.6748466258 | M104: 0.7752808989 | N104: 0.75 | O104: 1.666666667 | P104: 1.666666667 | Q104: 55 | R104: 45 | S104: 94 | T104: 87 | U104: 36 | V104: 38 | W104: 118 | X104: 114 | Y104: 88t | Z104: 102 | AA104: 72 | AB104: 77t | AC104: 121t | AD104: 117t | AE104: 0.94 | AF104: 0.94 | AG104: 94 | AH104: 0.36 | AI104: 0.36 | AJ104: 36 | AK104: 1.18 | AL104: 1.18 | AM104: 118 | AN104: 0.88 | AO104: 0.88 | AP104: 88t | AQ104: 0.72 | AR104: 0.7752808989 | AS104: 72 | AT104: 1.25 | AU104: 1.666666667 | AV104: 125t | AW104: 0.87 | AX104: 0.87 | AY104: 87 | AZ104: 0.38 | BA104: 0.38 | BB104: 38 | BC104: 1.14 | BD104: 1.14 | BE104: 114 | BF104: 125 | BG104: 125 | BH104: 125 | BI104: 0.77 | BJ104: 0.77 | BK104: 77t | BL104: 1.24 | BM104: 1.666666667 | BN104: 124t | CC104: 0.88 | CE104: 0.88
A105: 159 | B105: Richmond County | C105: 0.3333333333 | D105: 0.3333333333 | E105: 1 | F105: 0.6666666667 | G105: 0.5 | H105: 1 | I105: 0.5 | J105: 0.6666666667 | K105: 0.4 | L105: 0.3333333333 | M105: 1 | N105: 1 | O105: 2.833333333 | P105: 3.166666667 | Q105: 18t | R105: 108t | S105: 19t | T105: 80t | U105: 24t | V105: 1t | W105: 69t | X105: 23t | Y105: 123 | Z105: 124 | AA105: 1t | AB105: 1t | AC105: 14t | AD105: 56t | AE105: 0.19 | AF105: 1 | AG105: 19t | AH105: 0.24 | AI105: 0.5 | AJ105: 24t | AK105: 0.69 | AL105: 0.69 | AM105: 69t | AN105: 1.23 | AO105: 1.23 | AP105: 123 | AQ105: 0.01 | AR105: 1 | AS105: 1t | AT105: 0.24 | AU105: 2.833333333 | AV105: 24t | AW105: 0.8 | AX105: 0.8 | AY105: 80t | AZ105: 0.01 | BA105: 1 | BB105: 1t | BC105: 0.23 | BD105: 0.6666666667 | BE105: 23t | BF105: 107 | BG105: 107 | BH105: 107 | BI105: 0.01 | BJ105: 1 | BK105: 1t | BL105: 0.3 | BM105: 3.166666667 | BN105: 30t | CC105: 1.23 | CE105: 1.23
A106: 770 | B106: Roanoke City | C106: 0.5833333333 | D106: 0.6017699115 | E106: 0.4880952381 | F106: 0.4955752212 | G106: 0.2340425532 | H106: 0 | I106: 0.3350649351 | J106: 0.2670157068 | K106: 0.8870967742 | L106: 0.8549019608 | M106: 0.7314814815 | N106: 0.6704545455 | O106: 2.333333333 | P106: 2.5 | Q106: 38 | R106: 26 | S106: 65 | T106: 54 | U106: 38 | V106: 54t | W106: 100 | X106: 109 | Y106: 35 | Z106: 51 | AA106: 84 | AB106: 101 | AC106: 71t | AD106: 69t | AE106: 0.65 | AF106: 0.65 | AG106: 65 | AH106: 0.38 | AI106: 0.38 | AJ106: 38 | AK106: 1 | AL106: 1 | AM106: 100 | AN106: 0.35 | AO106: 0.8870967742 | AP106: 35 | AQ106: 0.84 | AR106: 0.84 | AS106: 84 | AT106: 0.97 | AU106: 2.333333333 | AV106: 97t | AW106: 0.54 | AX106: 0.54 | AY106: 54 | AZ106: 0.54 | BA106: 0.54 | BB106: 54t | BC106: 1.09 | BD106: 1.09 | BE106: 109 | BF106: 46 | BG106: 46 | BH106: 46 | BI106: 1.01 | BJ106: 1.01 | BK106: 101 | BL106: 0.95 | BM106: 2.5 | BN106: 95t | CC106: 0.35 | CE106: 0.35
A107: 161 | B107: Roanoke County | C107: 0.5333333333 | D107: 0.5192307692 | E107: 0.5666666667 | F107: 0.4423076923 | G107: 0.5238095238 | H107: 0.75 | I107: 0.4509803922 | J107: 0.5092592593 | K107: 0.8490566038 | L107: 0.829787234 | M107: 0.8076923077 | N107: 0.8421052632 | O107: 2.833333333 | P107: 3 | Q107: 47 | R107: 64 | S107: 31 | T107: 52t | U107: 23 | V107: 18 | W107: 82 | X107: 68 | Y107: 52t | Z107: 58t | AA107: 57t | AB107: 41t | AC107: 29t | AD107: 28t | AE107: 0.31 | AF107: 0.5666666667 | AG107: 31 | AH107: 0.23 | AI107: 0.5238095238 | AJ107: 23 | AK107: 0.82 | AL107: 0.82 | AM107: 82 | AN107: 0.52 | AO107: 0.8490566038 | AP107: 52t | AQ107: 0.57 | AR107: 0.8076923077 | AS107: 57t | AT107: 0.43 | AU107: 2.833333333 | AV107: 43t | AW107: 0.52 | AX107: 0.52 | AY107: 52t | AZ107: 0.18 | BA107: 0.75 | BB107: 18 | BC107: 0.68 | BD107: 0.68 | BE107: 68 | BF107: 60 | BG107: 60 | BH107: 60 | BI107: 0.41 | BJ107: 0.8421052632 | BK107: 41t | BL107: 0.22 | BM107: 3 | BN107: 22t | CC107: 0.52 | CE107: 0.52
A108: 163 | B108: Rockbridge | C108: 0.5882352941 | D108: 0.4761904762 | E108: 0.4117647059 | F108: 0.4761904762 | G108: 0 | H108: 0 | I108: 0.7432432432 | J108: 0.6707317073 | K108: 0.5789473684 | L108: 0.75 | M108: 0.8 | N108: 0.8 | O108: 2.333333333 | P108: 2.166666667 | Q108: 76t | R108: 46t | S108: 86t | T108: 46t | U108: 53t | V108: 54t | W108: 8 | X108: 22 | Y108: 114t | Z108: 81t | AA108: 60t | AB108: 57t | AC108: 104t | AD108: 69t | AE108: 0.86 | AF108: 0.86 | AG108: 86t | AH108: 0.53 | AI108: 0.53 | AJ108: 53t | AK108: 0.08 | AL108: 0.7432432432 | AM108: 8 | AN108: 1.14 | AO108: 1.14 | AP108: 114t | AQ108: 0.6 | AR108: 0.8 | AS108: 60t | AT108: 1.06 | AU108: 2.333333333 | AV108: 106t | AW108: 0.46 | AX108: 0.4761904762 | AY108: 46t | AZ108: 0.54 | BA108: 0.54 | BB108: 54t | BC108: 0.22 | BD108: 0.6707317073 | BE108: 22 | BF108: 108 | BG108: 108 | BH108: 108 | BI108: 0.57 | BJ108: 0.8 | BK108: 57t | BL108: 0.77 | BM108: 2.166666667 | BN108: 77t | CC108: 1.14 | CE108: 1.14
A109: 165 | B109: Rockingham | C109: 0.3703703704 | D109: 0.4838709677 | E109: 0.3703703704 | F109: 0.5483870968 | G109: 0.4594594595 | H109: 0.4137931034 | I109: 0.3483146067 | J109: 0.3655913978 | K109: 0.8116883117 | L109: 0.7961783439 | M109: 0.7926829268 | N109: 0.7205882353 | O109: 2 | P109: 2.5 | Q109: 101t | R109: 105 | S109: 105t | T109: 94t | U109: 28 | V109: 24 | W109: 98 | X109: 98 | Y109: 66t | Z109: 68t | AA109: 67t | AB109: 89t | AC109: 104t | AD109: 104t | AE109: 1.05 | AF109: 1.05 | AG109: 105t | AH109: 0.28 | AI109: 0.4594594595 | AJ109: 28 | AK109: 0.98 | AL109: 0.98 | AM109: 98 | AN109: 0.66 | AO109: 0.8116883117 | AP109: 66t | AQ109: 0.67 | AR109: 0.7926829268 | AS109: 67t | AT109: 0.97 | AU109: 2 | AV109: 97t | AW109: 0.94 | AX109: 0.94 | AY109: 94t | AZ109: 0.24 | BA109: 0.4137931034 | BB109: 24 | BC109: 0.98 | BD109: 0.98 | BE109: 98 | BF109: 109 | BG109: 109 | BH109: 109 | BI109: 0.89 | BJ109: 0.89 | BK109: 89t | BL109: 0.95 | BM109: 2.5 | BN109: 95t | CC109: 0.66 | CE109: 0.66
A110: 167 | B110: Russell | C110: 0.6222222222 | D110: 0.5102040816 | E110: 0.5333333333 | F110: 0.4285714286 | G110: 0 | H110: 0 | I110: 0.2307692308 | J110: 0.1393442623 | K110: 0.8656716418 | L110: 0.724137931 | M110: 0.8333333333 | N110: 0.7878787879 | O110: 2.666666667 | P110: 1.666666667 | Q110: 28 | R110: 53t | S110: 44 | T110: 75t | U110: 53t | V110: 54t | W110: 117 | X110: 120 | Y110: 47 | Z110: 92 | AA110: 45t | AB110: 72 | AC110: 55t | AD110: 100t | AE110: 0.44 | AF110: 0.5333333333 | AG110: 44 | AH110: 0.53 | AI110: 0.53 | AJ110: 53t | AK110: 1.17 | AL110: 1.17 | AM110: 117 | AN110: 0.47 | AO110: 0.8656716418 | AP110: 47 | AQ110: 0.45 | AR110: 0.8333333333 | AS110: 45t | AT110: 0.79 | AU110: 2.666666667 | AV110: 79t | AW110: 0.75 | AX110: 0.75 | AY110: 75t | AZ110: 0.54 | BA110: 0.54 | BB110: 54t | BC110: 1.2 | BD110: 1.2 | BE110: 120 | BF110: 110 | BG110: 110 | BH110: 110 | BI110: 0.72 | BJ110: 0.7878787879 | BK110: 72 | BL110: 1.06 | BM110: 1.666666667 | BN110: 106t | CC110: 0.47 | CE110: 0.47
A111: 775 | B111: Salem | C111: 0.4666666667 | D111: 0.2105263158 | E111: 0.4666666667 | F111: 0.3684210526 | G111: 1 | H111: 0.8 | I111: 0.406779661 | J111: 0.46875 | K111: 0.8490566038 | L111: 0.829787234 | M111: 0.8076923077 | N111: 0.8421052632 | O111: 2.166666667 | P111: 2.333333333 | Q111: 76t | R111: 108t | S111: 69 | T111: 112 | U111: 1t | V111: 16 | W111: 91 | X111: 82 | Y111: 52t | Z111: 58t | AA111: 57t | AB111: 41t | AC111: 83t | AD111: 86t | AE111: 0.69 | AF111: 0.69 | AG111: 69 | AH111: 0.01 | AI111: 1 | AJ111: 1t | AK111: 0.91 | AL111: 0.91 | AM111: 91 | AN111: 0.52 | AO111: 0.8490566038 | AP111: 52t | AQ111: 0.57 | AR111: 0.8076923077 | AS111: 57t | AT111: 0.79 | AU111: 2.166666667 | AV111: 79t | AW111: 1.12 | AX111: 1.12 | AY111: 112 | AZ111: 0.16 | BA111: 0.8 | BB111: 16 | BC111: 0.82 | BD111: 0.82 | BE111: 82 | BF111: 66 | BG111: 66 | BH111: 66 | BI111: 0.41 | BJ111: 0.8421052632 | BK111: 41t | BL111: 0.66 | BM111: 2.333333333 | BN111: 66t | CC111: 0.52 | CE111: 0.52
A112: 169 | B112: Scott | C112: 0.2857142857 | D112: 0.2352941176 | E112: 0.1428571429 | F112: 0.2941176471 | H112: 0 | I112: 0.1886792453 | J112: 0.1428571429 | K112: 0.9230769231 | L112: 0.9166666667 | M112: 0.8095238095 | N112: 0.7142857143 | O112: 1.8 | P112: 1.666666667 | Q112: 59t | R112: 100t | S112: 116 | T112: 22t | V112: 54t | W112: 120 | X112: 118t | Y112: 25 | Z112: 24t | AA112: 56 | AB112: 92t | AC112: 104t | AD112: 100t | AE112: 1.16 | AF112: 1.16 | AG112: 116 | AK112: 1.2 | AL112: 1.2 | AM112: 120 | AN112: 0.25 | AO112: 0.9230769231 | AP112: 25 | AQ112: 0.56 | AR112: 0.8095238095 | AS112: 56 | AT112: 1.06 | AU112: 1.8 | AV112: 106t | AW112: 0.22 | AX112: 0.2941176471 | AY112: 22t | AZ112: 0.54 | BA112: 0.54 | BB112: 54t | BC112: 1.18 | BD112: 1.18 | BE112: 118t | BF112: 25 | BG112: 25 | BH112: 25 | BI112: 0.92 | BJ112: 0.92 | BK112: 92t | BL112: 0.77 | BM112: 1.666666667 | BN112: 77t | CC112: 0.25 | CE112: 0.25
A113: 171 | B113: Shenandoah | C113: 0.6034482759 | D113: 0.4358974359 | E113: 0.5 | F113: 0.6153846154 | G113: 0 | H113: 0 | I113: 0.7614678899 | J113: 0.7862068966 | K113: 0.6111111111 | L113: 0.7 | M113: 1 | N113: 1 | O113: 3 | P113: 2.666666667 | Q113: 31 | R113: 53t | S113: 41 | T113: 11t | U113: 53t | V113: 54t | W113: 6 | X113: 10 | Y113: 110 | Z113: 94t | AA113: 1t | AB113: 1t | AC113: 24t | AD113: 28t | AE113: 0.41 | AF113: 0.5 | AG113: 41 | AH113: 0.53 | AI113: 0.53 | AJ113: 53t | AK113: 0.06 | AL113: 0.7614678899 | AM113: 6 | AN113: 1.1 | AO113: 1.1 | AP113: 110 | AQ113: 0.01 | AR113: 1 | AS113: 1t | AT113: 0.26 | AU113: 3 | AV113: 26t | AW113: 0.11 | AX113: 0.6153846154 | AY113: 11t | AZ113: 0.54 | BA113: 0.54 | BB113: 54t | BC113: 0.1 | BD113: 0.7862068966 | BE113: 10 | BF113: 111 | BG113: 111 | BH113: 111 | BI113: 0.01 | BJ113: 1 | BK113: 1t | BL113: 0.3 | BM113: 2.666666667 | BN113: 30t | CC113: 1.1 | CE113: 1.1
A114: 173 | B114: Smyth | C114: 0.7777777778 | D114: 0.1818181818 | E114: 0.7777777778 | F114: 0.2727272727 | G114: 0.8333333333 | H114: 1 | I114: 0.6590909091 | J114: 0.5775862069 | K114: 0.8571428571 | L114: 0.9333333333 | M114: 0.8461538462 | N114: 0.7857142857 | O114: 3.833333333 | P114: 2.666666667 | Q114: 1t | R114: 62t | S114: 17 | T114: 68t | U114: 16 | V114: 1t | W114: 29 | X114: 49 | Y114: 48t | Z114: 20 | AA114: 41t | AB114: 73 | AC114: 1t | AD114: 28t | AE114: 0.17 | AF114: 0.7777777778 | AG114: 17 | AH114: 0.16 | AI114: 0.8333333333 | AJ114: 16 | AK114: 0.29 | AL114: 0.6590909091 | AM114: 29 | AN114: 0.48 | AO114: 0.8571428571 | AP114: 48t | AQ114: 0.41 | AR114: 0.8461538462 | AS114: 41t | AT114: 0.01 | AU114: 3.833333333 | AV114: 1t | AW114: 0.68 | AX114: 0.68 | AY114: 68t | AZ114: 0.01 | BA114: 1 | BB114: 1t | BC114: 0.49 | BD114: 0.5775862069 | BE114: 49 | BF114: 26 | BG114: 26 | BH114: 26 | BI114: 0.73 | BJ114: 0.7857142857 | BK114: 73 | BL114: 0.22 | BM114: 2.666666667 | BN114: 22t | CC114: 0.48 | CE114: 0.48
A115: 175 | B115: Southampton | C115: 1 | D115: 0.6666666667 | E115: 1 | F115: 0.6666666667 | H115: 0.3333333333 | I115: 0.4117647059 | J115: 0.3888888889 | K115: 0.625 | L115: 0.5 | N115: 1 | O115: 2.75 | P115: 3 | Q115: 1t | R115: 13t | S115: 15 | T115: 1t | V115: 25t | W115: 90 | X115: 97 | Y115: 107t | Z115: 119t | AB115: 1t | AC115: 53t | AD115: 28t | AE115: 0.15 | AF115: 1 | AG115: 15 | AK115: 0.9 | AL115: 0.9 | AM115: 90 | AN115: 1.07 | AO115: 1.07 | AP115: 107t | AS115: 0 | AT115: 0.94 | AU115: 2.75 | AV115: 94 | AW115: 0.01 | AX115: 0.6666666667 | AY115: 1t | AZ115: 0.25 | BA115: 0.3333333333 | BB115: 25t | BC115: 0.97 | BD115: 0.97 | BE115: 97 | BF115: 112 | BG115: 112 | BH115: 112 | BI115: 0.01 | BJ115: 1 | BK115: 1t | BL115: 0.5 | BM115: 3 | BN115: 50t | CC115: 1.07 | CE115: 1.07
A116: 177 | B116: Spotsylvania | C116: 0.6164383562 | D116: 0.4142857143 | E116: 0.602739726 | F116: 0.4428571429 | G116: 0.347826087 | H116: 0 | I116: 0.456928839 | J116: 0.5252525253 | K116: 0.7792207792 | L116: 0.8804347826 | M116: 0.6909090909 | N116: 0.7179487179 | O116: 2.666666667 | P116: 2.166666667 | Q116: 42 | R116: 65t | S116: 30 | T116: 70 | U116: 31 | V116: 54t | W116: 81 | X116: 62 | Y116: 80 | Z116: 40 | AA116: 90 | AB116: 91 | AC116: 55t | AD116: 104t | AE116: 0.3 | AF116: 0.602739726 | AG116: 30 | AH116: 0.31 | AI116: 0.347826087 | AJ116: 31 | AK116: 0.81 | AL116: 0.81 | AM116: 81 | AN116: 0.8 | AO116: 0.8 | AP116: 80 | AQ116: 0.9 | AR116: 0.9 | AS116: 90 | AT116: 0.79 | AU116: 2.666666667 | AV116: 79t | AW116: 0.7 | AX116: 0.7 | AY116: 70 | AZ116: 0.54 | BA116: 0.54 | BB116: 54t | BC116: 0.62 | BD116: 0.62 | BE116: 62 | BF116: 27 | BG116: 27 | BH116: 27 | BI116: 0.91 | BJ116: 0.91 | BK116: 91 | BL116: 1.06 | BM116: 2.166666667 | BN116: 106t | CC116: 0.8 | CE116: 0.8
A117: 179 | B117: Stafford | C117: 0.775 | D117: 0.5606060606 | E117: 0.65 | F117: 0.5606060606 | G117: 0 | H117: 0 | I117: 0.6319444444 | J117: 0.6242424242 | K117: 0.9655172414 | L117: 0.88 | M117: 0.8518518519 | N117: 0.8695652174 | O117: 3.333333333 | P117: 3.5 | Q117: 11 | R117: 61 | S117: 33 | T117: 30t | U117: 53t | V117: 54t | W117: 36 | X117: 34 | Y117: 17 | Z117: 41 | AA117: 39 | AB117: 32 | AC117: 14t | AD117: 21t | AE117: 0.33 | AF117: 0.65 | AG117: 33 | AH117: 0.53 | AI117: 0.53 | AJ117: 53t | AK117: 0.36 | AL117: 0.6319444444 | AM117: 36 | AN117: 0.17 | AO117: 0.9655172414 | AP117: 17 | AQ117: 0.39 | AR117: 0.8518518519 | AS117: 39 | AT117: 0.24 | AU117: 3.333333333 | AV117: 24t | AW117: 0.3 | AX117: 0.5606060606 | AY117: 30t | AZ117: 0.54 | BA117: 0.54 | BB117: 54t | BC117: 0.34 | BD117: 0.6242424242 | BE117: 34 | BF117: 28 | BG117: 28 | BH117: 28 | BI117: 0.32 | BJ117: 0.8695652174 | BK117: 32 | BL117: 0.14 | BM117: 3.5 | BN117: 14t | CC117: 0.17 | CE117: 0.17
A118: 790 | B118: Staunton | C118: 0.5357142857 | D118: 0.5238095238 | E118: 0.3214285714 | F118: 0.4761904762 | G118: 1 | H118: 0.875 | I118: 0.4461538462 | J118: 0.5462184874 | K118: 0.8846153846 | L118: 0.875 | M118: 0.7948717949 | N118: 0.7049180328 | O118: 2.5 | P118: 3 | Q118: 50t | R118: 31t | S118: 115 | T118: 80t | U118: 1t | V118: 14 | W118: 83 | X118: 54 | Y118: 38t | Z118: 43t | AA118: 65t | AB118: 95t | AC118: 71t | AD118: 28t | AE118: 1.15 | AF118: 1.15 | AG118: 115 | AH118: 0.01 | AI118: 1 | AJ118: 1t | AK118: 0.83 | AL118: 0.83 | AM118: 83 | AN118: 0.38 | AO118: 0.8846153846 | AP118: 38t | AQ118: 0.65 | AR118: 0.7948717949 | AS118: 65t | AT118: 0.79 | AU118: 2.5 | AV118: 79t | AW118: 0.8 | AX118: 0.8 | AY118: 80t | AZ118: 0.14 | BA118: 0.875 | BB118: 14 | BC118: 0.54 | BD118: 0.5462184874 | BE118: 54 | BF118: 47t | BG118: 0.875 | BH118: 47t | BI118: 0.95 | BJ118: 0.95 | BK118: 95t | BL118: 0.5 | BM118: 3 | BN118: 50t | CC118: 0.38 | CE118: 0.38
A119: 800 | B119: Suffolk | C119: 0.5 | D119: 0.5 | E119: 0.5 | F119: 0.6111111111 | G119: 0.2222222222 | H119: 0.3333333333 | I119: 0.243902439 | J119: 0.275 | K119: 0.7142857143 | L119: 0.5833333333 | M119: 0.2 | N119: 0.8333333333 | O119: 1.833333333 | P119: 2.666666667 | Q119: 36t | R119: 100t | S119: 83t | T119: 22t | U119: 40t | V119: 25t | W119: 116 | X119: 107 | Y119: 92t | Z119: 117 | AA119: 119 | AB119: 43t | AC119: 114t | AD119: 86t | AE119: 0.83 | AF119: 0.83 | AG119: 83t | AH119: 0.4 | AI119: 0.4 | AJ119: 40t | AK119: 1.16 | AL119: 1.16 | AM119: 116 | AN119: 0.92 | AO119: 0.92 | AP119: 92t | AQ119: 1.19 | AR119: 1.19 | AS119: 119 | AT119: 1.25 | AU119: 1.833333333 | AV119: 125t | AW119: 0.22 | AX119: 0.6111111111 | AY119: 22t | AZ119: 0.25 | BA119: 0.3333333333 | BB119: 25t | BC119: 1.07 | BD119: 1.07 | BE119: 107 | BF119: 126 | BG119: 126 | BH119: 126 | BI119: 0.43 | BJ119: 0.8333333333 | BK119: 43t | BL119: 0.66 | BM119: 2.666666667 | BN119: 66t | CC119: 0.92 | CE119: 0.92
A120: 181 | B120: Surry | C120: 0.1 | D120: 0 | E120: 0.3 | F120: 0.6666666667 | I120: 0.7272727273 | J120: 0.8571428571 | O120: 2 | P120: 3 | Q120: 118 | R120: 108t | S120: 111 | T120: 11t | W120: 11t | X120: 2t | AC120: 104t | AD120: 28t | AE120: 1.11 | AF120: 1.11 | AG120: 111 | AK120: 0.11 | AL120: 0.7272727273 | AM120: 11t | AN120: 0 | AS120: 0 | AT120: 0.76 | AU120: 2 | AV120: 76t | AW120: 0.11 | AX120: 0.6666666667 | AY120: 11t | AZ120: 0 | BC120: 0.02 | BD120: 0.8571428571 | BE120: 2t | BI120: 0 | BL120: 0.01 | BM120: 3 | BN120: 1t | CC120: 0 | CE120: 0
A121: 183 | B121: Sussex | C121: 0.25 | D121: 1 | E121: 0.5 | F121: 1 | G121: 1 | I121: 0.68 | J121: 0.7727272727 | K121: 1 | L121: 1 | M121: 1 | N121: 1 | O121: 3.333333333 | P121: 4 | Q121: 59t | S121: 47t | U121: 1t | W121: 23 | X121: 13 | Y121: 1t | Z121: 1t | AA121: 1t | AB121: 1t | AC121: 8 | AD121: 1 | AE121: 0.47 | AF121: 0.5 | AG121: 47t | AH121: 0.01 | AI121: 1 | AJ121: 1t | AK121: 0.23 | AL121: 0.68 | AM121: 23 | AN121: 0.01 | AO121: 1 | AP121: 1t | AQ121: 0.01 | AR121: 1 | AS121: 1t | AT121: 0.01 | AU121: 3.333333333 | AV121: 1t | AW121: 0 | AX121: 1 | AZ121: 0 | BC121: 0.13 | BD121: 0.7727272727 | BE121: 13 | BF121: 29 | BG121: 29 | BH121: 29 | BI121: 0.01 | BJ121: 1 | BK121: 1t | BL121: 0.01 | BM121: 4 | BN121: 1t | CC121: 0.01 | CE121: 0.01
A122: 185 | B122: Tazewell | C122: 0.64 | D122: 0.45 | E122: 0.48 | F122: 0.35 | G122: 0 | I122: 0.27 | J122: 0.2745098039 | K122: 0.9387755102 | L122: 0.8888888889 | M122: 0.7741935484 | N122: 0.6842105263 | O122: 2.333333333 | P122: 1.8 | Q122: 16t | R122: 31t | S122: 71t | T122: 110t | U122: 53t | W122: 112 | X122: 108 | Y122: 21 | Z122: 36 | AA122: 73 | AB122: 99 | AC122: 83t | AD122: 81t | AE122: 0.71 | AF122: 0.71 | AG122: 71t | AH122: 0.53 | AI122: 0.53 | AJ122: 53t | AK122: 1.12 | AL122: 1.12 | AM122: 112 | AN122: 0.21 | AO122: 0.9387755102 | AP122: 21 | AQ122: 0.73 | AR122: 0.7741935484 | AS122: 73 | AT122: 1.06 | AU122: 2.333333333 | AV122: 106t | AW122: 1.1 | AX122: 1.1 | AY122: 110t | AZ122: 0 | BC122: 1.08 | BD122: 1.08 | BE122: 108 | BF122: 30 | BG122: 30 | BH122: 30 | BI122: 0.99 | BJ122: 0.99 | BK122: 99 | BL122: 1.06 | BM122: 1.8 | BN122: 106t | CC122: 0.21 | CE122: 0.21
A123: 810 | B123: Virginia Beach | C123: 0.4954954955 | D123: 0.4942528736 | E123: 0.4594594595 | F123: 0.4137931034 | G123: 0.128 | H123: 0.05357142857 | I123: 0.3314917127 | J123: 0.126146789 | K123: 0.8136363636 | L123: 0.8050847458 | M123: 0.6705882353 | N123: 0.6632653061 | O123: 1.833333333 | P123: 1.666666667 | Q123: 72 | R123: 95 | S123: 80 | T123: 93 | U123: 47 | V123: 49 | W123: 103 | X123: 121 | Y123: 65 | Z123: 65 | AA123: 93 | AB123: 104 | AC123: 121t | AD123: 125t | AE123: 0.8 | AF123: 0.8 | AG123: 80 | AH123: 0.47 | AI123: 0.47 | AJ123: 47 | AK123: 1.03 | AL123: 1.03 | AM123: 103 | AN123: 0.65 | AO123: 0.8136363636 | AP123: 65 | AQ123: 0.93 | AR123: 0.93 | AS123: 93 | AT123: 1.22 | AU123: 1.833333333 | AV123: 122t | AW123: 0.93 | AX123: 0.93 | AY123: 93 | AZ123: 0.49 | BA123: 0.49 | BB123: 49 | BC123: 1.21 | BD123: 1.21 | BE123: 121 | BF123: 67 | BG123: 67 | BH123: 67 | BI123: 1.04 | BJ123: 1.04 | BK123: 104 | BL123: 1.21 | BM123: 1.666666667 | BN123: 121t | CC123: 0.65 | CE123: 0.65
A124: 187 | B124: Warren | C124: 0.65 | D124: 0.5 | E124: 0.4 | F124: 0.4444444444 | G124: 0 | I124: 0.5185185185 | J124: 0.4833333333 | K124: 0.7222222222 | L124: 0.8571428571 | M124: 0.75 | N124: 0.8 | O124: 2.166666667 | P124: 2.6 | Q124: 59t | R124: 91 | S124: 86t | T124: 30t | U124: 53t | W124: 63 | X124: 79 | Y124: 90t | Z124: 50 | AA124: 77t | AB124: 57t | AC124: 114t | AD124: 99 | AE124: 0.86 | AF124: 0.86 | AG124: 86t | AH124: 0.53 | AI124: 0.53 | AJ124: 53t | AK124: 0.63 | AL124: 0.63 | AM124: 63 | AN124: 0.9 | AO124: 0.9 | AP124: 90t | AQ124: 0.77 | AR124: 0.77 | AS124: 77t | AT124: 1.17 | AU124: 2.166666667 | AV124: 117t | AW124: 0.3 | AX124: 0.4444444444 | AY124: 30t | AZ124: 0 | BC124: 0.79 | BD124: 0.79 | BE124: 79 | BF124: 31 | BG124: 31 | BH124: 31 | BI124: 0.57 | BJ124: 0.8 | BK124: 57t | BL124: 0.73 | BM124: 2.6 | BN124: 73t | CC124: 0.9 | CE124: 0.9
A125: 191 | B125: Washington | C125: 0.75 | D125: 0.5 | E125: 0.5 | F125: 0.7777777778 | G125: 0.6086956522 | H125: 0.7142857143 | I125: 0.2748091603 | J125: 0.1923076923 | K125: 0.8461538462 | L125: 0.8409090909 | M125: 0.7333333333 | N125: 0.8125 | O125: 2.833333333 | P125: 3 | Q125: 18t | R125: 59 | S125: 47t | T125: 11t | U125: 20 | V125: 19 | W125: 108 | X125: 117 | Y125: 54 | Z125: 54 | AA125: 83 | AB125: 51 | AC125: 45t | AD125: 28t | AE125: 0.47 | AF125: 0.5 | AG125: 47t | AH125: 0.2 | AI125: 0.6086956522 | AJ125: 20 | AK125: 1.08 | AL125: 1.08 | AM125: 108 | AN125: 0.54 | AO125: 0.8461538462 | AP125: 54 | AQ125: 0.83 | AR125: 0.83 | AS125: 83 | AT125: 0.65 | AU125: 2.833333333 | AV125: 65t | AW125: 0.11 | AX125: 0.7777777778 | AY125: 11t | AZ125: 0.19 | BA125: 0.7142857143 | BB125: 19 | BC125: 1.17 | BD125: 1.17 | BE125: 117 | BF125: 61 | BG125: 61 | BH125: 61 | BI125: 0.51 | BJ125: 0.8125 | BK125: 51 | BL125: 0.3 | BM125: 3 | BN125: 30t | CC125: 0.54 | CE125: 0.54
A126: 820 | B126: Waynesboro | C126: 0.5 | D126: 0.4545454545 | E126: 0.4666666667 | F126: 0.3636363636 | G126: 0.8571428571 | H126: 1 | I126: 0.4827586207 | J126: 0.5405405405 | K126: 0.8846153846 | L126: 0.875 | M126: 0.7948717949 | N126: 0.7049180328 | O126: 2.666666667 | P126: 2.666666667 | Q126: 56 | R126: 74t | S126: 75 | T126: 46t | U126: 15 | V126: 1t | W126: 75t | X126: 57t | Y126: 38t | Z126: 43t | AA126: 65t | AB126: 95t | AC126: 45t | AD126: 45t | AE126: 0.75 | AF126: 0.75 | AG126: 75 | AH126: 0.15 | AI126: 0.8571428571 | AJ126: 15 | AK126: 0.75 | AL126: 0.75 | AM126: 75t | AN126: 0.38 | AO126: 0.8846153846 | AP126: 38t | AQ126: 0.65 | AR126: 0.7948717949 | AS126: 65t | AT126: 0.43 | AU126: 2.666666667 | AV126: 43t | AW126: 0.46 | AX126: 0.46 | AY126: 46t | AZ126: 0.01 | BA126: 1 | BB126: 1t | BC126: 0.57 | BD126: 0.57 | BE126: 57t | BF126: 47t | BG126: 0.875 | BH126: 47t | BI126: 0.95 | BJ126: 0.95 | BK126: 95t | BL126: 0.22 | BM126: 2.666666667 | BN126: 22t | CC126: 0.38 | CE126: 0.38
A127: 193 | B127: Westmoreland | C127: 0.5 | D127: 0.5 | E127: 0.5 | F127: 1 | G127: 0.6666666667 | H127: 1 | I127: 0.7073170732 | J127: 0.8571428571 | K127: 0.3333333333 | L127: 0.6666666667 | M127: 0.9 | N127: 1 | O127: 3.166666667 | P127: 3.5 | Q127: 59t | R127: 31t | S127: 47t | T127: 1t | U127: 19 | V127: 1t | W127: 18 | X127: 2t | Y127: 124t | Z127: 103t | AA127: 26 | AB127: 1t | AC127: 24t | AD127: 3t | AE127: 0.47 | AF127: 0.5 | AG127: 47t | AH127: 0.19 | AI127: 0.6666666667 | AJ127: 19 | AK127: 0.18 | AL127: 0.7073170732 | AM127: 18 | AN127: 1.24 | AO127: 1.24 | AP127: 124t | AQ127: 0.26 | AR127: 0.9 | AS127: 26 | AT127: 0.14 | AU127: 3.166666667 | AV127: 14t | AW127: 0.01 | AX127: 1 | AY127: 1t | AZ127: 0.01 | BA127: 1 | BB127: 1t | BC127: 0.02 | BD127: 0.8571428571 | BE127: 2t | BF127: 113 | BG127: 113 | BH127: 113 | BI127: 0.01 | BJ127: 1 | BK127: 1t | BL127: 0.08 | BM127: 3.5 | BN127: 8t | CC127: 1.24 | CE127: 1.24
A128: 830 | B128: Williamsburg | C128: 0.6666666667 | D128: 1 | E128: 0.3333333333 | F128: 1 | I128: 0.25 | J128: 0.3333333333 | K128: 0.8888888889 | L128: 1 | M128: 1 | N128: 0.8888888889 | O128: 2.8 | P128: 3.4 | Q128: 59t | R128: 108t | S128: 47t | T128: 1t | W128: 115 | X128: 102 | Y128: 32t | Z128: 1t | AA128: 1t | AB128: 28 | AC128: 48t | AD128: 52t | AE128: 0.47 | AF128: 0.47 | AG128: 47t | AH128: 0 | AK128: 1.15 | AL128: 1.15 | AM128: 115 | AN128: 0.32 | AO128: 0.8888888889 | AP128: 32t | AQ128: 0.01 | AR128: 1 | AS128: 1t | AT128: 0.26 | AU128: 2.8 | AV128: 26t | AW128: 0.01 | AX128: 1 | AY128: 1t | AZ128: 0 | BC128: 1.02 | BD128: 1.02 | BE128: 102 | BF128: 49 | BG128: 49 | BH128: 49 | BI128: 0.28 | BJ128: 0.8888888889 | BK128: 28 | BL128: 0.18 | BM128: 3.4 | BN128: 18t | CC128: 0.32 | CE128: 0.32
A129: 840 | B129: Winchester | C129: 0.3333333333 | D129: 0.4375 | E129: 0.3888888889 | F129: 0.5625 | G129: 0 | H129: 0.06666666667 | I129: 0.5535714286 | J129: 0.5923566879 | K129: 1 | L129: 0.9 | M129: 0.8333333333 | N129: 0.9230769231 | O129: 2.333333333 | P129: 3 | Q129: 114 | R129: 70t | S129: 105t | T129: 79 | U129: 53t | V129: 48 | W129: 52 | X129: 46 | Y129: 1t | Z129: 29t | AA129: 45t | AB129: 26 | AC129: 83t | AD129: 56t | AE129: 1.05 | AF129: 1.05 | AG129: 105t | AH129: 0.53 | AI129: 0.53 | AJ129: 53t | AK129: 0.52 | AL129: 0.5535714286 | AM129: 52 | AN129: 0.01 | AO129: 1 | AP129: 1t | AQ129: 0.45 | AR129: 0.8333333333 | AS129: 45t | AT129: 0.65 | AU129: 2.333333333 | AV129: 65t | AW129: 0.79 | AX129: 0.79 | AY129: 79 | AZ129: 0.48 | BA129: 0.48 | BB129: 48 | BC129: 0.46 | BD129: 0.5923566879 | BE129: 46 | BF129: 50 | BG129: 50 | BH129: 50 | BI129: 0.26 | BJ129: 0.9230769231 | BK129: 26 | BL129: 0.5 | BM129: 3 | BN129: 50t | CC129: 0.01 | CE129: 0.01
A130: 195 | B130: Wise | C130: 0.5 | D130: 0.3125 | E130: 0.4166666667 | F130: 0.375 | G130: 0 | H130: 0 | I130: 0.2582417582 | J130: 0.303030303 | K130: 0.9252336449 | L130: 0.9541284404 | M130: 0.8181818182 | N130: 0.8032786885 | O130: 2 | P130: 1.666666667 | Q130: 49 | R130: 106 | S130: 71t | T130: 68t | U130: 53t | V130: 54t | W130: 113 | X130: 104 | Y130: 24 | Z130: 17 | AA130: 52t | AB130: 56 | AC130: 83t | AD130: 117t | AE130: 0.71 | AF130: 0.71 | AG130: 71t | AH130: 0.53 | AI130: 0.53 | AJ130: 53t | AK130: 1.13 | AL130: 1.13 | AM130: 113 | AN130: 0.24 | AO130: 0.9252336449 | AP130: 24 | AQ130: 0.52 | AR130: 0.8181818182 | AS130: 52t | AT130: 0.97 | AU130: 2 | AV130: 97t | AW130: 0.68 | AX130: 0.68 | AY130: 68t | AZ130: 0.54 | BA130: 0.54 | BB130: 54t | BC130: 1.04 | BD130: 1.04 | BE130: 104 | BF130: 32 | BG130: 32 | BH130: 32 | BI130: 0.56 | BJ130: 0.8032786885 | BK130: 56 | BL130: 1.06 | BM130: 1.666666667 | BN130: 106t | CC130: 0.24 | CE130: 0.24
A131: 197 | B131: Wythe | C131: 0.5 | D131: 0.6666666667 | E131: 0.5 | F131: 0.4761904762 | G131: 0 | H131: 0 | I131: 0.5052631579 | J131: 0.5565217391 | K131: 0.9032258065 | L131: 0.8974358974 | M131: 0.7222222222 | N131: 0.7826086957 | O131: 2.5 | P131: 2.833333333 | Q131: 59t | R131: 10t | S131: 86t | T131: 73t | U131: 53t | V131: 54t | W131: 67 | X131: 50 | Y131: 28 | Z131: 34 | AA131: 86t | AB131: 74 | AC131: 98t | AD131: 45t | AE131: 0.86 | AF131: =IF(E131<>"",MAX(E131,AE131),"") -> 0.86 | AG131: 86t | AH131: 0.53 | AI131: =IF(G131<>"",MAX(G131,AH131),"") -> 0.53 | AJ131: 53t | AK131: 0.67 | AL131: =IF(I131<>"",MAX(I131,AK131),"") -> 0.67 | AM131: 67 | AN131: 0.28 | AO131: =IF(K131<>"",MAX(K131,AN131),"") -> 0.9032258065 | AP131: 28 | AQ131: 0.86 | AR131: =IF(M131<>"",MAX(M131,AQ131),"") -> 0.86 | AS131: 86t | AT131: 0.97 | AU131: =IF(O131<>"",MAX(O131,AT131),"") -> 2.5 | AV131: 97t | AW131: 0.73 | AX131: =IF(F131<>"",MAX(F131,AW131),"") -> 0.73 | AY131: 73t | AZ131: 0.54 | BA131: =IF(H131<>"",MAX(H131,AZ131),"") -> 0.54 | BB131: 54t | BC131: 0.5 | BD131: =IF(J131<>"",MAX(J131,BC131),"") -> 0.5565217391 | BE131: 50 | BF131: 33 | BG131: =IF(L131<>"",MAX(L131,BF131),"") -> 33 | BH131: 33 | BI131: 0.74 | BJ131: =IF(N131<>"",MAX(N131,BI131),"") -> 0.7826086957 | BK131: 74 | BL131: 0.66 | BM131: =IF(P131<>"",MAX(P131,BL131),"") -> 2.833333333 | BN131: 66t | CC131: 0.28 | CE131: 0.28
A132: 199 | B132: York | C132: 0.6 | D132: 0.2 | E132: 0.5 | F132: 0.6 | G132: 0.2 | H132: 0 | I132: 0.5625 | J132: 0.6 | K132: 0.5 | L132: 0.25 | M132: 0.6 | O132: 2.666666667 | P132: 2.4 | Q132: 96t | R132: 83t | S132: 47t | T132: 11t | U132: 43 | V132: 54t | W132: 48t | X132: 42t | Y132: 120t | Z132: 125t | AA132: 99t | AC132: 98t | AD132: 81t | AE132: 0.47 | AF132: =IF(E132<>"",MAX(E132,AE132),"") -> 0.5 | AG132: 47t | AH132: 0.43 | AI132: =IF(G132<>"",MAX(G132,AH132),"") -> 0.43 | AJ132: 43 | AK132: 0.48 | AL132: =IF(I132<>"",MAX(I132,AK132),"") -> 0.5625 | AM132: 48t | AN132: 1.2 | AO132: =IF(K132<>"",MAX(K132,AN132),"") -> 1.2 | AP132: 120t | AQ132: 0.99 | AR132: =IF(M132<>"",MAX(M132,AQ132),"") -> 0.99 | AS132: 99t | AT132: 0.79 | AU132: =IF(O132<>"",MAX(O132,AT132),"") -> 2.666666667 | AV132: 79t | AW132: 0.11 | AX132: =IF(F132<>"",MAX(F132,AW132),"") -> 0.6 | AY132: 11t | AZ132: 0.54 | BA132: =IF(H132<>"",MAX(H132,AZ132),"") -> 0.54 | BB132: 54t | BC132: 0.42 | BD132: =IF(J132<>"",MAX(J132,BC132),"") -> 0.6 | BE132: 42t | BF132: 114 | BG132: =IF(L132<>"",MAX(L132,BF132),"") -> 114 | BH132: 114 | BI132: 0 | BL132: 0.6 | BM132: =IF(P132<>"",MAX(P132,BL132),"") -> 2.4 | BN132: 60t | CC132: 1.2 | CE132: 1.2
B133: Statewide | C133: 0.5184128631 | D133: 0.4985922703 | E133: 0.4909232365 | F133: 0.4845149731 | G133: 0.3192267503 | H133: 0.3104557641 | I133: 0.5039400346 | J133: 0.5048650042 | K133: 0.8213783404 | L133: 0.8195706827 | M133: 0.775711575 | N133: 0.7733895706 | O133: 2.598333333 | P133: 2.617179487
B135: Locality Performance Measures with Rankings
L139: l
B166: 1Decreases in CANS scores are generally indicative of improved functioning. CANS performance measures are updated periodically with the youth's latest scores. Scores are expected to decrease as time passes and more services are provided. The average number of days between the youth's inital and latest scores is 474 days for FY 2015 and 319 days for FY 2016. As such, FY 2015 CANS scores are not directly comparable to FY 2016 CANS scores.
B167: 2For the percent of youth receiving ICC, the average is taken for non-zero values only.
B168: 3For each of the five outcome measures, localities are assigned a score relative to their proximity to either the statewide average or targets set by the Commonwealth. The composite outcome measure score is calculated using the average of the six outcome measure scores, with 4 being the highest possible score.

Sheet All
B1: CSA Performance Measures - FY2017-2019
A2: Fips | C2: Percent of Youth with a Decrease in CANS Child School Domain1 | F2: Percent of Youth with a Decrease in CANS Child Behavior/Emotional Needs Domain1 | I2: Percent of Youth with a Decrease in CANS Child Strengths Domain1 | L2: Percent of Youth Receiving ICC Against Those in Residential2 (Target=75%) | O2: Percent of Youth Receiving CBS Out of All CSA Youth | R2: Percent of Foster Care Children in Family-based Placements (Target=85%) | U2: Percent of Children Who Exit from Foster Care to a Permanent Living Arrangement (Target = 86%) | X2: Composite Performance Measure3 | AA2: SCH17 | AB2: SCH18 | AC2: SCH19 | AD2: BEH17 | AE2: BEH18 | AF2: BEH19 | AG2: STH17 | AH2: STH18 | AI2: STH19 | AJ2: ICC17 | AK2: ICC18 | AL2: ICC19 | AM2: CBS17 | AN2: CBS18 | AO2: CBS19 | AP2: Fam17 | AQ2: Fam18 | AR2: Fam19 | AS2: Per17 | AT2: Per18 | AU2: Per19 | AV2: Com17 | AW2: Com18 | AX2: Com19 | AY2: CANS17_School | BB2: CANS17_Behavior | BE2: CANS17_Srengh | BH2: ICC Rank17 | BK2: CBS17 | BN2: Family17 | BQ2: Permanency17 | BT2: Composite17 | BW2: CANS18_School | BZ2: CANS18_Behavior | CC2: CANS18_Srengh | CF2: ICC Rank18 | CI2: CBS18 | CL2: Family18 | CO2: Permanency18 | CR2: Composite18 | CU2: CANS19_School | CX2: CANS19_Behavior | DA2: CANS19_Srengh | DD2: ICC Rank19 | DG2: CBS19 | DJ2: Family19 | DM2: Permanency19 | DP2: Composite19
B3: Locality | C3: 2017 | D3: 2018 | E3: 2019 | F3: 2017 | G3: 2018 | H3: 2019 | I3: 2017 | J3: 2018 | K3: 2019 | L3: 2017 | M3: 2018 | N3: 2019 | O3: 2017 | P3: 2018 | Q3: 2019 | R3: 2017 | S3: 2018 | T3: 2019 | U3: 2017 | V3: 2018 | W3: 2019 | X3: 2017 | Y3: 2018 | Z3: 2019
A4: 1 | B4: Accomack | C4: 0.444 | D4: 0.375 | E4: 0.5 | F4: 0.3333333333 | G4: 0.5555555556 | H4: 0.5 | I4: 0.3333333333 | J4: 0.6666666667 | K4: 0.25 | L4: 0 | M4: 0 | O4: 0.7586206897 | P4: 0.6129032258 | Q4: 0.6666666667 | R4: 1 | S4: 0.9230769231 | T4: 0.9166666667 | U4: 0.6666666667 | V4: 0.8333333333 | W4: 0.8888888889 | X4: 1.571428571 | Y4: 2.571428571 | Z4: 2.833333333 | AA4: 92t | AB4: 99t | AC4: 53t | AD4: 110t | AE4: 46t | AF4: 50t | AG4: 115 | AH4: 36t | AI4: 119t | AJ4: 58t | AK4: 54t | AM4: 94t | AN4: 123 | AO4: 126 | AP4: 1t | AQ4: 22t | AR4: 22t | AS4: 93t | AT4: 41t | AU4: 32t | AV4: 124t | AW4: 54t | AX4: 56t | AY4: 0.92 | AZ4: =IF(C4<>"",MAX(C4,AY4),"") -> 0.92 | BA4: 92t | BB4: 1.1 | BC4: =IF(F4<>"",MAX(F4,BB4),"") -> 1.1 | BD4: 110t | BE4: 1.15 | BF4: =IF(I4<>"",MAX(I4,BE4),"") -> 1.15 | BG4: 115 | BH4: 0.58 | BI4: =IF(L4<>"",MAX(L4,BH4),"") -> 0.58 | BJ4: 58t | BK4: 0.94 | BL4: =IF(O4<>"",MAX(O4,BK4),"") -> 0.94 | BM4: 94t | BN4: 0.01 | BO4: =IF(R4<>"",MAX(R4,BN4),"") -> 1 | BP4: 1t | BQ4: 0.93 | BR4: =IF(U4<>"",MAX(U4,BQ4),"") -> 0.93 | BS4: 93t | BT4: 1.24 | BU4: =IF(X4<>"",MAX(X4,BT4),"") -> 1.571428571 | BV4: 124t | BW4: 0.99 | BX4: =IF(D4<>"",MAX(D4,BW4),"") -> 0.99 | BY4: 99t | BZ4: 0.46 | CA4: =IF(G4<>"",MAX(G4,BZ4),"") -> 0.5555555556 | CB4: 46t | CC4: 0.36 | CD4: =IF(J4<>"",MAX(J4,CC4),"") -> 0.6666666667 | CE4: 36t | CF4: 0.54 | CG4: =IF(M4<>"",MAX(M4,CF4),"") -> 0.54 | CH4: 54t | CI4: 1.23 | CJ4: =IF(P4<>"",MAX(P4,CI4),"") -> 1.23 | CK4: 123 | CL4: 0.22 | CM4: =IF(S4<>"",MAX(S4,CL4),"") -> 0.9230769231 | CN4: 22t | CO4: 0.41 | CP4: =IF(V4<>"",MAX(V4,CO4),"") -> 0.8333333333 | CQ4: 41t | CR4: 0.54 | CS4: =IF(Y4<>"",MAX(Y4,CR4),"") -> 2.571428571 | CT4: 54t | CU4: 0.53 | CV4: =IF(E4<>"",MAX(E4,CU4),"") -> 0.53 | CW4: 53t | CX4: 0.5 | CY4: =IF(H4<>"",MAX(H4,CX4),"") -> 0.5 | CZ4: 50t | DA4: 1.19 | DB4: =IF(K4<>"",MAX(K4,DA4),"") -> 1.19 | DC4: 119t | DE4: =IF(N4<>"",MAX(N4,DD4),"") ->  | DG4: 1.26 | DH4: =IF(Q4<>"",MAX(Q4,DG4),"") -> 1.26 | DI4: 126 | DJ4: 0.22 | DK4: =IF(T4<>"",MAX(T4,DJ4),"") -> 0.9166666667 | DL4: 22t | DM4: 0.32 | DN4: =IF(W4<>"",MAX(W4,DM4),"") -> 0.8888888889 | DO4: 32t | DP4: 0.56 | DQ4: =IF(Z4<>"",MAX(Z4,DP4),"") -> 2.833333333 | DR4: 56t
A5: 3 | B5: Albemarle | C5: 0.574 | D5: 0.625 | E5: 0.4285714286 | F5: 0.5573770492 | G5: 0.6136363636 | H5: 0.4693877551 | I5: 0.6721311475 | J5: 0.5909090909 | K5: 0.4285714286 | L5: 1 | M5: 0.68 | N5: 0.7037037037 | O5: 0.8819875776 | P5: 0.8950819672 | Q5: 0.8892508143 | R5: 0.7692307692 | S5: 0.8850574713 | T5: 0.8979591837 | U5: 0.9512195122 | V5: 0.675 | W5: 0.6829268293 | X5: 3.571428571 | Y5: 3.428571429 | Z5: 2.857142857 | AA5: 57 | AB5: 19t | AC5: 83t | AD5: 57 | AE5: 34 | AF5: 68 | AG5: 45 | AH5: 75t | AI5: 99t | AJ5: 1t | AK5: 25 | AL5: 25 | AM5: 31 | AN5: 22 | AO5: 26 | AP5: 75t | AQ5: 35 | AR5: 25t | AS5: 21 | AT5: 87 | AU5: 87 | AV5: 10t | AW5: 11t | AX5: 51t | AY5: 0.57 | AZ5: 0.574 | BA5: 57 | BB5: 0.57 | BC5: 0.57 | BD5: 57 | BE5: 0.45 | BF5: 0.6721311475 | BG5: 45 | BH5: 0.01 | BI5: 1 | BJ5: 1t | BK5: 0.31 | BL5: 0.8819875776 | BM5: 31 | BN5: 0.75 | BO5: 0.7692307692 | BP5: 75t | BQ5: 0.21 | BR5: 0.9512195122 | BS5: 21 | BT5: 0.1 | BU5: 3.571428571 | BV5: 10t | BW5: 0.19 | BX5: 0.625 | BY5: 19t | BZ5: 0.34 | CA5: 0.6136363636 | CB5: 34 | CC5: 0.75 | CD5: 0.75 | CE5: 75t | CF5: 0.25 | CG5: 0.68 | CH5: 25 | CI5: 0.22 | CJ5: 0.8950819672 | CK5: 22 | CL5: 0.35 | CM5: 0.8850574713 | CN5: 35 | CO5: 0.87 | CP5: 0.87 | CQ5: 87 | CR5: 0.11 | CS5: 3.428571429 | CT5: 11t | CU5: 0.83 | CV5: 0.83 | CW5: 83t | CX5: 0.68 | CY5: 0.68 | CZ5: 68 | DA5: 0.99 | DB5: 0.99 | DC5: 99t | DD5: 0.25 | DE5: 0.7037037037 | DF5: 25 | DG5: 0.26 | DH5: 0.8892508143 | DI5: 26 | DJ5: 0.25 | DK5: 0.8979591837 | DL5: 25t | DM5: 0.87 | DN5: 0.87 | DO5: 87 | DP5: 0.51 | DQ5: 2.857142857 | DR5: 51t
A6: 510 | B6: Alexandria | C6: 0.627 | D6: 0.4736842105 | E6: 0.4418604651 | F6: 0.5333333333 | G6: 0.3793103448 | H6: 0.2558139535 | I6: 0.5733333333 | J6: 0.6206896552 | K6: 0.5581395349 | L6: 1 | M6: 1 | N6: 1 | O6: 0.9170305677 | P6: 0.92 | Q6: 0.9201877934 | R6: 0.8863636364 | S6: 0.90625 | T6: 0.8979591837 | U6: 0.7741935484 | V6: 0.7714285714 | W6: 0.7058823529 | X6: 3.285714286 | Y6: 2.857142857 | Z6: 2.857142857 | AA6: 37 | AB6: 75 | AC6: 81t | AD6: 66 | AE6: 98 | AF6: 115 | AG6: 88 | AH6: 61 | AI6: 65 | AJ6: 1t | AK6: 1t | AL6: 1t | AM6: 19 | AN6: 13 | AO6: 12 | AP6: 36t | AQ6: 28 | AR6: 25t | AS6: 74 | AT6: 60t | AU6: 80t | AV6: 21t | AW6: 37t | AX6: 51t | AY6: 0.37 | AZ6: 0.627 | BA6: 37 | BB6: 0.66 | BC6: 0.66 | BD6: 66 | BE6: 0.88 | BF6: 0.88 | BG6: 88 | BH6: 0.01 | BI6: 1 | BJ6: 1t | BK6: 0.19 | BL6: 0.9170305677 | BM6: 19 | BN6: 0.36 | BO6: 0.8863636364 | BP6: 36t | BQ6: 0.74 | BR6: 0.7741935484 | BS6: 74 | BT6: 0.21 | BU6: 3.285714286 | BV6: 21t | BW6: 0.75 | BX6: 0.75 | BY6: 75 | BZ6: 0.98 | CA6: 0.98 | CB6: 98 | CC6: 0.61 | CD6: 0.6206896552 | CE6: 61 | CF6: 0.01 | CG6: 1 | CH6: 1t | CI6: 0.13 | CJ6: 0.92 | CK6: 13 | CL6: 0.28 | CM6: 0.90625 | CN6: 28 | CO6: 0.6 | CP6: 0.7714285714 | CQ6: 60t | CR6: 0.37 | CS6: 2.857142857 | CT6: 37t | CU6: 0.81 | CV6: 0.81 | CW6: 81t | CX6: 1.15 | CY6: 1.15 | CZ6: 115 | DA6: 0.65 | DB6: 0.65 | DC6: 65 | DD6: 0.01 | DE6: 1 | DF6: 1t | DG6: 0.12 | DH6: 0.9201877934 | DI6: 12 | DJ6: 0.25 | DK6: 0.8979591837 | DL6: 25t | DM6: 0.8 | DN6: 0.8 | DO6: 80t | DP6: 0.51 | DQ6: 2.857142857 | DR6: 51t
A7: 5 | B7: Alleghany | C7: 0.7 | D7: 0.8666666667 | E7: 0.5833333333 | F7: 0.7 | G7: 0.7333333333 | H7: 0.5 | I7: 0.8 | J7: 0.6666666667 | K7: 0.3333333333 | O7: 0.8448275862 | P7: 0.8333333333 | Q7: 0.8833333333 | R7: 0.7692307692 | S7: 0.8 | T7: 0.8 | U7: 0.5 | V7: 0.625 | W7: 0.9166666667 | X7: 3.166666667 | Y7: 3.166666667 | Z7: 3.333333333 | AA7: 28 | AB7: 4 | AC7: 24t | AD7: 28 | AE7: 17 | AF7: 50t | AG7: 17t | AH7: 36t | AI7: 114t | AM7: 47 | AN7: 57t | AO7: 31 | AP7: 75t | AQ7: 63t | AR7: 76t | AS7: 105t | AT7: 98t | AU7: 28t | AV7: 25t | AW7: 22t | AX7: 16t | AY7: 0.28 | AZ7: 0.7 | BA7: 28 | BB7: 0.28 | BC7: 0.7 | BD7: 28 | BE7: 0.17 | BF7: 0.8 | BG7: 17t | BK7: 0.47 | BL7: 0.8448275862 | BM7: 47 | BN7: 0.75 | BO7: 0.7692307692 | BP7: 75t | BQ7: 1.05 | BR7: 1.05 | BS7: 105t | BT7: 0.25 | BU7: 3.166666667 | BV7: 25t | BW7: 0.04 | BX7: 0.8666666667 | BY7: 4 | BZ7: 0.17 | CA7: 0.7333333333 | CB7: 17 | CC7: 0.36 | CD7: 0.6666666667 | CE7: 36t | CI7: 0.57 | CJ7: 0.8333333333 | CK7: 57t | CL7: 0.63 | CM7: 0.8 | CN7: 63t | CO7: 0.98 | CP7: 0.98 | CQ7: 98t | CR7: 0.22 | CS7: 3.166666667 | CT7: 22t | CU7: 0.24 | CV7: 0.5833333333 | CW7: 24t | CX7: 0.5 | CY7: 0.5 | CZ7: 50t | DA7: 1.14 | DB7: 1.14 | DC7: 114t | DG7: 0.31 | DH7: 0.8833333333 | DI7: 31 | DJ7: 0.76 | DK7: 0.8 | DL7: 76t | DM7: 0.28 | DN7: 0.9166666667 | DO7: 28t | DP7: 0.16 | DQ7: 3.333333333 | DR7: 16t
A8: 7 | B8: Amelia | C8: 0 | D8: 0.6666666667 | E8: 0 | F8: 0.6666666667 | G8: 1 | H8: 1 | I8: 0 | J8: 0.3333333333 | K8: 1 | O8: 0.7272727273 | P8: 0.6666666667 | Q8: 0.75 | R8: 0 | S8: 1 | T8: 1 | W8: 1 | X8: 1.8 | Y8: 2.8 | Z8: 3 | AA8: 124t | AB8: 10t | AC8: 124t | AD8: 30t | AE8: 1t | AF8: 1t | AG8: 121t | AH8: 120t | AI8: 1t | AM8: 103 | AN8: 121t | AO8: 111t | AP8: 126t | AQ8: 1t | AR8: 1t | AU8: 1t | AV8: 119 | AW8: 48 | AX8: 33t | AY8: 1.24 | AZ8: 1.24 | BA8: 124t | BB8: 0.3 | BC8: 0.6666666667 | BD8: 30t | BE8: 1.21 | BF8: 1.21 | BG8: 121t | BK8: 1.03 | BL8: 1.03 | BM8: 103 | BN8: 1.26 | BO8: 1.26 | BP8: 126t | BT8: 1.19 | BU8: 1.8 | BV8: 119 | BW8: 0.1 | BX8: 0.6666666667 | BY8: 10t | BZ8: 0.01 | CA8: 1 | CB8: 1t | CC8: 1.2 | CD8: 1.2 | CE8: 120t | CI8: 1.21 | CJ8: 1.21 | CK8: 121t | CL8: 0.01 | CM8: 1 | CN8: 1t | CO8: 0 | CR8: 0.48 | CS8: 2.8 | CT8: 48 | CU8: 1.24 | CV8: 1.24 | CW8: 124t | CX8: 0.01 | CY8: 1 | CZ8: 1t | DA8: 0.01 | DB8: 1 | DC8: 1t | DG8: 1.11 | DH8: 1.11 | DI8: 111t | DJ8: 0.01 | DK8: 1 | DL8: 1t | DM8: 0.01 | DN8: 1 | DO8: 1t | DP8: 0.33 | DQ8: 3 | DR8: 33t
A9: 9 | B9: Amherst | C9: 0.412 | D9: 0.5454545455 | E9: 0.5526315789 | F9: 0.5882352941 | G9: 0.5 | H9: 0.4473684211 | I9: 0.5882352941 | J9: 0.5454545455 | K9: 0.6052631579 | L9: 0.1428571429 | M9: 0.3333333333 | N9: 0.1666666667 | O9: 0.7466666667 | P9: 0.8028169014 | Q9: 0.8444444444 | R9: 0.8260869565 | S9: 0.8947368421 | T9: 0.84375 | U9: 0.8823529412 | V9: 1 | W9: 0.625 | X9: 2.285714286 | Y9: 2.571428571 | Z9: 2.714285714 | AA9: 98 | AB9: 41t | AC9: 37 | AD9: 46 | AE9: 61t | AF9: 75 | AG9: 82 | AH9: 84t | AI9: 45 | AJ9: 47t | AK9: 38t | AL9: 47t | AM9: 100 | AN9: 75 | AO9: 57 | AP9: 58t | AQ9: 32 | AR9: 54t | AS9: 37t | AT9: 1t | AU9: 95t | AV9: 94t | AW9: 54t | AX9: 58t | AY9: 0.98 | AZ9: 0.98 | BA9: 98 | BB9: 0.46 | BC9: 0.5882352941 | BD9: 46 | BE9: 0.82 | BF9: 0.82 | BG9: 82 | BH9: 0.47 | BI9: 0.47 | BJ9: 47t | BK9: 1 | BL9: 1 | BM9: 100 | BN9: 0.58 | BO9: 0.8260869565 | BP9: 58t | BQ9: 0.37 | BR9: 0.8823529412 | BS9: 37t | BT9: 0.94 | BU9: 2.285714286 | BV9: 94t | BW9: 0.41 | BX9: 0.5454545455 | BY9: 41t | BZ9: 0.61 | CA9: 0.61 | CB9: 61t | CC9: 0.84 | CD9: 0.84 | CE9: 84t | CF9: 0.38 | CG9: 0.38 | CH9: 38t | CI9: 0.75 | CJ9: 0.8028169014 | CK9: 75 | CL9: 0.32 | CM9: 0.8947368421 | CN9: 32 | CO9: 0.01 | CP9: 1 | CQ9: 1t | CR9: 0.54 | CS9: 2.571428571 | CT9: 54t | CU9: 0.37 | CV9: 0.5526315789 | CW9: 37 | CX9: 0.75 | CY9: 0.75 | CZ9: 75 | DA9: 0.45 | DB9: 0.6052631579 | DC9: 45 | DD9: 0.47 | DE9: 0.47 | DF9: 47t | DG9: 0.57 | DH9: 0.8444444444 | DI9: 57 | DJ9: 0.54 | DK9: 0.84375 | DL9: 54t | DM9: 0.95 | DN9: 0.95 | DO9: 95t | DP9: 0.58 | DQ9: 2.714285714 | DR9: 58t
A10: 11 | B10: Appomattox | C10: 0.409 | D10: 0.6388888889 | E10: 0.5185185185 | F10: 0.5 | G10: 0.5 | H10: 0.4444444444 | I10: 0.5454545455 | J10: 0.6388888889 | K10: 0.4444444444 | L10: 0 | M10: 0 | N10: 0.125 | O10: 0.6229508197 | P10: 0.7540983607 | Q10: 0.8108108108 | R10: 0.875 | S10: 0.8 | T10: 0.7307692308 | U10: 0.8 | V10: 0.625 | W10: 0.9285714286 | X10: 1.714285714 | Y10: 2.285714286 | Z10: 2.142857143 | AA10: 99 | AB10: 16 | AC10: 49 | AD10: 71t | AE10: 61t | AF10: 76t | AG10: 98 | AH10: 50 | AI10: 96t | AJ10: 58t | AK10: 54t | AL10: 52 | AM10: 120 | AN10: 96 | AO10: 79 | AP10: 39t | AQ10: 63t | AR10: 95 | AS10: 63t | AT10: 98t | AU10: 25 | AV10: 120t | AW10: 82t | AX10: 102t | AY10: 0.99 | AZ10: 0.99 | BA10: 99 | BB10: 0.71 | BC10: 0.71 | BD10: 71t | BE10: 0.98 | BF10: 0.98 | BG10: 98 | BH10: 0.58 | BI10: 0.58 | BJ10: 58t | BK10: 1.2 | BL10: 1.2 | BM10: 120 | BN10: 0.39 | BO10: 0.875 | BP10: 39t | BQ10: 0.63 | BR10: 0.8 | BS10: 63t | BT10: 1.2 | BU10: 1.714285714 | BV10: 120t | BW10: 0.16 | BX10: 0.6388888889 | BY10: 16 | BZ10: 0.61 | CA10: 0.61 | CB10: 61t | CC10: 0.5 | CD10: 0.6388888889 | CE10: 50 | CF10: 0.54 | CG10: 0.54 | CH10: 54t | CI10: 0.96 | CJ10: 0.96 | CK10: 96 | CL10: 0.63 | CM10: 0.8 | CN10: 63t | CO10: 0.98 | CP10: 0.98 | CQ10: 98t | CR10: 0.82 | CS10: 2.285714286 | CT10: 82t | CU10: 0.49 | CV10: 0.5185185185 | CW10: 49 | CX10: 0.76 | CY10: 0.76 | CZ10: 76t | DA10: 0.96 | DB10: 0.96 | DC10: 96t | DD10: 0.52 | DE10: 0.52 | DF10: 52 | DG10: 0.79 | DH10: 0.8108108108 | DI10: 79 | DJ10: 0.95 | DK10: 0.95 | DL10: 95 | DM10: 0.25 | DN10: 0.9285714286 | DO10: 25 | DP10: 1.02 | DQ10: 2.142857143 | DR10: 102t
A11: 13 | B11: Arlington | C11: 0.531 | D11: 0.6206896552 | E11: 0.4561403509 | F11: 0.515625 | G11: 0.5517241379 | H11: 0.4035087719 | I11: 0.578125 | J11: 0.7586206897 | K11: 0.5087719298 | L11: 0.0303030303 | M11: 0.15 | N11: 0.2 | O11: 0.7605633803 | P11: 0.8170731707 | Q11: 0.902173913 | R11: 0.9102564103 | S11: 0.9545454545 | T11: 0.8493150685 | U11: 0.7547169811 | V11: 0.7714285714 | W11: 0.7678571429 | X11: 2.142857143 | Y11: 3 | Z11: 2.285714286 | AA11: 70 | AB11: 21 | AC11: 77 | AD11: 69 | AE11: 49 | AF11: 86 | AG11: 87 | AH11: 14 | AI11: 81 | AJ11: 56 | AK11: 49 | AL11: 45 | AM11: 91 | AN11: 67 | AO11: 19 | AP11: 26 | AQ11: 16 | AR11: 48 | AS11: 78 | AT11: 60t | AU11: 65 | AV11: 102t | AW11: 30t | AX11: 93t | AY11: 0.7 | AZ11: 0.7 | BA11: 70 | BB11: 0.69 | BC11: 0.69 | BD11: 69 | BE11: 0.87 | BF11: 0.87 | BG11: 87 | BH11: 0.56 | BI11: 0.56 | BJ11: 56 | BK11: 0.91 | BL11: 0.91 | BM11: 91 | BN11: 0.26 | BO11: 0.9102564103 | BP11: 26 | BQ11: 0.78 | BR11: 0.78 | BS11: 78 | BT11: 1.02 | BU11: 2.142857143 | BV11: 102t | BW11: 0.21 | BX11: 0.6206896552 | BY11: 21 | BZ11: 0.49 | CA11: 0.5517241379 | CB11: 49 | CC11: 0.14 | CD11: 0.7586206897 | CE11: 14 | CF11: 0.49 | CG11: 0.49 | CH11: 49 | CI11: 0.67 | CJ11: 0.8170731707 | CK11: 67 | CL11: 0.16 | CM11: 0.9545454545 | CN11: 16 | CO11: 0.6 | CP11: 0.7714285714 | CQ11: 60t | CR11: 0.3 | CS11: 3 | CT11: 30t | CU11: 0.77 | CV11: 0.77 | CW11: 77 | CX11: 0.86 | CY11: 0.86 | CZ11: 86 | DA11: 0.81 | DB11: 0.81 | DC11: 81 | DD11: 0.45 | DE11: 0.45 | DF11: 45 | DG11: 0.19 | DH11: 0.902173913 | DI11: 19 | DJ11: 0.48 | DK11: 0.8493150685 | DL11: 48 | DM11: 0.65 | DN11: 0.7678571429 | DO11: 65 | DP11: 0.93 | DQ11: 2.285714286 | DR11: 93t
A12: 15 | B12: Augusta | C12: 0.556 | D12: 0.6041666667 | E12: 0.4666666667 | F12: 0.6086956522 | G12: 0.3541666667 | H12: 0.5 | I12: 0.652173913 | J12: 0.5208333333 | K12: 0.7222222222 | L12: 1 | M12: 1 | N12: 1 | O12: 0.8786407767 | P12: 0.8780487805 | Q12: 0.8918918919 | R12: 0 | S12: 0.75 | T12: 0 | U12: 0.6666666667 | V12: 0.8333333333 | W12: 1 | X12: 3.285714286 | Y12: 2.571428571 | Z12: 3.571428571 | AA12: 62t | AB12: 25 | AC12: 66t | AD12: 40 | AE12: 106 | AF12: 50t | AG12: 54 | AH12: 91 | AI12: 20 | AJ12: 1t | AK12: 1t | AL12: 1t | AM12: 34 | AN12: 33 | AO12: 25 | AP12: 126t | AQ12: 88t | AR12: 126t | AS12: 93t | AT12: 41t | AU12: 1t | AV12: 21t | AW12: 54t | AX12: 5t | AY12: 0.62 | AZ12: 0.62 | BA12: 62t | BB12: 0.4 | BC12: 0.6086956522 | BD12: 40 | BE12: 0.54 | BF12: 0.652173913 | BG12: 54 | BH12: 0.01 | BI12: 1 | BJ12: 1t | BK12: 0.34 | BL12: 0.8786407767 | BM12: 34 | BN12: 1.26 | BO12: 1.26 | BP12: 126t | BQ12: 0.93 | BR12: 0.93 | BS12: 93t | BT12: 0.21 | BU12: 3.285714286 | BV12: 21t | BW12: 0.25 | BX12: 0.6041666667 | BY12: 25 | BZ12: 1.06 | CA12: 1.06 | CB12: 106 | CC12: 0.91 | CD12: 0.91 | CE12: 91 | CF12: 0.01 | CG12: 1 | CH12: 1t | CI12: 0.33 | CJ12: 0.8780487805 | CK12: 33 | CL12: 0.88 | CM12: 0.88 | CN12: 88t | CO12: 0.41 | CP12: 0.8333333333 | CQ12: 41t | CR12: 0.54 | CS12: 2.571428571 | CT12: 54t | CU12: 0.66 | CV12: 0.66 | CW12: 66t | CX12: 0.5 | CY12: 0.5 | CZ12: 50t | DA12: 0.2 | DB12: 0.7222222222 | DC12: 20 | DD12: 0.01 | DE12: 1 | DF12: 1t | DG12: 0.25 | DH12: 0.8918918919 | DI12: 25 | DJ12: 1.26 | DK12: 1.26 | DL12: 126t | DM12: 0.01 | DN12: 1 | DO12: 1t | DP12: 0.05 | DQ12: 3.571428571 | DR12: 5t
A13: 17 | B13: Bath | C13: 1 | D13: 0 | E13: 0 | F13: 1 | G13: 1 | H13: 0 | I13: 1 | J13: 1 | K13: 1 | O13: 0.8 | P13: 0.75 | Q13: 0.8 | U13: 1 | X13: 3.6 | Y13: 2.5 | Z13: 1.75 | AA13: 1t | AB13: 123t | AC13: 124t | AD13: 1t | AE13: 1t | AF13: 126t | AG13: 1t | AH13: 1t | AI13: 1t | AM13: 73t | AN13: 97t | AO13: 83t | AS13: 1t | AV13: 8t | AW13: 70t | AX13: 122 | AY13: 0.01 | AZ13: 1 | BA13: 1t | BB13: 0.01 | BC13: 1 | BD13: 1t | BE13: 0.01 | BF13: 1 | BG13: 1t | BK13: 0.73 | BL13: 0.8 | BM13: 73t | BN13: 0 | BQ13: 0.01 | BR13: 1 | BS13: 1t | BT13: 0.08 | BU13: 3.6 | BV13: 8t | BW13: 1.23 | BX13: 1.23 | BY13: 123t | BZ13: 0.01 | CA13: 1 | CB13: 1t | CC13: 0.01 | CD13: 1 | CE13: 1t | CI13: 0.97 | CJ13: 0.97 | CK13: 97t | CO13: 0 | CR13: 0.7 | CS13: 2.5 | CT13: 70t | CU13: 1.24 | CV13: 1.24 | CW13: 124t | CX13: 1.26 | CY13: 1.26 | CZ13: 126t | DA13: 0.01 | DB13: 1 | DC13: 1t | DG13: 0.83 | DH13: 0.83 | DI13: 83t | DJ13: 0 | DM13: 0 | DP13: 1.22 | DQ13: 1.75 | DR13: 122
A14: 19 | B14: Bedford | C14: 0.468 | D14: 0.484375 | E14: 0.5432098765 | F14: 0.5967741935 | G14: 0.515625 | H14: 0.5555555556 | I14: 0.5967741935 | J14: 0.703125 | K14: 0.6666666667 | L14: 0 | M14: 0 | N14: 0 | O14: 0.7666666667 | P14: 0.7326203209 | Q14: 0.7678571429 | R14: 0.6379310345 | S14: 0.661971831 | T14: 0.7 | U14: 0.8846153846 | V14: 0.7222222222 | W14: 0.6923076923 | X14: 2.142857143 | Y14: 2.142857143 | Z14: 2.571428571 | AA14: 88 | AB14: 73 | AC14: 40 | AD14: 45 | AE14: 58 | AF14: 41t | AG14: 79 | AH14: 24 | AI14: 30t | AJ14: 58t | AK14: 54t | AL14: 57t | AM14: 88 | AN14: 105 | AO14: 103 | AP14: 102 | AQ14: 109 | AR14: 99 | AS14: 36 | AT14: 74 | AU14: 84t | AV14: 102t | AW14: 99t | AX14: 68t | AY14: 0.88 | AZ14: 0.88 | BA14: 88 | BB14: 0.45 | BC14: 0.5967741935 | BD14: 45 | BE14: 0.79 | BF14: 0.79 | BG14: 79 | BH14: 0.58 | BI14: 0.58 | BJ14: 58t | BK14: 0.88 | BL14: 0.88 | BM14: 88 | BN14: 1.02 | BO14: 1.02 | BP14: 102 | BQ14: 0.36 | BR14: 0.8846153846 | BS14: 36 | BT14: 1.02 | BU14: 2.142857143 | BV14: 102t | BW14: 0.73 | BX14: 0.73 | BY14: 73 | BZ14: 0.58 | CA14: 0.58 | CB14: 58 | CC14: 0.24 | CD14: 0.703125 | CE14: 24 | CF14: 0.54 | CG14: 0.54 | CH14: 54t | CI14: 1.05 | CJ14: 1.05 | CK14: 105 | CL14: 1.09 | CM14: 1.09 | CN14: 109 | CO14: 0.74 | CP14: 0.74 | CQ14: 74 | CR14: 0.99 | CS14: 2.142857143 | CT14: 99t | CU14: 0.4 | CV14: 0.5432098765 | CW14: 40 | CX14: 0.41 | CY14: 0.5555555556 | CZ14: 41t | DA14: 0.3 | DB14: 0.6666666667 | DC14: 30t | DD14: 0.57 | DE14: 0.57 | DF14: 57t | DG14: 1.03 | DH14: 1.03 | DI14: 103 | DJ14: 0.99 | DK14: 0.99 | DL14: 99 | DM14: 0.84 | DN14: 0.84 | DO14: 84t | DP14: 0.68 | DQ14: 2.571428571 | DR14: 68t
A15: 21 | B15: Bland | D15: 0.3333333333 | E15: 0 | G15: 0.3333333333 | H15: 1 | J15: 0.3333333333 | K15: 0 | O15: 0.8947368421 | P15: 0.8125 | Q15: 0.9166666667 | R15: 0.8333333333 | S15: 1 | T15: 0.8888888889 | U15: 0.9090909091 | W15: 1 | X15: 3.666666667 | Y15: 1.8 | Z15: 3 | AB15: 104t | AC15: 124t | AE15: 109t | AF15: 1t | AH15: 120t | AI15: 126t | AM15: 26 | AN15: 69t | AO15: 16 | AP15: 55t | AQ15: 1t | AR15: 30t | AS15: 28t | AU15: 1t | AV15: 3t | AW15: 118 | AX15: 33t | AY15: 0 | BA15: 0 | BB15: 0 | BD15: 0 | BE15: 0 | BG15: 0 | BK15: 0.26 | BL15: 0.8947368421 | BM15: 26 | BN15: 0.55 | BO15: 0.8333333333 | BP15: 55t | BQ15: 0.28 | BR15: 0.9090909091 | BS15: 28t | BT15: 0.03 | BU15: 3.666666667 | BV15: 3t | BW15: 1.04 | BX15: 1.04 | BY15: 104t | BZ15: 1.09 | CA15: 1.09 | CB15: 109t | CC15: 1.2 | CD15: 1.2 | CE15: 120t | CI15: 0.69 | CJ15: 0.8125 | CK15: 69t | CL15: 0.01 | CM15: 1 | CN15: 1t | CO15: 0 | CR15: 1.18 | CS15: 1.8 | CT15: 118 | CU15: 1.24 | CV15: 1.24 | CW15: 124t | CX15: 0.01 | CY15: 1 | CZ15: 1t | DA15: 1.26 | DB15: 1.26 | DC15: 126t | DG15: 0.16 | DH15: 0.9166666667 | DI15: 16 | DJ15: 0.3 | DK15: 0.8888888889 | DL15: 30t | DM15: 0.01 | DN15: 1 | DO15: 1t | DP15: 0.33 | DQ15: 3 | DR15: 33t
A16: 23 | B16: Botetourt | C16: 0.4 | D16: 0.6666666667 | E16: 0.4666666667 | F16: 0.5 | G16: 0.6666666667 | H16: 0.4 | I16: 0.7 | J16: 0.5833333333 | K16: 0.6 | L16: 0.6666666667 | M16: 1 | N16: 0.1666666667 | O16: 0.7111111111 | P16: 0.8333333333 | Q16: 0.7872340426 | R16: 1 | S16: 1 | T16: 0.375 | W16: 0.8 | X16: 2.666666667 | Y16: 3.333333333 | Z16: 2 | AA16: 100t | AB16: 10t | AC16: 66t | AD16: 71t | AE16: 24t | AF16: 87t | AG16: 38t | AH16: 78t | AI16: 49t | AJ16: 22t | AK16: 1t | AL16: 47t | AM16: 107 | AN16: 57t | AO16: 94t | AP16: 1t | AQ16: 1t | AR16: 124 | AU16: 55t | AV16: 68t | AW16: 13t | AX16: 107t | AY16: 1 | AZ16: 1 | BA16: 100t | BB16: 0.71 | BC16: 0.71 | BD16: 71t | BE16: 0.38 | BF16: 0.7 | BG16: 38t | BH16: 0.22 | BI16: 0.6666666667 | BJ16: 22t | BK16: 1.07 | BL16: 1.07 | BM16: 107 | BN16: 0.01 | BO16: 1 | BP16: 1t | BT16: 0.68 | BU16: 2.666666667 | BV16: 68t | BW16: 0.1 | BX16: 0.6666666667 | BY16: 10t | BZ16: 0.24 | CA16: 0.6666666667 | CB16: 24t | CC16: 0.78 | CD16: 0.78 | CE16: 78t | CF16: 0.01 | CG16: 1 | CH16: 1t | CI16: 0.57 | CJ16: 0.8333333333 | CK16: 57t | CL16: 0.01 | CM16: 1 | CN16: 1t | CO16: 0 | CR16: 0.13 | CS16: 3.333333333 | CT16: 13t | CU16: 0.66 | CV16: 0.66 | CW16: 66t | CX16: 0.87 | CY16: 0.87 | CZ16: 87t | DA16: 0.49 | DB16: 0.6 | DC16: 49t | DD16: 0.47 | DE16: 0.47 | DF16: 47t | DG16: 0.94 | DH16: 0.94 | DI16: 94t | DJ16: 1.24 | DK16: 1.24 | DL16: 124 | DM16: 0.55 | DN16: 0.8 | DO16: 55t | DP16: 1.07 | DQ16: 2 | DR16: 107t
A17: 520 | B17: Bristol | C17: 0.857 | D17: 0.4210526316 | E17: 0.6 | F17: 0.5714285714 | G17: 0.5263157895 | H17: 0.3333333333 | I17: 0.7142857143 | J17: 0.5789473684 | K17: 0.5333333333 | L17: 0.07692307692 | M17: 0.1304347826 | N17: 0.05263157895 | O17: 0.6989247312 | P17: 0.6931818182 | Q17: 0.7272727273 | R17: 0.7068965517 | S17: 0.7735849057 | T17: 0.7547169811 | U17: 0.8333333333 | V17: 0.7083333333 | W17: 0.64 | X17: 2.714285714 | Y17: 1.714285714 | Z17: 1.857142857 | AA17: 12 | AB17: 93t | AC17: 20t | AD17: 50t | AE17: 56 | AF17: 105t | AG17: 35t | AH17: 80 | AI17: 71 | AJ17: 52t | AK17: 50 | AL17: 56 | AM17: 110 | AN17: 115 | AO17: 119t | AP17: 92 | AQ17: 80 | AR17: 90 | AS17: 53t | AT17: 78 | AU17: 94 | AV17: 59t | AW17: 119t | AX17: 114t | AY17: 0.12 | AZ17: 0.857 | BA17: 12 | BB17: 0.5 | BC17: 0.5714285714 | BD17: 50t | BE17: 0.35 | BF17: 0.7142857143 | BG17: 35t | BH17: 0.52 | BI17: 0.52 | BJ17: 52t | BK17: 1.1 | BL17: 1.1 | BM17: 110 | BN17: 0.92 | BO17: 0.92 | BP17: 92 | BQ17: 0.53 | BR17: 0.8333333333 | BS17: 53t | BT17: 0.59 | BU17: 2.714285714 | BV17: 59t | BW17: 0.93 | BX17: 0.93 | BY17: 93t | BZ17: 0.56 | CA17: 0.56 | CB17: 56 | CC17: 0.8 | CD17: 0.8 | CE17: 80 | CF17: 0.5 | CG17: 0.5 | CH17: 50 | CI17: 1.15 | CJ17: 1.15 | CK17: 115 | CL17: 0.8 | CM17: 0.8 | CN17: 80 | CO17: 0.78 | CP17: 0.78 | CQ17: 78 | CR17: 1.19 | CS17: 1.714285714 | CT17: 119t | CU17: 0.2 | CV17: 0.6 | CW17: 20t | CX17: 1.05 | CY17: 1.05 | CZ17: 105t | DA17: 0.71 | DB17: 0.71 | DC17: 71 | DD17: 0.56 | DE17: 0.56 | DF17: 56 | DG17: 1.19 | DH17: 1.19 | DI17: 119t | DJ17: 0.9 | DK17: 0.9 | DL17: 90 | DM17: 0.94 | DN17: 0.94 | DO17: 94 | DP17: 1.14 | DQ17: 1.857142857 | DR17: 114t
A18: 25 | B18: Brunswick | C18: 1 | D18: 0.75 | E18: 0.75 | F18: 1 | G18: 0.5 | H18: 0.875 | I18: 1 | J18: 0.5 | K18: 0.625 | O18: 0.64 | P18: 0.6818181818 | Q18: 0.7272727273 | R18: 0.8333333333 | S18: 0.8333333333 | T18: 0.5 | X18: 3.2 | Y18: 2.2 | Z18: 3 | AA18: 1t | AB18: 7t | AC18: 8t | AD18: 1t | AE18: 61t | AF18: 7 | AG18: 1t | AH18: 94t | AI18: 41t | AM18: 119 | AN18: 119 | AO18: 119t | AP18: 55t | AQ18: 52t | AR18: 117t | AV18: 24 | AW18: 91t | AX18: 33t | AY18: 0.01 | AZ18: 1 | BA18: 1t | BB18: 0.01 | BC18: 1 | BD18: 1t | BE18: 0.01 | BF18: 1 | BG18: 1t | BK18: 1.19 | BL18: 1.19 | BM18: 119 | BN18: 0.55 | BO18: 0.8333333333 | BP18: 55t | BT18: 0.24 | BU18: 3.2 | BV18: 24 | BW18: 0.07 | BX18: 0.75 | BY18: 7t | BZ18: 0.61 | CA18: 0.61 | CB18: 61t | CC18: 0.94 | CD18: 0.94 | CE18: 94t | CI18: 1.19 | CJ18: 1.19 | CK18: 119 | CL18: 0.52 | CM18: 0.8333333333 | CN18: 52t | CO18: 0 | CR18: 0.91 | CS18: 2.2 | CT18: 91t | CU18: 0.08 | CV18: 0.75 | CW18: 8t | CX18: 0.07 | CY18: 0.875 | CZ18: 7 | DA18: 0.41 | DB18: 0.625 | DC18: 41t | DG18: 1.19 | DH18: 1.19 | DI18: 119t | DJ18: 1.17 | DK18: 1.17 | DL18: 117t | DM18: 0 | DP18: 0.33 | DQ18: 3 | DR18: 33t
A19: 27 | B19: Buchanan | C19: 0.6 | D19: 0.55 | E19: 0.5294117647 | F19: 0.7333333333 | G19: 0.4 | H19: 0.4 | I19: 0.8666666667 | J19: 0.75 | K19: 0.6 | L19: 0 | M19: 0 | N19: 0 | O19: 0.6153846154 | P19: 0.7254901961 | Q19: 0.7872340426 | R19: 0.7424242424 | S19: 0.7173913043 | T19: 0.64 | U19: 0.8974358974 | V19: 0.9285714286 | W19: 0.8 | X19: 2.857142857 | Y19: 2.428571429 | Z19: 2.142857143 | AA19: 42t | AB19: 39 | AC19: 45 | AD19: 24 | AE19: 94t | AF19: 87t | AG19: 16 | AH19: 15t | AI19: 49t | AJ19: 58t | AK19: 54t | AL19: 57t | AM19: 122 | AN19: 109 | AO19: 94t | AP19: 86 | AQ19: 95 | AR19: 111 | AS19: 32 | AT19: 13 | AU19: 55t | AV19: 45t | AW19: 73t | AX19: 102t | AY19: 0.42 | AZ19: 0.6 | BA19: 42t | BB19: 0.24 | BC19: 0.7333333333 | BD19: 24 | BE19: 0.16 | BF19: 0.8666666667 | BG19: 16 | BH19: 0.58 | BI19: 0.58 | BJ19: 58t | BK19: 1.22 | BL19: 1.22 | BM19: 122 | BN19: 0.86 | BO19: 0.86 | BP19: 86 | BQ19: 0.32 | BR19: 0.8974358974 | BS19: 32 | BT19: 0.45 | BU19: 2.857142857 | BV19: 45t | BW19: 0.39 | BX19: 0.55 | BY19: 39 | BZ19: 0.94 | CA19: 0.94 | CB19: 94t | CC19: 0.15 | CD19: 0.75 | CE19: 15t | CF19: 0.54 | CG19: 0.54 | CH19: 54t | CI19: 1.09 | CJ19: 1.09 | CK19: 109 | CL19: 0.95 | CM19: 0.95 | CN19: 95 | CO19: 0.13 | CP19: 0.9285714286 | CQ19: 13 | CR19: 0.73 | CS19: 2.428571429 | CT19: 73t | CU19: 0.45 | CV19: 0.5294117647 | CW19: 45 | CX19: 0.87 | CY19: 0.87 | CZ19: 87t | DA19: 0.49 | DB19: 0.6 | DC19: 49t | DD19: 0.57 | DE19: 0.57 | DF19: 57t | DG19: 0.94 | DH19: 0.94 | DI19: 94t | DJ19: 1.11 | DK19: 1.11 | DL19: 111 | DM19: 0.55 | DN19: 0.8 | DO19: 55t | DP19: 1.02 | DQ19: 2.142857143 | DR19: 102t
A20: 29 | B20: Buckingham | C20: 0.333 | D20: 0.52 | E20: 0.6666666667 | F20: 0.6666666667 | G20: 0.56 | H20: 0.5833333333 | I20: 0.5555555556 | J20: 0.6 | K20: 0.3333333333 | O20: 0.8648648649 | P20: 0.8970588235 | Q20: 0.9402985075 | R20: 0.6428571429 | S20: 0.8 | T20: 1 | U20: 1 | V20: 0.6666666667 | W20: 0.5 | X20: 2.5 | Y20: 3.166666667 | Z20: 3.166666667 | AA20: 111t | AB20: 54 | AC20: 12t | AD20: 30t | AE20: 45 | AF20: 35t | AG20: 93t | AH20: 64t | AI20: 114t | AM20: 42 | AN20: 20 | AO20: 7 | AP20: 101 | AQ20: 63t | AR20: 1t | AS20: 1t | AT20: 88t | AU20: 104t | AV20: 83t | AW20: 22t | AX20: 24t | AY20: 1.11 | AZ20: 1.11 | BA20: 111t | BB20: 0.3 | BC20: 0.6666666667 | BD20: 30t | BE20: 0.93 | BF20: 0.93 | BG20: 93t | BK20: 0.42 | BL20: 0.8648648649 | BM20: 42 | BN20: 1.01 | BO20: 1.01 | BP20: 101 | BQ20: 0.01 | BR20: 1 | BS20: 1t | BT20: 0.83 | BU20: 2.5 | BV20: 83t | BW20: 0.54 | BX20: 0.54 | BY20: 54 | BZ20: 0.45 | CA20: 0.56 | CB20: 45 | CC20: 0.64 | CD20: 0.64 | CE20: 64t | CI20: 0.2 | CJ20: 0.8970588235 | CK20: 20 | CL20: 0.63 | CM20: 0.8 | CN20: 63t | CO20: 0.88 | CP20: 0.88 | CQ20: 88t | CR20: 0.22 | CS20: 3.166666667 | CT20: 22t | CU20: 0.12 | CV20: 0.6666666667 | CW20: 12t | CX20: 0.35 | CY20: 0.5833333333 | CZ20: 35t | DA20: 1.14 | DB20: 1.14 | DC20: 114t | DG20: 0.07 | DH20: 0.9402985075 | DI20: 7 | DJ20: 0.01 | DK20: 1 | DL20: 1t | DM20: 1.04 | DN20: 1.04 | DO20: 104t | DP20: 0.24 | DQ20: 3.166666667 | DR20: 24t
A21: 530 | B21: Buena Vista | C21: 0.714 | D21: 0.5681818182 | E21: 0.5789473684 | F21: 0.7142857143 | G21: 0.6590909091 | H21: 0.5789473684 | I21: 0.7142857143 | J21: 0.6590909091 | K21: 0.4210526316 | L21: 0.5 | M21: 0.4285714286 | N21: 0.09090909091 | O21: 0.7592592593 | P21: 0.8181818182 | Q21: 0.8181818182 | R21: 0.5357142857 | S21: 0.7380952381 | T21: 0.8444444444 | U21: 0.7 | V21: 1 | X21: 3 | Y21: 3.285714286 | Z21: 2.666666667 | AA21: 24t | AB21: 35t | AC21: 27 | AD21: 26t | AE21: 26 | AF21: 37 | AG21: 35t | AH21: 44 | AI21: 102 | AJ21: 29t | AK21: 35 | AL21: 54 | AM21: 92t | AN21: 64t | AO21: 74t | AP21: 108t | AQ21: 90t | AR21: 51t | AS21: 89t | AT21: 1t | AV21: 34t | AW21: 18t | AX21: 65 | AY21: 0.24 | AZ21: 0.714 | BA21: 24t | BB21: 0.26 | BC21: 0.7142857143 | BD21: 26t | BE21: 0.35 | BF21: 0.7142857143 | BG21: 35t | BH21: 0.29 | BI21: 0.5 | BJ21: 29t | BK21: 0.92 | BL21: 0.92 | BM21: 92t | BN21: 1.08 | BO21: 1.08 | BP21: 108t | BQ21: 0.89 | BR21: 0.89 | BS21: 89t | BT21: 0.34 | BU21: 3 | BV21: 34t | BW21: 0.35 | BX21: 0.5681818182 | BY21: 35t | BZ21: 0.26 | CA21: 0.6590909091 | CB21: 26 | CC21: 0.44 | CD21: 0.6590909091 | CE21: 44 | CF21: 0.35 | CG21: 0.4285714286 | CH21: 35 | CI21: 0.64 | CJ21: 0.8181818182 | CK21: 64t | CL21: 0.9 | CM21: 0.9 | CN21: 90t | CO21: 0.01 | CP21: 1 | CQ21: 1t | CR21: 0.18 | CS21: 3.285714286 | CT21: 18t | CU21: 0.27 | CV21: 0.5789473684 | CW21: 27 | CX21: 0.37 | CY21: 0.5789473684 | CZ21: 37 | DA21: 1.02 | DB21: 1.02 | DC21: 102 | DD21: 0.54 | DE21: 0.54 | DF21: 54 | DG21: 0.74 | DH21: 0.8181818182 | DI21: 74t | DJ21: 0.51 | DK21: 0.8444444444 | DL21: 51t | DM21: 0 | DP21: 0.65 | DQ21: 2.666666667 | DR21: 65
A22: 31 | B22: Campbell | C22: 0.6 | D22: 0.525 | E22: 0.3620689655 | F22: 0.675 | G22: 0.475 | H22: 0.5517241379 | I22: 0.7 | J22: 0.625 | K22: 0.5344827586 | L22: 0 | M22: 0 | N22: 0 | O22: 0.8120300752 | P22: 0.8176100629 | Q22: 0.8159509202 | R22: 0.8 | S22: 0.7837837838 | T22: 0.9166666667 | U22: 0.8275862069 | V22: 0.8095238095 | W22: 0.7058823529 | X22: 3 | Y22: 2.142857143 | Z22: 2.285714286 | AA22: 42t | AB22: 51t | AC22: 105 | AD22: 29 | AE22: 79 | AF22: 43 | AG22: 38t | AH22: 56t | AI22: 70 | AJ22: 58t | AK22: 54t | AL22: 57t | AM22: 67 | AN22: 66 | AO22: 77 | AP22: 65t | AQ22: 76 | AR22: 22t | AS22: 56 | AT22: 49 | AU22: 80t | AV22: 34t | AW22: 99t | AX22: 93t | AY22: 0.42 | AZ22: 0.6 | BA22: 42t | BB22: 0.29 | BC22: 0.675 | BD22: 29 | BE22: 0.38 | BF22: 0.7 | BG22: 38t | BH22: 0.58 | BI22: 0.58 | BJ22: 58t | BK22: 0.67 | BL22: 0.8120300752 | BM22: 67 | BN22: 0.65 | BO22: 0.8 | BP22: 65t | BQ22: 0.56 | BR22: 0.8275862069 | BS22: 56 | BT22: 0.34 | BU22: 3 | BV22: 34t | BW22: 0.51 | BX22: 0.525 | BY22: 51t | BZ22: 0.79 | CA22: 0.79 | CB22: 79 | CC22: 0.56 | CD22: 0.625 | CE22: 56t | CF22: 0.54 | CG22: 0.54 | CH22: 54t | CI22: 0.66 | CJ22: 0.8176100629 | CK22: 66 | CL22: 0.76 | CM22: 0.7837837838 | CN22: 76 | CO22: 0.49 | CP22: 0.8095238095 | CQ22: 49 | CR22: 0.99 | CS22: 2.142857143 | CT22: 99t | CU22: 1.05 | CV22: 1.05 | CW22: 105 | CX22: 0.43 | CY22: 0.5517241379 | CZ22: 43 | DA22: 0.7 | DB22: 0.7 | DC22: 70 | DD22: 0.57 | DE22: 0.57 | DF22: 57t | DG22: 0.77 | DH22: 0.8159509202 | DI22: 77 | DJ22: 0.22 | DK22: 0.9166666667 | DL22: 22t | DM22: 0.8 | DN22: 0.8 | DO22: 80t | DP22: 0.93 | DQ22: 2.285714286 | DR22: 93t
A23: 33 | B23: Caroline | C23: 0.625 | D23: 0.2857142857 | E23: 0.625 | F23: 0.8125 | G23: 0.5714285714 | H23: 0.75 | I23: 0.75 | J23: 0.7142857143 | K23: 0.75 | O23: 0.875 | P23: 0.8771929825 | Q23: 0.8541666667 | R23: 0.8 | S23: 0.6470588235 | T23: 0.7142857143 | U23: 0.4285714286 | V23: 0.8125 | W23: 0.875 | X23: 3.5 | Y23: 2.833333333 | Z23: 3.5 | AA23: 38t | AB23: 115 | AC23: 17t | AD23: 14 | AE23: 42 | AF23: 12t | AG23: 27t | AH23: 22 | AI23: 12t | AM23: 36t | AN23: 36 | AO23: 52t | AP23: 65t | AQ23: 110 | AR23: 97 | AS23: 109t | AT23: 47t | AU23: 36t | AV23: 13t | AW23: 43t | AX23: 9t | AY23: 0.38 | AZ23: 0.625 | BA23: 38t | BB23: 0.14 | BC23: 0.8125 | BD23: 14 | BE23: 0.27 | BF23: 0.75 | BG23: 27t | BK23: 0.36 | BL23: 0.875 | BM23: 36t | BN23: 0.65 | BO23: 0.8 | BP23: 65t | BQ23: 1.09 | BR23: 1.09 | BS23: 109t | BT23: 0.13 | BU23: 3.5 | BV23: 13t | BW23: 1.15 | BX23: 1.15 | BY23: 115 | BZ23: 0.42 | CA23: 0.5714285714 | CB23: 42 | CC23: 0.22 | CD23: 0.7142857143 | CE23: 22 | CI23: 0.36 | CJ23: 0.8771929825 | CK23: 36 | CL23: 1.1 | CM23: 1.1 | CN23: 110 | CO23: 0.47 | CP23: 0.8125 | CQ23: 47t | CR23: 0.43 | CS23: 2.833333333 | CT23: 43t | CU23: 0.17 | CV23: 0.625 | CW23: 17t | CX23: 0.12 | CY23: 0.75 | CZ23: 12t | DA23: 0.12 | DB23: 0.75 | DC23: 12t | DG23: 0.52 | DH23: 0.8541666667 | DI23: 52t | DJ23: 0.97 | DK23: 0.97 | DL23: 97 | DM23: 0.36 | DN23: 0.875 | DO23: 36t | DP23: 0.09 | DQ23: 3.5 | DR23: 9t
A24: 35 | B24: Carroll | C24: 0.619 | D24: 0.3333333333 | E24: 0.303030303 | F24: 0.4761904762 | G24: 0.4074074074 | H24: 0.2424242424 | I24: 0.5714285714 | J24: 0.5925925926 | K24: 0.2121212121 | L24: 1 | M24: 0.5454545455 | N24: 0.375 | O24: 0.8181818182 | P24: 0.737704918 | Q24: 0.7619047619 | R24: 0.75 | S24: 0.6911764706 | T24: 0.7872340426 | U24: 0.75 | V24: 0.8 | W24: 0.6086956522 | X24: 2.428571429 | Y24: 1.857142857 | Z24: 1.285714286 | AA24: 41 | AB24: 104t | AC24: 112 | AD24: 86 | AE24: 93 | AF24: 121 | AG24: 89 | AH24: 74 | AI24: 121 | AJ24: 1t | AK24: 28 | AL24: 40 | AM24: 62t | AN24: 103 | AO24: 108t | AP24: 82t | AQ24: 104 | AR24: 82 | AS24: 79t | AT24: 51t | AU24: 98 | AV24: 86t | AW24: 112t | AX24: 130 | AY24: 0.41 | AZ24: 0.619 | BA24: 41 | BB24: 0.86 | BC24: 0.86 | BD24: 86 | BE24: 0.89 | BF24: 0.89 | BG24: 89 | BH24: 0.01 | BI24: 1 | BJ24: 1t | BK24: 0.62 | BL24: 0.8181818182 | BM24: 62t | BN24: 0.82 | BO24: 0.82 | BP24: 82t | BQ24: 0.79 | BR24: 0.79 | BS24: 79t | BT24: 0.86 | BU24: 2.428571429 | BV24: 86t | BW24: 1.04 | BX24: 1.04 | BY24: 104t | BZ24: 0.93 | CA24: 0.93 | CB24: 93 | CC24: 0.74 | CD24: 0.74 | CE24: 74 | CF24: 0.28 | CG24: 0.5454545455 | CH24: 28 | CI24: 1.03 | CJ24: 1.03 | CK24: 103 | CL24: 1.04 | CM24: 1.04 | CN24: 104 | CO24: 0.51 | CP24: 0.8 | CQ24: 51t | CR24: 1.12 | CS24: 1.857142857 | CT24: 112t | CU24: 1.12 | CV24: 1.12 | CW24: 112 | CX24: 1.21 | CY24: 1.21 | CZ24: 121 | DA24: 1.21 | DB24: 1.21 | DC24: 121 | DD24: 0.4 | DE24: 0.4 | DF24: 40 | DG24: 1.08 | DH24: 1.08 | DI24: 108t | DJ24: 0.82 | DK24: 0.82 | DL24: 82 | DM24: 0.98 | DN24: 0.98 | DO24: 98 | DP24: 1.3 | DQ24: 1.3 | DR24: 130
A25: 36 | B25: Charles City | C25: 0.333 | D25: 0.6 | E25: 0.8 | F25: 0.6666666667 | G25: 0.8 | H25: 1 | I25: 0.6666666667 | J25: 0.8 | K25: 0.8 | O25: 0.8333333333 | P25: 0.8 | Q25: 0.875 | T25: 0.6666666667 | X25: 3 | Y25: 3.5 | Z25: 3.4 | AA25: 111t | AB25: 26t | AC25: 6t | AD25: 30t | AE25: 11 | AF25: 1t | AG25: 46t | AH25: 11 | AI25: 9t | AM25: 53 | AN25: 78t | AO25: 35t | AR25: 105t | AV25: 34t | AW25: 5t | AX25: 14t | AY25: 1.11 | AZ25: 1.11 | BA25: 111t | BB25: 0.3 | BC25: 0.6666666667 | BD25: 30t | BE25: 0.46 | BF25: 0.6666666667 | BG25: 46t | BK25: 0.53 | BL25: 0.8333333333 | BM25: 53 | BN25: 0 | BT25: 0.34 | BU25: 3 | BV25: 34t | BW25: 0.26 | BX25: 0.6 | BY25: 26t | BZ25: 0.11 | CA25: 0.8 | CB25: 11 | CC25: 0.11 | CD25: 0.8 | CE25: 11 | CI25: 0.78 | CJ25: 0.8 | CK25: 78t | CO25: 0 | CR25: 0.05 | CS25: 3.5 | CT25: 5t | CU25: 0.06 | CV25: 0.8 | CW25: 6t | CX25: 0.01 | CY25: 1 | CZ25: 1t | DA25: 0.09 | DB25: 0.8 | DC25: 9t | DG25: 0.35 | DH25: 0.875 | DI25: 35t | DJ25: 1.05 | DK25: 1.05 | DL25: 105t | DM25: 0 | DP25: 0.14 | DQ25: 3.4 | DR25: 14t
A26: 37 | B26: Charlotte | C26: 0.6 | D26: 0.5 | E26: 0.3333333333 | F26: 0.4 | G26: 0.4444444444 | H26: 0.6666666667 | I26: 0.7 | J26: 0.6111111111 | K26: 0.75 | L26: 0.07692307692 | M26: 0 | O26: 0.7540983607 | P26: 0.8125 | Q26: 0.9152542373 | R26: 0.8620689655 | S26: 0.9130434783 | T26: 0.75 | U26: 1 | V26: 0.8181818182 | W26: 0.9090909091 | X26: 2.714285714 | Y26: 2.428571429 | Z26: 3.166666667 | AA26: 42t | AB26: 57t | AC26: 108t | AD26: 103t | AE26: 84t | AF26: 18t | AG26: 38t | AH26: 63 | AI26: 12t | AJ26: 52t | AK26: 54t | AM26: 96 | AN26: 69t | AO26: 18 | AP26: 45 | AQ26: 25 | AR26: 91t | AS26: 1t | AT26: 46 | AU26: 30t | AV26: 59t | AW26: 73t | AX26: 24t | AY26: 0.42 | AZ26: 0.6 | BA26: 42t | BB26: 1.03 | BC26: 1.03 | BD26: 103t | BE26: 0.38 | BF26: 0.7 | BG26: 38t | BH26: 0.52 | BI26: 0.52 | BJ26: 52t | BK26: 0.96 | BL26: 0.96 | BM26: 96 | BN26: 0.45 | BO26: 0.8620689655 | BP26: 45 | BQ26: 0.01 | BR26: 1 | BS26: 1t | BT26: 0.59 | BU26: 2.714285714 | BV26: 59t | BW26: 0.57 | BX26: 0.57 | BY26: 57t | BZ26: 0.84 | CA26: 0.84 | CB26: 84t | CC26: 0.63 | CD26: 0.63 | CE26: 63 | CF26: 0.54 | CG26: 0.54 | CH26: 54t | CI26: 0.69 | CJ26: 0.8125 | CK26: 69t | CL26: 0.25 | CM26: 0.9130434783 | CN26: 25 | CO26: 0.46 | CP26: 0.8181818182 | CQ26: 46 | CR26: 0.73 | CS26: 2.428571429 | CT26: 73t | CU26: 1.08 | CV26: 1.08 | CW26: 108t | CX26: 0.18 | CY26: 0.6666666667 | CZ26: 18t | DA26: 0.12 | DB26: 0.75 | DC26: 12t | DG26: 0.18 | DH26: 0.9152542373 | DI26: 18 | DJ26: 0.91 | DK26: 0.91 | DL26: 91t | DM26: 0.3 | DN26: 0.9090909091 | DO26: 30t | DP26: 0.24 | DQ26: 3.166666667 | DR26: 24t
A27: 540 | B27: Charlottesville | C27: 0.357 | D27: 0.4520547945 | E27: 0.375 | F27: 0.3285714286 | G27: 0.4246575342 | H27: 0.375 | I27: 0.4571428571 | J27: 0.5479452055 | K27: 0.3333333333 | L27: 0.6315789474 | M27: 0.8571428571 | N27: 1 | O27: 0.9329896907 | P27: 0.9422632794 | Q27: 0.9498607242 | R27: 0.9024390244 | S27: 0.9126984127 | T27: 0.8869565217 | U27: 0.7631578947 | V27: 0.7608695652 | W27: 0.8367346939 | X27: 2.428571429 | Y27: 2.571428571 | Z27: 2.571428571 | AA27: 110 | AB27: 84 | AC27: 100t | AD27: 112 | AE27: 89 | AF27: 93t | AG27: 109 | AH27: 83 | AI27: 114t | AJ27: 24 | AK27: 21 | AL27: 1t | AM27: 13 | AN27: 8 | AO27: 5 | AP27: 28 | AQ27: 26 | AR27: 32 | AS27: 76 | AT27: 62 | AU27: 46 | AV27: 86t | AW27: 54t | AX27: 68t | AY27: 1.1 | AZ27: 1.1 | BA27: 110 | BB27: 1.12 | BC27: 1.12 | BD27: 112 | BE27: 1.09 | BF27: 1.09 | BG27: 109 | BH27: 0.24 | BI27: 0.6315789474 | BJ27: 24 | BK27: 0.13 | BL27: 0.9329896907 | BM27: 13 | BN27: 0.28 | BO27: 0.9024390244 | BP27: 28 | BQ27: 0.76 | BR27: 0.7631578947 | BS27: 76 | BT27: 0.86 | BU27: 2.428571429 | BV27: 86t | BW27: 0.84 | BX27: 0.84 | BY27: 84 | BZ27: 0.89 | CA27: 0.89 | CB27: 89 | CC27: 0.83 | CD27: 0.83 | CE27: 83 | CF27: 0.21 | CG27: 0.8571428571 | CH27: 21 | CI27: 0.08 | CJ27: 0.9422632794 | CK27: 8 | CL27: 0.26 | CM27: 0.9126984127 | CN27: 26 | CO27: 0.62 | CP27: 0.7608695652 | CQ27: 62 | CR27: 0.54 | CS27: 2.571428571 | CT27: 54t | CU27: 1 | CV27: 1 | CW27: 100t | CX27: 0.93 | CY27: 0.93 | CZ27: 93t | DA27: 1.14 | DB27: 1.14 | DC27: 114t | DD27: 0.01 | DE27: 1 | DF27: 1t | DG27: 0.05 | DH27: 0.9498607242 | DI27: 5 | DJ27: 0.32 | DK27: 0.8869565217 | DL27: 32 | DM27: 0.46 | DN27: 0.8367346939 | DO27: 46 | DP27: 0.68 | DQ27: 2.571428571 | DR27: 68t
A28: 550 | B28: Chesapeake | C28: 0.545 | D28: 0.5961538462 | E28: 0.4444444444 | F28: 0.5757575758 | G28: 0.4615384615 | H28: 0.5 | I28: 0.6363636364 | J28: 0.5961538462 | K28: 0.6944444444 | L28: 0.1428571429 | M28: 0.5 | N28: 0.75 | O28: 0.8301886792 | P28: 0.8301886792 | Q28: 0.8827160494 | R28: 0.8615384615 | S28: 0.8507462687 | T28: 0.8474576271 | U28: 0.9285714286 | V28: 0.6818181818 | W28: 0.7142857143 | X28: 3.142857143 | Y28: 3 | Z28: 3.428571429 | AA28: 66t | AB28: 28 | AC28: 79t | AD28: 48 | AE28: 80t | AF28: 50t | AG28: 58t | AH28: 72t | AI28: 24 | AJ28: 47t | AK28: 29t | AL28: 23 | AM28: 57 | AN28: 59 | AO28: 32 | AP28: 46 | AQ28: 48 | AR28: 49 | AS28: 26 | AT28: 86 | AU28: 78t | AV28: 29t | AW28: 30t | AX28: 12t | AY28: 0.66 | AZ28: 0.66 | BA28: 66t | BB28: 0.48 | BC28: 0.5757575758 | BD28: 48 | BE28: 0.58 | BF28: 0.6363636364 | BG28: 58t | BH28: 0.47 | BI28: 0.47 | BJ28: 47t | BK28: 0.57 | BL28: 0.8301886792 | BM28: 57 | BN28: 0.46 | BO28: 0.8615384615 | BP28: 46 | BQ28: 0.26 | BR28: 0.9285714286 | BS28: 26 | BT28: 0.29 | BU28: 3.142857143 | BV28: 29t | BW28: 0.28 | BX28: 0.5961538462 | BY28: 28 | BZ28: 0.8 | CA28: 0.8 | CB28: 80t | CC28: 0.72 | CD28: 0.72 | CE28: 72t | CF28: 0.29 | CG28: 0.5 | CH28: 29t | CI28: 0.59 | CJ28: 0.8301886792 | CK28: 59 | CL28: 0.48 | CM28: 0.8507462687 | CN28: 48 | CO28: 0.86 | CP28: 0.86 | CQ28: 86 | CR28: 0.3 | CS28: 3 | CT28: 30t | CU28: 0.79 | CV28: 0.79 | CW28: 79t | CX28: 0.5 | CY28: 0.5 | CZ28: 50t | DA28: 0.24 | DB28: 0.6944444444 | DC28: 24 | DD28: 0.23 | DE28: 0.75 | DF28: 23 | DG28: 0.32 | DH28: 0.8827160494 | DI28: 32 | DJ28: 0.49 | DK28: 0.8474576271 | DL28: 49 | DM28: 0.78 | DN28: 0.78 | DO28: 78t | DP28: 0.12 | DQ28: 3.428571429 | DR28: 12t
A29: 41 | B29: Chesterfield | C29: 0.457 | D29: 0.4732142857 | E29: 0.5714285714 | F29: 0.4285714286 | G29: 0.3571428571 | H29: 0.4880952381 | I29: 0.5904761905 | J29: 0.5982142857 | K29: 0.5595238095 | L29: 0.1555555556 | M29: 0.1290322581 | N29: 0.1785714286 | O29: 0.7875354108 | P29: 0.8081395349 | Q29: 0.8192090395 | R29: 0.7628865979 | S29: 0.7524752475 | T29: 0.693877551 | U29: 0.8372093023 | V29: 0.6666666667 | W29: 0.6909090909 | X29: 1.714285714 | Y29: 1.857142857 | Z29: 2.428571429 | AA29: 90 | AB29: 76 | AC29: 28t | AD29: 99 | AE29: 105 | AF29: 65 | AG29: 81 | AH29: 71 | AI29: 63 | AJ29: 46 | AK29: 51 | AL29: 46 | AM29: 78 | AN29: 71 | AO29: 72 | AP29: 79t | AQ29: 86t | AR29: 101t | AS29: 51t | AT29: 88t | AU29: 86 | AV29: 120t | AW29: 112t | AX29: 83t | AY29: 0.9 | AZ29: 0.9 | BA29: 90 | BB29: 0.99 | BC29: 0.99 | BD29: 99 | BE29: 0.81 | BF29: 0.81 | BG29: 81 | BH29: 0.46 | BI29: 0.46 | BJ29: 46 | BK29: 0.78 | BL29: 0.7875354108 | BM29: 78 | BN29: 0.79 | BO29: 0.79 | BP29: 79t | BQ29: 0.51 | BR29: 0.8372093023 | BS29: 51t | BT29: 1.2 | BU29: 1.714285714 | BV29: 120t | BW29: 0.76 | BX29: 0.76 | BY29: 76 | BZ29: 1.05 | CA29: 1.05 | CB29: 105 | CC29: 0.71 | CD29: 0.71 | CE29: 71 | CF29: 0.51 | CG29: 0.51 | CH29: 51 | CI29: 0.71 | CJ29: 0.8081395349 | CK29: 71 | CL29: 0.86 | CM29: 0.86 | CN29: 86t | CO29: 0.88 | CP29: 0.88 | CQ29: 88t | CR29: 1.12 | CS29: 1.857142857 | CT29: 112t | CU29: 0.28 | CV29: 0.5714285714 | CW29: 28t | CX29: 0.65 | CY29: 0.65 | CZ29: 65 | DA29: 0.63 | DB29: 0.63 | DC29: 63 | DD29: 0.46 | DE29: 0.46 | DF29: 46 | DG29: 0.72 | DH29: 0.8192090395 | DI29: 72 | DJ29: 1.01 | DK29: 1.01 | DL29: 101t | DM29: 0.86 | DN29: 0.86 | DO29: 86 | DP29: 0.83 | DQ29: 2.428571429 | DR29: 83t
A30: 43 | B30: Clarke | C30: 1 | E30: 0.5714285714 | F30: 1 | H30: 0.7142857143 | I30: 0.6666666667 | K30: 0.7142857143 | N30: 1 | O30: 0.6956521739 | P30: 0.75 | Q30: 0.8421052632 | R30: 0.7272727273 | S30: 0.8 | T30: 0.5 | U30: 0.6666666667 | V30: 0.8 | W30: 0.6666666667 | X30: 2.833333333 | Y30: 2 | Z30: 3.142857143 | AA30: 1t | AC30: 28t | AD30: 1t | AF30: 15 | AG30: 46t | AI30: 21t | AL30: 1t | AM30: 111 | AN30: 97t | AO30: 61t | AP30: 88 | AQ30: 63t | AR30: 117t | AS30: 93t | AT30: 51t | AU30: 90t | AV30: 53t | AW30: 107t | AX30: 28t | AY30: 0.01 | AZ30: 1 | BA30: 1t | BB30: 0.01 | BC30: 1 | BD30: 1t | BE30: 0.46 | BF30: 0.6666666667 | BG30: 46t | BK30: 1.11 | BL30: 1.11 | BM30: 111 | BN30: 0.88 | BO30: 0.88 | BP30: 88 | BQ30: 0.93 | BR30: 0.93 | BS30: 93t | BT30: 0.53 | BU30: 2.833333333 | BV30: 53t | CC30: 0 | CE30: 0 | CI30: 0.97 | CJ30: 0.97 | CK30: 97t | CL30: 0.63 | CM30: 0.8 | CN30: 63t | CO30: 0.51 | CP30: 0.8 | CQ30: 51t | CR30: 1.07 | CS30: 2 | CT30: 107t | CU30: 0.28 | CV30: 0.5714285714 | CW30: 28t | CX30: 0.15 | CY30: 0.7142857143 | CZ30: 15 | DA30: 0.21 | DB30: 0.7142857143 | DC30: 21t | DD30: 0.01 | DE30: 1 | DF30: 1t | DG30: 0.61 | DH30: 0.8421052632 | DI30: 61t | DJ30: 1.17 | DK30: 1.17 | DL30: 117t | DM30: 0.9 | DN30: 0.9 | DO30: 90t | DP30: 0.28 | DQ30: 3.142857143 | DR30: 28t
A31: 570 | B31: Colonial Heights | C31: 0.714 | D31: 0.6111111111 | E31: 0.5 | F31: 0.7142857143 | G31: 0.7777777778 | H31: 0.3333333333 | I31: 0.619047619 | J31: 0.5 | K31: 0.6666666667 | L31: 0.25 | O31: 0.8181818182 | P31: 0.8863636364 | Q31: 0.8571428571 | R31: 0.7628865979 | S31: 0.7524752475 | T31: 0.693877551 | U31: 0.8372093023 | V31: 0.6666666667 | X31: 2.714285714 | Y31: 2.833333333 | Z31: 2.6 | AA31: 24t | AB31: 22t | AC31: 53t | AD31: 26t | AE31: 12 | AF31: 105t | AG31: 67 | AH31: 94t | AI31: 30t | AJ31: 42t | AM31: 62t | AN31: 30t | AO31: 50t | AP31: 79t | AQ31: 86t | AR31: 101t | AS31: 51t | AT31: 88t | AV31: 59t | AW31: 43t | AX31: 66t | AY31: 0.24 | AZ31: 0.714 | BA31: 24t | BB31: 0.26 | BC31: 0.7142857143 | BD31: 26t | BE31: 0.67 | BF31: 0.67 | BG31: 67 | BH31: 0.42 | BI31: 0.42 | BJ31: 42t | BK31: 0.62 | BL31: 0.8181818182 | BM31: 62t | BN31: 0.79 | BO31: 0.79 | BP31: 79t | BQ31: 0.51 | BR31: 0.8372093023 | BS31: 51t | BT31: 0.59 | BU31: 2.714285714 | BV31: 59t | BW31: 0.22 | BX31: 0.6111111111 | BY31: 22t | BZ31: 0.12 | CA31: 0.7777777778 | CB31: 12 | CC31: 0.94 | CD31: 0.94 | CE31: 94t | CI31: 0.3 | CJ31: 0.8863636364 | CK31: 30t | CL31: 0.86 | CM31: 0.86 | CN31: 86t | CO31: 0.88 | CP31: 0.88 | CQ31: 88t | CR31: 0.43 | CS31: 2.833333333 | CT31: 43t | CU31: 0.53 | CV31: 0.53 | CW31: 53t | CX31: 1.05 | CY31: 1.05 | CZ31: 105t | DA31: 0.3 | DB31: 0.6666666667 | DC31: 30t | DG31: 0.5 | DH31: 0.8571428571 | DI31: 50t | DJ31: 1.01 | DK31: 1.01 | DL31: 101t | DM31: 0 | DP31: 0.66 | DQ31: 2.6 | DR31: 66t
A32: 580 | B32: Covington | C32: 1 | D32: 0 | E32: 0.5833333333 | F32: 1 | G32: 0.5 | H32: 0.5833333333 | I32: 0 | J32: 0.5 | K32: 0.4166666667 | O32: 0.9473684211 | P32: 0.94 | Q32: 0.9183673469 | R32: 0.7692307692 | S32: 0.8 | T32: 0.8 | U32: 0.5 | V32: 0.625 | X32: 2.833333333 | Y32: 2.166666667 | Z32: 3.2 | AA32: 1t | AB32: 123t | AC32: 24t | AD32: 1t | AE32: 61t | AF32: 35t | AG32: 121t | AH32: 94t | AI32: 103t | AM32: 12 | AN32: 10 | AO32: 15 | AP32: 75t | AQ32: 63t | AR32: 76t | AS32: 105t | AT32: 98t | AV32: 53t | AW32: 95t | AX32: 23 | AY32: 0.01 | AZ32: 1 | BA32: 1t | BB32: 0.01 | BC32: 1 | BD32: 1t | BE32: 1.21 | BF32: 1.21 | BG32: 121t | BK32: 0.12 | BL32: 0.9473684211 | BM32: 12 | BN32: 0.75 | BO32: 0.7692307692 | BP32: 75t | BQ32: 1.05 | BR32: 1.05 | BS32: 105t | BT32: 0.53 | BU32: 2.833333333 | BV32: 53t | BW32: 1.23 | BX32: 1.23 | BY32: 123t | BZ32: 0.61 | CA32: 0.61 | CB32: 61t | CC32: 0.94 | CD32: 0.94 | CE32: 94t | CI32: 0.1 | CJ32: 0.94 | CK32: 10 | CL32: 0.63 | CM32: 0.8 | CN32: 63t | CO32: 0.98 | CP32: 0.98 | CQ32: 98t | CR32: 0.95 | CS32: 2.166666667 | CT32: 95t | CU32: 0.24 | CV32: 0.5833333333 | CW32: 24t | CX32: 0.35 | CY32: 0.5833333333 | CZ32: 35t | DA32: 1.03 | DB32: 1.03 | DC32: 103t | DG32: 0.15 | DH32: 0.9183673469 | DI32: 15 | DJ32: 0.76 | DK32: 0.8 | DL32: 76t | DM32: 0 | DP32: 0.23 | DQ32: 3.2 | DR32: 23
A33: 45 | B33: Craig | C33: 0.75 | D33: 0.875 | E33: 0.4814814815 | F33: 0.25 | G33: 0.625 | H33: 0.5185185185 | I33: 0.5 | J33: 0.625 | K33: 0.7407407407 | L33: 1 | M33: 1 | N33: 1 | O33: 0.9583333333 | P33: 0.8695652174 | Q33: 0.9302325581 | R33: 0.8888888889 | S33: 0.5 | T33: 0.8823529412 | U33: 1 | V33: 0.875 | W33: 1 | X33: 3.142857143 | Y33: 3.428571429 | Z33: 3.857142857 | AA33: 19t | AB33: 3 | AC33: 62t | AD33: 115t | AE33: 31t | AF33: 48 | AG33: 103t | AH33: 56t | AI33: 19 | AJ33: 1t | AK33: 1t | AL33: 1t | AM33: 8 | AN33: 42t | AO33: 8 | AP33: 35 | AQ33: 118t | AR33: 34t | AS33: 1t | AT33: 29t | AU33: 1t | AV33: 29t | AW33: 11t | AX33: 2 | AY33: 0.19 | AZ33: 0.75 | BA33: 19t | BB33: 1.15 | BC33: 1.15 | BD33: 115t | BE33: 1.03 | BF33: 1.03 | BG33: 103t | BH33: 0.01 | BI33: 1 | BJ33: 1t | BK33: 0.08 | BL33: 0.9583333333 | BM33: 8 | BN33: 0.35 | BO33: 0.8888888889 | BP33: 35 | BQ33: 0.01 | BR33: 1 | BS33: 1t | BT33: 0.29 | BU33: 3.142857143 | BV33: 29t | BW33: 0.03 | BX33: 0.875 | BY33: 3 | BZ33: 0.31 | CA33: 0.625 | CB33: 31t | CC33: 0.56 | CD33: 0.625 | CE33: 56t | CF33: 0.01 | CG33: 1 | CH33: 1t | CI33: 0.42 | CJ33: 0.8695652174 | CK33: 42t | CL33: 1.18 | CM33: 1.18 | CN33: 118t | CO33: 0.29 | CP33: 0.875 | CQ33: 29t | CR33: 0.11 | CS33: 3.428571429 | CT33: 11t | CU33: 0.62 | CV33: 0.62 | CW33: 62t | CX33: 0.48 | CY33: 0.5185185185 | CZ33: 48 | DA33: 0.19 | DB33: 0.7407407407 | DC33: 19 | DD33: 0.01 | DE33: 1 | DF33: 1t | DG33: 0.08 | DH33: 0.9302325581 | DI33: 8 | DJ33: 0.34 | DK33: 0.8823529412 | DL33: 34t | DM33: 0.01 | DN33: 1 | DO33: 1t | DP33: 0.02 | DQ33: 3.857142857 | DR33: 2
A34: 47 | B34: Culpeper | C34: 0.508 | D34: 0.4948453608 | E34: 0.4262295082 | F34: 0.5230769231 | G34: 0.5670103093 | H34: 0.4590163934 | I34: 0.6769230769 | J34: 0.618556701 | K34: 0.4918032787 | L34: 0 | M34: 0 | N34: 0 | O34: 0.8658008658 | P34: 0.8940092166 | Q34: 0.9153439153 | R34: 0.6470588235 | S34: 0.7608695652 | T34: 0.8378378378 | U34: 0.652173913 | V34: 0.5909090909 | W34: 0.7 | X34: 2.285714286 | Y34: 2.714285714 | Z34: 2.428571429 | AA34: 77 | AB34: 70 | AC34: 86 | AD34: 68 | AE34: 43 | AF34: 71 | AG34: 44 | AH34: 62 | AI34: 92 | AJ34: 58t | AK34: 54t | AL34: 57t | AM34: 41 | AN34: 25 | AO34: 17 | AP34: 100 | AQ34: 83 | AR34: 61t | AS34: 99 | AT34: 103 | AU34: 82t | AV34: 94t | AW34: 49t | AX34: 83t | AY34: 0.77 | AZ34: 0.77 | BA34: 77 | BB34: 0.68 | BC34: 0.68 | BD34: 68 | BE34: 0.44 | BF34: 0.6769230769 | BG34: 44 | BH34: 0.58 | BI34: 0.58 | BJ34: 58t | BK34: 0.41 | BL34: 0.8658008658 | BM34: 41 | BN34: 1 | BO34: 1 | BP34: 100 | BQ34: 0.99 | BR34: 0.99 | BS34: 99 | BT34: 0.94 | BU34: 2.285714286 | BV34: 94t | BW34: 0.7 | BX34: 0.7 | BY34: 70 | BZ34: 0.43 | CA34: 0.5670103093 | CB34: 43 | CC34: 0.62 | CD34: 0.62 | CE34: 62 | CF34: 0.54 | CG34: 0.54 | CH34: 54t | CI34: 0.25 | CJ34: 0.8940092166 | CK34: 25 | CL34: 0.83 | CM34: 0.83 | CN34: 83 | CO34: 1.03 | CP34: 1.03 | CQ34: 103 | CR34: 0.49 | CS34: 2.714285714 | CT34: 49t | CU34: 0.86 | CV34: 0.86 | CW34: 86 | CX34: 0.71 | CY34: 0.71 | CZ34: 71 | DA34: 0.92 | DB34: 0.92 | DC34: 92 | DD34: 0.57 | DE34: 0.57 | DF34: 57t | DG34: 0.17 | DH34: 0.9153439153 | DI34: 17 | DJ34: 0.61 | DK34: 0.8378378378 | DL34: 61t | DM34: 0.82 | DN34: 0.82 | DO34: 82t | DP34: 0.83 | DQ34: 2.428571429 | DR34: 83t
A35: 49 | B35: Cumberland | C35: 0.6 | D35: 0.2307692308 | E35: 0.25 | F35: 0.6 | G35: 0.2307692308 | H35: 0.25 | I35: 1 | J35: 0.3846153846 | K35: 0.75 | O35: 0.7857142857 | P35: 0.8484848485 | Q35: 0.8387096774 | R35: 0.5 | S35: 0.7857142857 | T35: 0.7692307692 | U35: 0.6666666667 | V35: 0.5 | W35: 0.6666666667 | X35: 3 | Y35: 1.666666667 | Z35: 2 | AA35: 42t | AB35: 120 | AC35: 116t | AD35: 41t | AE35: 122 | AF35: 116t | AG35: 1t | AH35: 116 | AI35: 12t | AM35: 81 | AN35: 49 | AO35: 66 | AP35: 112t | AQ35: 75 | AR35: 85t | AS35: 93t | AT35: 105t | AU35: 90t | AV35: 34t | AW35: 125t | AX35: 107t | AY35: 0.42 | AZ35: 0.6 | BA35: 42t | BB35: 0.41 | BC35: 0.6 | BD35: 41t | BE35: 0.01 | BF35: 1 | BG35: 1t | BK35: 0.81 | BL35: 0.81 | BM35: 81 | BN35: 1.12 | BO35: 1.12 | BP35: 112t | BQ35: 0.93 | BR35: 0.93 | BS35: 93t | BT35: 0.34 | BU35: 3 | BV35: 34t | BW35: 1.2 | BX35: 1.2 | BY35: 120 | BZ35: 1.22 | CA35: 1.22 | CB35: 122 | CC35: 1.16 | CD35: 1.16 | CE35: 116 | CI35: 0.49 | CJ35: 0.8484848485 | CK35: 49 | CL35: 0.75 | CM35: 0.7857142857 | CN35: 75 | CO35: 1.05 | CP35: 1.05 | CQ35: 105t | CR35: 1.25 | CS35: 1.666666667 | CT35: 125t | CU35: 1.16 | CV35: 1.16 | CW35: 116t | CX35: 1.16 | CY35: 1.16 | CZ35: 116t | DA35: 0.12 | DB35: 0.75 | DC35: 12t | DG35: 0.66 | DH35: 0.8387096774 | DI35: 66 | DJ35: 0.85 | DK35: 0.85 | DL35: 85t | DM35: 0.9 | DN35: 0.9 | DO35: 90t | DP35: 1.07 | DQ35: 2 | DR35: 107t
A36: 590 | B36: Danville | C36: 0.576 | D36: 0.4893617021 | E36: 0.54 | F36: 0.4576271186 | G36: 0.3617021277 | H36: 0.48 | I36: 0.5254237288 | J36: 0.4468085106 | K36: 0.52 | L36: 0.02857142857 | M36: 0 | N36: 0 | O36: 0.6875 | P36: 0.6923076923 | Q36: 0.7054794521 | R36: 0.5087719298 | S36: 0.3888888889 | T36: 0.5869565217 | U36: 1 | V36: 0.6923076923 | W36: 0.5454545455 | X36: 2 | Y36: 1.428571429 | Z36: 2.142857143 | AA36: 56 | AB36: 71 | AC36: 42 | AD36: 92 | AE36: 104 | AF36: 66 | AG36: 102 | AH36: 110 | AI36: 77 | AJ36: 57 | AK36: 54t | AL36: 57t | AM36: 114 | AN36: 116 | AO36: 123 | AP36: 111 | AQ36: 126 | AR36: 114 | AS36: 1t | AT36: 80 | AU36: 103 | AV36: 109t | AW36: 130 | AX36: 102t | AY36: 0.56 | AZ36: =IF(C36<>"",MAX(C36,AY36),"") -> 0.576 | BA36: 56 | BB36: 0.92 | BC36: =IF(F36<>"",MAX(F36,BB36),"") -> 0.92 | BD36: 92 | BE36: 1.02 | BF36: =IF(I36<>"",MAX(I36,BE36),"") -> 1.02 | BG36: 102 | BH36: 0.57 | BI36: =IF(L36<>"",MAX(L36,BH36),"") -> 0.57 | BJ36: 57 | BK36: 1.14 | BL36: =IF(O36<>"",MAX(O36,BK36),"") -> 1.14 | BM36: 114 | BN36: 1.11 | BO36: =IF(R36<>"",MAX(R36,BN36),"") -> 1.11 | BP36: 111 | BQ36: 0.01 | BR36: =IF(U36<>"",MAX(U36,BQ36),"") -> 1 | BS36: 1t | BT36: 1.09 | BU36: =IF(X36<>"",MAX(X36,BT36),"") -> 2 | BV36: 109t | BW36: 0.71 | BX36: =IF(D36<>"",MAX(D36,BW36),"") -> 0.71 | BY36: 71 | BZ36: 1.04 | CA36: =IF(G36<>"",MAX(G36,BZ36),"") -> 1.04 | CB36: 104 | CC36: 1.1 | CD36: =IF(J36<>"",MAX(J36,CC36),"") -> 1.1 | CE36: 110 | CF36: 0.54 | CG36: =IF(M36<>"",MAX(M36,CF36),"") -> 0.54 | CH36: 54t | CI36: 1.16 | CJ36: =IF(P36<>"",MAX(P36,CI36),"") -> 1.16 | CK36: 116 | CL36: 1.26 | CM36: =IF(S36<>"",MAX(S36,CL36),"") -> 1.26 | CN36: 126 | CO36: 0.8 | CP36: =IF(V36<>"",MAX(V36,CO36),"") -> 0.8 | CQ36: 80 | CR36: 1.3 | CS36: =IF(Y36<>"",MAX(Y36,CR36),"") -> 1.428571429 | CT36: 130 | CU36: 0.42 | CV36: =IF(E36<>"",MAX(E36,CU36),"") -> 0.54 | CW36: 42 | CX36: 0.66 | CY36: =IF(H36<>"",MAX(H36,CX36),"") -> 0.66 | CZ36: 66 | DA36: 0.77 | DB36: =IF(K36<>"",MAX(K36,DA36),"") -> 0.77 | DC36: 77 | DD36: 0.57 | DE36: =IF(N36<>"",MAX(N36,DD36),"") -> 0.57 | DF36: 57t | DG36: 1.23 | DH36: =IF(Q36<>"",MAX(Q36,DG36),"") -> 1.23 | DI36: 123 | DJ36: 1.14 | DK36: =IF(T36<>"",MAX(T36,DJ36),"") -> 1.14 | DL36: 114 | DM36: 1.03 | DN36: =IF(W36<>"",MAX(W36,DM36),"") -> 1.03 | DO36: 103 | DP36: 1.02 | DQ36: =IF(Z36<>"",MAX(Z36,DP36),"") -> 2.142857143 | DR36: 102t
A37: 51 | B37: Dickenson | C37: 0.5 | D37: 0.512195122 | E37: 0.5625 | F37: 0.5 | G37: 0.487804878 | H37: 0.59375 | I37: 0.7333333333 | J37: 0.5365853659 | K37: 0.6875 | L37: 0 | M37: 0 | N37: 0 | O37: 0.811965812 | P37: 0.9016393443 | Q37: 0.8383838384 | R37: 0.8039215686 | S37: 0.7575757576 | T37: 0.84375 | U37: 0.8333333333 | V37: 0.9393939394 | W37: 0.7916666667 | X37: 2.428571429 | Y37: 2.428571429 | Z37: 3 | AA37: 78t | AB37: 55 | AC37: 33t | AD37: 71t | AE37: 74 | AF37: 32 | AG37: 32 | AH37: 86 | AI37: 27 | AJ37: 58t | AK37: 54t | AL37: 57t | AM37: 68 | AN37: 18 | AO37: 67 | AP37: 64 | AQ37: 85 | AR37: 54t | AS37: 53t | AT37: 11 | AU37: 59t | AV37: 86t | AW37: 73t | AX37: 33t | AY37: 0.78 | AZ37: 0.78 | BA37: 78t | BB37: 0.71 | BC37: 0.71 | BD37: 71t | BE37: 0.32 | BF37: 0.7333333333 | BG37: 32 | BH37: 0.58 | BI37: 0.58 | BJ37: 58t | BK37: 0.68 | BL37: 0.811965812 | BM37: 68 | BN37: 0.64 | BO37: 0.8039215686 | BP37: 64 | BQ37: 0.53 | BR37: 0.8333333333 | BS37: 53t | BT37: 0.86 | BU37: 2.428571429 | BV37: 86t | BW37: 0.55 | BX37: 0.55 | BY37: 55 | BZ37: 0.74 | CA37: 0.74 | CB37: 74 | CC37: 0.86 | CD37: 0.86 | CE37: 86 | CF37: 0.54 | CG37: 0.54 | CH37: 54t | CI37: 0.18 | CJ37: 0.9016393443 | CK37: 18 | CL37: 0.85 | CM37: 0.85 | CN37: 85 | CO37: 0.11 | CP37: 0.9393939394 | CQ37: 11 | CR37: 0.73 | CS37: 2.428571429 | CT37: 73t | CU37: 0.33 | CV37: 0.5625 | CW37: 33t | CX37: 0.32 | CY37: 0.59375 | CZ37: 32 | DA37: 0.27 | DB37: 0.6875 | DC37: 27 | DD37: 0.57 | DE37: 0.57 | DF37: 57t | DG37: 0.67 | DH37: 0.8383838384 | DI37: 67 | DJ37: 0.54 | DK37: 0.84375 | DL37: 54t | DM37: 0.59 | DN37: 0.7916666667 | DO37: 59t | DP37: 0.33 | DQ37: 3 | DR37: 33t
A38: 53 | B38: Dinwiddie | C38: 0.722 | D38: 0.5294117647 | E38: 0.55 | F38: 0.5 | G38: 0.6764705882 | H38: 0.65 | I38: 0.7222222222 | J38: 0.8235294118 | K38: 0.5 | L38: 0.2857142857 | M38: 0.8888888889 | N38: 0.6363636364 | O38: 0.7592592593 | P38: 0.7887323944 | Q38: 0.8194444444 | R38: 0.8421052632 | S38: 0.7692307692 | T38: 0.9285714286 | U38: 0.875 | V38: 0.7777777778 | W38: 0.5555555556 | X38: 2.714285714 | Y38: 2.857142857 | Z38: 3 | AA38: 23 | AB38: 50 | AC38: 38 | AD38: 71t | AE38: 21 | AF38: 25 | AG38: 34 | AH38: 10 | AI38: 83t | AJ38: 39t | AK38: 20 | AL38: 28 | AM38: 92t | AN38: 84 | AO38: 71 | AP38: 53 | AQ38: 81 | AR38: 21 | AS38: 40t | AT38: 58t | AU38: 102 | AV38: 59t | AW38: 37t | AX38: 33t | AY38: 0.23 | AZ38: 0.722 | BA38: 23 | BB38: 0.71 | BC38: 0.71 | BD38: 71t | BE38: 0.34 | BF38: 0.7222222222 | BG38: 34 | BH38: 0.39 | BI38: 0.39 | BJ38: 39t | BK38: 0.92 | BL38: 0.92 | BM38: 92t | BN38: 0.53 | BO38: 0.8421052632 | BP38: 53 | BQ38: 0.4 | BR38: 0.875 | BS38: 40t | BT38: 0.59 | BU38: 2.714285714 | BV38: 59t | BW38: 0.5 | BX38: 0.5294117647 | BY38: 50 | BZ38: 0.21 | CA38: 0.6764705882 | CB38: 21 | CC38: 0.1 | CD38: 0.8235294118 | CE38: 10 | CF38: 0.2 | CG38: 0.8888888889 | CH38: 20 | CI38: 0.84 | CJ38: 0.84 | CK38: 84 | CL38: 0.81 | CM38: 0.81 | CN38: 81 | CO38: 0.58 | CP38: 0.7777777778 | CQ38: 58t | CR38: 0.37 | CS38: 2.857142857 | CT38: 37t | CU38: 0.38 | CV38: 0.55 | CW38: 38 | CX38: 0.25 | CY38: 0.65 | CZ38: 25 | DA38: 0.83 | DB38: 0.83 | DC38: 83t | DD38: 0.28 | DE38: 0.6363636364 | DF38: 28 | DG38: 0.71 | DH38: 0.8194444444 | DI38: 71 | DJ38: 0.21 | DK38: 0.9285714286 | DL38: 21 | DM38: 1.02 | DN38: 1.02 | DO38: 102 | DP38: 0.33 | DQ38: 3 | DR38: 33t
A39: 57 | B39: Essex | C39: 0.667 | D39: 0.5 | E39: 0 | F39: 0.5555555556 | G39: 0.5 | H39: 0 | I39: 0.7777777778 | J39: 0.5 | K39: 1 | L39: 0 | M39: 0.2857142857 | N39: 0.1666666667 | O39: 0.619047619 | P39: 0.725 | Q39: 0.8 | R39: 0.4666666667 | S39: 0.5384615385 | T39: 0.4545454545 | U39: 1 | V39: 1 | W39: 0.5 | X39: 2.714285714 | Y39: 2 | Z39: 1.714285714 | AA39: 30t | AB39: 57t | AC39: 124t | AD39: 58t | AE39: 61t | AF39: 126t | AG39: 21 | AH39: 94t | AI39: 1t | AJ39: 58t | AK39: 42t | AL39: 47t | AM39: 121 | AN39: 110t | AO39: 83t | AP39: 118 | AQ39: 117 | AR39: 123 | AS39: 1t | AT39: 1t | AU39: 104t | AV39: 59t | AW39: 107t | AX39: 123t | AY39: 0.3 | AZ39: 0.667 | BA39: 30t | BB39: 0.58 | BC39: 0.58 | BD39: 58t | BE39: 0.21 | BF39: 0.7777777778 | BG39: 21 | BH39: 0.58 | BI39: 0.58 | BJ39: 58t | BK39: 1.21 | BL39: 1.21 | BM39: 121 | BN39: 1.18 | BO39: 1.18 | BP39: 118 | BQ39: 0.01 | BR39: 1 | BS39: 1t | BT39: 0.59 | BU39: 2.714285714 | BV39: 59t | BW39: 0.57 | BX39: 0.57 | BY39: 57t | BZ39: 0.61 | CA39: 0.61 | CB39: 61t | CC39: 0.94 | CD39: 0.94 | CE39: 94t | CF39: 0.42 | CG39: 0.42 | CH39: 42t | CI39: 1.1 | CJ39: 1.1 | CK39: 110t | CL39: 1.17 | CM39: 1.17 | CN39: 117 | CO39: 0.01 | CP39: 1 | CQ39: 1t | CR39: 1.07 | CS39: 2 | CT39: 107t | CU39: 1.24 | CV39: 1.24 | CW39: 124t | CX39: 1.26 | CY39: 1.26 | CZ39: 126t | DA39: 0.01 | DB39: 1 | DC39: 1t | DD39: 0.47 | DE39: 0.47 | DF39: 47t | DG39: 0.83 | DH39: 0.83 | DI39: 83t | DJ39: 1.23 | DK39: 1.23 | DL39: 123 | DM39: 1.04 | DN39: 1.04 | DO39: 104t | DP39: 1.23 | DQ39: 1.714285714 | DR39: 123t
A40: 1300 | B40: Fairfax_Falls Church | C40: 0.476 | D40: 0.4401041667 | E40: 0.4043887147 | F40: 0.5411764706 | G40: 0.5442708333 | H40: 0.4043887147 | I40: 0.5705882353 | J40: 0.578125 | K40: 0.5172413793 | L40: 1 | M40: 1 | N40: 1 | O40: 0.8811188811 | P40: 0.877955759 | Q40: 0.8881789137 | R40: 0.8894736842 | S40: 0.8238636364 | T40: 0.8624338624 | U40: 0.86 | V40: 0.6981132075 | W40: 0.6790123457 | X40: 3.285714286 | Y40: 2.571428571 | Z40: 2.571428571 | AA40: 85 | AB40: 89 | AC40: 92 | AD40: 64 | AE40: 51 | AF40: 85 | AG40: 90 | AH40: 81 | AI40: 78 | AJ40: 1t | AK40: 1t | AL40: 1t | AM40: 32 | AN40: 34 | AO40: 28 | AP40: 34 | AQ40: 56 | AR40: 42 | AS40: 44 | AT40: 79 | AU40: 89 | AV40: 21t | AW40: 54t | AX40: 68t | AY40: 0.85 | AZ40: 0.85 | BA40: 85 | BB40: 0.64 | BC40: 0.64 | BD40: 64 | BE40: 0.9 | BF40: 0.9 | BG40: 90 | BH40: 0.01 | BI40: 1 | BJ40: 1t | BK40: 0.32 | BL40: 0.8811188811 | BM40: 32 | BN40: 0.34 | BO40: 0.8894736842 | BP40: 34 | BQ40: 0.44 | BR40: 0.86 | BS40: 44 | BT40: 0.21 | BU40: 3.285714286 | BV40: 21t | BW40: 0.89 | BX40: 0.89 | BY40: 89 | BZ40: 0.51 | CA40: 0.5442708333 | CB40: 51 | CC40: 0.81 | CD40: 0.81 | CE40: 81 | CF40: 0.01 | CG40: 1 | CH40: 1t | CI40: 0.34 | CJ40: 0.877955759 | CK40: 34 | CL40: 0.56 | CM40: 0.8238636364 | CN40: 56 | CO40: 0.79 | CP40: 0.79 | CQ40: 79 | CR40: 0.54 | CS40: 2.571428571 | CT40: 54t | CU40: 0.92 | CV40: 0.92 | CW40: 92 | CX40: 0.85 | CY40: 0.85 | CZ40: 85 | DA40: 0.78 | DB40: 0.78 | DC40: 78 | DD40: 0.01 | DE40: 1 | DF40: 1t | DG40: 0.28 | DH40: 0.8881789137 | DI40: 28 | DJ40: 0.42 | DK40: 0.8624338624 | DL40: 42 | DM40: 0.89 | DN40: 0.89 | DO40: 89 | DP40: 0.68 | DQ40: 2.571428571 | DR40: 68t
A41: 61 | B41: Fauquier | C41: 0.395 | D41: 0.6511627907 | E41: 0.4186046512 | F41: 0.5263157895 | G41: 0.6279069767 | H41: 0.511627907 | I41: 0.7631578947 | J41: 0.6976744186 | K41: 0.6046511628 | L41: 0 | M41: 0 | N41: 0.1538461538 | O41: 0.8936170213 | P41: 0.8606060606 | Q41: 0.8369565217 | R41: 0.8181818182 | S41: 0.6976744186 | T41: 0.7619047619 | U41: 0.975 | V41: 0.9090909091 | W41: 0.8333333333 | X41: 2.714285714 | Y41: 3.142857143 | Z41: 2.571428571 | AA41: 102 | AB41: 15 | AC41: 88t | AD41: 67 | AE41: 30 | AF41: 49 | AG41: 24 | AH41: 27t | AI41: 46t | AJ41: 58t | AK41: 54t | AL41: 50 | AM41: 27t | AN41: 45 | AO41: 68 | AP41: 61t | AQ41: 102 | AR41: 88 | AS41: 19 | AT41: 16 | AU41: 47t | AV41: 59t | AW41: 26t | AX41: 68t | AY41: 1.02 | AZ41: 1.02 | BA41: 102 | BB41: 0.67 | BC41: 0.67 | BD41: 67 | BE41: 0.24 | BF41: 0.7631578947 | BG41: 24 | BH41: 0.58 | BI41: 0.58 | BJ41: 58t | BK41: 0.27 | BL41: 0.8936170213 | BM41: 27t | BN41: 0.61 | BO41: 0.8181818182 | BP41: 61t | BQ41: 0.19 | BR41: 0.975 | BS41: 19 | BT41: 0.59 | BU41: 2.714285714 | BV41: 59t | BW41: 0.15 | BX41: 0.6511627907 | BY41: 15 | BZ41: 0.3 | CA41: 0.6279069767 | CB41: 30 | CC41: 0.27 | CD41: 0.6976744186 | CE41: 27t | CF41: 0.54 | CG41: 0.54 | CH41: 54t | CI41: 0.45 | CJ41: 0.8606060606 | CK41: 45 | CL41: 1.02 | CM41: 1.02 | CN41: 102 | CO41: 0.16 | CP41: 0.9090909091 | CQ41: 16 | CR41: 0.26 | CS41: 3.142857143 | CT41: 26t | CU41: 0.88 | CV41: 0.88 | CW41: 88t | CX41: 0.49 | CY41: 0.511627907 | CZ41: 49 | DA41: 0.46 | DB41: 0.6046511628 | DC41: 46t | DD41: 0.5 | DE41: 0.5 | DF41: 50 | DG41: 0.68 | DH41: 0.8369565217 | DI41: 68 | DJ41: 0.88 | DK41: 0.88 | DL41: 88 | DM41: 0.47 | DN41: 0.8333333333 | DO41: 47t | DP41: 0.68 | DQ41: 2.571428571 | DR41: 68t
A42: 63 | B42: Floyd | C42: 0.667 | D42: 0.6363636364 | E42: 0.4166666667 | F42: 0.5555555556 | G42: 0.4545454545 | H42: 0.5 | I42: 0.5555555556 | J42: 0.3636363636 | K42: 0.75 | N42: 0 | O42: 0.84375 | P42: 0.8285714286 | Q42: 0.7954545455 | R42: 0.8571428571 | S42: 0.8181818182 | T42: 0.619047619 | U42: 0.625 | V42: 0.5 | W42: 0.9230769231 | X42: 2.833333333 | Y42: 2.166666667 | Z42: 2.428571429 | AA42: 30t | AB42: 17t | AC42: 90 | AD42: 58t | AE42: 82 | AF42: 50t | AG42: 93t | AH42: 118t | AI42: 12t | AL42: 57t | AM42: 48 | AN42: 60 | AO42: 88 | AP42: 48 | AQ42: 57t | AR42: 112 | AS42: 101t | AT42: 105t | AU42: 26t | AV42: 53t | AW42: 95t | AX42: 83t | AY42: 0.3 | AZ42: 0.667 | BA42: 30t | BB42: 0.58 | BC42: 0.58 | BD42: 58t | BE42: 0.93 | BF42: 0.93 | BG42: 93t | BK42: 0.48 | BL42: 0.84375 | BM42: 48 | BN42: 0.48 | BO42: 0.8571428571 | BP42: 48 | BQ42: 1.01 | BR42: 1.01 | BS42: 101t | BT42: 0.53 | BU42: 2.833333333 | BV42: 53t | BW42: 0.17 | BX42: 0.6363636364 | BY42: 17t | BZ42: 0.82 | CA42: 0.82 | CB42: 82 | CC42: 1.18 | CD42: 1.18 | CE42: 118t | CI42: 0.6 | CJ42: 0.8285714286 | CK42: 60 | CL42: 0.57 | CM42: 0.8181818182 | CN42: 57t | CO42: 1.05 | CP42: 1.05 | CQ42: 105t | CR42: 0.95 | CS42: 2.166666667 | CT42: 95t | CU42: 0.9 | CV42: 0.9 | CW42: 90 | CX42: 0.5 | CY42: 0.5 | CZ42: 50t | DA42: 0.12 | DB42: 0.75 | DC42: 12t | DD42: 0.57 | DE42: 0.57 | DF42: 57t | DG42: 0.88 | DH42: 0.88 | DI42: 88 | DJ42: 1.12 | DK42: 1.12 | DL42: 112 | DM42: 0.26 | DN42: 0.9230769231 | DO42: 26t | DP42: 0.83 | DQ42: 2.428571429 | DR42: 83t
A43: 65 | B43: Fluvanna | C43: 0.469 | D43: 0.5588235294 | E43: 0.36 | F43: 0.5 | G43: 0.6470588235 | H43: 0.52 | I43: 0.5625 | J43: 0.5294117647 | K43: 0.4 | L43: 0 | M43: 0 | N43: 0 | O43: 0.781512605 | P43: 0.8412698413 | Q43: 0.8703703704 | R43: 0.75 | S43: 0.8181818182 | T43: 1 | V43: 0.6666666667 | W43: 0.8181818182 | X43: 1.5 | Y43: 2.571428571 | Z43: 2.428571429 | AA43: 87 | AB43: 37 | AC43: 106 | AD43: 71t | AE43: 27 | AF43: 47 | AG43: 92 | AH43: 87 | AI43: 106t | AJ43: 58t | AK43: 54t | AL43: 57t | AM43: 83 | AN43: 54 | AO43: 42 | AP43: 82t | AQ43: 57t | AR43: 1t | AT43: 88t | AU43: 51t | AV43: 127 | AW43: 54t | AX43: 83t | AY43: 0.87 | AZ43: 0.87 | BA43: 87 | BB43: 0.71 | BC43: 0.71 | BD43: 71t | BE43: 0.92 | BF43: 0.92 | BG43: 92 | BH43: 0.58 | BI43: 0.58 | BJ43: 58t | BK43: 0.83 | BL43: 0.83 | BM43: 83 | BN43: 0.82 | BO43: 0.82 | BP43: 82t | BT43: 1.27 | BU43: 1.5 | BV43: 127 | BW43: 0.37 | BX43: 0.5588235294 | BY43: 37 | BZ43: 0.27 | CA43: 0.6470588235 | CB43: 27 | CC43: 0.87 | CD43: 0.87 | CE43: 87 | CF43: 0.54 | CG43: 0.54 | CH43: 54t | CI43: 0.54 | CJ43: 0.8412698413 | CK43: 54 | CL43: 0.57 | CM43: 0.8181818182 | CN43: 57t | CO43: 0.88 | CP43: 0.88 | CQ43: 88t | CR43: 0.54 | CS43: 2.571428571 | CT43: 54t | CU43: 1.06 | CV43: 1.06 | CW43: 106 | CX43: 0.47 | CY43: 0.52 | CZ43: 47 | DA43: 1.06 | DB43: 1.06 | DC43: 106t | DD43: 0.57 | DE43: 0.57 | DF43: 57t | DG43: 0.42 | DH43: 0.8703703704 | DI43: 42 | DJ43: 0.01 | DK43: 1 | DL43: 1t | DM43: 0.51 | DN43: 0.8181818182 | DO43: 51t | DP43: 0.83 | DQ43: 2.428571429 | DR43: 83t
A44: 620 | B44: Franklin City | C44: 1 | D44: 0.5 | E44: 0.5 | F44: 0 | G44: 0 | H44: 1 | I44: 0 | J44: 0 | K44: 0 | L44: 0.5 | M44: 1 | N44: 0.5 | O44: 0.5 | P44: 0.5 | Q44: 0.5 | R44: 0.5 | S44: 1 | T44: 0.5 | V44: 0.8571428571 | W44: 1 | X44: 2.166666667 | Y44: 2.428571429 | Z44: 2.571428571 | AA44: 1t | AB44: 57t | AC44: 53t | AD44: 124t | AE44: 125t | AF44: 1t | AG44: 121t | AH44: 126t | AI44: 126t | AJ44: 29t | AK44: 1t | AL44: 32t | AM44: 126 | AN44: 128t | AO44: 130 | AP44: 112t | AQ44: 1t | AR44: 117t | AT44: 34t | AU44: 1t | AV44: 101 | AW44: 73t | AX44: 68t | AY44: 0.01 | AZ44: 1 | BA44: 1t | BB44: 1.24 | BC44: 1.24 | BD44: 124t | BE44: 1.21 | BF44: 1.21 | BG44: 121t | BH44: 0.29 | BI44: 0.5 | BJ44: 29t | BK44: 1.26 | BL44: 1.26 | BM44: 126 | BN44: 1.12 | BO44: 1.12 | BP44: 112t | BT44: 1.01 | BU44: 2.166666667 | BV44: 101 | BW44: 0.57 | BX44: 0.57 | BY44: 57t | BZ44: 1.25 | CA44: 1.25 | CB44: 125t | CC44: 1.26 | CD44: 1.26 | CE44: 126t | CF44: 0.01 | CG44: 1 | CH44: 1t | CI44: 1.28 | CJ44: 1.28 | CK44: 128t | CL44: 0.01 | CM44: 1 | CN44: 1t | CO44: 0.34 | CP44: 0.8571428571 | CQ44: 34t | CR44: 0.73 | CS44: 2.428571429 | CT44: 73t | CU44: 0.53 | CV44: 0.53 | CW44: 53t | CX44: 0.01 | CY44: 1 | CZ44: 1t | DA44: 1.26 | DB44: 1.26 | DC44: 126t | DD44: 0.32 | DE44: 0.5 | DF44: 32t | DG44: 1.3 | DH44: 1.3 | DI44: 130 | DJ44: 1.17 | DK44: 1.17 | DL44: 117t | DM44: 0.01 | DN44: 1 | DO44: 1t | DP44: 0.68 | DQ44: 2.571428571 | DR44: 68t
A45: 67 | B45: Franklin County | C45: 0.379 | D45: 0.4891304348 | E45: 0.4655172414 | F45: 0.3787878788 | G45: 0.5108695652 | H45: 0.4310344828 | I45: 0.5 | J45: 0.5869565217 | K45: 0.4137931034 | L45: 1 | M45: 1 | N45: 1 | O45: 0.8741496599 | P45: 0.8704225352 | Q45: 0.8424437299 | R45: 0.8450704225 | S45: 0.7590361446 | T45: 0.7865168539 | U45: 0.7777777778 | V45: 0.76 | W45: 0.78125 | X45: 2.285714286 | Y45: 2.571428571 | Z45: 2.285714286 | AA45: 106 | AB45: 72 | AC45: 70t | AD45: 107 | AE45: 59 | AF45: 81 | AG45: 103t | AH45: 77 | AI45: 105 | AJ45: 1t | AK45: 1t | AL45: 1t | AM45: 38 | AN45: 41 | AO45: 60 | AP45: 51 | AQ45: 84 | AR45: 83 | AS45: 70t | AT45: 63 | AU45: 62 | AV45: 94t | AW45: 54t | AX45: 93t | AY45: 1.06 | AZ45: 1.06 | BA45: 106 | BB45: 1.07 | BC45: 1.07 | BD45: 107 | BE45: 1.03 | BF45: 1.03 | BG45: 103t | BH45: 0.01 | BI45: 1 | BJ45: 1t | BK45: 0.38 | BL45: 0.8741496599 | BM45: 38 | BN45: 0.51 | BO45: 0.8450704225 | BP45: 51 | BQ45: 0.7 | BR45: 0.7777777778 | BS45: 70t | BT45: 0.94 | BU45: 2.285714286 | BV45: 94t | BW45: 0.72 | BX45: 0.72 | BY45: 72 | BZ45: 0.59 | CA45: 0.59 | CB45: 59 | CC45: 0.77 | CD45: 0.77 | CE45: 77 | CF45: 0.01 | CG45: 1 | CH45: 1t | CI45: 0.41 | CJ45: 0.8704225352 | CK45: 41 | CL45: 0.84 | CM45: 0.84 | CN45: 84 | CO45: 0.63 | CP45: 0.76 | CQ45: 63 | CR45: 0.54 | CS45: 2.571428571 | CT45: 54t | CU45: 0.7 | CV45: 0.7 | CW45: 70t | CX45: 0.81 | CY45: 0.81 | CZ45: 81 | DA45: 1.05 | DB45: 1.05 | DC45: 105 | DD45: 0.01 | DE45: 1 | DF45: 1t | DG45: 0.6 | DH45: 0.8424437299 | DI45: 60 | DJ45: 0.83 | DK45: 0.83 | DL45: 83 | DM45: 0.62 | DN45: 0.78125 | DO45: 62 | DP45: 0.93 | DQ45: 2.285714286 | DR45: 93t
A46: 69 | B46: Frederick | C46: 0.568 | D46: 0.3888888889 | E46: 0.4418604651 | F46: 0.7567567568 | G46: 0.4305555556 | H46: 0.3953488372 | I46: 0.7027027027 | J46: 0.4861111111 | K46: 0.6046511628 | L46: 0.1111111111 | M46: 0.4615384615 | N46: 1 | O46: 0.7391304348 | P46: 0.8157894737 | Q46: 0.8461538462 | R46: 0.7073170732 | S46: 0.7352941176 | T46: 0.7368421053 | U46: 1 | V46: 0.8333333333 | W46: 0.7307692308 | X46: 2.857142857 | Y46: 1.857142857 | Z46: 2.571428571 | AA46: 58 | AB46: 97 | AC46: 81t | AD46: 21 | AE46: 87 | AF46: 89 | AG46: 37 | AH46: 103 | AI46: 46t | AJ46: 49 | AK46: 33 | AL46: 1t | AM46: 101 | AN46: 68 | AO46: 55 | AP46: 91 | AQ46: 93 | AR46: 94 | AS46: 1t | AT46: 41t | AU46: 76 | AV46: 45t | AW46: 112t | AX46: 68t | AY46: 0.58 | AZ46: 0.58 | BA46: 58 | BB46: 0.21 | BC46: 0.7567567568 | BD46: 21 | BE46: 0.37 | BF46: 0.7027027027 | BG46: 37 | BH46: 0.49 | BI46: 0.49 | BJ46: 49 | BK46: 1.01 | BL46: 1.01 | BM46: 101 | BN46: 0.91 | BO46: 0.91 | BP46: 91 | BQ46: 0.01 | BR46: 1 | BS46: 1t | BT46: 0.45 | BU46: 2.857142857 | BV46: 45t | BW46: 0.97 | BX46: 0.97 | BY46: 97 | BZ46: 0.87 | CA46: 0.87 | CB46: 87 | CC46: 1.03 | CD46: 1.03 | CE46: 103 | CF46: 0.33 | CG46: 0.4615384615 | CH46: 33 | CI46: 0.68 | CJ46: 0.8157894737 | CK46: 68 | CL46: 0.93 | CM46: 0.93 | CN46: 93 | CO46: 0.41 | CP46: 0.8333333333 | CQ46: 41t | CR46: 1.12 | CS46: 1.857142857 | CT46: 112t | CU46: 0.81 | CV46: 0.81 | CW46: 81t | CX46: 0.89 | CY46: 0.89 | CZ46: 89 | DA46: 0.46 | DB46: 0.6046511628 | DC46: 46t | DD46: 0.01 | DE46: 1 | DF46: 1t | DG46: 0.55 | DH46: 0.8461538462 | DI46: 55 | DJ46: 0.94 | DK46: 0.94 | DL46: 94 | DM46: 0.76 | DN46: 0.76 | DO46: 76 | DP46: 0.68 | DQ46: 2.571428571 | DR46: 68t
A47: 630 | B47: Fredericksburg | C47: 0.318 | D47: 0.5714285714 | E47: 0.1666666667 | F47: 0.4545454545 | G47: 0.5428571429 | H47: 0.25 | I47: 0.7727272727 | J47: 0.7714285714 | K47: 0.3333333333 | L47: 0 | M47: 0 | N47: 0 | O47: 0.8292682927 | P47: 0.8235294118 | Q47: 0.7946428571 | R47: 0.8181818182 | S47: 0.85 | T47: 0.8372093023 | U47: 0.9230769231 | V47: 0.88 | W47: 0.9666666667 | X47: 2.428571429 | Y47: 3.142857143 | Z47: 1.857142857 | AA47: 116 | AB47: 32t | AC47: 123 | AD47: 93t | AE47: 52 | AF47: 116t | AG47: 22 | AH47: 13 | AI47: 114t | AJ47: 58t | AK47: 54t | AL47: 57t | AM47: 58t | AN47: 63 | AO47: 89 | AP47: 61t | AQ47: 49 | AR47: 64 | AS47: 27 | AT47: 27t | AU47: 23 | AV47: 86t | AW47: 26t | AX47: 114t | AY47: 1.16 | AZ47: 1.16 | BA47: 116 | BB47: 0.93 | BC47: 0.93 | BD47: 93t | BE47: 0.22 | BF47: 0.7727272727 | BG47: 22 | BH47: 0.58 | BI47: 0.58 | BJ47: 58t | BK47: 0.58 | BL47: 0.8292682927 | BM47: 58t | BN47: 0.61 | BO47: 0.8181818182 | BP47: 61t | BQ47: 0.27 | BR47: 0.9230769231 | BS47: 27 | BT47: 0.86 | BU47: 2.428571429 | BV47: 86t | BW47: 0.32 | BX47: 0.5714285714 | BY47: 32t | BZ47: 0.52 | CA47: 0.5428571429 | CB47: 52 | CC47: 0.13 | CD47: 0.7714285714 | CE47: 13 | CF47: 0.54 | CG47: 0.54 | CH47: 54t | CI47: 0.63 | CJ47: 0.8235294118 | CK47: 63 | CL47: 0.49 | CM47: 0.85 | CN47: 49 | CO47: 0.27 | CP47: 0.88 | CQ47: 27t | CR47: 0.26 | CS47: 3.142857143 | CT47: 26t | CU47: 1.23 | CV47: 1.23 | CW47: 123 | CX47: 1.16 | CY47: 1.16 | CZ47: 116t | DA47: 1.14 | DB47: 1.14 | DC47: 114t | DD47: 0.57 | DE47: 0.57 | DF47: 57t | DG47: 0.89 | DH47: 0.89 | DI47: 89 | DJ47: 0.64 | DK47: 0.8372093023 | DL47: 64 | DM47: 0.23 | DN47: 0.9666666667 | DO47: 23 | DP47: 1.14 | DQ47: 1.857142857 | DR47: 114t
A48: 640 | B48: Galax | C48: 0.267 | D48: 0.4666666667 | E48: 0.4583333333 | F48: 0.2666666667 | G48: 0.5 | H48: 0.5 | I48: 0.8 | J48: 0.6875 | K48: 0.75 | M48: 0.2857142857 | N48: 0 | O48: 0.8936170213 | P48: 0.8367346939 | Q48: 0.8227848101 | R48: 0.7777777778 | S48: 0.8 | T48: 0.8421052632 | V48: 0.6666666667 | W48: 0.75 | X48: 2.4 | Y48: 2.285714286 | Z48: 2.714285714 | AA48: 117 | AB48: 78t | AC48: 75t | AD48: 114 | AE48: 61t | AF48: 50t | AG48: 17t | AH48: 32t | AI48: 12t | AK48: 42t | AL48: 57t | AM48: 27t | AN48: 56 | AO48: 70 | AP48: 73 | AQ48: 63t | AR48: 57t | AT48: 88t | AU48: 67t | AV48: 92 | AW48: 82t | AX48: 58t | AY48: 1.17 | AZ48: 1.17 | BA48: 117 | BB48: 1.14 | BC48: 1.14 | BD48: 114 | BE48: 0.17 | BF48: 0.8 | BG48: 17t | BK48: 0.27 | BL48: 0.8936170213 | BM48: 27t | BN48: 0.73 | BO48: 0.7777777778 | BP48: 73 | BT48: 0.92 | BU48: 2.4 | BV48: 92 | BW48: 0.78 | BX48: 0.78 | BY48: 78t | BZ48: 0.61 | CA48: 0.61 | CB48: 61t | CC48: 0.32 | CD48: 0.6875 | CE48: 32t | CF48: 0.42 | CG48: 0.42 | CH48: 42t | CI48: 0.56 | CJ48: 0.8367346939 | CK48: 56 | CL48: 0.63 | CM48: 0.8 | CN48: 63t | CO48: 0.88 | CP48: 0.88 | CQ48: 88t | CR48: 0.82 | CS48: 2.285714286 | CT48: 82t | CU48: 0.75 | CV48: 0.75 | CW48: 75t | CX48: 0.5 | CY48: 0.5 | CZ48: 50t | DA48: 0.12 | DB48: 0.75 | DC48: 12t | DD48: 0.57 | DE48: 0.57 | DF48: 57t | DG48: 0.7 | DH48: 0.8227848101 | DI48: 70 | DJ48: 0.57 | DK48: 0.8421052632 | DL48: 57t | DM48: 0.67 | DN48: 0.75 | DO48: 67t | DP48: 0.58 | DQ48: 2.714285714 | DR48: 58t
A49: 71 | B49: Giles | C49: 0.514 | D49: 0.3548387097 | E49: 0.2307692308 | F49: 0.6 | G49: 0.4516129032 | H49: 0.3076923077 | I49: 0.6857142857 | J49: 0.5161290323 | K49: 0.3846153846 | L49: 0.8888888889 | M49: 0.05263157895 | N49: 0 | O49: 0.8155339806 | P49: 0.8275862069 | Q49: 0.8842105263 | R49: 0.8648648649 | S49: 0.8333333333 | T49: 0.8918918919 | U49: 0.8918918919 | V49: 0.84375 | W49: 0.8888888889 | X49: 3.428571429 | Y49: 1.714285714 | Z49: 2.285714286 | AA49: 75 | AB49: 101 | AC49: 121 | AD49: 41t | AE49: 83 | AF49: 109 | AG49: 43 | AH49: 92t | AI49: 110t | AJ49: 18 | AK49: 53 | AL49: 57t | AM49: 66 | AN49: 61 | AO49: 30 | AP49: 44 | AQ49: 52t | AR49: 29 | AS49: 33 | AT49: 37t | AU49: 32t | AV49: 17t | AW49: 119t | AX49: 93t | AY49: 0.75 | AZ49: 0.75 | BA49: 75 | BB49: 0.41 | BC49: 0.6 | BD49: 41t | BE49: 0.43 | BF49: 0.6857142857 | BG49: 43 | BH49: 0.18 | BI49: 0.8888888889 | BJ49: 18 | BK49: 0.66 | BL49: 0.8155339806 | BM49: 66 | BN49: 0.44 | BO49: 0.8648648649 | BP49: 44 | BQ49: 0.33 | BR49: 0.8918918919 | BS49: 33 | BT49: 0.17 | BU49: 3.428571429 | BV49: 17t | BW49: 1.01 | BX49: 1.01 | BY49: 101 | BZ49: 0.83 | CA49: 0.83 | CB49: 83 | CC49: 0.92 | CD49: 0.92 | CE49: 92t | CF49: 0.53 | CG49: 0.53 | CH49: 53 | CI49: 0.61 | CJ49: 0.8275862069 | CK49: 61 | CL49: 0.52 | CM49: 0.8333333333 | CN49: 52t | CO49: 0.37 | CP49: 0.84375 | CQ49: 37t | CR49: 1.19 | CS49: 1.714285714 | CT49: 119t | CU49: 1.21 | CV49: 1.21 | CW49: 121 | CX49: 1.09 | CY49: 1.09 | CZ49: 109 | DA49: 1.1 | DB49: 1.1 | DC49: 110t | DD49: 0.57 | DE49: 0.57 | DF49: 57t | DG49: 0.3 | DH49: 0.8842105263 | DI49: 30 | DJ49: 0.29 | DK49: 0.8918918919 | DL49: 29 | DM49: 0.32 | DN49: 0.8888888889 | DO49: 32t | DP49: 0.93 | DQ49: 2.285714286 | DR49: 93t
A50: 73 | B50: Gloucester | C50: 0.625 | D50: 0.45 | E50: 1 | F50: 0.25 | G50: 0.55 | H50: 1 | I50: 0.25 | J50: 0.6 | K50: 1 | M50: 0.3333333333 | N50: 0.6666666667 | O50: 0.9215686275 | P50: 0.8727272727 | Q50: 0.7894736842 | R50: 1 | S50: 0.8518518519 | T50: 0.8947368421 | U50: 0.95 | V50: 0.8333333333 | W50: 0.625 | X50: 3 | Y50: 2.857142857 | Z50: 3.285714286 | AA50: 38t | AB50: 86 | AC50: 1t | AD50: 115t | AE50: 50 | AF50: 1t | AG50: 120 | AH50: 64t | AI50: 1t | AK50: 38t | AL50: 26t | AM50: 16 | AN50: 39 | AO50: 92 | AP50: 1t | AQ50: 45 | AR50: 27 | AS50: 22 | AT50: 41t | AU50: 95t | AV50: 34t | AW50: 37t | AX50: 20t | AY50: 0.38 | AZ50: 0.625 | BA50: 38t | BB50: 1.15 | BC50: 1.15 | BD50: 115t | BE50: 1.2 | BF50: 1.2 | BG50: 120 | BK50: 0.16 | BL50: 0.9215686275 | BM50: 16 | BN50: 0.01 | BO50: 1 | BP50: 1t | BQ50: 0.22 | BR50: 0.95 | BS50: 22 | BT50: 0.34 | BU50: 3 | BV50: 34t | BW50: 0.86 | BX50: 0.86 | BY50: 86 | BZ50: 0.5 | CA50: 0.55 | CB50: 50 | CC50: 0.64 | CD50: 0.64 | CE50: 64t | CF50: 0.38 | CG50: 0.38 | CH50: 38t | CI50: 0.39 | CJ50: 0.8727272727 | CK50: 39 | CL50: 0.45 | CM50: 0.8518518519 | CN50: 45 | CO50: 0.41 | CP50: 0.8333333333 | CQ50: 41t | CR50: 0.37 | CS50: 2.857142857 | CT50: 37t | CU50: 0.01 | CV50: 1 | CW50: 1t | CX50: 0.01 | CY50: 1 | CZ50: 1t | DA50: 0.01 | DB50: 1 | DC50: 1t | DD50: 0.26 | DE50: 0.6666666667 | DF50: 26t | DG50: 0.92 | DH50: 0.92 | DI50: 92 | DJ50: 0.27 | DK50: 0.8947368421 | DL50: 27 | DM50: 0.95 | DN50: 0.95 | DO50: 95t | DP50: 0.2 | DQ50: 3.285714286 | DR50: 20t
A51: 75 | B51: Goochland | C51: 0.5 | D51: 0.4444444444 | E51: 0.3636363636 | F51: 0.25 | G51: 0.4444444444 | H51: 0.4545454545 | I51: 0 | J51: 0.6666666667 | K51: 0.6363636364 | L51: 0 | M51: 0 | O51: 0.7352941176 | P51: 0.71875 | Q51: 0.7297297297 | R51: 0.4285714286 | S51: 0.7647058824 | T51: 0.8333333333 | U51: 0.7777777778 | V51: 0.25 | W51: 0.7333333333 | X51: 1.428571429 | Y51: 1.714285714 | Z51: 2.5 | AA51: 78t | AB51: 88 | AC51: 104 | AD51: 115t | AE51: 84t | AF51: 72t | AG51: 121t | AH51: 36t | AI51: 38t | AJ51: 58t | AK51: 54t | AM51: 102 | AN51: 112 | AO51: 117t | AP51: 119 | AQ51: 82 | AR51: 66t | AS51: 70t | AT51: 114t | AU51: 74 | AV51: 128 | AW51: 119t | AX51: 79t | AY51: 0.78 | AZ51: 0.78 | BA51: 78t | BB51: 1.15 | BC51: 1.15 | BD51: 115t | BE51: 1.21 | BF51: 1.21 | BG51: 121t | BH51: 0.58 | BI51: 0.58 | BJ51: 58t | BK51: 1.02 | BL51: 1.02 | BM51: 102 | BN51: 1.19 | BO51: 1.19 | BP51: 119 | BQ51: 0.7 | BR51: 0.7777777778 | BS51: 70t | BT51: 1.28 | BU51: 1.428571429 | BV51: 128 | BW51: 0.88 | BX51: 0.88 | BY51: 88 | BZ51: 0.84 | CA51: 0.84 | CB51: 84t | CC51: 0.36 | CD51: 0.6666666667 | CE51: 36t | CF51: 0.54 | CG51: 0.54 | CH51: 54t | CI51: 1.12 | CJ51: 1.12 | CK51: 112 | CL51: 0.82 | CM51: 0.82 | CN51: 82 | CO51: 1.14 | CP51: 1.14 | CQ51: 114t | CR51: 1.19 | CS51: 1.714285714 | CT51: 119t | CU51: 1.04 | CV51: 1.04 | CW51: 104 | CX51: 0.72 | CY51: 0.72 | CZ51: 72t | DA51: 0.38 | DB51: 0.6363636364 | DC51: 38t | DG51: 1.17 | DH51: 1.17 | DI51: 117t | DJ51: 0.66 | DK51: 0.8333333333 | DL51: 66t | DM51: 0.74 | DN51: 0.74 | DO51: 74 | DP51: 0.79 | DQ51: 2.5 | DR51: 79t
A52: 77 | B52: Grayson | C52: 0.389 | D52: 0.625 | E52: 0.4444444444 | F52: 0.1666666667 | G52: 0.5 | H52: 0.4444444444 | I52: 0.5555555556 | J52: 0.625 | K52: 0.6666666667 | L52: 0.3333333333 | M52: 0.2222222222 | O52: 0.7058823529 | P52: 0.7547169811 | Q52: 0.8431372549 | R52: 0.7083333333 | S52: 0.8181818182 | T52: 0.7916666667 | U52: 1 | V52: 0.6428571429 | W52: 0.6153846154 | X52: 1.714285714 | Y52: 2.285714286 | Z52: 2.333333333 | AA52: 103 | AB52: 19t | AC52: 79t | AD52: 121 | AE52: 61t | AF52: 76t | AG52: 93t | AH52: 56t | AI52: 30t | AJ52: 35t | AK52: 47 | AM52: 108 | AN52: 95 | AO52: 58t | AP52: 90 | AQ52: 57t | AR52: 79t | AS52: 1t | AT52: 95 | AU52: 97 | AV52: 120t | AW52: 82t | AX52: 88t | AY52: 1.03 | AZ52: 1.03 | BA52: 103 | BB52: 1.21 | BC52: 1.21 | BD52: 121 | BE52: 0.93 | BF52: 0.93 | BG52: 93t | BH52: 0.35 | BI52: 0.35 | BJ52: 35t | BK52: 1.08 | BL52: 1.08 | BM52: 108 | BN52: 0.9 | BO52: 0.9 | BP52: 90 | BQ52: 0.01 | BR52: 1 | BS52: 1t | BT52: 1.2 | BU52: 1.714285714 | BV52: 120t | BW52: 0.19 | BX52: 0.625 | BY52: 19t | BZ52: 0.61 | CA52: 0.61 | CB52: 61t | CC52: 0.56 | CD52: 0.625 | CE52: 56t | CF52: 0.47 | CG52: 0.47 | CH52: 47 | CI52: 0.95 | CJ52: 0.95 | CK52: 95 | CL52: 0.57 | CM52: 0.8181818182 | CN52: 57t | CO52: 0.95 | CP52: 0.95 | CQ52: 95 | CR52: 0.82 | CS52: 2.285714286 | CT52: 82t | CU52: 0.79 | CV52: 0.79 | CW52: 79t | CX52: 0.76 | CY52: 0.76 | CZ52: 76t | DA52: 0.3 | DB52: 0.6666666667 | DC52: 30t | DG52: 0.58 | DH52: 0.8431372549 | DI52: 58t | DJ52: 0.79 | DK52: 0.7916666667 | DL52: 79t | DM52: 0.97 | DN52: 0.97 | DO52: 97 | DP52: 0.88 | DQ52: 2.333333333 | DR52: 88t
A53: 79 | B53: Greene | C53: 0.8 | D53: 0.4516129032 | E53: 0.375 | F53: 0.8 | G53: 0.2903225806 | H53: 0.375 | I53: 0.9 | J53: 0.5161290323 | K53: 0.75 | O53: 0.6764705882 | P53: 0.8181818182 | Q53: 0.8431372549 | R53: 0.5 | S53: 0.5 | T53: 0.6428571429 | U53: 0.9 | V53: 0.5 | W53: 1 | X53: 3.166666667 | Y53: 1.666666667 | Z53: 2.333333333 | AA53: 13t | AB53: 85 | AC53: 100t | AD53: 15t | AE53: 115 | AF53: 93t | AG53: 13t | AH53: 92t | AI53: 12t | AM53: 117 | AN53: 64t | AO53: 58t | AP53: 112t | AQ53: 118t | AR53: 109 | AS53: 30t | AT53: 105t | AU53: 1t | AV53: 25t | AW53: 125t | AX53: 88t | AY53: 0.13 | AZ53: 0.8 | BA53: 13t | BB53: 0.15 | BC53: 0.8 | BD53: 15t | BE53: 0.13 | BF53: 0.9 | BG53: 13t | BK53: 1.17 | BL53: 1.17 | BM53: 117 | BN53: 1.12 | BO53: 1.12 | BP53: 112t | BQ53: 0.3 | BR53: 0.9 | BS53: 30t | BT53: 0.25 | BU53: 3.166666667 | BV53: 25t | BW53: 0.85 | BX53: 0.85 | BY53: 85 | BZ53: 1.15 | CA53: 1.15 | CB53: 115 | CC53: 0.92 | CD53: 0.92 | CE53: 92t | CI53: 0.64 | CJ53: 0.8181818182 | CK53: 64t | CL53: 1.18 | CM53: 1.18 | CN53: 118t | CO53: 1.05 | CP53: 1.05 | CQ53: 105t | CR53: 1.25 | CS53: 1.666666667 | CT53: 125t | CU53: 1 | CV53: 1 | CW53: 100t | CX53: 0.93 | CY53: 0.93 | CZ53: 93t | DA53: 0.12 | DB53: 0.75 | DC53: 12t | DG53: 0.58 | DH53: 0.8431372549 | DI53: 58t | DJ53: 1.09 | DK53: 1.09 | DL53: 109 | DM53: 0.01 | DN53: 1 | DO53: 1t | DP53: 0.88 | DQ53: 2.333333333 | DR53: 88t
A54: 1200 | B54: Greensville_Emporia | C54: 0.8 | D54: 0.4545454545 | E54: 0.2857142857 | F54: 0.6 | G54: 0.6363636364 | H54: 0.1428571429 | I54: 0.6 | J54: 0.6363636364 | K54: 0.5714285714 | O54: 0.88 | P54: 0.7741935484 | Q54: 0.8181818182 | R54: 0.6666666667 | S54: 0.8181818182 | T54: 0.7692307692 | U54: 1 | V54: 0.5 | W54: 0.75 | X54: 3.333333333 | Y54: 2.5 | Z54: 1.833333333 | AA54: 13t | AB54: 80t | AC54: 115 | AD54: 41t | AE54: 28 | AF54: 124 | AG54: 74t | AH54: 51t | AI54: 56t | AM54: 33 | AN54: 89 | AO54: 74t | AP54: 96t | AQ54: 57t | AR54: 85t | AS54: 1t | AT54: 105t | AU54: 67t | AV54: 19t | AW54: 70t | AX54: 119t | AY54: 0.13 | AZ54: 0.8 | BA54: 13t | BB54: 0.41 | BC54: 0.6 | BD54: 41t | BE54: 0.74 | BF54: 0.74 | BG54: 74t | BK54: 0.33 | BL54: 0.88 | BM54: 33 | BN54: 0.96 | BO54: 0.96 | BP54: 96t | BQ54: 0.01 | BR54: 1 | BS54: 1t | BT54: 0.19 | BU54: 3.333333333 | BV54: 19t | BW54: 0.8 | BX54: 0.8 | BY54: 80t | BZ54: 0.28 | CA54: 0.6363636364 | CB54: 28 | CC54: 0.51 | CD54: 0.6363636364 | CE54: 51t | CI54: 0.89 | CJ54: 0.89 | CK54: 89 | CL54: 0.57 | CM54: 0.8181818182 | CN54: 57t | CO54: 1.05 | CP54: 1.05 | CQ54: 105t | CR54: 0.7 | CS54: 2.5 | CT54: 70t | CU54: 1.15 | CV54: 1.15 | CW54: 115 | CX54: 1.24 | CY54: 1.24 | CZ54: 124 | DA54: 0.56 | DB54: 0.5714285714 | DC54: 56t | DG54: 0.74 | DH54: 0.8181818182 | DI54: 74t | DJ54: 0.85 | DK54: 0.85 | DL54: 85t | DM54: 0.67 | DN54: 0.75 | DO54: 67t | DP54: 1.19 | DQ54: 1.833333333 | DR54: 119t
A55: 83 | B55: Halifax | C55: 0.704 | D55: 0.5333333333 | E55: 0.3043478261 | F55: 0.4814814815 | G55: 0.6 | H55: 0.5652173913 | I55: 0.7407407407 | J55: 0.6 | K55: 0.4347826087 | M55: 0 | N55: 0 | O55: 0.8604651163 | P55: 0.8024691358 | Q55: 0.75 | R55: 0.7666666667 | S55: 0.7777777778 | T55: 0.7567567568 | U55: 0.7777777778 | V55: 0.5 | W55: 0.5 | X55: 2.666666667 | Y55: 2.428571429 | Z55: 1.714285714 | AA55: 27 | AB55: 47t | AC55: 111 | AD55: 85 | AE55: 35t | AF55: 40 | AG55: 31 | AH55: 64t | AI55: 98 | AK55: 54t | AL55: 57t | AM55: 44 | AN55: 76 | AO55: 111t | AP55: 78 | AQ55: 78t | AR55: 89 | AS55: 70t | AT55: 105t | AU55: 104t | AV55: 68t | AW55: 73t | AX55: 123t | AY55: 0.27 | AZ55: 0.704 | BA55: 27 | BB55: 0.85 | BC55: 0.85 | BD55: 85 | BE55: 0.31 | BF55: 0.7407407407 | BG55: 31 | BK55: 0.44 | BL55: 0.8604651163 | BM55: 44 | BN55: 0.78 | BO55: 0.78 | BP55: 78 | BQ55: 0.7 | BR55: 0.7777777778 | BS55: 70t | BT55: 0.68 | BU55: 2.666666667 | BV55: 68t | BW55: 0.47 | BX55: 0.5333333333 | BY55: 47t | BZ55: 0.35 | CA55: 0.6 | CB55: 35t | CC55: 0.64 | CD55: 0.64 | CE55: 64t | CF55: 0.54 | CG55: 0.54 | CH55: 54t | CI55: 0.76 | CJ55: 0.8024691358 | CK55: 76 | CL55: 0.78 | CM55: 0.78 | CN55: 78t | CO55: 1.05 | CP55: 1.05 | CQ55: 105t | CR55: 0.73 | CS55: 2.428571429 | CT55: 73t | CU55: 1.11 | CV55: 1.11 | CW55: 111 | CX55: 0.4 | CY55: 0.5652173913 | CZ55: 40 | DA55: 0.98 | DB55: 0.98 | DC55: 98 | DD55: 0.57 | DE55: 0.57 | DF55: 57t | DG55: 1.11 | DH55: 1.11 | DI55: 111t | DJ55: 0.89 | DK55: 0.89 | DL55: 89 | DM55: 1.04 | DN55: 1.04 | DO55: 104t | DP55: 1.23 | DQ55: 1.714285714 | DR55: 123t
A56: 650 | B56: Hampton | C56: 0.413 | D56: 0.5309734513 | E56: 0.3291925466 | F56: 0.4876033058 | G56: 0.5221238938 | H56: 0.3229813665 | I56: 0.2892561983 | J56: 0.4513274336 | K56: 0.5279503106 | L56: 1 | M56: 1 | N56: 1 | O56: 1 | P56: 1 | Q56: 1 | R56: 0.9642857143 | S56: 1 | T56: 0.9846153846 | U56: 0.59375 | V56: 0.859375 | W56: 0.9166666667 | X56: 2.571428571 | Y56: 3.142857143 | Z56: 2.857142857 | AA56: 97 | AB56: 49 | AC56: 110 | AD56: 84 | AE56: 57 | AF56: 108 | AG56: 118 | AH56: 108 | AI56: 73 | AJ56: 1t | AK56: 1t | AL56: 1t | AM56: 1t | AN56: 1t | AO56: 1t | AP56: 13 | AQ56: 1t | AR56: 15 | AS56: 103 | AT56: 33 | AU56: 28t | AV56: 72t | AW56: 26t | AX56: 51t | AY56: 0.97 | AZ56: 0.97 | BA56: 97 | BB56: 0.84 | BC56: 0.84 | BD56: 84 | BE56: 1.18 | BF56: 1.18 | BG56: 118 | BH56: 0.01 | BI56: 1 | BJ56: 1t | BK56: 0.01 | BL56: 1 | BM56: 1t | BN56: 0.13 | BO56: 0.9642857143 | BP56: 13 | BQ56: 1.03 | BR56: 1.03 | BS56: 103 | BT56: 0.72 | BU56: 2.571428571 | BV56: 72t | BW56: 0.49 | BX56: 0.5309734513 | BY56: 49 | BZ56: 0.57 | CA56: 0.57 | CB56: 57 | CC56: 1.08 | CD56: 1.08 | CE56: 108 | CF56: 0.01 | CG56: 1 | CH56: 1t | CI56: 0.01 | CJ56: 1 | CK56: 1t | CL56: 0.01 | CM56: 1 | CN56: 1t | CO56: 0.33 | CP56: 0.859375 | CQ56: 33 | CR56: 0.26 | CS56: 3.142857143 | CT56: 26t | CU56: 1.1 | CV56: 1.1 | CW56: 110 | CX56: 1.08 | CY56: 1.08 | CZ56: 108 | DA56: 0.73 | DB56: 0.73 | DC56: 73 | DD56: 0.01 | DE56: 1 | DF56: 1t | DG56: 0.01 | DH56: 1 | DI56: 1t | DJ56: 0.15 | DK56: 0.9846153846 | DL56: 15 | DM56: 0.28 | DN56: 0.9166666667 | DO56: 28t | DP56: 0.51 | DQ56: 2.857142857 | DR56: 51t
A57: 85 | B57: Hanover | C57: 0.591 | D57: 0.5740740741 | E57: 0.5714285714 | F57: 0.4545454545 | G57: 0.537037037 | H57: 0.6 | I57: 0.6363636364 | J57: 0.6851851852 | K57: 0.6857142857 | L57: 0.7 | M57: 0.5 | N57: 0.6 | O57: 0.7868852459 | P57: 0.7348484848 | Q57: 0.6917293233 | R57: 0.6 | S57: 0.7058823529 | T57: 0.56 | U57: 0.7272727273 | V57: 0.4444444444 | W57: 0.5 | X57: 2.571428571 | Y57: 2.857142857 | Z57: 3 | AA57: 53 | AB57: 31 | AC57: 28t | AD57: 93t | AE57: 54 | AF57: 30t | AG57: 58t | AH57: 34 | AI57: 28 | AJ57: 21 | AK57: 29t | AL57: 29 | AM57: 79 | AN57: 104 | AO57: 125 | AP57: 105t | AQ57: 99 | AR57: 115 | AS57: 85 | AT57: 111 | AU57: 104t | AV57: 72t | AW57: 37t | AX57: 33t | AY57: 0.53 | AZ57: 0.591 | BA57: 53 | BB57: 0.93 | BC57: 0.93 | BD57: 93t | BE57: 0.58 | BF57: 0.6363636364 | BG57: 58t | BH57: 0.21 | BI57: 0.7 | BJ57: 21 | BK57: 0.79 | BL57: 0.79 | BM57: 79 | BN57: 1.05 | BO57: 1.05 | BP57: 105t | BQ57: 0.85 | BR57: 0.85 | BS57: 85 | BT57: 0.72 | BU57: 2.571428571 | BV57: 72t | BW57: 0.31 | BX57: 0.5740740741 | BY57: 31 | BZ57: 0.54 | CA57: 0.54 | CB57: 54 | CC57: 0.34 | CD57: 0.6851851852 | CE57: 34 | CF57: 0.29 | CG57: 0.5 | CH57: 29t | CI57: 1.04 | CJ57: 1.04 | CK57: 104 | CL57: 0.99 | CM57: 0.99 | CN57: 99 | CO57: 1.11 | CP57: 1.11 | CQ57: 111 | CR57: 0.37 | CS57: 2.857142857 | CT57: 37t | CU57: 0.28 | CV57: 0.5714285714 | CW57: 28t | CX57: 0.3 | CY57: 0.6 | CZ57: 30t | DA57: 0.28 | DB57: 0.6857142857 | DC57: 28 | DD57: 0.29 | DE57: 0.6 | DF57: 29 | DG57: 1.25 | DH57: 1.25 | DI57: 125 | DJ57: 1.15 | DK57: 1.15 | DL57: 115 | DM57: 1.04 | DN57: 1.04 | DO57: 104t | DP57: 0.33 | DQ57: 3 | DR57: 33t
A58: 660 | B58: Harrisonburg | C58: 0.379 | D58: 0.5681818182 | E58: 0.4791666667 | F58: 0.4482758621 | G58: 0.3409090909 | H58: 0.375 | I58: 0.5862068966 | J58: 0.5227272727 | K58: 0.5208333333 | L58: 0.07407407407 | M58: 0 | N58: 0 | O58: 0.8170731707 | P58: 0.8068965517 | Q58: 0.8391608392 | R58: 0.7967032967 | S58: 0.7090909091 | T58: 0.8024691358 | U58: 0.7179487179 | V58: 0.6896551724 | X58: 1.571428571 | Y58: 1.857142857 | Z58: 2 | AA58: 105 | AB58: 35t | AC58: 64 | AD58: 96 | AE58: 107 | AF58: 93t | AG58: 83t | AH58: 90 | AI58: 76 | AJ58: 54 | AK58: 54t | AL58: 57t | AM58: 65 | AN58: 73 | AO58: 65 | AP58: 67t | AQ58: 97t | AR58: 74t | AS58: 86t | AT58: 81t | AV58: 124t | AW58: 112t | AX58: 107t | AY58: 1.05 | AZ58: 1.05 | BA58: 105 | BB58: 0.96 | BC58: 0.96 | BD58: 96 | BE58: 0.83 | BF58: 0.83 | BG58: 83t | BH58: 0.54 | BI58: 0.54 | BJ58: 54 | BK58: 0.65 | BL58: 0.8170731707 | BM58: 65 | BN58: 0.67 | BO58: 0.7967032967 | BP58: 67t | BQ58: 0.86 | BR58: 0.86 | BS58: 86t | BT58: 1.24 | BU58: 1.571428571 | BV58: 124t | BW58: 0.35 | BX58: 0.5681818182 | BY58: 35t | BZ58: 1.07 | CA58: 1.07 | CB58: 107 | CC58: 0.9 | CD58: 0.9 | CE58: 90 | CF58: 0.54 | CG58: 0.54 | CH58: 54t | CI58: 0.73 | CJ58: 0.8068965517 | CK58: 73 | CL58: 0.97 | CM58: 0.97 | CN58: 97t | CO58: 0.81 | CP58: 0.81 | CQ58: 81t | CR58: 1.12 | CS58: 1.857142857 | CT58: 112t | CU58: 0.64 | CV58: 0.64 | CW58: 64 | CX58: 0.93 | CY58: 0.93 | CZ58: 93t | DA58: 0.76 | DB58: 0.76 | DC58: 76 | DD58: 0.57 | DE58: 0.57 | DF58: 57t | DG58: 0.65 | DH58: 0.8391608392 | DI58: 65 | DJ58: 0.74 | DK58: 0.8024691358 | DL58: 74t | DM58: 0 | DP58: 1.07 | DQ58: 2 | DR58: 107t
A59: 87 | B59: Henrico | C59: 0.655 | D59: 0.5948275862 | E59: 0.4814814815 | F59: 0.7363636364 | G59: 0.6206896552 | H59: 0.5 | I59: 0.6090909091 | J59: 0.6810344828 | K59: 0.5648148148 | L59: 0.619047619 | M59: 0.3448275862 | N59: 0.4411764706 | O59: 0.842377261 | P59: 0.8443877551 | Q59: 0.8684807256 | R59: 0.7623762376 | S59: 0.724137931 | T59: 0.701754386 | U59: 0.8 | V59: 0.6326530612 | W59: 0.6046511628 | X59: 3.142857143 | Y59: 2.857142857 | Z59: 2.714285714 | AA59: 35 | AB59: 29 | AC59: 62t | AD59: 23 | AE59: 33 | AF59: 50t | AG59: 71 | AH59: 35 | AI59: 61 | AJ59: 26 | AK59: 37 | AL59: 38 | AM59: 50 | AN59: 51 | AO59: 43 | AP59: 81 | AQ59: 94 | AR59: 98 | AS59: 63t | AT59: 97 | AU59: 99 | AV59: 29t | AW59: 37t | AX59: 58t | AY59: 0.35 | AZ59: 0.655 | BA59: 35 | BB59: 0.23 | BC59: 0.7363636364 | BD59: 23 | BE59: 0.71 | BF59: 0.71 | BG59: 71 | BH59: 0.26 | BI59: 0.619047619 | BJ59: 26 | BK59: 0.5 | BL59: 0.842377261 | BM59: 50 | BN59: 0.81 | BO59: 0.81 | BP59: 81 | BQ59: 0.63 | BR59: 0.8 | BS59: 63t | BT59: 0.29 | BU59: 3.142857143 | BV59: 29t | BW59: 0.29 | BX59: 0.5948275862 | BY59: 29 | BZ59: 0.33 | CA59: 0.6206896552 | CB59: 33 | CC59: 0.35 | CD59: 0.6810344828 | CE59: 35 | CF59: 0.37 | CG59: 0.37 | CH59: 37 | CI59: 0.51 | CJ59: 0.8443877551 | CK59: 51 | CL59: 0.94 | CM59: 0.94 | CN59: 94 | CO59: 0.97 | CP59: 0.97 | CQ59: 97 | CR59: 0.37 | CS59: 2.857142857 | CT59: 37t | CU59: 0.62 | CV59: 0.62 | CW59: 62t | CX59: 0.5 | CY59: 0.5 | CZ59: 50t | DA59: 0.61 | DB59: 0.61 | DC59: 61 | DD59: 0.38 | DE59: 0.4411764706 | DF59: 38 | DG59: 0.43 | DH59: 0.8684807256 | DI59: 43 | DJ59: 0.98 | DK59: 0.98 | DL59: 98 | DM59: 0.99 | DN59: 0.99 | DO59: 99 | DP59: 0.58 | DQ59: 2.714285714 | DR59: 58t
A60: 89 | B60: Henry | C60: 0.452 | D60: 0.4722222222 | E60: 0.5 | F60: 0.4193548387 | G60: 0.5277777778 | H60: 0.4545454545 | I60: 0.6129032258 | J60: 0.6944444444 | K60: 0.5454545455 | M60: 0 | N60: 0 | O60: 0.8307692308 | P60: 0.8076923077 | Q60: 0.7672413793 | R60: 0.9565217391 | S60: 0.8510638298 | T60: 0.8518518519 | U60: 0.8205128205 | V60: 0.8421052632 | W60: 0.8620689655 | X60: 2.5 | Y60: 2.714285714 | Z60: 2.571428571 | AA60: 91 | AB60: 77 | AC60: 53t | AD60: 101 | AE60: 55 | AF60: 72t | AG60: 68 | AH60: 29 | AI60: 67 | AK60: 54t | AL60: 57t | AM60: 55 | AN60: 72 | AO60: 104 | AP60: 14t | AQ60: 46t | AR60: 46t | AS60: 59t | AT60: 39t | AU60: 42 | AV60: 83t | AW60: 49t | AX60: 68t | AY60: 0.91 | AZ60: 0.91 | BA60: 91 | BB60: 1.01 | BC60: 1.01 | BD60: 101 | BE60: 0.68 | BF60: 0.68 | BG60: 68 | BK60: 0.55 | BL60: 0.8307692308 | BM60: 55 | BN60: 0.14 | BO60: 0.9565217391 | BP60: 14t | BQ60: 0.59 | BR60: 0.8205128205 | BS60: 59t | BT60: 0.83 | BU60: 2.5 | BV60: 83t | BW60: 0.77 | BX60: 0.77 | BY60: 77 | BZ60: 0.55 | CA60: 0.55 | CB60: 55 | CC60: 0.29 | CD60: 0.6944444444 | CE60: 29 | CF60: 0.54 | CG60: 0.54 | CH60: 54t | CI60: 0.72 | CJ60: 0.8076923077 | CK60: 72 | CL60: 0.46 | CM60: 0.8510638298 | CN60: 46t | CO60: 0.39 | CP60: 0.8421052632 | CQ60: 39t | CR60: 0.49 | CS60: 2.714285714 | CT60: 49t | CU60: 0.53 | CV60: 0.53 | CW60: 53t | CX60: 0.72 | CY60: 0.72 | CZ60: 72t | DA60: 0.67 | DB60: 0.67 | DC60: 67 | DD60: 0.57 | DE60: 0.57 | DF60: 57t | DG60: 1.04 | DH60: 1.04 | DI60: 104 | DJ60: 0.46 | DK60: 0.8518518519 | DL60: 46t | DM60: 0.42 | DN60: 0.8620689655 | DO60: 42 | DP60: 0.68 | DQ60: 2.571428571 | DR60: 68t
A61: 91 | B61: Highland | C61: 0 | D61: 0 | F61: 0 | G61: 1 | I61: 1 | J61: 1 | O61: 1 | P61: 1 | Q61: 1 | R61: 1 | S61: 1 | T61: 1 | V61: 1 | W61: 1 | X61: 2.8 | Y61: 3.5 | Z61: 4 | AA61: 124t | AB61: 123t | AD61: 124t | AE61: 1t | AG61: 1t | AH61: 1t | AM61: 1t | AN61: 1t | AO61: 1t | AP61: 1t | AQ61: 1t | AR61: 1t | AT61: 1t | AU61: 1t | AV61: 58 | AW61: 5t | AX61: 1 | AY61: 1.24 | AZ61: 1.24 | BA61: 124t | BB61: 1.24 | BC61: 1.24 | BD61: 124t | BE61: 0.01 | BF61: 1 | BG61: 1t | BK61: 0.01 | BL61: 1 | BM61: 1t | BN61: 0.01 | BO61: 1 | BP61: 1t | BT61: 0.58 | BU61: 2.8 | BV61: 58 | BW61: 1.23 | BX61: 1.23 | BY61: 123t | BZ61: 0.01 | CA61: 1 | CB61: 1t | CC61: 0.01 | CD61: 1 | CE61: 1t | CI61: 0.01 | CJ61: 1 | CK61: 1t | CL61: 0.01 | CM61: 1 | CN61: 1t | CO61: 0.01 | CP61: 1 | CQ61: 1t | CR61: 0.05 | CS61: 3.5 | CT61: 5t | CU61: 0 | CW61: 0 | CX61: 0 | DA61: 0 | DG61: 0.01 | DH61: 1 | DI61: 1t | DJ61: 0.01 | DK61: 1 | DL61: 1t | DM61: 0.01 | DN61: 1 | DO61: 1t | DP61: 0.01 | DQ61: 4 | DR61: 1
A62: 670 | B62: Hopewell | C62: 0.52 | D62: 0.5384615385 | E62: 0.5263157895 | F62: 0.56 | G62: 0.5769230769 | H62: 0.4736842105 | I62: 0.32 | J62: 0.4615384615 | K62: 0.2105263158 | O62: 0.9130434783 | P62: 0.9405940594 | Q62: 0.9456521739 | R62: 0.95 | S62: 1 | T62: 1 | U62: 0.9 | V62: 0.8666666667 | W62: 0.875 | X62: 3.166666667 | Y62: 3.5 | Z62: 3.333333333 | AA62: 72 | AB62: 45t | AC62: 46t | AD62: 55 | AE62: 41 | AF62: 67 | AG62: 116 | AH62: 106 | AI62: 122 | AM62: 21 | AN62: 9 | AO62: 6 | AP62: 16 | AQ62: 1t | AR62: 1t | AS62: 30t | AT62: 32 | AU62: 36t | AV62: 25t | AW62: 5t | AX62: 16t | AY62: 0.72 | AZ62: 0.72 | BA62: 72 | BB62: 0.55 | BC62: 0.56 | BD62: 55 | BE62: 1.16 | BF62: 1.16 | BG62: 116 | BK62: 0.21 | BL62: 0.9130434783 | BM62: 21 | BN62: 0.16 | BO62: 0.95 | BP62: 16 | BQ62: 0.3 | BR62: 0.9 | BS62: 30t | BT62: 0.25 | BU62: 3.166666667 | BV62: 25t | BW62: 0.45 | BX62: 0.5384615385 | BY62: 45t | BZ62: 0.41 | CA62: 0.5769230769 | CB62: 41 | CC62: 1.06 | CD62: 1.06 | CE62: 106 | CI62: 0.09 | CJ62: 0.9405940594 | CK62: 9 | CL62: 0.01 | CM62: 1 | CN62: 1t | CO62: 0.32 | CP62: 0.8666666667 | CQ62: 32 | CR62: 0.05 | CS62: 3.5 | CT62: 5t | CU62: 0.46 | CV62: 0.5263157895 | CW62: 46t | CX62: 0.67 | CY62: 0.67 | CZ62: 67 | DA62: 1.22 | DB62: 1.22 | DC62: 122 | DG62: 0.06 | DH62: 0.9456521739 | DI62: 6 | DJ62: 0.01 | DK62: 1 | DL62: 1t | DM62: 0.36 | DN62: 0.875 | DO62: 36t | DP62: 0.16 | DQ62: 3.333333333 | DR62: 16t
A63: 93 | B63: Isle of Wight | C63: 0.714 | D63: 0.4545454545 | E63: 0.6666666667 | F63: 0.5714285714 | G63: 0.2727272727 | H63: 0.4444444444 | I63: 0.4285714286 | J63: 0.5454545455 | K63: 0.6666666667 | L63: 0.8 | M63: 0.6666666667 | N63: 1 | O63: 0.2727272727 | P63: 0.5454545455 | Q63: 0.8947368421 | R63: 0.75 | S63: 0.7142857143 | T63: 0.8888888889 | U63: 0.5 | V63: 1 | W63: 0.8571428571 | X63: 2.571428571 | Y63: 2.142857143 | Z63: 3.571428571 | AA63: 24t | AB63: 80t | AC63: 12t | AD63: 50t | AE63: 119t | AF63: 76t | AG63: 110 | AH63: 84t | AI63: 30t | AJ63: 20 | AK63: 26 | AL63: 1t | AM63: 130 | AN63: 127 | AO63: 23t | AP63: 82t | AQ63: 96 | AR63: 30t | AS63: 105t | AT63: 1t | AU63: 43t | AV63: 72t | AW63: 99t | AX63: 5t | AY63: 0.24 | AZ63: 0.714 | BA63: 24t | BB63: 0.5 | BC63: 0.5714285714 | BD63: 50t | BE63: 1.1 | BF63: 1.1 | BG63: 110 | BH63: 0.2 | BI63: 0.8 | BJ63: 20 | BK63: 1.3 | BL63: 1.3 | BM63: 130 | BN63: 0.82 | BO63: 0.82 | BP63: 82t | BQ63: 1.05 | BR63: 1.05 | BS63: 105t | BT63: 0.72 | BU63: 2.571428571 | BV63: 72t | BW63: 0.8 | BX63: 0.8 | BY63: 80t | BZ63: 1.19 | CA63: 1.19 | CB63: 119t | CC63: 0.84 | CD63: 0.84 | CE63: 84t | CF63: 0.26 | CG63: 0.6666666667 | CH63: 26 | CI63: 1.27 | CJ63: 1.27 | CK63: 127 | CL63: 0.96 | CM63: 0.96 | CN63: 96 | CO63: 0.01 | CP63: 1 | CQ63: 1t | CR63: 0.99 | CS63: 2.142857143 | CT63: 99t | CU63: 0.12 | CV63: 0.6666666667 | CW63: 12t | CX63: 0.76 | CY63: 0.76 | CZ63: 76t | DA63: 0.3 | DB63: 0.6666666667 | DC63: 30t | DD63: 0.01 | DE63: 1 | DF63: 1t | DG63: 0.23 | DH63: 0.8947368421 | DI63: 23t | DJ63: 0.3 | DK63: 0.8888888889 | DL63: 30t | DM63: 0.43 | DN63: 0.8571428571 | DO63: 43t | DP63: 0.05 | DQ63: 3.571428571 | DR63: 5t
A64: 95 | B64: James City | C64: 0.765 | D64: 0.375 | E64: 0.8 | F64: 0.7647058824 | G64: 0.375 | H64: 0.7 | I64: 0.7647058824 | J64: 0.375 | K64: 0.7 | M64: 1 | O64: 0.7959183673 | P64: 0.75 | Q64: 0.8163265306 | R64: 1 | S64: 0.9333333333 | T64: 0.6666666667 | U64: 0.8571428571 | V64: 0.75 | W64: 0.75 | X64: 3.5 | Y64: 2 | Z64: 3 | AA64: 18 | AB64: 99t | AC64: 6t | AD64: 20 | AE64: 100t | AF64: 16 | AG64: 23 | AH64: 117 | AI64: 23 | AK64: 1t | AM64: 77 | AN64: 97t | AO64: 76 | AP64: 1t | AQ64: 21 | AR64: 105t | AS64: 45 | AT64: 65t | AU64: 67t | AV64: 13t | AW64: 107t | AX64: 33t | AY64: 0.18 | AZ64: 0.765 | BA64: 18 | BB64: 0.2 | BC64: 0.7647058824 | BD64: 20 | BE64: 0.23 | BF64: 0.7647058824 | BG64: 23 | BK64: 0.77 | BL64: 0.7959183673 | BM64: 77 | BN64: 0.01 | BO64: 1 | BP64: 1t | BQ64: 0.45 | BR64: 0.8571428571 | BS64: 45 | BT64: 0.13 | BU64: 3.5 | BV64: 13t | BW64: 0.99 | BX64: 0.99 | BY64: 99t | BZ64: 1 | CA64: 1 | CB64: 100t | CC64: 1.17 | CD64: 1.17 | CE64: 117 | CF64: 0.01 | CG64: 1 | CH64: 1t | CI64: 0.97 | CJ64: 0.97 | CK64: 97t | CL64: 0.21 | CM64: 0.9333333333 | CN64: 21 | CO64: 0.65 | CP64: 0.75 | CQ64: 65t | CR64: 1.07 | CS64: 2 | CT64: 107t | CU64: 0.06 | CV64: 0.8 | CW64: 6t | CX64: 0.16 | CY64: 0.7 | CZ64: 16 | DA64: 0.23 | DB64: 0.7 | DC64: 23 | DG64: 0.76 | DH64: 0.8163265306 | DI64: 76 | DJ64: 1.05 | DK64: 1.05 | DL64: 105t | DM64: 0.67 | DN64: 0.75 | DO64: 67t | DP64: 0.33 | DQ64: 3 | DR64: 33t
A65: 97 | B65: King & Queen | D65: 0.25 | E65: 0.25 | G65: 0.375 | H65: 0.75 | J65: 0.25 | K65: 0.75 | N65: 1 | O65: 1 | P65: 1 | Q65: 0.8888888889 | R65: 1 | S65: 1 | T65: 1 | X65: 4 | Y65: 2.2 | Z65: 3.5 | AB65: 117t | AC65: 116t | AE65: 100t | AF65: 12t | AH65: 125 | AI65: 12t | AL65: 1t | AM65: 1t | AN65: 1t | AO65: 27 | AP65: 1t | AQ65: 1t | AR65: 1t | AV65: 1t | AW65: 91t | AX65: 9t | AY65: 0 | BA65: 0 | BB65: 0 | BD65: 0 | BE65: 0 | BG65: 0 | BK65: 0.01 | BL65: 1 | BM65: 1t | BN65: 0.01 | BO65: 1 | BP65: 1t | BT65: 0.01 | BU65: 4 | BV65: 1t | BW65: 1.17 | BX65: 1.17 | BY65: 117t | BZ65: 1 | CA65: 1 | CB65: 100t | CC65: 1.25 | CD65: 1.25 | CE65: 125 | CI65: 0.01 | CJ65: 1 | CK65: 1t | CL65: 0.01 | CM65: 1 | CN65: 1t | CO65: 0 | CR65: 0.91 | CS65: 2.2 | CT65: 91t | CU65: 1.16 | CV65: 1.16 | CW65: 116t | CX65: 0.12 | CY65: 0.75 | CZ65: 12t | DA65: 0.12 | DB65: 0.75 | DC65: 12t | DD65: 0.01 | DE65: 1 | DF65: 1t | DG65: 0.27 | DH65: 0.8888888889 | DI65: 27 | DJ65: 0.01 | DK65: 1 | DL65: 1t | DM65: 0 | DP65: 0.09 | DQ65: 3.5 | DR65: 9t
A66: 99 | B66: King George | C66: 0.6 | D66: 0.3 | E66: 0.5384615385 | F66: 0.5 | G66: 0.4 | H66: 0.7692307692 | I66: 0.6 | J66: 0.45 | K66: 0.5384615385 | L66: 0 | N66: 0 | O66: 0.8431372549 | P66: 0.8245614035 | Q66: 0.7192982456 | R66: 0.9333333333 | S66: 0.6923076923 | T66: 0.75 | U66: 0.6666666667 | V66: 0.9 | W66: 1 | X66: 2.571428571 | Y66: 1.833333333 | Z66: 2.571428571 | AA66: 42t | AB66: 111t | AC66: 43t | AD66: 71t | AE66: 94t | AF66: 11 | AG66: 74t | AH66: 109 | AI66: 69 | AJ66: 58t | AL66: 57t | AM66: 49 | AN66: 62 | AO66: 122 | AP66: 18t | AQ66: 103 | AR66: 91t | AS66: 93t | AT66: 17t | AU66: 1t | AV66: 72t | AW66: 117 | AX66: 68t | AY66: 0.42 | AZ66: 0.6 | BA66: 42t | BB66: 0.71 | BC66: 0.71 | BD66: 71t | BE66: 0.74 | BF66: 0.74 | BG66: 74t | BH66: 0.58 | BI66: 0.58 | BJ66: 58t | BK66: 0.49 | BL66: 0.8431372549 | BM66: 49 | BN66: 0.18 | BO66: 0.9333333333 | BP66: 18t | BQ66: 0.93 | BR66: 0.93 | BS66: 93t | BT66: 0.72 | BU66: 2.571428571 | BV66: 72t | BW66: 1.11 | BX66: 1.11 | BY66: 111t | BZ66: 0.94 | CA66: 0.94 | CB66: 94t | CC66: 1.09 | CD66: 1.09 | CE66: 109 | CI66: 0.62 | CJ66: 0.8245614035 | CK66: 62 | CL66: 1.03 | CM66: 1.03 | CN66: 103 | CO66: 0.17 | CP66: 0.9 | CQ66: 17t | CR66: 1.17 | CS66: 1.833333333 | CT66: 117 | CU66: 0.43 | CV66: 0.5384615385 | CW66: 43t | CX66: 0.11 | CY66: 0.7692307692 | CZ66: 11 | DA66: 0.69 | DB66: 0.69 | DC66: 69 | DD66: 0.57 | DE66: 0.57 | DF66: 57t | DG66: 1.22 | DH66: 1.22 | DI66: 122 | DJ66: 0.91 | DK66: 0.91 | DL66: 91t | DM66: 0.01 | DN66: 1 | DO66: 1t | DP66: 0.68 | DQ66: 2.571428571 | DR66: 68t
A67: 101 | B67: King William | C67: 0.5 | D67: 0.3333333333 | E67: 0.5 | F67: 0.5 | G67: 0.3333333333 | H67: 0.25 | I67: 0.6666666667 | J67: 0.3333333333 | K67: 0.5 | L67: 1 | M67: 1 | N67: 0.5 | O67: 0.9230769231 | P67: 0.8888888889 | Q67: 0.9 | R67: 0.5 | S67: 0.5 | T67: 0.5 | U67: 0.3333333333 | V67: 0.6666666667 | X67: 2.857142857 | Y67: 2.142857143 | Z67: 2.333333333 | AA67: 78t | AB67: 104t | AC67: 53t | AD67: 71t | AE67: 109t | AF67: 116t | AG67: 46t | AH67: 120t | AI67: 83t | AJ67: 1t | AK67: 1t | AL67: 32t | AM67: 15 | AN67: 27t | AO67: 20 | AP67: 112t | AQ67: 118t | AR67: 117t | AS67: 111t | AT67: 88t | AV67: 45t | AW67: 99t | AX67: 88t | AY67: 0.78 | AZ67: 0.78 | BA67: 78t | BB67: 0.71 | BC67: 0.71 | BD67: 71t | BE67: 0.46 | BF67: 0.6666666667 | BG67: 46t | BH67: 0.01 | BI67: 1 | BJ67: 1t | BK67: 0.15 | BL67: 0.9230769231 | BM67: 15 | BN67: 1.12 | BO67: 1.12 | BP67: 112t | BQ67: 1.11 | BR67: 1.11 | BS67: 111t | BT67: 0.45 | BU67: 2.857142857 | BV67: 45t | BW67: 1.04 | BX67: 1.04 | BY67: 104t | BZ67: 1.09 | CA67: 1.09 | CB67: 109t | CC67: 1.2 | CD67: 1.2 | CE67: 120t | CF67: 0.01 | CG67: 1 | CH67: 1t | CI67: 0.27 | CJ67: 0.8888888889 | CK67: 27t | CL67: 1.18 | CM67: 1.18 | CN67: 118t | CO67: 0.88 | CP67: 0.88 | CQ67: 88t | CR67: 0.99 | CS67: 2.142857143 | CT67: 99t | CU67: 0.53 | CV67: 0.53 | CW67: 53t | CX67: 1.16 | CY67: 1.16 | CZ67: 116t | DA67: 0.83 | DB67: 0.83 | DC67: 83t | DD67: 0.32 | DE67: 0.5 | DF67: 32t | DG67: 0.2 | DH67: 0.9 | DI67: 20 | DJ67: 1.17 | DK67: 1.17 | DL67: 117t | DM67: 0 | DP67: 0.88 | DQ67: 2.333333333 | DR67: 88t
A68: 103 | B68: Lancaster | C68: 1 | D68: 0.5454545455 | E68: 0.4 | F68: 1 | G68: 0.4090909091 | H68: 0.6 | I68: 1 | J68: 0.6363636364 | K68: 0.6 | L68: 0 | O68: 0.5789473684 | P68: 0.7619047619 | Q68: 0.75 | R68: 0.25 | S68: 0.4285714286 | T68: 0.8 | U68: 0.3333333333 | W68: 1 | X68: 2.571428571 | Y68: 2.2 | Z68: 2.833333333 | AA68: 1t | AB68: 41t | AC68: 93t | AD68: 1t | AE68: 91t | AF68: 30t | AG68: 1t | AH68: 51t | AI68: 49t | AJ68: 58t | AM68: 124 | AN68: 92 | AO68: 111t | AP68: 124 | AQ68: 123 | AR68: 76t | AS68: 111t | AU68: 1t | AV68: 72t | AW68: 91t | AX68: 56t | AY68: 0.01 | AZ68: =IF(C68<>"",MAX(C68,AY68),"") -> 1 | BA68: 1t | BB68: 0.01 | BC68: =IF(F68<>"",MAX(F68,BB68),"") -> 1 | BD68: 1t | BE68: 0.01 | BF68: =IF(I68<>"",MAX(I68,BE68),"") -> 1 | BG68: 1t | BH68: 0.58 | BI68: =IF(L68<>"",MAX(L68,BH68),"") -> 0.58 | BJ68: 58t | BK68: 1.24 | BL68: =IF(O68<>"",MAX(O68,BK68),"") -> 1.24 | BM68: 124 | BN68: 1.24 | BO68: =IF(R68<>"",MAX(R68,BN68),"") -> 1.24 | BP68: 124 | BQ68: 1.11 | BR68: =IF(U68<>"",MAX(U68,BQ68),"") -> 1.11 | BS68: 111t | BT68: 0.72 | BU68: =IF(X68<>"",MAX(X68,BT68),"") -> 2.571428571 | BV68: 72t | BW68: 0.41 | BX68: =IF(D68<>"",MAX(D68,BW68),"") -> 0.5454545455 | BY68: 41t | BZ68: 0.91 | CA68: =IF(G68<>"",MAX(G68,BZ68),"") -> 0.91 | CB68: 91t | CC68: 0.51 | CD68: =IF(J68<>"",MAX(J68,CC68),"") -> 0.6363636364 | CE68: 51t | CG68: =IF(M68<>"",MAX(M68,CF68),"") ->  | CI68: 0.92 | CJ68: =IF(P68<>"",MAX(P68,CI68),"") -> 0.92 | CK68: 92 | CL68: 1.23 | CM68: =IF(S68<>"",MAX(S68,CL68),"") -> 1.23 | CN68: 123 | CO68: 0 | CP68: =IF(V68<>"",MAX(V68,CO68),"") ->  | CR68: 0.91 | CS68: =IF(Y68<>"",MAX(Y68,CR68),"") -> 2.2 | CT68: 91t | CU68: 0.93 | CV68: =IF(E68<>"",MAX(E68,CU68),"") -> 0.93 | CW68: 93t | CX68: 0.3 | CY68: =IF(H68<>"",MAX(H68,CX68),"") -> 0.6 | CZ68: 30t | DA68: 0.49 | DB68: =IF(K68<>"",MAX(K68,DA68),"") -> 0.6 | DC68: 49t | DE68: =IF(N68<>"",MAX(N68,DD68),"") ->  | DG68: 1.11 | DH68: =IF(Q68<>"",MAX(Q68,DG68),"") -> 1.11 | DI68: 111t | DJ68: 0.76 | DK68: =IF(T68<>"",MAX(T68,DJ68),"") -> 0.8 | DL68: 76t | DM68: 0.01 | DN68: =IF(W68<>"",MAX(W68,DM68),"") -> 1 | DO68: 1t | DP68: 0.56 | DQ68: =IF(Z68<>"",MAX(Z68,DP68),"") -> 2.833333333 | DR68: 56t
A69: 105 | B69: Lee | C69: 0.515 | D69: 0.5483870968 | E69: 0.6470588235 | F69: 0.4545454545 | G69: 0.4838709677 | H69: 0.5882352941 | I69: 0.7575757576 | J69: 0.7096774194 | K69: 0.5294117647 | O69: 0.9 | P69: 0.8941176471 | Q69: 0.8850574713 | R69: 0.9298245614 | S69: 0.8913043478 | T69: 0.8139534884 | U69: 0.85 | V69: 0.84375 | W69: 0.875 | X69: 3 | Y69: 3.5 | Z69: 3.666666667 | AA69: 74 | AB69: 40 | AC69: 16 | AD69: 93t | AE69: 76 | AF69: 33 | AG69: 26 | AH69: 23 | AI69: 72 | AM69: 24t | AN69: 24 | AO69: 29 | AP69: 21 | AQ69: 33 | AR69: 72 | AS69: 48t | AT69: 37t | AU69: 36t | AV69: 34t | AW69: 5t | AX69: 4 | AY69: 0.74 | AZ69: 0.74 | BA69: 74 | BB69: 0.93 | BC69: 0.93 | BD69: 93t | BE69: 0.26 | BF69: 0.7575757576 | BG69: 26 | BK69: 0.24 | BL69: 0.9 | BM69: 24t | BN69: 0.21 | BO69: 0.9298245614 | BP69: 21 | BQ69: 0.48 | BR69: 0.85 | BS69: 48t | BT69: 0.34 | BU69: 3 | BV69: 34t | BW69: 0.4 | BX69: 0.5483870968 | BY69: 40 | BZ69: 0.76 | CA69: 0.76 | CB69: 76 | CC69: 0.23 | CD69: 0.7096774194 | CE69: 23 | CI69: 0.24 | CJ69: 0.8941176471 | CK69: 24 | CL69: 0.33 | CM69: 0.8913043478 | CN69: 33 | CO69: 0.37 | CP69: 0.84375 | CQ69: 37t | CR69: 0.05 | CS69: 3.5 | CT69: 5t | CU69: 0.16 | CV69: 0.6470588235 | CW69: 16 | CX69: 0.33 | CY69: 0.5882352941 | CZ69: 33 | DA69: 0.72 | DB69: 0.72 | DC69: 72 | DG69: 0.29 | DH69: 0.8850574713 | DI69: 29 | DJ69: 0.72 | DK69: 0.8139534884 | DL69: 72 | DM69: 0.36 | DN69: 0.875 | DO69: 36t | DP69: 0.04 | DQ69: 3.666666667 | DR69: 4
A70: 678 | B70: Lexington | C70: 0.75 | D70: 0.6 | E70: 0.4285714286 | F70: 0.5 | G70: 0.2 | H70: 0.2857142857 | I70: 0.5 | J70: 0.6 | K70: 0.5714285714 | L70: 0.3333333333 | O70: 0.7647058824 | P70: 0.6875 | Q70: 0.875 | R70: 0.5357142857 | S70: 0.7380952381 | T70: 0.8444444444 | U70: 0.7 | V70: 1 | X70: 2 | Y70: 2.5 | Z70: 2.6 | AA70: 19t | AB70: 26t | AC70: 83t | AD70: 71t | AE70: 123t | AF70: 111t | AG70: 103t | AH70: 64t | AI70: 56t | AJ70: 35t | AM70: 90 | AN70: 117t | AO70: 35t | AP70: 108t | AQ70: 90t | AR70: 51t | AS70: 89t | AT70: 1t | AV70: 109t | AW70: 70t | AX70: 66t | AY70: 0.19 | AZ70: 0.75 | BA70: 19t | BB70: 0.71 | BC70: 0.71 | BD70: 71t | BE70: 1.03 | BF70: 1.03 | BG70: 103t | BH70: 0.35 | BI70: 0.35 | BJ70: 35t | BK70: 0.9 | BL70: 0.9 | BM70: 90 | BN70: 1.08 | BO70: 1.08 | BP70: 108t | BQ70: 0.89 | BR70: 0.89 | BS70: 89t | BT70: 1.09 | BU70: 2 | BV70: 109t | BW70: 0.26 | BX70: 0.6 | BY70: 26t | BZ70: 1.23 | CA70: 1.23 | CB70: 123t | CC70: 0.64 | CD70: 0.64 | CE70: 64t | CI70: 1.17 | CJ70: 1.17 | CK70: 117t | CL70: 0.9 | CM70: 0.9 | CN70: 90t | CO70: 0.01 | CP70: 1 | CQ70: 1t | CR70: 0.7 | CS70: 2.5 | CT70: 70t | CU70: 0.83 | CV70: 0.83 | CW70: 83t | CX70: 1.11 | CY70: 1.11 | CZ70: 111t | DA70: 0.56 | DB70: 0.5714285714 | DC70: 56t | DG70: 0.35 | DH70: 0.875 | DI70: 35t | DJ70: 0.51 | DK70: 0.8444444444 | DL70: 51t | DM70: 0 | DP70: 0.66 | DQ70: 2.6 | DR70: 66t
A71: 107 | B71: Loudoun | C71: 0.545 | D71: 0.3333333333 | E71: 0.3823529412 | F71: 0.5454545455 | G71: 0 | H71: 0.6176470588 | I71: 0.6363636364 | J71: 1 | K71: 0.5588235294 | L71: 0.4482758621 | M71: 0.6428571429 | N71: 0.7391304348 | O71: 0.8 | P71: 0.8016528926 | Q71: 0.7840375587 | R71: 0.875 | S71: 0.7924528302 | T71: 0.8461538462 | U71: 0.8 | V71: 0.625 | W71: 0.7142857143 | X71: 3 | Y71: 2.285714286 | Z71: 2.714285714 | AA71: 66t | AB71: 104t | AC71: 98 | AD71: 60t | AE71: 125t | AF71: 29 | AG71: 58t | AH71: 1t | AI71: 64 | AJ71: 33 | AK71: 27 | AL71: 24 | AM71: 73t | AN71: 77 | AO71: 97 | AP71: 39t | AQ71: 71 | AR71: 50 | AS71: 63t | AT71: 98t | AU71: 78t | AV71: 34t | AW71: 82t | AX71: 58t | AY71: 0.66 | AZ71: 0.66 | BA71: 66t | BB71: 0.6 | BC71: 0.6 | BD71: 60t | BE71: 0.58 | BF71: 0.6363636364 | BG71: 58t | BH71: 0.33 | BI71: 0.4482758621 | BJ71: 33 | BK71: 0.73 | BL71: 0.8 | BM71: 73t | BN71: 0.39 | BO71: 0.875 | BP71: 39t | BQ71: 0.63 | BR71: 0.8 | BS71: 63t | BT71: 0.34 | BU71: 3 | BV71: 34t | BW71: 1.04 | BX71: 1.04 | BY71: 104t | BZ71: 1.25 | CA71: 1.25 | CB71: 125t | CC71: 0.01 | CD71: 1 | CE71: 1t | CF71: 0.27 | CG71: 0.6428571429 | CH71: 27 | CI71: 0.77 | CJ71: 0.8016528926 | CK71: 77 | CL71: 0.71 | CM71: 0.7924528302 | CN71: 71 | CO71: 0.98 | CP71: 0.98 | CQ71: 98t | CR71: 0.82 | CS71: 2.285714286 | CT71: 82t | CU71: 0.98 | CV71: 0.98 | CW71: 98 | CX71: 0.29 | CY71: 0.6176470588 | CZ71: 29 | DA71: 0.64 | DB71: 0.64 | DC71: 64 | DD71: 0.24 | DE71: 0.7391304348 | DF71: 24 | DG71: 0.97 | DH71: 0.97 | DI71: 97 | DJ71: 0.5 | DK71: 0.8461538462 | DL71: 50 | DM71: 0.78 | DN71: 0.78 | DO71: 78t | DP71: 0.58 | DQ71: 2.714285714 | DR71: 58t
A72: 109 | B72: Louisa | C72: 0.235 | D72: 0.6111111111 | E72: 0.4090909091 | F72: 0.5588235294 | G72: 0.5555555556 | H72: 0.5 | I72: 0.5294117647 | J72: 0.6666666667 | K72: 0.7727272727 | L72: 0.625 | M72: 0 | N72: 0 | O72: 0.8095238095 | P72: 0.7927927928 | Q72: 0.8035714286 | R72: 0.9318181818 | S72: 0.7878787879 | T72: 0.7804878049 | U72: 0.85 | V72: 0.875 | W72: 0.5714285714 | X72: 2.571428571 | Y72: 2.857142857 | Z72: 2.142857143 | AA72: 120 | AB72: 22t | AC72: 91 | AD72: 56 | AE72: 46t | AF72: 50t | AG72: 101 | AH72: 36t | AI72: 11 | AJ72: 25 | AK72: 54t | AL72: 57t | AM72: 69 | AN72: 82 | AO72: 82 | AP72: 20 | AQ72: 74 | AR72: 84 | AS72: 48t | AT72: 29t | AU72: 101 | AV72: 72t | AW72: 37t | AX72: 102t | AY72: 1.2 | AZ72: 1.2 | BA72: 120 | BB72: 0.56 | BC72: 0.56 | BD72: 56 | BE72: 1.01 | BF72: 1.01 | BG72: 101 | BH72: 0.25 | BI72: 0.625 | BJ72: 25 | BK72: 0.69 | BL72: 0.8095238095 | BM72: 69 | BN72: 0.2 | BO72: 0.9318181818 | BP72: 20 | BQ72: 0.48 | BR72: 0.85 | BS72: 48t | BT72: 0.72 | BU72: 2.571428571 | BV72: 72t | BW72: 0.22 | BX72: 0.6111111111 | BY72: 22t | BZ72: 0.46 | CA72: 0.5555555556 | CB72: 46t | CC72: 0.36 | CD72: 0.6666666667 | CE72: 36t | CF72: 0.54 | CG72: 0.54 | CH72: 54t | CI72: 0.82 | CJ72: 0.82 | CK72: 82 | CL72: 0.74 | CM72: 0.7878787879 | CN72: 74 | CO72: 0.29 | CP72: 0.875 | CQ72: 29t | CR72: 0.37 | CS72: 2.857142857 | CT72: 37t | CU72: 0.91 | CV72: 0.91 | CW72: 91 | CX72: 0.5 | CY72: 0.5 | CZ72: 50t | DA72: 0.11 | DB72: 0.7727272727 | DC72: 11 | DD72: 0.57 | DE72: 0.57 | DF72: 57t | DG72: 0.82 | DH72: 0.82 | DI72: 82 | DJ72: 0.84 | DK72: 0.84 | DL72: 84 | DM72: 1.01 | DN72: 1.01 | DO72: 101 | DP72: 1.02 | DQ72: 2.142857143 | DR72: 102t
A73: 111 | B73: Lunenburg | C73: 1 | D73: 0.4545454545 | E73: 0.4 | F73: 1 | G73: 0.4772727273 | H73: 0.2 | I73: 1 | J73: 0.4545454545 | K73: 0.6 | O73: 0.9655172414 | P73: 0.9444444444 | Q73: 0.875 | R73: 0.8461538462 | S73: 0.6 | T73: 0.6 | U73: 0.7142857143 | V73: 0.75 | W73: 1 | X73: 3.5 | Y73: 2.166666667 | Z73: 2.5 | AA73: 1t | AB73: 80t | AC73: 93t | AD73: 1t | AE73: 78 | AF73: 122 | AG73: 1t | AH73: 107 | AI73: 49t | AM73: 7 | AN73: 6t | AO73: 35t | AP73: 49t | AQ73: 113 | AR73: 113 | AS73: 88 | AT73: 65t | AU73: 1t | AV73: 13t | AW73: 95t | AX73: 79t | AY73: 0.01 | AZ73: 1 | BA73: 1t | BB73: 0.01 | BC73: 1 | BD73: 1t | BE73: 0.01 | BF73: 1 | BG73: 1t | BK73: 0.07 | BL73: 0.9655172414 | BM73: 7 | BN73: 0.49 | BO73: 0.8461538462 | BP73: 49t | BQ73: 0.88 | BR73: 0.88 | BS73: 88 | BT73: 0.13 | BU73: 3.5 | BV73: 13t | BW73: 0.8 | BX73: 0.8 | BY73: 80t | BZ73: 0.78 | CA73: 0.78 | CB73: 78 | CC73: 1.07 | CD73: 1.07 | CE73: 107 | CI73: 0.06 | CJ73: 0.9444444444 | CK73: 6t | CL73: 1.13 | CM73: 1.13 | CN73: 113 | CO73: 0.65 | CP73: 0.75 | CQ73: 65t | CR73: 0.95 | CS73: 2.166666667 | CT73: 95t | CU73: 0.93 | CV73: 0.93 | CW73: 93t | CX73: 1.22 | CY73: 1.22 | CZ73: 122 | DA73: 0.49 | DB73: 0.6 | DC73: 49t | DG73: 0.35 | DH73: 0.875 | DI73: 35t | DJ73: 1.13 | DK73: 1.13 | DL73: 113 | DM73: 0.01 | DN73: 1 | DO73: 1t | DP73: 0.79 | DQ73: 2.5 | DR73: 79t
A74: 680 | B74: Lynchburg | C74: 0.388 | D74: 0.4807692308 | E74: 0.4505494505 | F74: 0.475 | G74: 0.5384615385 | H74: 0.3406593407 | I74: 0.55 | J74: 0.5961538462 | K74: 0.5054945055 | L74: 0 | M74: 0 | N74: 0 | O74: 0.7507418398 | P74: 0.7774294671 | Q74: 0.7916666667 | R74: 0.8445945946 | S74: 0.7931034483 | T74: 0.7902097902 | U74: 0.8767123288 | V74: 0.8837209302 | W74: 0.7323943662 | X74: 1.714285714 | Y74: 2.285714286 | Z74: 1.428571429 | AA74: 104 | AB74: 74 | AC74: 78 | AD74: 87 | AE74: 53 | AF74: 104 | AG74: 97 | AH74: 72t | AI74: 82 | AJ74: 58t | AK74: 54t | AL74: 57t | AM74: 97 | AN74: 87 | AO74: 91 | AP74: 52 | AQ74: 70 | AR74: 81 | AS74: 39 | AT74: 23 | AU74: 75 | AV74: 120t | AW74: 82t | AX74: 128 | AY74: 1.04 | AZ74: 1.04 | BA74: 104 | BB74: 0.87 | BC74: 0.87 | BD74: 87 | BE74: 0.97 | BF74: 0.97 | BG74: 97 | BH74: 0.58 | BI74: 0.58 | BJ74: 58t | BK74: 0.97 | BL74: 0.97 | BM74: 97 | BN74: 0.52 | BO74: 0.8445945946 | BP74: 52 | BQ74: 0.39 | BR74: 0.8767123288 | BS74: 39 | BT74: 1.2 | BU74: 1.714285714 | BV74: 120t | BW74: 0.74 | BX74: 0.74 | BY74: 74 | BZ74: 0.53 | CA74: 0.5384615385 | CB74: 53 | CC74: 0.72 | CD74: 0.72 | CE74: 72t | CF74: 0.54 | CG74: 0.54 | CH74: 54t | CI74: 0.87 | CJ74: 0.87 | CK74: 87 | CL74: 0.7 | CM74: 0.7931034483 | CN74: 70 | CO74: 0.23 | CP74: 0.8837209302 | CQ74: 23 | CR74: 0.82 | CS74: 2.285714286 | CT74: 82t | CU74: 0.78 | CV74: 0.78 | CW74: 78 | CX74: 1.04 | CY74: 1.04 | CZ74: 104 | DA74: 0.82 | DB74: 0.82 | DC74: 82 | DD74: 0.57 | DE74: 0.57 | DF74: 57t | DG74: 0.91 | DH74: 0.91 | DI74: 91 | DJ74: 0.81 | DK74: 0.81 | DL74: 81 | DM74: 0.75 | DN74: 0.75 | DO74: 75 | DP74: 1.28 | DQ74: 1.428571429 | DR74: 128
A75: 113 | B75: Madison | C75: 0.208 | D75: 0.3181818182 | E75: 0.375 | F75: 0.4583333333 | G75: 0.5909090909 | H75: 0.4375 | I75: 0.875 | J75: 0.5909090909 | K75: 0.625 | L75: 0.04 | M75: 0 | N75: 0.1428571429 | O75: 0.7156862745 | P75: 0.8571428571 | Q75: 0.9204545455 | R75: 0.7142857143 | S75: 0.8 | T75: 0.8666666667 | U75: 0.85 | V75: 0.7307692308 | W75: 0.6 | X75: 1.857142857 | Y75: 2.285714286 | Z75: 2.571428571 | AA75: 123 | AB75: 110 | AC75: 100t | AD75: 91 | AE75: 38 | AF75: 80 | AG75: 15 | AH75: 75t | AI75: 41t | AJ75: 55 | AK75: 54t | AL75: 51 | AM75: 105 | AN75: 46 | AO75: 11 | AP75: 89 | AQ75: 63t | AR75: 40t | AS75: 48t | AT75: 73 | AU75: 100 | AV75: 115t | AW75: 82t | AX75: 68t | AY75: 1.23 | AZ75: 1.23 | BA75: 123 | BB75: 0.91 | BC75: 0.91 | BD75: 91 | BE75: 0.15 | BF75: 0.875 | BG75: 15 | BH75: 0.55 | BI75: 0.55 | BJ75: 55 | BK75: 1.05 | BL75: 1.05 | BM75: 105 | BN75: 0.89 | BO75: 0.89 | BP75: 89 | BQ75: 0.48 | BR75: 0.85 | BS75: 48t | BT75: 1.15 | BU75: 1.857142857 | BV75: 115t | BW75: 1.1 | BX75: 1.1 | BY75: 110 | BZ75: 0.38 | CA75: 0.5909090909 | CB75: 38 | CC75: 0.75 | CD75: 0.75 | CE75: 75t | CF75: 0.54 | CG75: 0.54 | CH75: 54t | CI75: 0.46 | CJ75: 0.8571428571 | CK75: 46 | CL75: 0.63 | CM75: 0.8 | CN75: 63t | CO75: 0.73 | CP75: 0.7307692308 | CQ75: 73 | CR75: 0.82 | CS75: 2.285714286 | CT75: 82t | CU75: 1 | CV75: 1 | CW75: 100t | CX75: 0.8 | CY75: 0.8 | CZ75: 80 | DA75: 0.41 | DB75: 0.625 | DC75: 41t | DD75: 0.51 | DE75: 0.51 | DF75: 51 | DG75: 0.11 | DH75: 0.9204545455 | DI75: 11 | DJ75: 0.4 | DK75: 0.8666666667 | DL75: 40t | DM75: 1 | DN75: 1 | DO75: 100 | DP75: 0.68 | DQ75: 2.571428571 | DR75: 68t
A76: 683 | B76: Manassas City | C76: 0.4 | D76: 0.1578947368 | E76: 0.5 | F76: 0.4 | G76: 0.4210526316 | H76: 0.5714285714 | I76: 0.5333333333 | J76: 0.5263157895 | K76: 0.6428571429 | L76: 0 | N76: 0 | O76: 0.7 | P76: 0.6976744186 | Q76: 0.7297297297 | R76: 0.6875 | S76: 0.7777777778 | T76: 0.8823529412 | U76: 0.8 | V76: 0.8571428571 | W76: 0.75 | X76: 1.285714286 | Y76: 1.5 | Z76: 2.714285714 | AA76: 100t | AB76: 122 | AC76: 53t | AD76: 103t | AE76: 90 | AF76: 38t | AG76: 99t | AH76: 88 | AI76: 37 | AJ76: 58t | AL76: 57t | AM76: 109 | AN76: 114 | AO76: 117t | AP76: 95 | AQ76: 78t | AR76: 34t | AS76: 63t | AT76: 34t | AU76: 67t | AV76: 129 | AW76: 129 | AX76: 58t | AY76: 1 | AZ76: 1 | BA76: 100t | BB76: 1.03 | BC76: 1.03 | BD76: 103t | BE76: 0.99 | BF76: 0.99 | BG76: 99t | BH76: 0.58 | BI76: 0.58 | BJ76: 58t | BK76: 1.09 | BL76: 1.09 | BM76: 109 | BN76: 0.95 | BO76: 0.95 | BP76: 95 | BQ76: 0.63 | BR76: 0.8 | BS76: 63t | BT76: 1.29 | BU76: 1.29 | BV76: 129 | BW76: 1.22 | BX76: 1.22 | BY76: 122 | BZ76: 0.9 | CA76: 0.9 | CB76: 90 | CC76: 0.88 | CD76: 0.88 | CE76: 88 | CI76: 1.14 | CJ76: 1.14 | CK76: 114 | CL76: 0.78 | CM76: 0.78 | CN76: 78t | CO76: 0.34 | CP76: 0.8571428571 | CQ76: 34t | CR76: 1.29 | CS76: 1.5 | CT76: 129 | CU76: 0.53 | CV76: 0.53 | CW76: 53t | CX76: 0.38 | CY76: 0.5714285714 | CZ76: 38t | DA76: 0.37 | DB76: 0.6428571429 | DC76: 37 | DD76: 0.57 | DE76: 0.57 | DF76: 57t | DG76: 1.17 | DH76: 1.17 | DI76: 117t | DJ76: 0.34 | DK76: 0.8823529412 | DL76: 34t | DM76: 0.67 | DN76: 0.75 | DO76: 67t | DP76: 0.58 | DQ76: 2.714285714 | DR76: 58t
A77: 685 | B77: Manassas Park | C77: 0.625 | D77: 1 | E77: 0.25 | F77: 0.4375 | G77: 0 | H77: 0.25 | I77: 0.6875 | J77: 1 | K77: 0.5 | O77: 0.9166666667 | P77: 0.8695652174 | Q77: 0.8571428571 | R77: 1 | S77: 1 | T77: 1 | U77: 1 | V77: 1 | W77: 1 | X77: 3.5 | Y77: 3.333333333 | Z77: 2.333333333 | AA77: 38t | AB77: 1t | AC77: 116t | AD77: 98 | AE77: 125t | AF77: 116t | AG77: 42 | AH77: 1t | AI77: 83t | AM77: 20 | AN77: 42t | AO77: 50t | AP77: 1t | AQ77: 1t | AR77: 1t | AS77: 1t | AT77: 1t | AU77: 1t | AV77: 13t | AW77: 13t | AX77: 88t | AY77: 0.38 | AZ77: 0.625 | BA77: 38t | BB77: 0.98 | BC77: 0.98 | BD77: 98 | BE77: 0.42 | BF77: 0.6875 | BG77: 42 | BK77: 0.2 | BL77: 0.9166666667 | BM77: 20 | BN77: 0.01 | BO77: 1 | BP77: 1t | BQ77: 0.01 | BR77: 1 | BS77: 1t | BT77: 0.13 | BU77: 3.5 | BV77: 13t | BW77: 0.01 | BX77: 1 | BY77: 1t | BZ77: 1.25 | CA77: 1.25 | CB77: 125t | CC77: 0.01 | CD77: 1 | CE77: 1t | CI77: 0.42 | CJ77: 0.8695652174 | CK77: 42t | CL77: 0.01 | CM77: 1 | CN77: 1t | CO77: 0.01 | CP77: 1 | CQ77: 1t | CR77: 0.13 | CS77: 3.333333333 | CT77: 13t | CU77: 1.16 | CV77: 1.16 | CW77: 116t | CX77: 1.16 | CY77: 1.16 | CZ77: 116t | DA77: 0.83 | DB77: 0.83 | DC77: 83t | DG77: 0.5 | DH77: 0.8571428571 | DI77: 50t | DJ77: 0.01 | DK77: 1 | DL77: 1t | DM77: 0.01 | DN77: 1 | DO77: 1t | DP77: 0.88 | DQ77: 2.333333333 | DR77: 88t
A78: 690 | B78: Martinsville | C78: 0.6 | D78: 0.5714285714 | E78: 0.5 | F78: 0.8 | G78: 0.7142857143 | H78: 0.3571428571 | I78: 1 | J78: 0.4285714286 | K78: 0.3571428571 | L78: 0.5 | M78: 1 | N78: 1 | O78: 0.6 | P78: 0.5 | Q78: 0.7619047619 | R78: 0.9565217391 | S78: 0.8510638298 | T78: 0.8518518519 | U78: 0.8205128205 | V78: 0.8421052632 | X78: 3.428571429 | Y78: 3 | Z78: 2.333333333 | AA78: 42t | AB78: 32t | AC78: 53t | AD78: 15t | AE78: 18t | AF78: 101 | AG78: 1t | AH78: 112t | AI78: 113 | AJ78: 29t | AK78: 1t | AL78: 1t | AM78: 123 | AN78: 128t | AO78: 108t | AP78: 14t | AQ78: 46t | AR78: 46t | AS78: 59t | AT78: 39t | AV78: 17t | AW78: 30t | AX78: 88t | AY78: 0.42 | AZ78: 0.6 | BA78: 42t | BB78: 0.15 | BC78: 0.8 | BD78: 15t | BE78: 0.01 | BF78: 1 | BG78: 1t | BH78: 0.29 | BI78: 0.5 | BJ78: 29t | BK78: 1.23 | BL78: 1.23 | BM78: 123 | BN78: 0.14 | BO78: 0.9565217391 | BP78: 14t | BQ78: 0.59 | BR78: 0.8205128205 | BS78: 59t | BT78: 0.17 | BU78: 3.428571429 | BV78: 17t | BW78: 0.32 | BX78: 0.5714285714 | BY78: 32t | BZ78: 0.18 | CA78: 0.7142857143 | CB78: 18t | CC78: 1.12 | CD78: 1.12 | CE78: 112t | CF78: 0.01 | CG78: 1 | CH78: 1t | CI78: 1.28 | CJ78: 1.28 | CK78: 128t | CL78: 0.46 | CM78: 0.8510638298 | CN78: 46t | CO78: 0.39 | CP78: 0.8421052632 | CQ78: 39t | CR78: 0.3 | CS78: 3 | CT78: 30t | CU78: 0.53 | CV78: 0.53 | CW78: 53t | CX78: 1.01 | CY78: 1.01 | CZ78: 101 | DA78: 1.13 | DB78: 1.13 | DC78: 113 | DD78: 0.01 | DE78: 1 | DF78: 1t | DG78: 1.08 | DH78: 1.08 | DI78: 108t | DJ78: 0.46 | DK78: 0.8518518519 | DL78: 46t | DM78: 0 | DP78: 0.88 | DQ78: 2.333333333 | DR78: 88t
A79: 115 | B79: Mathews | D79: 1 | E79: 0.3333333333 | G79: 0.75 | H79: 0.3333333333 | J79: 0.75 | K79: 0 | O79: 0.9 | P79: 0.7692307692 | Q79: 0.8421052632 | R79: 1 | S79: 1 | T79: 1 | U79: 1 | V79: 0.8333333333 | X79: 4 | Y79: 3.333333333 | Z79: 1.8 | AB79: 1t | AC79: 108t | AE79: 13t | AF79: 105t | AH79: 15t | AI79: 126t | AM79: 24t | AN79: 90t | AO79: 61t | AP79: 1t | AQ79: 1t | AR79: 1t | AS79: 1t | AT79: 41t | AV79: 1t | AW79: 13t | AX79: 121 | AY79: 0 | BA79: 0 | BB79: 0 | BD79: 0 | BE79: 0 | BG79: 0 | BK79: 0.24 | BL79: 0.9 | BM79: 24t | BN79: 0.01 | BO79: 1 | BP79: 1t | BQ79: 0.01 | BR79: 1 | BS79: 1t | BT79: 0.01 | BU79: 4 | BV79: 1t | BW79: 0.01 | BX79: 1 | BY79: 1t | BZ79: 0.13 | CA79: 0.75 | CB79: 13t | CC79: 0.15 | CD79: 0.75 | CE79: 15t | CI79: 0.9 | CJ79: 0.9 | CK79: 90t | CL79: 0.01 | CM79: 1 | CN79: 1t | CO79: 0.41 | CP79: 0.8333333333 | CQ79: 41t | CR79: 0.13 | CS79: 3.333333333 | CT79: 13t | CU79: 1.08 | CV79: 1.08 | CW79: 108t | CX79: 1.05 | CY79: 1.05 | CZ79: 105t | DA79: 1.26 | DB79: 1.26 | DC79: 126t | DG79: 0.61 | DH79: 0.8421052632 | DI79: 61t | DJ79: 0.01 | DK79: 1 | DL79: 1t | DM79: 0 | DP79: 1.21 | DQ79: 1.8 | DR79: 121
A80: 117 | B80: Mecklenburg | C80: 0.727 | D80: 0.4210526316 | E80: 0.5263157895 | F80: 0.6363636364 | G80: 0.3684210526 | H80: 0.6315789474 | I80: 0.7272727273 | J80: 0.7368421053 | K80: 0.5263157895 | L80: 0 | O80: 0.7777777778 | P80: 0.7586206897 | Q80: 0.7625 | R80: 0.5 | S80: 0.5416666667 | T80: 0.5294117647 | U80: 0.8 | V80: 0.8888888889 | W80: 0.6923076923 | X80: 2.571428571 | Y80: 2.166666667 | Z80: 2.5 | AA80: 22 | AB80: 93t | AC80: 46t | AD80: 36 | AE80: 103 | AF80: 27 | AG80: 33 | AH80: 20 | AI80: 75 | AJ80: 58t | AM80: 85 | AN80: 94 | AO80: 107 | AP80: 112t | AQ80: 116 | AR80: 116 | AS80: 63t | AT80: 20t | AU80: 84t | AV80: 72t | AW80: 95t | AX80: 79t | AY80: 0.22 | AZ80: 0.727 | BA80: 22 | BB80: 0.36 | BC80: 0.6363636364 | BD80: 36 | BE80: 0.33 | BF80: 0.7272727273 | BG80: 33 | BH80: 0.58 | BI80: 0.58 | BJ80: 58t | BK80: 0.85 | BL80: 0.85 | BM80: 85 | BN80: 1.12 | BO80: 1.12 | BP80: 112t | BQ80: 0.63 | BR80: 0.8 | BS80: 63t | BT80: 0.72 | BU80: 2.571428571 | BV80: 72t | BW80: 0.93 | BX80: 0.93 | BY80: 93t | BZ80: 1.03 | CA80: 1.03 | CB80: 103 | CC80: 0.2 | CD80: 0.7368421053 | CE80: 20 | CI80: 0.94 | CJ80: 0.94 | CK80: 94 | CL80: 1.16 | CM80: 1.16 | CN80: 116 | CO80: 0.2 | CP80: 0.8888888889 | CQ80: 20t | CR80: 0.95 | CS80: 2.166666667 | CT80: 95t | CU80: 0.46 | CV80: 0.5263157895 | CW80: 46t | CX80: 0.27 | CY80: 0.6315789474 | CZ80: 27 | DA80: 0.75 | DB80: 0.75 | DC80: 75 | DG80: 1.07 | DH80: 1.07 | DI80: 107 | DJ80: 1.16 | DK80: 1.16 | DL80: 116 | DM80: 0.84 | DN80: 0.84 | DO80: 84t | DP80: 0.79 | DQ80: 2.5 | DR80: 79t
A81: 119 | B81: Middlesex | C81: 0.5 | D81: 0 | E81: 1 | F81: 0.5 | G81: 1 | H81: 0.5 | I81: 1 | J81: 1 | K81: 0.5 | L81: 1 | O81: 1 | P81: 0.9444444444 | Q81: 0.9545454545 | R81: 1 | S81: 1 | T81: 1 | U81: 0.8 | V81: 0.4 | X81: 3.142857143 | Y81: 3.166666667 | Z81: 3.4 | AA81: 78t | AB81: 123t | AC81: 1t | AD81: 71t | AE81: 1t | AF81: 50t | AG81: 1t | AH81: 1t | AI81: 83t | AJ81: 1t | AM81: 1t | AN81: 6t | AO81: 4 | AP81: 1t | AQ81: 1t | AR81: 1t | AS81: 63t | AT81: 112 | AV81: 29t | AW81: 22t | AX81: 14t | AY81: 0.78 | AZ81: 0.78 | BA81: 78t | BB81: 0.71 | BC81: 0.71 | BD81: 71t | BE81: 0.01 | BF81: 1 | BG81: 1t | BH81: 0.01 | BI81: 1 | BJ81: 1t | BK81: 0.01 | BL81: 1 | BM81: 1t | BN81: 0.01 | BO81: 1 | BP81: 1t | BQ81: 0.63 | BR81: 0.8 | BS81: 63t | BT81: 0.29 | BU81: 3.142857143 | BV81: 29t | BW81: 1.23 | BX81: 1.23 | BY81: 123t | BZ81: 0.01 | CA81: 1 | CB81: 1t | CC81: 0.01 | CD81: 1 | CE81: 1t | CI81: 0.06 | CJ81: 0.9444444444 | CK81: 6t | CL81: 0.01 | CM81: 1 | CN81: 1t | CO81: 1.12 | CP81: 1.12 | CQ81: 112 | CR81: 0.22 | CS81: 3.166666667 | CT81: 22t | CU81: 0.01 | CV81: 1 | CW81: 1t | CX81: 0.5 | CY81: 0.5 | CZ81: 50t | DA81: 0.83 | DB81: 0.83 | DC81: 83t | DG81: 0.04 | DH81: 0.9545454545 | DI81: 4 | DJ81: 0.01 | DK81: 1 | DL81: 1t | DM81: 0 | DP81: 0.14 | DQ81: 3.4 | DR81: 14t
A82: 121 | B82: Montgomery | C82: 0.583 | D82: 0.5384615385 | E82: 0.4666666667 | F82: 0.6666666667 | G82: 0.3076923077 | H82: 0.6666666667 | I82: 0.5833333333 | J82: 0.6923076923 | K82: 0.8 | O82: 0.9487179487 | P82: 0.9130434783 | Q82: 0.8 | R82: 0.7333333333 | S82: 0.9 | T82: 0.8235294118 | U82: 0.9375 | V82: 0.8947368421 | W82: 1 | X82: 3.333333333 | Y82: 3.5 | Z82: 3.333333333 | AA82: 54t | AB82: 45t | AC82: 66t | AD82: 30t | AE82: 112 | AF82: 18t | AG82: 85 | AH82: 30t | AI82: 9t | AM82: 10 | AN82: 15t | AO82: 83t | AP82: 87 | AQ82: 30 | AR82: 69t | AS82: 25 | AT82: 19 | AU82: 1t | AV82: 19t | AW82: 5t | AX82: 16t | AY82: 0.54 | AZ82: 0.583 | BA82: 54t | BB82: 0.3 | BC82: 0.6666666667 | BD82: 30t | BE82: 0.85 | BF82: 0.85 | BG82: 85 | BK82: 0.1 | BL82: 0.9487179487 | BM82: 10 | BN82: 0.87 | BO82: 0.87 | BP82: 87 | BQ82: 0.25 | BR82: 0.9375 | BS82: 25 | BT82: 0.19 | BU82: 3.333333333 | BV82: 19t | BW82: 0.45 | BX82: 0.5384615385 | BY82: 45t | BZ82: 1.12 | CA82: 1.12 | CB82: 112 | CC82: 0.3 | CD82: 0.6923076923 | CE82: 30t | CI82: 0.15 | CJ82: 0.9130434783 | CK82: 15t | CL82: 0.3 | CM82: 0.9 | CN82: 30 | CO82: 0.19 | CP82: 0.8947368421 | CQ82: 19 | CR82: 0.05 | CS82: 3.5 | CT82: 5t | CU82: 0.66 | CV82: 0.66 | CW82: 66t | CX82: 0.18 | CY82: 0.6666666667 | CZ82: 18t | DA82: 0.09 | DB82: 0.8 | DC82: 9t | DG82: 0.83 | DH82: 0.83 | DI82: 83t | DJ82: 0.69 | DK82: 0.8235294118 | DL82: 69t | DM82: 0.01 | DN82: 1 | DO82: 1t | DP82: 0.16 | DQ82: 3.333333333 | DR82: 16t
A83: 125 | B83: Nelson | C83: 0.8 | D83: 0.5 | E83: 0.5555555556 | F83: 0.5 | G83: 0.2 | H83: 0.5555555556 | I83: 0.7 | J83: 0.6 | K83: 0.4444444444 | O83: 0.9189189189 | P83: 0.8863636364 | Q83: 0.8409090909 | R83: 0.9411764706 | S83: 1 | T83: 0.8666666667 | U83: 1 | V83: 0.3333333333 | W83: 0.8181818182 | X83: 3.666666667 | Y83: 2.833333333 | Z83: 3 | AA83: 13t | AB83: 57t | AC83: 35t | AD83: 71t | AE83: 123t | AF83: 41t | AG83: 38t | AH83: 64t | AI83: 96t | AM83: 17 | AN83: 30t | AO83: 64 | AP83: 17 | AQ83: 1t | AR83: 40t | AS83: 1t | AT83: 113 | AU83: 51t | AV83: 3t | AW83: 43t | AX83: 33t | AY83: 0.13 | AZ83: 0.8 | BA83: 13t | BB83: 0.71 | BC83: 0.71 | BD83: 71t | BE83: 0.38 | BF83: 0.7 | BG83: 38t | BK83: 0.17 | BL83: 0.9189189189 | BM83: 17 | BN83: 0.17 | BO83: 0.9411764706 | BP83: 17 | BQ83: 0.01 | BR83: 1 | BS83: 1t | BT83: 0.03 | BU83: 3.666666667 | BV83: 3t | BW83: 0.57 | BX83: 0.57 | BY83: 57t | BZ83: 1.23 | CA83: 1.23 | CB83: 123t | CC83: 0.64 | CD83: 0.64 | CE83: 64t | CI83: 0.3 | CJ83: 0.8863636364 | CK83: 30t | CL83: 0.01 | CM83: 1 | CN83: 1t | CO83: 1.13 | CP83: 1.13 | CQ83: 113 | CR83: 0.43 | CS83: 2.833333333 | CT83: 43t | CU83: 0.35 | CV83: 0.5555555556 | CW83: 35t | CX83: 0.41 | CY83: 0.5555555556 | CZ83: 41t | DA83: 0.96 | DB83: 0.96 | DC83: 96t | DG83: 0.64 | DH83: 0.8409090909 | DI83: 64 | DJ83: 0.4 | DK83: 0.8666666667 | DL83: 40t | DM83: 0.51 | DN83: 0.8181818182 | DO83: 51t | DP83: 0.33 | DQ83: 3 | DR83: 33t
A84: 127 | B84: New Kent | C84: 0.5 | D84: 0.6666666667 | E84: 0.6666666667 | F84: 0.8333333333 | G84: 1 | H84: 0.6666666667 | I84: 0.6666666667 | J84: 0.6666666667 | K84: 0.3333333333 | O84: 0.8918918919 | P84: 0.9583333333 | Q84: 0.9285714286 | R84: 1 | S84: 1 | T84: 0.5 | U84: 1 | V84: 0.7142857143 | W84: 1 | X84: 3.666666667 | Y84: 3.666666667 | Z84: 3.166666667 | AA84: 78t | AB84: 10t | AC84: 12t | AD84: 12t | AE84: 1t | AF84: 18t | AG84: 46t | AH84: 36t | AI84: 114t | AM84: 29 | AN84: 4 | AO84: 9t | AP84: 1t | AQ84: 1t | AR84: 117t | AS84: 1t | AT84: 76t | AU84: 1t | AV84: 3t | AW84: 2 | AX84: 24t | AY84: 0.78 | AZ84: 0.78 | BA84: 78t | BB84: 0.12 | BC84: 0.8333333333 | BD84: 12t | BE84: 0.46 | BF84: 0.6666666667 | BG84: 46t | BK84: 0.29 | BL84: 0.8918918919 | BM84: 29 | BN84: 0.01 | BO84: 1 | BP84: 1t | BQ84: 0.01 | BR84: 1 | BS84: 1t | BT84: 0.03 | BU84: 3.666666667 | BV84: 3t | BW84: 0.1 | BX84: 0.6666666667 | BY84: 10t | BZ84: 0.01 | CA84: 1 | CB84: 1t | CC84: 0.36 | CD84: 0.6666666667 | CE84: 36t | CI84: 0.04 | CJ84: 0.9583333333 | CK84: 4 | CL84: 0.01 | CM84: 1 | CN84: 1t | CO84: 0.76 | CP84: 0.76 | CQ84: 76t | CR84: 0.02 | CS84: 3.666666667 | CT84: 2 | CU84: 0.12 | CV84: 0.6666666667 | CW84: 12t | CX84: 0.18 | CY84: 0.6666666667 | CZ84: 18t | DA84: 1.14 | DB84: 1.14 | DC84: 114t | DG84: 0.09 | DH84: 0.9285714286 | DI84: 9t | DJ84: 1.17 | DK84: 1.17 | DL84: 117t | DM84: 0.01 | DN84: 1 | DO84: 1t | DP84: 0.24 | DQ84: 3.166666667 | DR84: 24t
A85: 700 | B85: Newport News | C85: 0.441 | D85: 0.4299065421 | E85: 0.3982300885 | F85: 0.4237288136 | G85: 0.4814814815 | H85: 0.3805309735 | I85: 0.6271186441 | J85: 0.4814814815 | K85: 0.610619469 | L85: 0.25 | M85: 0.8333333333 | N85: 1 | O85: 0.9481707317 | P85: 0.9488636364 | Q85: 0.974025974 | R85: 0.9147286822 | S85: 0.9084507042 | T85: 0.88125 | U85: 0.8039215686 | V85: 0.7368421053 | W85: 0.7205882353 | X85: 2.285714286 | Y85: 2.571428571 | Z85: 2.857142857 | AA85: 94 | AB85: 91 | AC85: 95 | AD85: 100 | AE85: 77 | AF85: 92 | AG85: 63t | AH85: 104 | AI85: 44 | AJ85: 42t | AK85: 22 | AL85: 1t | AM85: 11 | AN85: 5 | AO85: 3 | AP85: 25 | AQ85: 27 | AR85: 37 | AS85: 62 | AT85: 71 | AU85: 77 | AV85: 94t | AW85: 54t | AX85: 51t | AY85: 0.94 | AZ85: 0.94 | BA85: 94 | BB85: 1 | BC85: 1 | BD85: 100 | BE85: 0.63 | BF85: 0.63 | BG85: 63t | BH85: 0.42 | BI85: 0.42 | BJ85: 42t | BK85: 0.11 | BL85: 0.9481707317 | BM85: 11 | BN85: 0.25 | BO85: 0.9147286822 | BP85: 25 | BQ85: 0.62 | BR85: 0.8039215686 | BS85: 62 | BT85: 0.94 | BU85: 2.285714286 | BV85: 94t | BW85: 0.91 | BX85: 0.91 | BY85: 91 | BZ85: 0.77 | CA85: 0.77 | CB85: 77 | CC85: 1.04 | CD85: 1.04 | CE85: 104 | CF85: 0.22 | CG85: 0.8333333333 | CH85: 22 | CI85: 0.05 | CJ85: 0.9488636364 | CK85: 5 | CL85: 0.27 | CM85: 0.9084507042 | CN85: 27 | CO85: 0.71 | CP85: 0.7368421053 | CQ85: 71 | CR85: 0.54 | CS85: 2.571428571 | CT85: 54t | CU85: 0.95 | CV85: 0.95 | CW85: 95 | CX85: 0.92 | CY85: 0.92 | CZ85: 92 | DA85: 0.44 | DB85: 0.610619469 | DC85: 44 | DD85: 0.01 | DE85: 1 | DF85: 1t | DG85: 0.03 | DH85: 0.974025974 | DI85: 3 | DJ85: 0.37 | DK85: 0.88125 | DL85: 37 | DM85: 0.77 | DN85: 0.77 | DO85: 77 | DP85: 0.51 | DQ85: 2.857142857 | DR85: 51t
A86: 710 | B86: Norfolk | C86: 0.556 | D86: 0.504587156 | E86: 0.2935779817 | F86: 0.4603174603 | G86: 0.3394495413 | H86: 0.3486238532 | I86: 0.6507936508 | J86: 0.623853211 | K86: 0.5412844037 | L86: 0.3898305085 | M86: 0.3829787234 | N86: 0.1 | O86: 0.8470873786 | P86: 0.8746867168 | Q86: 0.8629550321 | R86: 0.9018404908 | S86: 0.9375 | T86: 0.8923766816 | U86: 0.9423076923 | V86: 0.6865671642 | W86: 0.8085106383 | X86: 3.142857143 | Y86: 2.571428571 | Z86: 2 | AA86: 62t | AB86: 56 | AC86: 114 | AD86: 89 | AE86: 108 | AF86: 102 | AG86: 55 | AH86: 60 | AI86: 68 | AJ86: 34 | AK86: 36 | AL86: 53 | AM86: 46 | AN86: 37 | AO86: 48 | AP86: 29 | AQ86: 19 | AR86: 28 | AS86: 24 | AT86: 84 | AU86: 54 | AV86: 29t | AW86: 54t | AX86: 107t | AY86: 0.62 | AZ86: 0.62 | BA86: 62t | BB86: 0.89 | BC86: 0.89 | BD86: 89 | BE86: 0.55 | BF86: 0.6507936508 | BG86: 55 | BH86: 0.34 | BI86: 0.3898305085 | BJ86: 34 | BK86: 0.46 | BL86: 0.8470873786 | BM86: 46 | BN86: 0.29 | BO86: 0.9018404908 | BP86: 29 | BQ86: 0.24 | BR86: 0.9423076923 | BS86: 24 | BT86: 0.29 | BU86: 3.142857143 | BV86: 29t | BW86: 0.56 | BX86: 0.56 | BY86: 56 | BZ86: 1.08 | CA86: 1.08 | CB86: 108 | CC86: 0.6 | CD86: 0.623853211 | CE86: 60 | CF86: 0.36 | CG86: 0.3829787234 | CH86: 36 | CI86: 0.37 | CJ86: 0.8746867168 | CK86: 37 | CL86: 0.19 | CM86: 0.9375 | CN86: 19 | CO86: 0.84 | CP86: 0.84 | CQ86: 84 | CR86: 0.54 | CS86: 2.571428571 | CT86: 54t | CU86: 1.14 | CV86: 1.14 | CW86: 114 | CX86: 1.02 | CY86: 1.02 | CZ86: 102 | DA86: 0.68 | DB86: 0.68 | DC86: 68 | DD86: 0.53 | DE86: 0.53 | DF86: 53 | DG86: 0.48 | DH86: 0.8629550321 | DI86: 48 | DJ86: 0.28 | DK86: 0.8923766816 | DL86: 28 | DM86: 0.54 | DN86: 0.8085106383 | DO86: 54 | DP86: 1.07 | DQ86: 2 | DR86: 107t
A87: 131 | B87: Northampton | C87: 0.333 | D87: 0.75 | E87: 0 | F87: 0 | G87: 0.75 | H87: 0.5 | I87: 0 | J87: 0.75 | K87: 0.5 | O87: 0.4545454545 | P87: 0.6 | Q87: 0.7692307692 | R87: 0.6 | S87: 0.6666666667 | T87: 0.5 | W87: 0.25 | X87: 1.2 | Y87: 3 | Z87: 1.833333333 | AA87: 111t | AB87: 7t | AC87: 124t | AD87: 124t | AE87: 13t | AF87: 50t | AG87: 121t | AH87: 15t | AI87: 83t | AM87: 128 | AN87: 124t | AO87: 101 | AP87: 105t | AQ87: 107t | AR87: 117t | AU87: 111 | AV87: 130 | AW87: 30t | AX87: 119t | AY87: 1.11 | AZ87: 1.11 | BA87: 111t | BB87: 1.24 | BC87: 1.24 | BD87: 124t | BE87: 1.21 | BF87: 1.21 | BG87: 121t | BK87: 1.28 | BL87: 1.28 | BM87: 128 | BN87: 1.05 | BO87: 1.05 | BP87: 105t | BT87: 1.3 | BU87: 1.3 | BV87: 130 | BW87: 0.07 | BX87: 0.75 | BY87: 7t | BZ87: 0.13 | CA87: 0.75 | CB87: 13t | CC87: 0.15 | CD87: 0.75 | CE87: 15t | CI87: 1.24 | CJ87: 1.24 | CK87: 124t | CL87: 1.07 | CM87: 1.07 | CN87: 107t | CO87: 0 | CR87: 0.3 | CS87: 3 | CT87: 30t | CU87: 1.24 | CV87: 1.24 | CW87: 124t | CX87: 0.5 | CY87: 0.5 | CZ87: 50t | DA87: 0.83 | DB87: 0.83 | DC87: 83t | DG87: 1.01 | DH87: 1.01 | DI87: 101 | DJ87: 1.17 | DK87: 1.17 | DL87: 117t | DM87: 1.11 | DN87: 1.11 | DO87: 111 | DP87: 1.19 | DQ87: 1.833333333 | DR87: 119t
A88: 133 | B88: Northumberland | C88: 0.8 | D88: 0.8571428571 | E88: 0.8571428571 | F88: 0.8 | G88: 0.7142857143 | H88: 0.8571428571 | I88: 1 | J88: 0.8571428571 | K88: 0.7142857143 | L88: 0.6666666667 | M88: 1 | N88: 1 | O88: 0.6818181818 | P88: 0.5789473684 | Q88: 0.6923076923 | R88: 1 | S88: 1 | T88: 1 | U88: 1 | V88: 1 | W88: 1 | X88: 3.571428571 | Y88: 3.571428571 | Z88: 3.571428571 | AA88: 13t | AB88: 5 | AC88: 5 | AD88: 15t | AE88: 18t | AF88: 8 | AG88: 1t | AH88: 8 | AI88: 21t | AJ88: 22t | AK88: 1t | AL88: 1t | AM88: 116 | AN88: 126 | AO88: 124 | AP88: 1t | AQ88: 1t | AR88: 1t | AS88: 1t | AT88: 1t | AU88: 1t | AV88: 10t | AW88: 3t | AX88: 5t | AY88: 0.13 | AZ88: 0.8 | BA88: 13t | BB88: 0.15 | BC88: 0.8 | BD88: 15t | BE88: 0.01 | BF88: 1 | BG88: 1t | BH88: 0.22 | BI88: 0.6666666667 | BJ88: 22t | BK88: 1.16 | BL88: 1.16 | BM88: 116 | BN88: 0.01 | BO88: 1 | BP88: 1t | BQ88: 0.01 | BR88: 1 | BS88: 1t | BT88: 0.1 | BU88: 3.571428571 | BV88: 10t | BW88: 0.05 | BX88: 0.8571428571 | BY88: 5 | BZ88: 0.18 | CA88: 0.7142857143 | CB88: 18t | CC88: 0.08 | CD88: 0.8571428571 | CE88: 8 | CF88: 0.01 | CG88: 1 | CH88: 1t | CI88: 1.26 | CJ88: 1.26 | CK88: 126 | CL88: 0.01 | CM88: 1 | CN88: 1t | CO88: 0.01 | CP88: 1 | CQ88: 1t | CR88: 0.03 | CS88: 3.571428571 | CT88: 3t | CU88: 0.05 | CV88: 0.8571428571 | CW88: 5 | CX88: 0.08 | CY88: 0.8571428571 | CZ88: 8 | DA88: 0.21 | DB88: 0.7142857143 | DC88: 21t | DD88: 0.01 | DE88: 1 | DF88: 1t | DG88: 1.24 | DH88: 1.24 | DI88: 124 | DJ88: 0.01 | DK88: 1 | DL88: 1t | DM88: 0.01 | DN88: 1 | DO88: 1t | DP88: 0.05 | DQ88: 3.571428571 | DR88: 5t
A89: 720 | B89: Norton | C89: 0.333 | E89: 0.6666666667 | F89: 0.3333333333 | H89: 0.6666666667 | I89: 0.6666666667 | K89: 0 | O89: 0.8571428571 | P89: 0.8888888889 | Q89: 0.8 | R89: 0.9166666667 | S89: 0.8571428571 | T89: 1 | U89: 1 | V89: 0.8 | W89: 1 | X89: 2.833333333 | Y89: 3.333333333 | Z89: 3 | AA89: 111t | AC89: 12t | AD89: 110t | AF89: 18t | AG89: 46t | AI89: 126t | AM89: 45 | AN89: 27t | AO89: 83t | AP89: 24 | AQ89: 41t | AR89: 1t | AS89: 1t | AT89: 51t | AU89: 1t | AV89: 53t | AW89: 13t | AX89: 33t | AY89: 1.11 | AZ89: 1.11 | BA89: 111t | BB89: 1.1 | BC89: 1.1 | BD89: 110t | BE89: 0.46 | BF89: 0.6666666667 | BG89: 46t | BK89: 0.45 | BL89: 0.8571428571 | BM89: 45 | BN89: 0.24 | BO89: 0.9166666667 | BP89: 24 | BQ89: 0.01 | BR89: 1 | BS89: 1t | BT89: 0.53 | BU89: 2.833333333 | BV89: 53t | CC89: 0 | CE89: 0 | CI89: 0.27 | CJ89: 0.8888888889 | CK89: 27t | CL89: 0.41 | CM89: 0.8571428571 | CN89: 41t | CO89: 0.51 | CP89: 0.8 | CQ89: 51t | CR89: 0.13 | CS89: 3.333333333 | CT89: 13t | CU89: 0.12 | CV89: 0.6666666667 | CW89: 12t | CX89: 0.18 | CY89: 0.6666666667 | CZ89: 18t | DA89: 1.26 | DB89: 1.26 | DC89: 126t | DG89: 0.83 | DH89: 0.83 | DI89: 83t | DJ89: 0.01 | DK89: 1 | DL89: 1t | DM89: 0.01 | DN89: 1 | DO89: 1t | DP89: 0.33 | DQ89: 3 | DR89: 33t
A90: 135 | B90: Nottoway | C90: 0.6 | D90: 0.7777777778 | E90: 0.6 | F90: 0.2 | G90: 0.8888888889 | H90: 0.8 | I90: 0.6 | J90: 0.7777777778 | K90: 0.2 | N90: 0 | O90: 0.2777777778 | P90: 0.3333333333 | Q90: 0.52 | R90: 0.2 | S90: 0.25 | T90: 0.2857142857 | X90: 2 | Y90: 3 | Z90: 2.166666667 | AA90: 42t | AB90: 6 | AC90: 20t | AD90: 120 | AE90: 10 | AF90: 9t | AG90: 74t | AH90: 12 | AI90: 123t | AL90: 57t | AM90: 129 | AN90: 130 | AO90: 129 | AP90: 125 | AQ90: 127 | AR90: 125 | AV90: 109t | AW90: 30t | AX90: 100t | AY90: 0.42 | AZ90: 0.6 | BA90: 42t | BB90: 1.2 | BC90: 1.2 | BD90: 120 | BE90: 0.74 | BF90: 0.74 | BG90: 74t | BK90: 1.29 | BL90: 1.29 | BM90: 129 | BN90: 1.25 | BO90: 1.25 | BP90: 125 | BT90: 1.09 | BU90: 2 | BV90: 109t | BW90: 0.06 | BX90: 0.7777777778 | BY90: 6 | BZ90: 0.1 | CA90: 0.8888888889 | CB90: 10 | CC90: 0.12 | CD90: 0.7777777778 | CE90: 12 | CI90: 1.3 | CJ90: 1.3 | CK90: 130 | CL90: 1.27 | CM90: 1.27 | CN90: 127 | CO90: 0 | CR90: 0.3 | CS90: 3 | CT90: 30t | CU90: 0.2 | CV90: 0.6 | CW90: 20t | CX90: 0.09 | CY90: 0.8 | CZ90: 9t | DA90: 1.23 | DB90: 1.23 | DC90: 123t | DD90: 0.57 | DE90: 0.57 | DF90: 57t | DG90: 1.29 | DH90: 1.29 | DI90: 129 | DJ90: 1.25 | DK90: 1.25 | DL90: 125 | DM90: 0 | DP90: 1 | DQ90: 2.166666667 | DR90: 100t
A91: 137 | B91: Orange | C91: 0.553 | D91: 0.525 | E91: 0.7142857143 | F91: 0.5744680851 | G91: 0.675 | H91: 0.5714285714 | I91: 0.7872340426 | J91: 0.6 | K91: 0.5714285714 | L91: 0 | M91: 0 | N91: 0 | O91: 0.786259542 | P91: 0.7890625 | Q91: 0.8541666667 | R91: 0.8260869565 | S91: 0.7894736842 | T91: 0.6956521739 | U91: 0.7 | V91: 0.72 | W91: 0.9444444444 | X91: 2.714285714 | Y91: 2.285714286 | Z91: 3 | AA91: 64 | AB91: 51t | AC91: 11 | AD91: 49 | AE91: 23 | AF91: 38t | AG91: 20 | AH91: 64t | AI91: 56t | AJ91: 58t | AK91: 54t | AL91: 57t | AM91: 80 | AN91: 83 | AO91: 52t | AP91: 58t | AQ91: 72t | AR91: 100 | AS91: 89t | AT91: 75 | AU91: 24 | AV91: 59t | AW91: 82t | AX91: 33t | AY91: 0.64 | AZ91: 0.64 | BA91: 64 | BB91: 0.49 | BC91: 0.5744680851 | BD91: 49 | BE91: 0.2 | BF91: 0.7872340426 | BG91: 20 | BH91: 0.58 | BI91: 0.58 | BJ91: 58t | BK91: 0.8 | BL91: 0.8 | BM91: 80 | BN91: 0.58 | BO91: 0.8260869565 | BP91: 58t | BQ91: 0.89 | BR91: 0.89 | BS91: 89t | BT91: 0.59 | BU91: 2.714285714 | BV91: 59t | BW91: 0.51 | BX91: 0.525 | BY91: 51t | BZ91: 0.23 | CA91: 0.675 | CB91: 23 | CC91: 0.64 | CD91: 0.64 | CE91: 64t | CF91: 0.54 | CG91: 0.54 | CH91: 54t | CI91: 0.83 | CJ91: 0.83 | CK91: 83 | CL91: 0.72 | CM91: 0.7894736842 | CN91: 72t | CO91: 0.75 | CP91: 0.75 | CQ91: 75 | CR91: 0.82 | CS91: 2.285714286 | CT91: 82t | CU91: 0.11 | CV91: 0.7142857143 | CW91: 11 | CX91: 0.38 | CY91: 0.5714285714 | CZ91: 38t | DA91: 0.56 | DB91: 0.5714285714 | DC91: 56t | DD91: 0.57 | DE91: 0.57 | DF91: 57t | DG91: 0.52 | DH91: 0.8541666667 | DI91: 52t | DJ91: 1 | DK91: 1 | DL91: 100 | DM91: 0.24 | DN91: 0.9444444444 | DO91: 24 | DP91: 0.33 | DQ91: 3 | DR91: 33t
A92: 139 | B92: Page | C92: 0.533 | D92: 0.6363636364 | E92: 0.4583333333 | F92: 0.4 | G92: 0.4090909091 | H92: 0.375 | I92: 0.6 | J92: 0.6363636364 | K92: 0.5833333333 | L92: 0 | O92: 0.6551724138 | P92: 0.7301587302 | Q92: 0.7631578947 | R92: 0.8235294118 | S92: 0.9166666667 | T92: 0.8846153846 | U92: 0.5 | V92: 0.8571428571 | W92: 0.9230769231 | X92: 1.857142857 | Y92: 2.666666667 | Z92: 2.5 | AA92: 69 | AB92: 17t | AC92: 75t | AD92: 103t | AE92: 91t | AF92: 93t | AG92: 74t | AH92: 51t | AI92: 54t | AJ92: 58t | AM92: 118 | AN92: 106 | AO92: 105 | AP92: 60 | AQ92: 24 | AR92: 33 | AS92: 105t | AT92: 34t | AU92: 26t | AV92: 115t | AW92: 52t | AX92: 79t | AY92: 0.69 | AZ92: 0.69 | BA92: 69 | BB92: 1.03 | BC92: 1.03 | BD92: 103t | BE92: 0.74 | BF92: 0.74 | BG92: 74t | BH92: 0.58 | BI92: 0.58 | BJ92: 58t | BK92: 1.18 | BL92: 1.18 | BM92: 118 | BN92: 0.6 | BO92: 0.8235294118 | BP92: 60 | BQ92: 1.05 | BR92: 1.05 | BS92: 105t | BT92: 1.15 | BU92: 1.857142857 | BV92: 115t | BW92: 0.17 | BX92: 0.6363636364 | BY92: 17t | BZ92: 0.91 | CA92: 0.91 | CB92: 91t | CC92: 0.51 | CD92: 0.6363636364 | CE92: 51t | CI92: 1.06 | CJ92: 1.06 | CK92: 106 | CL92: 0.24 | CM92: 0.9166666667 | CN92: 24 | CO92: 0.34 | CP92: 0.8571428571 | CQ92: 34t | CR92: 0.52 | CS92: 2.666666667 | CT92: 52t | CU92: 0.75 | CV92: 0.75 | CW92: 75t | CX92: 0.93 | CY92: 0.93 | CZ92: 93t | DA92: 0.54 | DB92: 0.5833333333 | DC92: 54t | DG92: 1.05 | DH92: 1.05 | DI92: 105 | DJ92: 0.33 | DK92: 0.8846153846 | DL92: 33 | DM92: 0.26 | DN92: 0.9230769231 | DO92: 26t | DP92: 0.79 | DQ92: 2.5 | DR92: 79t
A93: 141 | B93: Patrick | C93: 0.5 | D93: 0.1666666667 | E93: 0.25 | F93: 0.5 | G93: 0.5 | H93: 0.4166666667 | I93: 0.375 | J93: 0.6666666667 | K93: 0.5833333333 | L93: 0.25 | M93: 0.8 | N93: 0.3333333333 | O93: 0.7142857143 | P93: 0.6666666667 | Q93: 0.8076923077 | R93: 0.7 | S93: 0.8125 | T93: 0.95 | U93: 0.6666666667 | V93: 0.8888888889 | W93: 1 | X93: 1.571428571 | Y93: 2.714285714 | Z93: 2.285714286 | AA93: 78t | AB93: 121 | AC93: 116t | AD93: 71t | AE93: 61t | AF93: 84 | AG93: 114 | AH93: 36t | AI93: 54t | AJ93: 42t | AK93: 23t | AL93: 42 | AM93: 106 | AN93: 121t | AO93: 80t | AP93: 93 | AQ93: 61 | AR93: 18 | AS93: 93t | AT93: 20t | AU93: 1t | AV93: 124t | AW93: 49t | AX93: 93t | AY93: 0.78 | AZ93: 0.78 | BA93: 78t | BB93: 0.71 | BC93: 0.71 | BD93: 71t | BE93: 1.14 | BF93: 1.14 | BG93: 114 | BH93: 0.42 | BI93: 0.42 | BJ93: 42t | BK93: 1.06 | BL93: 1.06 | BM93: 106 | BN93: 0.93 | BO93: 0.93 | BP93: 93 | BQ93: 0.93 | BR93: 0.93 | BS93: 93t | BT93: 1.24 | BU93: 1.571428571 | BV93: 124t | BW93: 1.21 | BX93: 1.21 | BY93: 121 | BZ93: 0.61 | CA93: 0.61 | CB93: 61t | CC93: 0.36 | CD93: 0.6666666667 | CE93: 36t | CF93: 0.23 | CG93: 0.8 | CH93: 23t | CI93: 1.21 | CJ93: 1.21 | CK93: 121t | CL93: 0.61 | CM93: 0.8125 | CN93: 61 | CO93: 0.2 | CP93: 0.8888888889 | CQ93: 20t | CR93: 0.49 | CS93: 2.714285714 | CT93: 49t | CU93: 1.16 | CV93: 1.16 | CW93: 116t | CX93: 0.84 | CY93: 0.84 | CZ93: 84 | DA93: 0.54 | DB93: 0.5833333333 | DC93: 54t | DD93: 0.42 | DE93: 0.42 | DF93: 42 | DG93: 0.8 | DH93: 0.8076923077 | DI93: 80t | DJ93: 0.18 | DK93: 0.95 | DL93: 18 | DM93: 0.01 | DN93: 1 | DO93: 1t | DP93: 0.93 | DQ93: 2.285714286 | DR93: 93t
A94: 730 | B94: Petersburg | C94: 0.5 | D94: 0.4545454545 | E94: 0.5555555556 | F94: 0.5416666667 | G94: 0.2727272727 | H94: 0.6666666667 | I94: 0.6666666667 | J94: 0.3636363636 | K94: 0.5555555556 | L94: 0 | M94: 0.1818181818 | N94: 0.4444444444 | O94: 0.7222222222 | P94: 0.8467741935 | Q94: 0.8671875 | R94: 0.6944444444 | S94: 0.6857142857 | T94: 0.7435897436 | U94: 0.7777777778 | V94: 0.6363636364 | W94: 1 | X94: 2.142857143 | Y94: 1.714285714 | Z94: 3.142857143 | AA94: 78t | AB94: 80t | AC94: 35t | AD94: 63 | AE94: 119t | AF94: 18t | AG94: 46t | AH94: 118t | AI94: 66 | AJ94: 58t | AK94: 48 | AL94: 36t | AM94: 104 | AN94: 50 | AO94: 45 | AP94: 94 | AQ94: 105 | AR94: 93 | AS94: 70t | AT94: 96 | AU94: 1t | AV94: 102t | AW94: 119t | AX94: 28t | AY94: 0.78 | AZ94: 0.78 | BA94: 78t | BB94: 0.63 | BC94: 0.63 | BD94: 63 | BE94: 0.46 | BF94: 0.6666666667 | BG94: 46t | BH94: 0.58 | BI94: 0.58 | BJ94: 58t | BK94: 1.04 | BL94: 1.04 | BM94: 104 | BN94: 0.94 | BO94: 0.94 | BP94: 94 | BQ94: 0.7 | BR94: 0.7777777778 | BS94: 70t | BT94: 1.02 | BU94: 2.142857143 | BV94: 102t | BW94: 0.8 | BX94: 0.8 | BY94: 80t | BZ94: 1.19 | CA94: 1.19 | CB94: 119t | CC94: 1.18 | CD94: 1.18 | CE94: 118t | CF94: 0.48 | CG94: 0.48 | CH94: 48 | CI94: 0.5 | CJ94: 0.8467741935 | CK94: 50 | CL94: 1.05 | CM94: 1.05 | CN94: 105 | CO94: 0.96 | CP94: 0.96 | CQ94: 96 | CR94: 1.19 | CS94: 1.714285714 | CT94: 119t | CU94: 0.35 | CV94: 0.5555555556 | CW94: 35t | CX94: 0.18 | CY94: 0.6666666667 | CZ94: 18t | DA94: 0.66 | DB94: 0.66 | DC94: 66 | DD94: 0.36 | DE94: 0.4444444444 | DF94: 36t | DG94: 0.45 | DH94: 0.8671875 | DI94: 45 | DJ94: 0.93 | DK94: 0.93 | DL94: 93 | DM94: 0.01 | DN94: 1 | DO94: 1t | DP94: 0.28 | DQ94: 3.142857143 | DR94: 28t
A95: 143 | B95: Pittsylvania | C95: 0.6 | D95: 0.4468085106 | E95: 0.4761904762 | F95: 0.5636363636 | G95: 0.5957446809 | H95: 0.4523809524 | I95: 0.6363636364 | J95: 0.7021276596 | K95: 0.5952380952 | L95: 0.2857142857 | M95: 0.32 | N95: 0.4090909091 | O95: 0.8352941176 | P95: 0.7964071856 | Q95: 0.7887323944 | R95: 0.9032258065 | S95: 0.6296296296 | T95: 0.84375 | U95: 0.7692307692 | V95: 0.7142857143 | W95: 0.8095238095 | X95: 2.857142857 | Y95: 2.428571429 | Z95: 2.571428571 | AA95: 42t | AB95: 87 | AC95: 65 | AD95: 53 | AE95: 37 | AF95: 74 | AG95: 58t | AH95: 26 | AI95: 53 | AJ95: 39t | AK95: 41 | AL95: 39 | AM95: 51 | AN95: 80 | AO95: 93 | AP95: 27 | AQ95: 112 | AR95: 54t | AS95: 75 | AT95: 76t | AU95: 53 | AV95: 45t | AW95: 73t | AX95: 68t | AY95: 0.42 | AZ95: 0.6 | BA95: 42t | BB95: 0.53 | BC95: 0.5636363636 | BD95: 53 | BE95: 0.58 | BF95: 0.6363636364 | BG95: 58t | BH95: 0.39 | BI95: 0.39 | BJ95: 39t | BK95: 0.51 | BL95: 0.8352941176 | BM95: 51 | BN95: 0.27 | BO95: 0.9032258065 | BP95: 27 | BQ95: 0.75 | BR95: 0.7692307692 | BS95: 75 | BT95: 0.45 | BU95: 2.857142857 | BV95: 45t | BW95: 0.87 | BX95: 0.87 | BY95: 87 | BZ95: 0.37 | CA95: 0.5957446809 | CB95: 37 | CC95: 0.26 | CD95: 0.7021276596 | CE95: 26 | CF95: 0.41 | CG95: 0.41 | CH95: 41 | CI95: 0.8 | CJ95: 0.8 | CK95: 80 | CL95: 1.12 | CM95: 1.12 | CN95: 112 | CO95: 0.76 | CP95: 0.76 | CQ95: 76t | CR95: 0.73 | CS95: 2.428571429 | CT95: 73t | CU95: 0.65 | CV95: 0.65 | CW95: 65 | CX95: 0.74 | CY95: 0.74 | CZ95: 74 | DA95: 0.53 | DB95: 0.5952380952 | DC95: 53 | DD95: 0.39 | DE95: 0.4090909091 | DF95: 39 | DG95: 0.93 | DH95: 0.93 | DI95: 93 | DJ95: 0.54 | DK95: 0.84375 | DL95: 54t | DM95: 0.53 | DN95: 0.8095238095 | DO95: 53 | DP95: 0.68 | DQ95: 2.571428571 | DR95: 68t
A96: 735 | B96: Poquoson | C96: 1 | D96: 0 | E96: 1 | F96: 1 | G96: 1 | H96: 1 | I96: 1 | J96: 1 | K96: 1 | N96: 0.5 | O96: 0.5454545455 | P96: 0.7272727273 | Q96: 0.7777777778 | R96: 0.4 | S96: 0.4166666667 | T96: 0 | V96: 0.25 | X96: 3 | Y96: 2.333333333 | Z96: 3 | AA96: 1t | AB96: 123t | AC96: 1t | AD96: 1t | AE96: 1t | AF96: 1t | AG96: 1t | AH96: 1t | AI96: 1t | AL96: 32t | AM96: 125 | AN96: 108 | AO96: 98t | AP96: 120t | AQ96: 124t | AR96: 126t | AT96: 114t | AV96: 34t | AW96: 81 | AX96: 33t | AY96: 0.01 | AZ96: 1 | BA96: 1t | BB96: 0.01 | BC96: 1 | BD96: 1t | BE96: 0.01 | BF96: 1 | BG96: 1t | BK96: 1.25 | BL96: 1.25 | BM96: 125 | BN96: 1.2 | BO96: 1.2 | BP96: 120t | BT96: 0.34 | BU96: 3 | BV96: 34t | BW96: 1.23 | BX96: 1.23 | BY96: 123t | BZ96: 0.01 | CA96: 1 | CB96: 1t | CC96: 0.01 | CD96: 1 | CE96: 1t | CI96: 1.08 | CJ96: 1.08 | CK96: 108 | CL96: 1.24 | CM96: 1.24 | CN96: 124t | CO96: 1.14 | CP96: 1.14 | CQ96: 114t | CR96: 0.81 | CS96: 2.333333333 | CT96: 81 | CU96: 0.01 | CV96: 1 | CW96: 1t | CX96: 0.01 | CY96: 1 | CZ96: 1t | DA96: 0.01 | DB96: 1 | DC96: 1t | DD96: 0.32 | DE96: 0.5 | DF96: 32t | DG96: 0.98 | DH96: 0.98 | DI96: 98t | DJ96: 1.26 | DK96: 1.26 | DL96: 126t | DM96: 0 | DP96: 0.33 | DQ96: 3 | DR96: 33t
A97: 740 | B97: Portsmouth | C97: 0.263 | D97: 0.3846153846 | E97: 0.4666666667 | F97: 0.3157894737 | G97: 0.4615384615 | H97: 0.7333333333 | I97: 0.3157894737 | J97: 0.6923076923 | K97: 0.4 | L97: 0.2857142857 | N97: 0 | O97: 0.918699187 | P97: 0.9130434783 | Q97: 0.7704918033 | R97: 0.9292929293 | S97: 0.9027777778 | T97: 0.7659574468 | U97: 0.7551020408 | V97: 0.7346938776 | W97: 0.6578947368 | X97: 2 | Y97: 2.833333333 | Z97: 2 | AA97: 118 | AB97: 98 | AC97: 66t | AD97: 113 | AE97: 80t | AF97: 14 | AG97: 117 | AH97: 30t | AI97: 106t | AJ97: 39t | AL97: 57t | AM97: 18 | AN97: 15t | AO97: 100 | AP97: 22 | AQ97: 29 | AR97: 87 | AS97: 77 | AT97: 72 | AU97: 93 | AV97: 109t | AW97: 43t | AX97: 107t | AY97: 1.18 | AZ97: 1.18 | BA97: 118 | BB97: 1.13 | BC97: 1.13 | BD97: 113 | BE97: 1.17 | BF97: 1.17 | BG97: 117 | BH97: 0.39 | BI97: 0.39 | BJ97: 39t | BK97: 0.18 | BL97: 0.918699187 | BM97: 18 | BN97: 0.22 | BO97: 0.9292929293 | BP97: 22 | BQ97: 0.77 | BR97: 0.77 | BS97: 77 | BT97: 1.09 | BU97: 2 | BV97: 109t | BW97: 0.98 | BX97: 0.98 | BY97: 98 | BZ97: 0.8 | CA97: 0.8 | CB97: 80t | CC97: 0.3 | CD97: 0.6923076923 | CE97: 30t | CI97: 0.15 | CJ97: 0.9130434783 | CK97: 15t | CL97: 0.29 | CM97: 0.9027777778 | CN97: 29 | CO97: 0.72 | CP97: 0.7346938776 | CQ97: 72 | CR97: 0.43 | CS97: 2.833333333 | CT97: 43t | CU97: 0.66 | CV97: 0.66 | CW97: 66t | CX97: 0.14 | CY97: 0.7333333333 | CZ97: 14 | DA97: 1.06 | DB97: 1.06 | DC97: 106t | DD97: 0.57 | DE97: 0.57 | DF97: 57t | DG97: 1 | DH97: 1 | DI97: 100 | DJ97: 0.87 | DK97: 0.87 | DL97: 87 | DM97: 0.93 | DN97: 0.93 | DO97: 93 | DP97: 1.07 | DQ97: 2 | DR97: 107t
A98: 145 | B98: Powhatan | C98: 0.6 | D98: 0.6923076923 | E98: 0.3571428571 | F98: 0.6 | G98: 0.6923076923 | H98: 0.2857142857 | I98: 0.6 | J98: 0.8461538462 | K98: 0.4285714286 | O98: 0.8292682927 | P98: 0.8048780488 | Q98: 0.8 | R98: 0.6666666667 | S98: 0.5454545455 | T98: 0.6666666667 | U98: 0.75 | V98: 0.125 | W98: 0.5 | X98: 2.833333333 | Y98: 3 | Z98: 1.333333333 | AA98: 42t | AB98: 9 | AC98: 107 | AD98: 41t | AE98: 20 | AF98: 111t | AG98: 74t | AH98: 9 | AI98: 99t | AM98: 58t | AN98: 74 | AO98: 83t | AP98: 96t | AQ98: 115 | AR98: 105t | AS98: 79t | AT98: 117 | AU98: 104t | AV98: 53t | AW98: 30t | AX98: 129 | AY98: 0.42 | AZ98: 0.6 | BA98: 42t | BB98: 0.41 | BC98: 0.6 | BD98: 41t | BE98: 0.74 | BF98: 0.74 | BG98: 74t | BK98: 0.58 | BL98: 0.8292682927 | BM98: 58t | BN98: 0.96 | BO98: 0.96 | BP98: 96t | BQ98: 0.79 | BR98: 0.79 | BS98: 79t | BT98: 0.53 | BU98: 2.833333333 | BV98: 53t | BW98: 0.09 | BX98: 0.6923076923 | BY98: 9 | BZ98: 0.2 | CA98: 0.6923076923 | CB98: 20 | CC98: 0.09 | CD98: 0.8461538462 | CE98: 9 | CI98: 0.74 | CJ98: 0.8048780488 | CK98: 74 | CL98: 1.15 | CM98: 1.15 | CN98: 115 | CO98: 1.17 | CP98: 1.17 | CQ98: 117 | CR98: 0.3 | CS98: 3 | CT98: 30t | CU98: 1.07 | CV98: 1.07 | CW98: 107 | CX98: 1.11 | CY98: 1.11 | CZ98: 111t | DA98: 0.99 | DB98: 0.99 | DC98: 99t | DG98: 0.83 | DH98: 0.83 | DI98: 83t | DJ98: 1.05 | DK98: 1.05 | DL98: 105t | DM98: 1.04 | DN98: 1.04 | DO98: 104t | DP98: 1.29 | DQ98: 1.333333333 | DR98: 129
A99: 147 | B99: Prince Edward | C99: 0.667 | D99: 0.6666666667 | E99: 0.6 | F99: 0.75 | G99: 1 | H99: 0.8 | I99: 0.6666666667 | J99: 0.6666666667 | K99: 0.4 | L99: 1 | M99: 1 | O99: 0.8 | P99: 0.8947368421 | Q99: 0.92 | R99: 0.9 | S99: 0.8571428571 | T99: 0.6666666667 | V99: 0.8823529412 | W99: 1 | X99: 3.666666667 | Y99: 4 | Z99: 3.166666667 | AA99: 30t | AB99: 10t | AC99: 20t | AD99: 22 | AE99: 1t | AF99: 9t | AG99: 46t | AH99: 36t | AI99: 106t | AJ99: 1t | AK99: 1t | AM99: 73t | AN99: 23 | AO99: 13 | AP99: 30 | AQ99: 41t | AR99: 105t | AT99: 25t | AU99: 1t | AV99: 3t | AW99: 1 | AX99: 24t | AY99: 0.3 | AZ99: 0.667 | BA99: 30t | BB99: 0.22 | BC99: 0.75 | BD99: 22 | BE99: 0.46 | BF99: 0.6666666667 | BG99: 46t | BH99: 0.01 | BI99: 1 | BJ99: 1t | BK99: 0.73 | BL99: 0.8 | BM99: 73t | BN99: 0.3 | BO99: 0.9 | BP99: 30 | BT99: 0.03 | BU99: 3.666666667 | BV99: 3t | BW99: 0.1 | BX99: 0.6666666667 | BY99: 10t | BZ99: 0.01 | CA99: 1 | CB99: 1t | CC99: 0.36 | CD99: 0.6666666667 | CE99: 36t | CF99: 0.01 | CG99: 1 | CH99: 1t | CI99: 0.23 | CJ99: 0.8947368421 | CK99: 23 | CL99: 0.41 | CM99: 0.8571428571 | CN99: 41t | CO99: 0.25 | CP99: 0.8823529412 | CQ99: 25t | CR99: 0.01 | CS99: 4 | CT99: 1 | CU99: 0.2 | CV99: 0.6 | CW99: 20t | CX99: 0.09 | CY99: 0.8 | CZ99: 9t | DA99: 1.06 | DB99: 1.06 | DC99: 106t | DG99: 0.13 | DH99: 0.92 | DI99: 13 | DJ99: 1.05 | DK99: 1.05 | DL99: 105t | DM99: 0.01 | DN99: 1 | DO99: 1t | DP99: 0.24 | DQ99: 3.166666667 | DR99: 24t
A100: 149 | B100: Prince George | C100: 0.429 | D100: 0.5 | E100: 0.5714285714 | F100: 0.1428571429 | G100: 0.625 | H100: 0.6428571429 | I100: 0.2857142857 | J100: 0.4375 | K100: 0.4285714286 | M100: 1 | N100: 1 | O100: 0.9512195122 | P100: 0.9111111111 | Q100: 0.8421052632 | R100: 0.8333333333 | S100: 0.8571428571 | T100: 0.8571428571 | U100: 0.8888888889 | V100: 0.6666666667 | W100: 0.8888888889 | X100: 2.333333333 | Y100: 3.142857143 | Z100: 3.285714286 | AA100: 96 | AB100: 57t | AC100: 28t | AD100: 123 | AE100: 31t | AF100: 26 | AG100: 119 | AH100: 111 | AI100: 99t | AK100: 1t | AL100: 1t | AM100: 9 | AN100: 17 | AO100: 61t | AP100: 55t | AQ100: 41t | AR100: 43t | AS100: 35 | AT100: 88t | AU100: 32t | AV100: 93 | AW100: 26t | AX100: 20t | AY100: 0.96 | AZ100: =IF(C100<>"",MAX(C100,AY100),"") -> 0.96 | BA100: 96 | BB100: 1.23 | BC100: =IF(F100<>"",MAX(F100,BB100),"") -> 1.23 | BD100: 123 | BE100: 1.19 | BF100: =IF(I100<>"",MAX(I100,BE100),"") -> 1.19 | BG100: 119 | BI100: =IF(L100<>"",MAX(L100,BH100),"") ->  | BK100: 0.09 | BL100: =IF(O100<>"",MAX(O100,BK100),"") -> 0.9512195122 | BM100: 9 | BN100: 0.55 | BO100: =IF(R100<>"",MAX(R100,BN100),"") -> 0.8333333333 | BP100: 55t | BQ100: 0.35 | BR100: =IF(U100<>"",MAX(U100,BQ100),"") -> 0.8888888889 | BS100: 35 | BT100: 0.93 | BU100: =IF(X100<>"",MAX(X100,BT100),"") -> 2.333333333 | BV100: 93 | BW100: 0.57 | BX100: =IF(D100<>"",MAX(D100,BW100),"") -> 0.57 | BY100: 57t | BZ100: 0.31 | CA100: =IF(G100<>"",MAX(G100,BZ100),"") -> 0.625 | CB100: 31t | CC100: 1.11 | CD100: =IF(J100<>"",MAX(J100,CC100),"") -> 1.11 | CE100: 111 | CF100: 0.01 | CG100: =IF(M100<>"",MAX(M100,CF100),"") -> 1 | CH100: 1t | CI100: 0.17 | CJ100: =IF(P100<>"",MAX(P100,CI100),"") -> 0.9111111111 | CK100: 17 | CL100: 0.41 | CM100: =IF(S100<>"",MAX(S100,CL100),"") -> 0.8571428571 | CN100: 41t | CO100: 0.88 | CP100: =IF(V100<>"",MAX(V100,CO100),"") -> 0.88 | CQ100: 88t | CR100: 0.26 | CS100: =IF(Y100<>"",MAX(Y100,CR100),"") -> 3.142857143 | CT100: 26t | CU100: 0.28 | CV100: =IF(E100<>"",MAX(E100,CU100),"") -> 0.5714285714 | CW100: 28t | CX100: 0.26 | CY100: =IF(H100<>"",MAX(H100,CX100),"") -> 0.6428571429 | CZ100: 26 | DA100: 0.99 | DB100: =IF(K100<>"",MAX(K100,DA100),"") -> 0.99 | DC100: 99t | DD100: 0.01 | DE100: =IF(N100<>"",MAX(N100,DD100),"") -> 1 | DF100: 1t | DG100: 0.61 | DH100: =IF(Q100<>"",MAX(Q100,DG100),"") -> 0.8421052632 | DI100: 61t | DJ100: 0.43 | DK100: =IF(T100<>"",MAX(T100,DJ100),"") -> 0.8571428571 | DL100: 43t | DM100: 0.32 | DN100: =IF(W100<>"",MAX(W100,DM100),"") -> 0.8888888889 | DO100: 32t | DP100: 0.2 | DQ100: =IF(Z100<>"",MAX(Z100,DP100),"") -> 3.285714286 | DR100: 20t
